{"text_format":"3","workbook":"xlsx","n_sheets":5,"sheets":["SUMMARY ","AMANZIMTOTI STATION","AMANZIMTOTI PROTECTION SERVICES","WARNER BEACH STATION","WINKELSPRUIT STATION"],"not_rendered":{"defined_names":6},"read":"whole","date_system":"1900"}

{"sheet":"SUMMARY ","index":0,"n_rows":17,"n_cols":8,"rows_kept":17}
["ITEM NO",null,"DESCRIPTION",{"$nulls":4},"AMOUNT"]
[]
[{"v":1,"d":"1 "},null,"Amanzimtoti Station (Excluding VAT)",{"$nulls":4},{"$f":"'AMANZIMTOTI STATION'!H2285","v":0}]
[]
[{"v":2,"d":"2 "},null,"Amanzimtoti Protection Services  (Excluding VAT)",{"$nulls":4},{"$f":"'AMANZIMTOTI PROTECTION SERVICES'!H1499","v":0}]
[]
[{"v":3,"d":"3 "},null,"Warner Beach Station  (Excluding VAT)",{"$nulls":4},{"$f":"'WARNER BEACH STATION'!O1803","v":0}]
[]
[{"v":4,"d":"4 "},null,"Winkelspruit Station  (Excluding VAT)",{"$nulls":4},{"$f":"'WINKELSPRUIT STATION'!H2453","v":0}]
[]
[null,null,"SUB TOTAL",{"$nulls":4},{"$f":"SUM(H2:H10)","v":0}]
[]
[null,null,"VALUE ADDED TAX"]
[]
[null,null,"Value Added Tax ",{"$nulls":4},{"$f":"H11*0.15","v":0}]
[]
[null,null,"Summary Total",{"$nulls":4},{"$f":"SUM(H11:H16)","v":0}]

{"sheet":"AMANZIMTOTI STATION","index":1,"n_rows":2291,"n_cols":8,"rows_kept":2291}
["ITEM NO",null,"DESCRIPTION",null,"UNIT","QUANTITY","RATE","AMOUNT"]
[]
[null,null,"SECTION NO. 1"]
[]
[null,null,"BILL NO. 1"]
[]
[null,null,"PRELIMINARIES AND GENERAL"]
[]
[null,null,"BUILDING AGREEMENT AND PRELIMINARIES"]
[]
[null,null,"The  JBCC Principal Building Agreement (May 2018 Edition 6.2) prepared by the Joint Building Contracts Committee shall be the applicable building agreement, amended as hereinafter described"]
[]
[null,null,"The JBCC Principal Building Agreement contract data form an integral part of this agreement"]
[]
[null,null,"The Preliminaries revision 1 (February 2016) published by the Association of South African Quantity Surveyors for use with the JBCC Principal Building Agreement Edition 6.2 shall be deemed to be incorporated in these bills of quantities, amended as hereinafter described"]
[]
[null,null,"The contractor is deemed to have referred to the abovementioned documents for the full intent and meaning of each clause"]
[]
[null,null,"The clauses in the abovementioned documents are hereinafter referred to by clause number and heading only"]
[]
[null,null,"Where any item is not relevant to this agreement such item is marked N/A signifying \"not applicable\""]
[]
[null,null,"PREAMBLES FOR TRADES"]
[]
[null,null,"The Model Preambles for Trades 2008 published by the Association of South African Quantity Surveyors is designed to support and extend the abbreviated descriptions utilised in these bills of quantities by inter alia referring to SANS construction standards."]
[]
[null,null,"Note that the text of the Standard System of Measuring Building Work (seventh edition) and that of the Standard Method of Measuring Building Work for Africa 2015 (first edition) is the same"]
[]
[null,null,"The Model Preambles for Trades 2008 as published by the Association of South African Quantity Surveyors shall be deemed to be incorporated in these bills of quantities and no claims arising from brevity of description of items fully described in the said Model Preambles will be entertained"]
[]
[null,null,"Supplementary preambles and/or specifications are incorporated in these bills of quantities to satisfy the requirements of this project. Such supplementary preambles and/or specifications shall take precedence over the provisions of the Model Preambles"]
[]
[null,null,"The contractor's prices for all items throughout these bills of quantities shall take account of and include for all of the obligations, requirements and specifications given in the Model Preambles and in any supplementary preambles and/or specifications"]
[]
[null,null,"NOTES TO TENDERERS"]
[]
[null,null,"Tenderers are to inspect the drawings issued with these Bills of Quantities and to satisfy themselves with the nature and the requirements of the Contract works. Failure to do so will be the complete responsibility of the Tenderer and no claims whatsoever will be entertained in this regard."]
[]
[null,null,"Tenderers are to read the descriptions, which are intended as a means of identifying various facets of the work, in conjunction with the drawings. Tenderers shall allow for all costs in connection with the various items taking full cognisance of both the drawings and the Bills of Quantities."]
[]
[null,null,"Tenderers shall notify the Quantity Surveyor in writing of any discrepancies encountered upon which clarification will be given by the Quantity Surveyor in writing to the Tenderer. Failure to do so will be the complete responsibility of the Tenderer and no claims whatsoever will be entertained in this regard"]
[]
[null,null,"Tenderers are to note that setting out of the works will be the complete responsibility of the Tenderer and they should therefore acquaint themselves with the site boundaries, site co-ordinates, datum levels etc. Failure to do so will be the complete responsibility of the Tenderer and no claims whatsoever will be entertained in this regard.  Tenderers are to note that all items with ZERO quantities are Rate Only items and should be priced as such."]
[]
[null,null,"Tenderers are to note that there might be specified suppliers to be used for certain trades as per the annexure to this tender document. Tenderers should familiarise themselves with the suppliers on the list and ensure to allow for accordingly. Failure to do so will be the complete responsibility of the Tenderer and no claims whatsoever will be entertained in this regard."]
[]
[null,null,"Tenderers are to fully acquaint themselves with the construction period and shall allow for any night shift if required. Failure to do so will be the complete responsibility of the Tenderer and no claims whatsoever will be entertained in this regard."]
[]
[null,null,"STRUCTURE OF THIS PRELIMINARIES BILL"]
[]
[null,null,"Section A : A recital of the headings of the individual clauses of the aforementioned JBCC Principal Building Agreement"]
[]
[null,null,"Section B : A recital of the headings of the individual clauses of the aforementioned Preliminaries document"]
[]
[null,null,"Section C : Any special clauses to meet the particular circumstances of the project"]
[]
[null,null,"PRICING OF PRELIMINARIES"]
[]
[null,null,"Should the contractor select Option A in the contract data for the adjustment of preliminaries, the amounts entered against the relevant items in these preliminaries are to be divided into one or more of the three categories provided namely fixed (F), value related (V) and time related (T)"]
[]
[null,null,"SECTION A: PRINCIPAL BUILDING AGREEMENT"]
[]
[null,null,"Interpretation (A1-A7)"]
[]
[{"v":1,"d":"1 "},null,"Clause 1.0 - Definitions and interpretation",null,"CONT"]
[]
[null,null,"F:............................. V:............................ T:............................",null,"Item",0,null,{"$f":"ROUND($F67*G67,2)","v":0}]
[]
[{"v":2,"d":"2 "},null,"Clause 2.0 - Law, regulations and notices",null,"CONT"]
[]
[null,null,"F:............................. V:............................ T:............................",null,"Item",0,null,{"$f":"ROUND($F71*G71,2)","v":0}]
[]
[{"v":3,"d":"3 "},null,"Clause 3.0 - Offer and acceptance  F:............................. V:............................ T:............................",null,"Item",0,null,{"$f":"ROUND($F73*G73,2)","v":0}]
[]
[{"v":4,"d":"4 "},null,"Clause 4.0 - Assignment and cession  F:............................. V:............................ T:............................",null,"Item",0,null,{"$f":"ROUND($F75*G75,2)","v":0}]
[]
[{"v":5,"d":"5 "},null,"Clause 5.0 - Contract documents",null,"CONT"]
[]
[null,null,"F:............................. V:............................ T:............................",null,"Item",0,null,{"$f":"ROUND($F79*G79,2)","v":0}]
[]
[{"v":6,"d":"6 "},null,"Clause 6.0 - Employer's agents",null,"CONT"]
[]
[null,null,"F:............................. V:............................ T:............................",null,"Item",0,null,{"$f":"ROUND($F83*G83,2)","v":0}]
[]
[{"v":7,"d":"7 "},null,"Clause 7.0 - Design responsibility  F:............................. V:............................ T:............................",null,"Item",0,null,{"$f":"ROUND($F85*G85,2)","v":0}]
[]
[null,null,"Insurance and security (A8-A11)"]
[]
[{"v":8,"d":"8 "},null,"Clause 8.0 - Works risk  F:............................. V:............................ T:............................",null,"Item",0,null,{"$f":"ROUND($F89*G89,2)","v":0}]
[]
[{"v":9,"d":"9 "},null,"Clause 9.0 - Indemnities  F:............................. V:............................ T:............................",null,"Item",0,null,{"$f":"ROUND($F91*G91,2)","v":0}]
[]
[{"v":10,"d":"10 "},null,"Clause 10.0 - Insurances  F:............................. V:............................ T:............................",null,"Item",0,null,{"$f":"ROUND($F93*G93,2)","v":0}]
[]
[{"v":11,"d":"11 "},null,"Clause 11.0 - Security",null,"CONT"]
[]
[null,null,"F:............................. V:............................ T:............................",null,"Item",0,null,{"$f":"ROUND($F97*G97,2)","v":0}]
[]
[null,null,"Execution (A12 - A17)"]
[]
[{"v":12,"d":"12 "},null,"Clause 12.0 - Duties of the parties",null,"CONT"]
[]
[null,null,"F:............................. V:............................ T:............................",null,"Item",1,null,{"$f":"ROUND($F103*G103,2)","v":0}]
[]
[{"v":13,"d":"13 "},null,"Clause 13.0 - Setting out  F:............................. V:............................ T:............................",null,"Item",0,null,{"$f":"ROUND($F105*G105,2)","v":0}]
[]
[{"v":14,"d":"14 "},null,"Clause 14.0 - Nominated subcontractors",null,"CONT"]
[]
[null,null,"F:............................. V:............................ T:............................",null,"Item",0,null,{"$f":"ROUND($F109*G109,2)","v":0}]
[]
[{"v":15,"d":"15 "},null,"Clause 15.0 - Selected subcontractors",null,"CONT"]
[]
[null,null,"F:............................. V:............................ T:............................",null,"Item",0,null,{"$f":"ROUND($F113*G113,2)","v":0}]
[]
[{"v":16,"d":"16 "},null,"Clause 16.0 - Direct contractors  Attendance on direct contractors  In respect of direct contractors the contractor shall:",null,"CONT"]
[]
[null,null,"F:............................. V:............................ T:............................",null,"Item",0,null,{"$f":"ROUND($F117*G117,2)","v":0}]
[]
[{"v":17,"d":"17 "},null,"Clause 17.0 - Contract instructions  Site instructions  Instructions issued on site are to be recorded in a site instruction book which is to be supplied and maintained on site by the contractor",null,"CONT"]
[]
[null,null,"F:............................. V:............................ T:............................",null,"Item",0,null,{"$f":"ROUND($F121*G121,2)","v":0}]
[]
[null,null,"Completion (A18 - A24)"]
[]
[{"v":18,"d":"18 "},null,"Clause 18.0 - Interim completion  F:............................. V:............................ T:............................",null,"Item",0,null,{"$f":"ROUND($F125*G125,2)","v":0}]
[]
[{"v":19,"d":"19 "},null,"Clause 19.0 - Practical completion   F:............................. V:............................ T:............................",null,"Item",0,null,{"$f":"ROUND($F127*G127,2)","v":0}]
[]
[{"v":20,"d":"20 "},null,"Clause 20.0 - Sectional completion",null,"CONT"]
[]
[null,null,"F:............................. V:............................ T:............................",null,"Item",0,null,{"$f":"ROUND($F131*G131,2)","v":0}]
[]
[{"v":21,"d":"21 "},null,"Clause 21.0 - Defects liability period and final completion",null,"CONT"]
[]
[null,null,"F:............................. V:............................ T:............................",null,"Item",0,null,{"$f":"ROUND($F135*G135,2)","v":0}]
[]
[{"v":22,"d":"22 "},null,"Clause 22.0 - Latent defects liability period F:............................. V:............................ T:............................",null,"Item",0,null,{"$f":"ROUND($F137*G137,2)","v":0}]
[]
[{"v":23,"d":"23 "},null,"Clause 23.0 - Revision of date for practical completion  Substitution of materials and goods  The removal or substitution of any materials and goods which do not conform to the specification or the contract drawings shall not constitute grounds for the extension of the construction period nor for the adjustment of the contract value [17.1.8, 23.1 & 2]",null,"CONT"]
[]
[null,null,"F:............................. V:............................ T:............................",null,"Item",0,null,{"$f":"ROUND($F141*G141,2)","v":0}]
[]
[{"v":24,"d":"24 "},null,"Clause 24.0 - Penalty for late or non-completion    F:............................. V:............................ T:............................ [To be determined based on the contract sum]",null,"Item",0,null,{"$f":"ROUND($F143*G143,2)","v":0}]
[]
[null,null,"Payment (A25 - A27)"]
[]
[{"v":25,"d":"25 "},null,"Clause 25.0 - Payment",null,"CONT"]
[]
[null,null,"F:............................. V:............................ T:............................",null,"Item",0,null,{"$f":"ROUND($F149*G149,2)","v":0}]
[]
[{"v":26,"d":"26 "},null,"Clause 26.0 - Adjustment of the contract value and final account",null,"CONT"]
[]
[null,null,"F:............................. V:............................ T:............................",null,"Item",0,null,{"$f":"ROUND($F153*G153,2)","v":0}]
[]
[{"v":27,"d":"27 "},null,"Clause 27.0 - Recovery of expense and/or loss  F:............................. V:............................ T:............................",null,"Item",0,null,{"$f":"ROUND($F155*G155,2)","v":0}]
[]
[null,null,"Suspension and termination (A28 - A29)"]
[]
[{"v":28,"d":"28 "},null,"Clause 28.0 - Suspension by the contractor",null,"CONT"]
[]
[null,null,"F:............................. V:............................ T:............................",null,"Item",0,null,{"$f":"ROUND($F161*G161,2)","v":0}]
[]
[{"v":29,"d":"29 "},null,"Clause 29.0 - Termination",null,"CONT"]
[]
[null,null,"F:............................. V:............................ T:............................",null,"Item",0,null,{"$f":"ROUND($F165*G165,2)","v":0}]
[]
[null,null,"Dispute resolution (A30)"]
[]
[{"v":30,"d":"30 "},null,"Clause 30.0 - Dispute resolution  F:............................. V:............................ T:............................",null,"Item",0,null,{"$f":"ROUND($F169*G169,2)","v":0}]
[]
[null,null,"The required information of the parties and the amount of the contract sum shall be inserted in the agreement for signature of the agreement by the parties  F:............................. V:............................ T:............................",null,"Item",0,null,{"$f":"ROUND($F171*G171,2)","v":0}]
[]
[null,null,"F:............................. V:............................ T:............................",null,"Item",0,null,{"$f":"ROUND($F173*G173,2)","v":0}]
[]
[null,null,"42.1  \tCONTRACTING AND OTHER PARTIES"]
[]
[null,null,"42.1.1Employer: Passenger Rail Agency of South AfricaPostal address: PO Box 51324Durban4062Tel.: \t(031) 813 0376Physical Address:65 Masabalala Yengwa AvenueDurban StationDurban4000"]
[]
[null,null,"42.2  \tCONTRACT DETAILS"]
[]
[null,null,"42.2.1 \tWorks Description: Refurbishment, Alterations and Additions at Amanzimtoti Station for a period of six (6) months"]
[]
[null,null,"42.2.2 \tSite Description: \t\t\tAmanzimtoti Train Station\t"]
[]
[null,null,"42.2.3 \tWork or installations by direct contractors:  N/A"]
[]
[null,null,"42.2.4 \tThis agreement is for a government contract where there are specific options that are applicable to a State organ only Yes"]
[]
[null,null,"42.2.5 \tDate on which possession of the site is intended to be given: TBC"]
[]
[null,null,"42.2.6 \tPeriod for the commencement of the works after the contractor takes possession: TBC"]
[]
[null,null,"42.2.7 \tFor the works as a whole. Intended date of practical completion and the penalty per calendar day Six (6) Months after contractual commencement date               0.04% of contract amount per calender day Penalty Amount"]
[]
[null,null,"42.2.8\tFor the works in sections:  Intended date of practical completion and the penalty per calender day: N/A"]
[]
[null,null,"42.2.9 The law applicable to this agreement shall be that of South Africa     (country)"]
[]
[null,null,"42.3 \tINSURANCES"]
[]
[null,null,"42.3.1 \tContract works insurance to be effected by:Contractor: For the Sum of R Contract Amount  30.00 % With a deductible of - to be determined by the contractor"]
[]
[null,null,"42.3.2 \tSupplementary insurance is required No"]
[]
[null,null,"42.3.3 \tPublic liability insurance to be effected by:Contractor: For the Sum of R 1 000 000-00With a deductible of - to be determined by the contractor"]
[]
[null,null,"42.4 \tDOCUMENTS"]
[]
[null,null,"42.4.1 \tWaivers of contractors lien or right of continuing possession is required  \tYes"]
[]
[null,null,"42.4.2 \tNumber of construction document copies to be \tsupplied to the contractor free of charge: 3   Number of"]
[]
[null,null,"42.4.3 \tBills of Quantities/Lump sum document schedule of rates drawn up in accordance with:  \t\"€œStandard System of Measuring Builders\"€™ Work\"€\u009d"]
[]
[null,null,"42.4.4 \tOn acceptance of the tender the bills of quantities/lump sum document is to be submitted within:  The priced bills of quantities must be handed in with the tender"]
[]
[null,null,"42.4.5 \tJBCC Engineering General Conditions are to be included in the contract documents: No"]
[]
[null,null,"42.4.6 \tThe contract value is to be adjusted using escalation adjustment indices  N/A \tWhere JBCC CPAP is to be used Base Month    N/A"]
[]
[null,null,"42.4.7 \tDetails of changes made to the provision of JBCC standard documentation:"]
[]
[null,null,"SECTION B:  PRELIMINARIES"]
[]
[null,null,"Interpretation (B1)"]
[]
[{"v":31,"d":"31 "},null,"Clause 1.1 - Definitions  F:............................. V:............................ T:............................",null,"Item",0,null,{"$f":"ROUND($F227*G227,2)","v":0}]
[]
[{"v":32,"d":"32 "},null,"Clause 1.2 - Interpretation  F:............................. V:............................ T:............................",null,"Item",0,null,{"$f":"ROUND($F229*G229,2)","v":0}]
[]
[null,null,"Documents (B2)"]
[]
[{"v":33,"d":"33 "},null,"Clause 2.1 - Checking of documents  F:............................. V:............................ T:............................",null,"Item",0,null,{"$f":"ROUND($F233*G233,2)","v":0}]
[]
[{"v":34,"d":"34 "},null,"Clause 2.2 - Provisional bills of quantities",null,"CONT"]
[]
[null,null," F:............................. V:............................ T:............................",null,"Item",0,null,{"$f":"ROUND($F237*G237,2)","v":0}]
[]
[{"v":35,"d":"35 "},null,"Clause 2.3 - Availability of construction information   F:............................. V:............................ T:............................",null,"Item",0,null,{"$f":"ROUND($F239*G239,2)","v":0}]
[]
[{"v":36,"d":"36 "},null,"Clause 2.4 - Ordering of materials and goods  F:............................. V:............................ T:............................",null,"Item",0,null,{"$f":"ROUND($F241*G241,2)","v":0}]
[]
[null,null,"Previous work and adjoining properties (B3)"]
[]
[{"v":37,"d":"37 "},null,"Clause 3.1 - Previous work - dimensional accuracy  F:............................. V:............................ T:............................",null,"Item",0,null,{"$f":"ROUND($F245*G245,2)","v":0}]
[]
[{"v":38,"d":"38 "},null,"Clause 3.2 - Previous work - defects  F:............................. V:............................ T:............................",null,"Item",0,null,{"$f":"ROUND($F247*G247,2)","v":0}]
[]
[{"v":39,"d":"39 "},null,"Clause 3.3 - Inspection of adjoining properties  F:............................. V:............................ T:............................",null,"Item",0,null,{"$f":"ROUND($F249*G249,2)","v":0}]
[]
[null,null,"The site (B4)"]
[]
[{"v":40,"d":"40 "},null,"Clause 4.1 - Defined works area  F:............................. V:............................ T:...........................",null,"Item",0,null,{"$f":"ROUND($F253*G253,2)","v":0}]
[]
[{"v":41,"d":"41 "},null,"Clause 4.2 - Handover of site in stages  F:............................. V:............................ T:............................",null,"Item",0,null,{"$f":"ROUND($F255*G255,2)","v":0}]
[]
[{"v":42,"d":"42 "},null,"Clause 4.3 - Enclosure of the works  F:............................. V:............................ T:............................",null,"Item",0,null,{"$f":"ROUND($F257*G257,2)","v":0}]
[]
[{"v":43,"d":"43 "},null,"Clause 4.4 - Geotechnical investigation  F:............................. V:............................ T:............................",null,"Item",0,null,{"$f":"ROUND($F259*G259,2)","v":0}]
[]
[{"v":44,"d":"44 "},null,"Clause 4.5 - Encroachments  F:............................. V:............................ T:............................",null,"Item",0,null,{"$f":"ROUND($F261*G261,2)","v":0}]
[]
[{"v":45,"d":"45 "},null,"Clause 4.6 - Existing premises occupied  F:............................. V:............................ T:............................",null,"Item",0,null,{"$f":"ROUND($F263*G263,2)","v":0}]
[]
[{"v":46,"d":"46 "},null,"Clause 4.7 - Services - known  F:............................. V:............................ T:............................",null,"Item",0,null,{"$f":"ROUND($F265*G265,2)","v":0}]
[]
[{"v":47,"d":"47 "},null,"Clause 4.8 - Protection of trees and/or relevant natural features  F:............................. V:............................ T:...........................",null,"Item",0,null,{"$f":"ROUND($F267*G267,2)","v":0}]
[]
[null,null,"Management of contract (B5)"]
[]
[{"v":48,"d":"48 "},null,"Clause 5.1 - Management of the works  F:............................. V:............................ T:............................",null,"Item",0,null,{"$f":"ROUND($F271*G271,2)","v":0}]
[]
[{"v":49,"d":"49 "},null,"Clause 5.2 - Progress meetings  F:............................. V:............................ T:............................",null,"Item",0,null,{"$f":"ROUND($F273*G273,2)","v":0}]
[]
[{"v":50,"d":"50 "},null,"Clause 5.3 - Technical meetings  F:............................. V:............................ T:............................",null,"Item",0,null,{"$f":"ROUND($F275*G275,2)","v":0}]
[]
[null,null,"Samples, shop drawings and manufacturer's instructions (B6)"]
[]
[{"v":51,"d":"51 "},null,"Clause 6.1 - Samples of materials  F:............................. V:............................ T:...........................",null,"Item",0,null,{"$f":"ROUND($F279*G279,2)","v":0}]
[]
[{"v":52,"d":"52 "},null,"Clause 6.2 - Workmanship samples  F:............................. V:............................ T:............................",null,"Item",0,null,{"$f":"ROUND($F281*G281,2)","v":0}]
[]
[{"v":53,"d":"53 "},null,"Clause 6.3 - Shop drawings  F:............................. V:............................ T:............................",null,"Item",0,null,{"$f":"ROUND($F283*G283,2)","v":0}]
[]
[{"v":54,"d":"54 "},null,"Clause 6.4 - Compliance with manufacturer's instructions  F:............................. V:............................ T:............................",null,"Item",0,null,{"$f":"ROUND($F285*G285,2)","v":0}]
[]
[null,null,"Deposits and fees (B7)"]
[]
[{"v":55,"d":"55 "},null,"Clause 7.1 - Deposits and fees  F:............................. V:............................ T:............................",null,"Item",0,null,{"$f":"ROUND($F289*G289,2)","v":0}]
[]
[null,null,"Temporary services (B8)"]
[]
[{"v":56,"d":"56 "},null,"Clause 8.1 - Water  F:............................. V:............................ T:............................",null,"Item",0,null,{"$f":"ROUND($F293*G293,2)","v":0}]
[]
[{"v":57,"d":"57 "},null,"Clause 8.2 - Electricity  F:............................. V:............................ T:............................",null,"Item",0,null,{"$f":"ROUND($F295*G295,2)","v":0}]
[]
[{"v":58,"d":"58 "},null,"Clause 8.3 - Ablution and welfare facilities  F:............................. V:............................ T:............................",null,"Item",0,null,{"$f":"ROUND($F297*G297,2)","v":0}]
[]
[{"v":59,"d":"59 "},null,"Clause 8.4 - Communication facilities  F:............................. V:............................ T:............................",null,"Item",0,null,{"$f":"ROUND($F299*G299,2)","v":0}]
[]
[null,null,"Prime cost amounts (B9)"]
[]
[{"v":60,"d":"60 "},null,"Clause 9.1 - Responsibility for prime cost amounts",null,"CONT"]
[]
[null,null," F:............................. V:............................ T:............................",null,"Item",0,null,{"$f":"ROUND($F305*G305,2)","v":0}]
[]
[null,null,"Attendance on subcontractors (B10)"]
[]
[{"v":61,"d":"61 "},null,"Clause 10.1 - General attendance   F:............................. V:............................ T:............................",null,"Item",0,null,{"$f":"ROUND($F309*G309,2)","v":0}]
[]
[{"v":62,"d":"62 "},null,"Clause 10.2 - Special attendance",null,"CONT"]
[]
[null,null," F:............................. V:............................ T:............................",null,"Item",0,null,{"$f":"ROUND($F313*G313,2)","v":0}]
[]
[null,null,"General (B11)"]
[]
[{"v":63,"d":"63 "},null,"Clause 11.1 - Protection of the works  F:............................. V:............................ T:............................",null,"Item",0,null,{"$f":"ROUND($F317*G317,2)","v":0}]
[]
[{"v":64,"d":"64 "},null,"Clause 11.2 - Protection/isolation of existing/sectionally occupied works  F:............................. V:............................ T:............................",null,"Item",0,null,{"$f":"ROUND($F319*G319,2)","v":0}]
[]
[{"v":65,"d":"65 "},null,"Clause 11.3 - Security of the works  F:............................. V:............................ T:............................",null,"Item",0,null,{"$f":"ROUND($F321*G321,2)","v":0}]
[]
[{"v":66,"d":"66 "},null,"Clause 11.4 - Notice before covering work  F:............................. V:............................ T:............................",null,"Item",0,null,{"$f":"ROUND($F323*G323,2)","v":0}]
[]
[{"v":67,"d":"67 "},null,"Clause 11.5 - Disturbance  F:............................. V:............................ T:............................",null,"Item",0,null,{"$f":"ROUND($F325*G325,2)","v":0}]
[]
[null,null,"Clause 11.6 - Environmental disturbance  F:............................. V:............................ T:............................",null,"Item",0,null,{"$f":"ROUND($F327*G327,2)","v":0}]
[]
[{"v":68,"d":"68 "},null,"Clause 11.7 - Works cleaning and clearing  F:............................. V:............................ T:............................",null,"Item",0,null,{"$f":"ROUND($F329*G329,2)","v":0}]
[]
[{"v":69,"d":"69 "},null,"Clause 11.8 - Vermin  F:............................. V:............................ T:............................",null,"Item",0,null,{"$f":"ROUND($F331*G331,2)","v":0}]
[]
[{"v":70,"d":"70 "},null,"Clause 11.9 - Overhand work  F:............................. V:............................ T:............................",null,"Item",0,null,{"$f":"ROUND($F333*G333,2)","v":0}]
[]
[{"v":71,"d":"71 "},null,"Clause 11.11 - Advertising  F:............................. V:............................ T:............................",null,"Item",0,null,{"$f":"ROUND($F335*G335,2)","v":0}]
[]
[null,null,"Preliminaries schedule (B12)"]
[]
[{"v":72,"d":"72 "},null,"Information for completion of the preliminaries schedule  Information necessary for elections and completion of those clauses contained in the preliminaries schedule which are necessary for tender purposes is given hereunder. Where no information is given it shall mean that no specific requirements are expected or that the clause is not relevant to this specific contract",null,"CONT"]
[]
[null,null,"12.1 -\tProvisional bills of quantities [2.2]  \tThe quantities are provisional - Yes"]
[]
[null,null,"12.2 -\tAvailability of construction information [2.3]  \tConstruction documentation is complete - Yes"]
[]
[null,null,"12.3 -\tPrevious work - dimensional accuracy [3.1]"]
[]
[null,null,"12.4 -\tPrevious work - defects [3.2]"]
[]
[null,null,"12.5 -\tInspection of adjoining properties [3.3]"]
[]
[null,null,"12.6 -\tDefined works area [4.1]"]
[]
[null,null,"12.7 -\tHandover of site in stages [4.2]"]
[]
[null,null,"12.8 -\tEnclosure of the works [4.3]"]
[]
[null,null,"12.9 -\tGeotechnical investigation [4.4]"]
[]
[null,null,"12.10 -\tExisting premises occupied [4.6]"]
[]
[null,null,"12.11 -\tServices - known [4.7]"]
[]
[null,null,"12.12 -\tProtection of trees and/or relevant natural features \t[4.8]"]
[]
[null,null,"12.13 -\tWater [8.1]  \tOption A (by contractor) - Yes  \tOption B (by employer - free of charge)\t - No  \tOption C (by employer - metered) -  No"]
[]
[null,null,"12.14 -\tElectricity [8.2]\tOption A (by contractor) - Yes\tOption B (by employer - free of charge)\t - No\tOption C (by employer - metered) -  No"]
[]
[null,null,"12.15 -\tAblution and welfare facilities [8.3]  \tOption A (by contractor) - Yes  \tOption B (by employer - free of charge)\t - No"]
[]
[null,null,"12.16 -\tCommunication facilities [8.4]"]
[]
[null,null,"12.17 -\tProtection of the works [11.1]"]
[]
[null,null,"12.18 -\tProtection/isolation of existing/sectionally occupied works [11.2]  \tProtection/isolation is required - Yes"]
[]
[null,null,"12.19 -\tDisturbance [11.5]"]
[]
[null,null,"12.20 -\tEnvironmental disturbance [11.6]"]
[]
[null,null,"Controlling all forms of pollution  The contractor shall be responsible for and take all precautions in controlling by whatever means necessary all forms of pollution emanating from the site during the construction period due inter alia to noise, artificial light, wind-blown sand, dust, deposits of mud, etc"]
[]
[null,null,"The contractor is to ensure that all roads which border the site and is used by the contractor during the execution of the works are kept clean and free of any dirt or debris caused by the execution of the works"]
[]
[null,null,"F:............................. V:............................ T:............................",null,"Item",0,null,{"$f":"ROUND($F385*G385,2)","v":0}]
[]
[null,null,"SECTION  C: SPECIFIC PRELIMINARIES"]
[]
[null,null,"Section C Section C contains specific preliminary items which apply to this contract except where N/A (Not Applicable) appears against an item"]
[]
[null,null,"The warranty will not be enforced if the work is damaged by defects in the execution of the works, in which case the responsibility for replacement shall rest entirely with the contractor  F:............................. V:............................ T:............................",null,"Item",0,null,{"$f":"ROUND($F391*G391,2)","v":0}]
[]
[{"v":73,"d":"73 "},null,"Overtime  Should overtime be required to be worked for any reason whatsoever, the cost of such overtime is to be borne by the contractor unless the principal agent has specifically authorised, prior to execution thereof, that costs for such overtime are to be borne by the employer  F:............................. V:............................ T:............................",null,"Item",0,null,{"$f":"ROUND($F393*G393,2)","v":0}]
[]
[{"v":74,"d":"74 "},null,"Co-operation of the contractor for cost management  It is specifically agreed that the contractor accepts the obligation of assisting the principal agent in implementing proper cost management. The contractor will be advised by the principal agent of all cost management procedures which will be implemented to ensure that the contract value does not exceed the budget  F:............................. V:............................ T:............................",null,"Item",0,null,{"$f":"ROUND($F395*G395,2)","v":0}]
[]
[{"v":75,"d":"75 "},null,"Overloading  The contractor shall take all necessary steps to ensure that no damage occurs due to overloading of any portion of the works or temporary works eg scaffolding, etc. The contractor shall submit details of his proposed loading, storage, plant erection, etc to the principal agent for approval prior to proceeding with such loading, storing or erecting and shall comply with and pay for the principal agent's requirements in connection with the provision of temporary support work, etc. Any damage caused to the works by overloading shall be made good by the contractor at his sole expense  F:............................. V:............................ T:............................",null,"Item",0,null,{"$f":"ROUND($F397*G397,2)","v":0}]
[]
[{"v":76,"d":"76 "},null,"Propping of floors below  The contractor is advised that propping of floors below may be required if he wishes to use any areas of completed suspended reinforced concrete slabs for vehicle access, storage of materials and goods and location of plant, scaffolding, etc. The location of these areas and any necessary propping shall be approved by the principal agent and the cost thereof shall be borne by the contractor  F:............................. V:............................ T:............................",null,"Item",0,null,{"$f":"ROUND($F399*G399,2)","v":0}]
[]
[{"v":77,"d":"77 "},null,"Testing of flat roof waterproofing for watertightness  Flat roof waterproof areas shall be prepared with small sand dykes around them of a size and enclosing an area approved by the principal agent, flooded with water and kept \"ponded\" for at least forty (40) hours as a test to ensure the watertightness of the waterproofing and before any further construction work is carried out above the waterproofing  F:............................. V:............................ T:............................",null,"Item",0,null,{"$f":"ROUND($F401*G401,2)","v":0}]
[]
[null,null,"The contractor is to submit to the principal agent on an annual basis a schedule of spend, split into vendors engaged as subcontractors and suppliers indicating their BBBEE rating including proof of the said rating  F:............................. V:............................ T:............................",null,"Item",0,null,{"$f":"ROUND($F403*G403,2)","v":0}]
[]
[{"v":78,"d":"78 "},null,"Advertising rights  The employer may elect to contract with advertising agencies for the erection of advertising hoardings, banners, wraps or the like for the duration of the contract. The contractor shall not prevent such an arrangement and will assist in the facilitation of same. Position and type of advertising structure to be agreed with the principal agent so as not to hinder the contractor in meeting the obligations under this agreement  F:............................. V:............................ T:............................",null,"Item",0,null,{"$f":"ROUND($F405*G405,2)","v":0}]
[]
[{"v":79,"d":"79 "},null,"Confidentiality  The contractor undertakes to maintain in confidence any and all information regarding this project and shall obtain appropriate similar undertakings from all subcontractors and suppliers. Such information shall not be used in any way except in connection with the execution of the works  No information regarding this project shall be published or disclosed without the prior written consent of the employer  F:............................. V:............................ T:............................",null,"Item",0,null,{"$f":"ROUND($F407*G407,2)","v":0}]
[]
[{"v":80,"d":"80 "},null,"Media releases  All rights of publication of articles in the media, together with any advertising relating thereto or in any way connected with this project, shall vest with the employer  The contractor together with his subcontractors shall not, without the prior written consent of the employer, cause any statement or advertisement connected with this project to be printed, screened or aired by the media  F:............................. V:............................ T:............................",null,"Item",0,null,{"$f":"ROUND($F409*G409,2)","v":0}]
[]
[null,null,"SUMMARY OF CATEGORIES"]
[]
[null,null,"Category : Fixed   R........................................  Category : Value   R........................................  Category : Time    R........................................"]
[]
[null,null,"SECTION 2"]
[]
[null,null,"BILL NO.1"]
[]
[null,null,"ALTERATIONS (PROVISIONAL)"]
[]
[null,null,"WORK GROUP ALLOCATION"]
[]
[null,null,"Unless otherwise stated, all items in this Bill will be allocated to Work Group 102 - Alterations"]
[]
[null,null,"PREAMBLES"]
[]
[null,null,"The General Preambles for Trades (2017 edition), as published by the Association of South African Quantity Surveyors, shall be deemed to be incorporated in these bills of quantities and no claims arising from brevity of description of items, fully described in the said General Preambles, will be entertained"]
[]
[null,null,"The following \"Supplementary Preambles\" are incorporated in this bill to satisfy the requirements of the project and shall take precedence over the provisions of the said General Preambles"]
[]
[null,null,"SUPPLEMENTARY PREAMBLES"]
[]
[null,null,"View site:"]
[]
[null,null,"Before submitting his tender, the Contractor shall visit the site and satisfy himself as to the nature and extent of the work to be done and the value of the materials contained in the buildings or portions of the buildings to be demolished.  No claim for any variations of the contract sum in respect of the nature and extent of the work or of inferior or damaged materials will be entertained"]
[]
[null,null,"Old materials to become property of the Contractor:"]
[]
[null,null,"Old materials from alterations, except where described as to be re-used or handed over, become the property of the Contractor, who must allow credit for same in the last item of the \"Alterations\" trade"]
[]
[null,null,"Old materials to be carted away:"]
[]
[null,null,"Old materials from the alterations, except where described as to be re-used or handed over, as well as all rubbish, etc must be regularly carted from the site and not be allowed to accumulate on or around the site"]
[]
[null,null,"Old materials to be re-used:"]
[]
[null,null,"None of the old materials are to be used for new work, except where specifically described as being set aside for re-use"]
[]
[null,null,"Handing over of materials:"]
[]
[null,null,"Where certain materials or articles from demolitions or alterations are described as to be \"handed over to the Employer\", it shall be taken to mean \"handed over by the Contractor to the Principal Agent\" and such materials or articles shall be properly stored by the Contractor until handing over thereof and shall include all necessary transport The Contractor must obtain an official receipt from the Principal Agent listing the materials or articles and dates of handing overShould the Contractor fail to submit the receipt when requested to do so, it shall be deemed that the materials or articles are still in his possession and he will be held liable to the Employer for the full replacement value thereof, which amount will be deducted from any monies due to the Contractor"]
[]
[null,null,"Explosives:"]
[]
[null,null,"No explosives whatsoever may be used for demolition purposes, unless otherwise stated"]
[]
[null,null,"GENERAL"]
[]
[null,null,"The contractor shall carry out the whole of the work with as little mess and noise as possible and with a minimum of disturbance to adjoining premises and their tenants. He shall provide proper protection and provide and erect any temporarytarpaulins and temporary plumbing that may be necessary during the progress of the works, all to the satisfaction of the Architect, and remove when directed."]
[]
[null,null,"Any water supplies pipes and other piping that may be met withand found necessary to disconnect or cut, shall be effectually stopped of or grubbed up and removed, and any new connections that may be necessary shall be made with proper fittings, to the satisfaction of the Architect."]
[]
[null,null,"Doors, fanlights, fittings, frames, linings, etc shall be thoroughly overhauled before re-fixing including taking off, easing and rehanging, cramping up, re-wedging as required and making good cramps, dowels, etc and easing, oiling, adjusting and repairing ironmongery if necessary, replacing any glass damaged in removal or subsequently and stopping up all nail and screw holes with tinted wood to match timber."]
[]
[null,null,"Where doors, windows, etc are described as taken out this shall be understood to include for removal of all beads, architraves, ironmongery, etc and doors which are re-fixed are to be provided with new architraves       (elsewhere measured )."]
[]
[null,null,"Prices for taking out and removing doors and frames shall include for removing door stops, cabin locks, etc and making good to match existing."]
[]
[null,null,"With regard to building up openings in existing walls, cement screeds and pavings, granolithic, etc, shall be levelled and prepared for raising of brickwork."]
[]
[null,null,"Allow for making good all existing plastered walls where damaged by furniture, etc, and stopping up all screw and holes before painting."]
[]
[null,null,"Making good finishes shall be deemed to iclude making good of the brick and concrete surfaces onto which new finishes are applied, where necessary."]
[]
[null,null,"The contractor will be required to take all dimensions affecting existing building on the site and he will be held solely responsible for the accuracy of all such dimensions."]
[]
[null,null,"Hazardous materials:"]
[]
[null,null,"Demolitions of buildings, services, external works, site services, etc are to include for the safe removal and disposal of asbestos or asbestos products or other hazardous materials by approved Registered Specialists"]
[]
[null,null,"TEMPORARY BARRIERS, SCREENS, ETC"]
[]
[null,null,"Temporary barriers, screens, etc including removal:"]
[]
[{"v":1,"d":"1 "},null,"Dust screen 2100mm high formed of suitable timber framing with 250 micron polyethylene sheeting stapled on including corners, ends, etc, to be used on all the phases of the construction project and in accordance to the Health and Safety specifications and regulations",null,"m",450,null,{"$f":"ROUND($F485*G485,2)","v":0}]
[]
[null,null,"REMOVAL OF EXISTING WORK"]
[]
[null,null,"Breaking down and removing brickwork, etc:"]
[]
[{"v":2,"d":"2 "},null,"One brickwalls",null,"m²",71,null,{"$f":"ROUND($F491*G491,2)","v":0}]
[]
[null,null,"Taking out and removing doors, windows, etc including thresholds, sills, etc from brickwork (altering openings and making good finishes elsewhere):"]
[]
[{"v":3,"d":"3 "},null,"Timber single door and frame not exceeding 2,5m\"²",null,"No",31,null,{"$f":"ROUND($F495*G495,2)","v":0}]
[]
[null,null,"Carefully taking out and handing over to the Employer doors, windows, etc including taking out and removing thresholds, sills, etc from brickwork and preparing openings to receive new similar doors, windows, etc (elsewhere measured) and making good cement plaster on both sides and into reveals:"]
[]
[{"v":4,"d":"4 "},null,"Roller shutter door approximately 2485mm wide x 2500mm high overall (TP-08)",null,"No",14,null,{"$f":"ROUND($F499*G499,2)","v":0}]
[]
[null,null,"Taking down and removing roof coverings, accessories, etc.:"]
[]
[{"v":5,"d":"5 "},null,"Profiled sheet metal roof covering including timber purlins",null,"m²",773,null,{"$f":"ROUND($F503*G503,2)","v":0}]
[]
[null,null,"Taking down and removing ceilings, partitions, etc:"]
[]
[{"v":6,"d":"6 "},null,"Gypsum plasterboard ceilings, including cornices, timber brandering, etc.",null,"m²",132,null,{"$f":"ROUND($F507*G507,2)","v":0}]
[]
[null,null,"Taking out/off and removing ironmongery:"]
[]
[{"v":7,"d":"7 "},null,"Toilet paper holder from wall",null,"No",17,null,{"$f":"ROUND($F511*G511,2)","v":0}]
[]
[null,null,"Hacking up/off and removing ceramic and porcelain tiles, including removing mortar bed or adhesive from concrete or brickwork and preparing surfaces for new screed, plaster, tile finishes, etc:"]
[]
[{"v":8,"d":"8 "},null,"Tiles to floors",null,"m²",133,null,{"$f":"ROUND($F515*G515,2)","v":0}]
[]
[{"v":9,"d":"9 "},null,"Tiles to walls",null,"m²",643,null,{"$f":"ROUND($F517*G517,2)","v":0}]
[]
[{"v":10,"d":"10 "},null,"Tile skirtings 100mm high",null,"m",176,null,{"$f":"ROUND($F519*G519,2)","v":0}]
[]
[null,null,"Taking out and removing piping, sanitary fittings, etc including cutting off as necessary, disconnecting piping from fittings and blocking off and making good damaged plasterwork to walls and screeds to floors (all redecoration work elsewhere):"]
[]
[{"v":11,"d":"11 "},null,"Vitreous china wash hand basin, including short lengths of piping, etc.",null,"No",2,null,{"$f":"ROUND($F523*G523,2)","v":0}]
[]
[{"v":12,"d":"12 "},null,"Vitreous china WC pan with flush valve, including short lengths of piping, etc.",null,"No",17,null,{"$f":"ROUND($F525*G525,2)","v":0}]
[]
[{"v":13,"d":"13 "},null,"150 Litre hot water geyser mounted in roof space including drip tray, valves, connecting pipework, etc.",null,"No",17,null,{"$f":"ROUND($F527*G527,2)","v":0}]
[]
[{"v":14,"d":"14 "},null,"Shower, complete",null,"No",1,null,{"$f":"ROUND($F529*G529,2)","v":0}]
[]
[null,null,"Taking out/off and removing glass and mirrors:"]
[]
[{"v":15,"d":"15 "},null,"Mirror 600 x 600mm high from wall",null,"No",17,null,{"$f":"ROUND($F533*G533,2)","v":0}]
[]
[null,null,"MAKING GOOD OF FINISHES, ETC"]
[]
[null,null,"Making good concrete:"]
[]
[{"v":16,"d":"16 "},null,"Floors in patches",null,"m²",110,null,{"$f":"ROUND($F539*G539,2)","v":0}]
[]
[null,null,"Making good internal/external cement plaster:"]
[]
[{"v":17,"d":"17 "},null,"Walls in patches",null,"m²",1383,null,{"$f":"ROUND($F543*G543,2)","v":0}]
[]
[null,null,"Making good platform surfaces:"]
[]
[{"v":18,"d":"18 "},null,"Surfaces in patches",null,"m²",3033,null,{"$f":"ROUND($F547*G547,2)","v":0}]
[]
[null,null,"GENERAL REPAIRWORK"]
[]
[null,null,"Repairwork to existing brick walls:"]
[]
[{"v":19,"d":"19 "},null,"Waterjetting surfaces of existing facebrick walls with high pressure low-volume water jetting lance to remove all dirt, brushing down and washing to remove surface contamination, mould, fungus, damp and treating with two coats of antifungal wash and leaving perfectly clean on completion",null,"m²",626,null,{"$f":"ROUND($F553*G553,2)","v":0}]
[]
[null,null,"ALTERATIONS, SERVICING AND REPAIRWORK TO EXISTING DOORS, FRAMES AND WINDOWS"]
[]
[null,null,"Notes:"]
[]
[null,null,"The removal and reinstatement of doors, frames, windows, etc for the purpose of altering, servicing and/or repairing are measured elsewhere"]
[]
[null,null,"The removal of ironmongery, glass, putty, etc and the refixing, reglazing and redecorating of existing doors, frames, windows, etc are all measured elsewhere"]
[]
[null,null,"Repairing and/or replacement of existing ironmongery is measured elsewhere"]
[]
[null,null,"Supplementary Preambles:"]
[]
[null,null,"Repairwork to timber to include for the following, unless otherwise described:"]
[]
[null,null,"1.\tTimber used in repairs is to match existing in type, moisture content, colour and grain as closely as possible"]
[]
[null,null,"2.\tApproved modern, high-strength waterproof glues which can accommodate any timber movement should be used together with sawdust filler of matching timber"]
[]
[null,null,"3.\tOnly non-corrosive fixings are to be used"]
[]
[null,null,"4.\tAll clamping and pinning as necessary"]
[]
[null,null,"EXISTING WINDOWS"]
[]
[null,null,"Servicing of existing windows including thoroughly cleaning down of all dirt, scale and general contamination from all surfaces, pulleys, handles, rods, fanlight openers, catches, etc. and servicing and lubricating all moving parts, carefully removing all paint from and polishing all brassware and replacing of damaged or missing screws, nuts, etc. (repairing or replacement of existing ironmongery, removal of glass, putty, etc. re-glazing and preparing for and redecorating of existing frames, sashes, etc. all elsewhere measured):"]
[]
[{"v":20,"d":"20 "},null,"Aluminium window size 500 x 1185mm high overall with burglar bars (WT-01)",null,"No",9,null,{"$f":"ROUND($F581*G581,2)","v":0}]
[]
[{"v":21,"d":"21 "},null,"Aluminium window size 600 x 900mm high overall with burglar bars (WT-02)",null,"No",20,null,{"$f":"ROUND($F583*G583,2)","v":0}]
[]
[{"v":22,"d":"22 "},null,"Ditto, but size 860 x 1175mm high overall with burglar bars (WT-05)",null,"No",3,null,{"$f":"ROUND($F585*G585,2)","v":0}]
[]
[null,null,"BUDGETARY ALLOWANCE"]
[]
[{"v":23,"d":"23 "},null,"Provide a budgetary allowance of Fifty Thousand Rand for sundry alterations to be used as directed by the Principal Agent and to be deducted in whole or in part if not required.",null,"Item",1,null,{"$f":"ROUND($F589*G589,2)","v":0}]
[]
[null,null,"SECTION 2"]
[]
[null,null,"BILL NO. 2"]
[]
[null,null,"MASONRY"]
[]
[null,null,"WORK GROUP ALLOCATION"]
[]
[null,null,"Unless otherwise stated, all items in this Bill will be allocated to Work Group 116 - Brick and Blockwork"]
[]
[null,null,"PREAMBLES"]
[]
[null,null,"The General Preambles for Trades (2017 edition) as published by the Association of South African Quantity Surveyors shall be deemed to be incorporated in these bills of quantities and no claims arising from brevity of description of items fully described in the said General Preambles will be entertained"]
[]
[null,null,"The following \"Supplementary Preambles\" are incorporated in this bill to satisfy the requirements of the project and shall take precedence over the provisions of the said General Preambles"]
[]
[null,null,"SUPPLEMENTARY PREAMBLES"]
[]
[null,null,"BRICKWORK"]
[]
[null,null,"General:"]
[]
[null,null,"Non-load bearing brickwork is to be built to full height less  20mm gap next to the ceiling and is to be left for 14 days before grouting up in 1:3 cement mortar."]
[]
[null,null,"Sizes in descriptions:"]
[]
[null,null,"Where sizes in descriptions are given in brick units, \"one brick\" shall represent the length and \"half brick\" the width of a brick"]
[]
[null,null,"Hollow walls:"]
[]
[null,null,"Descriptions of hollow walls shall be deemed to include leaving every fifth perpend of the bottom course of the external skin open as a weep hole"]
[]
[null,null,"Bagged and sealed walls:"]
[]
[null,null,"Walls in two skins described as \"bagged and sealed\" shall be deemed to include having the outer face of the inner skin bagged with 1:6 cement and sand mixture and sealed with two coats bitumen emulsion waterproofing coating"]
[]
[null,null,"Face bricks :"]
[]
[null,null,"Bricks shall be ordered timeously to obtain uniformity in size and colour  All face brickwork shall be regularly cleaned down as the work proceeds and shall be protected as necessary by an approved method"]
[]
[null,null,"Pointing:"]
[]
[null,null,"Descriptions of recessed pointing to fair face brickwork and face brickwork shall be deemed to include smooth floated square recessed, hollow recessed, weathered pointing, etc"]
[]
[null,null,"BLOCKWORK"]
[]
[null,null,"Concrete masonry units:"]
[]
[null,null,"Blocks are to be either solid or hollow modular dense concrete masonry units having a compressive strength of 7MPa"]
[]
[null,null,"Wall ties for blockwork:"]
[]
[null,null,"Wall ties shall be polypropylene ties complying with BS 76377.  Ties for hollow walls shall be of sufficient length to allow not less than 75mm of each end to be built into the blockwork.  Ties are to be spaced at intervals of not more than 1m in the horizontal direction and not more than 400mm staggered in the vertical direction except at openings, vertical joints or ends of walls where they are to be placed vertically above each other"]
[]
[null,null,"Blockwork:"]
[]
[null,null,"Blockwork shall comply with SANS 10145 \"Concrete Masonry Construction\""]
[]
[null,null,"Surfaces to be plastered shall have joints raked out to a depth of at least 10mm to provide a key.  Cavities of hollow walls shall be kept free of mortar droppings or other undesirable matter. Every second perpend of the bottom course of the external skin of hollow walls shall be left open as a weep hole"]
[]
[null,null,"Standard complementary blocks:"]
[]
[null,null,"Descriptions of blockwork shall be deemed to include standard complementary blocks such as corner, three-quarter, half and quarter blocks required in the construction of corners, reveals, jambs, ends, etc to solid and hollow walls and for bonding as necessary"]
[]
[null,null,"DECORATIVE BLOCKS"]
[]
[null,null,"Blocks shall be of approved manufacture, sound, well burnt or cured and uniform and true in size, shape and colour"]
[]
[null,null,"SUPERSTRUCTURE"]
[]
[null,null,"Brickwork of NFP bricks in class II mortar"]
[]
[{"v":1,"d":"1 "},null,"Half brick walls",null,"m²",5,null,{"$f":"ROUND($F663*G663,2)","v":0}]
[]
[null,null,"BRICKWORK SUNDRIES"]
[]
[null,null,"Cutting toothings and bonding new brickwork to existing",null,"m2",0,null,"RATE ONLY"]
[]
[null,null,"Joint forming material in movement joints:"]
[]
[{"v":2,"d":"2 "},null,"12mm Fibre board built in vertically through brick walls",null,"m",0,null,"RATE ONLY"]
[]
[null,null,"2,5mm Brickwork reinforcement:"]
[]
[{"v":3,"d":"3 "},null,"75mm Wide reinforcement built in horizontally",null,"m",15,null,{"$f":"ROUND($F675*G675,2)","v":0}]
[]
[null,null,"Prestressed fabricated concrete lintels, including necessary temporary supports:"]
[]
[{"v":4,"d":"4 "},null,"75 x 110mm Lintels in lengths not exceeding 3m long",null,"m",0,null,"RATE ONLY"]
[]
[null,null,"Turning pieces to lintels, etc:"]
[]
[{"v":5,"d":"5 "},null,"220mm Wide turning pieces",null,"m",0,null,"RATE ONLY"]
[]
[null,null,"SECTION 2"]
[]
[null,null,"BILL NO. 3"]
[]
[null,null,"WATERPROOFING"]
[]
[null,null,"WORK GROUP ALLOCATION"]
[]
[null,null,"Unless otherwise stated, all items in this Bill will be allocated to Work Group 120 - Waterproofing"]
[]
[null,null,"PREAMBLES"]
[]
[null,null,"The General Preambles for Trades (2017 edition) as published by the Association of South African Quantity Surveyors shall be deemed to be incorporated in these bills of quantities and no claims arising from brevity of description of items fully described in the said General Preambles will be entertained"]
[]
[null,null,"The following \"Supplementary Preambles\" are incorporated in this bill to satisfy the requirements of the project and shall take precedence over the provisions of the said General Preambles"]
[]
[null,null,"SUPPLEMENTARY PREAMBLES"]
[]
[null,null,"Waterproofing:"]
[]
[null,null,"Waterproofing of roofs, basements, etc shall be laid under a ten year guarantee.  Waterproofing to roofs shall be laid to even falls to outlets, etc with necessary ridges, hips and valleys. Descriptions of sheet or membrane waterproofing shall be deemed to include additional labour to turn-ups and turn-downs"]
[]
[null,null,"DAMPPROOFING OF WALLS AND FLOORS"]
[]
[null,null,"One layer 375 micron embossed polyethylene dampproof course (SANS 952-1985 type B):"]
[]
[{"v":1,"d":"1 "},null,"In walls",null,"m²",10,null,{"$f":"ROUND($F711*G711,2)","v":0}]
[]
[null,null,"SECTION 2"]
[]
[null,null,"BILL NO. 4"]
[]
[null,null,"ROOF COVERINGS"]
[]
[null,null,"WORK GROUP ALLOCATION"]
[]
[null,null,"The items in this Bill will be allocated to Work Groups as indicated in brackets at the ends of headings or descriptions"]
[]
[null,null,"PREAMBLES"]
[]
[null,null,"The General Preambles for Trades (2017 edition) as published by the Association of South African Quantity Surveyors shall be deemed to be incorporated in these bills of quantities and no claims arising from brevity of description of items fully described in the said General Preambles will be entertained"]
[]
[null,null,"The following \"Supplementary Preambles\" are incorporated in this bill to satisfy the requirements of the project and shall take precedence over the provisions of the said General Preambles"]
[]
[null,null,"SUPPLEMENTARY PREAMBLES"]
[]
[null,null,"Profiled metal roof sheeting and accessories shall be supplied with a 10 year guarantee and be installed by an approved installer"]
[]
[null,null,"All fixing holes shall be drilled and not punched"]
[]
[null,null,"Roof covering accessories shall be manufactured from the same material as used for roof covering"]
[]
[null,null,"PROFILED METAL SHEETING AND ACCESSORIES (WORK GROUP 124)"]
[]
[null,null,"0,53mm \"Klip-Tite 700\" or similar approved, profile Z275 spelter galvanised steel light industrial troughed interlocking roof sheeting in single lengths and accessories, with \"Chromodek\" or similar approved finish to one side, fixed to timber purlins:"]
[]
[{"v":1,"d":"1 "},null,"Roof coverings with pitch not exceeding 25 degrees",null,"m²",773,null,{"$f":"ROUND($F741*G741,2)","v":0}]
[]
[null,null,"Accessories:"]
[]
[{"v":2,"d":"2 "},null,"Ridge capping 462mm girth",null,"m",102,null,{"$f":"ROUND($F745*G745,2)","v":0}]
[]
[{"v":3,"d":"3 "},null,"Narrow and broad flute closers",null,"m",318,null,{"$f":"ROUND($F747*G747,2)","v":0}]
[]
[null,null,"ROOF AND WALL INSULATION (WORK GROUP 122)"]
[]
[null,null,"Heavy industrial grade aluminium foil based insulation:"]
[]
[{"v":4,"d":"4 "},null,"Two sided bubble insulation membrane",null,"m²",773,null,{"$f":"ROUND($F753*G753,2)","v":0}]
[]
[null,null,"SECTION 2"]
[]
[null,null,"BILL NO. 5"]
[]
[null,null,"CARPENTRY AND JOINERY"]
[]
[null,null,"WORK GROUP ALLOCATION"]
[]
[null,null,"Unless otherwise stated, all items in this Bill will be allocated to Work Group 126 - Carpentry & Joinery"]
[]
[null,null,"PREAMBLES"]
[]
[null,null,"The General Preambles for Trades (2017 edition) as published by the Association of South African Quantity Surveyors shall be deemed to be incorporated in these bills of quantities and no claims arising from brevity of description of items fully described in the said General Preambles will be entertained"]
[]
[null,null,"The following \"Supplementary Preambles\" are incorporated in this bill to satisfy the requirements of the project and shall take precedence over the provisions of the said General Preambles"]
[]
[null,null,"SUPPLEMENTARY PREAMBLES"]
[]
[null,null,"Fixing:"]
[]
[null,null,"Items described as \"nailed\" shall be deemed to be fixed with hardened steel nails or pins, or to be shot-pinned, to brickwork or concrete"]
[]
[null,null,"Items described as \"plugged\" shall be deemed to include screwing to fibre, plastic or metal plugs at not exceeding 500mm centres, and where described as \"bolted\", the bolts have been given separately elsewhere"]
[]
[null,null,"Joinery:"]
[]
[null,null,"Descriptions of frames shall be deemed to include frames, transomes, rails, etc"]
[]
[null,null,"Descriptions of hardwood joinery shall be deemed to include sinking and pelleting heads and nuts of bolts"]
[]
[null,null,"Particle board"]
[]
[null,null,"All particle board shall comply with SANS 50312 having the required marking as per SANS 50312/EN 312"]
[]
[null,null,"Decorative thermosetting plastic laminate covering:"]
[]
[null,null,"Laminate covering shall be glued under pressure and edge strips of same shall be butt jointed at junctions with adjacent similar finish"]
[]
[null,null,"Sizes:"]
[]
[null,null,"Sizes are nominal and the Contractor shall make allowance in his prices for minor variances in stated finished sizes of timber doors, door members, door frames, architraves, etc"]
[]
[null,null,"Prices"]
[]
[null,null,"Prices for all joinery work are to include for general framing, housing and notching, arris rounded angles, glueing, blocking, planting on, screwing, adhesives, dowels, pellets, cross tongues, screws and nails and setting up complete and also for all square cutting and waste. Tops shall be secured with metal or hardwood buttons."]
[]
[null,null,"ROOFS, ETC"]
[]
[null,null,"EAVES, VERGES, ETC"]
[]
[null,null,"Medium density plain fibre-cement fascias and barge boards:"]
[]
[{"v":1,"d":"1 "},null,"19 x 235mm Fascias and barge boards, including aluminium H-profile jointing strips",null,"m",318,null,{"$f":"ROUND($F807*G807,2)","v":0}]
[]
[null,null,"FLOORS, ETC"]
[]
[null,null,"SKIRTINGS"]
[]
[null,null,"Wrought meranti:"]
[]
[{"v":2,"d":"2 "},null,"19 x 76mm Skirtings including 19mm quadrant bead, nailed",null,"m",74,null,{"$f":"ROUND($F815*G815,2)","v":0}]
[]
[null,null,"DOORS, ETC"]
[]
[null,null,"Solid hardwood with slated panels with sides and counselled edges to suit opening, hung to steel frames:"]
[]
[{"v":3,"d":"3 "},null,"44mm Door 820 x 2100mm high, including 390 x 300mm high framed openings (TP-01)",null,"No",6,null,{"$f":"ROUND($F821*G821,2)","v":0}]
[]
[{"v":4,"d":"4 "},null,"44mm Door 900 x 2400mm high, including 390 x 300mm high framed openings (TP-02)",null,"No",18,null,{"$f":"ROUND($F823*G823,2)","v":0}]
[]
[{"v":5,"d":"5 "},null,"44mm Door 890 x 2125mm high (TP-03)",null,"No",1,null,{"$f":"ROUND($F825*G825,2)","v":0}]
[]
[{"v":6,"d":"6 "},null,"44mm Door 813 x 2125mm high (TP-04)",null,"No",1,null,{"$f":"ROUND($F827*G827,2)","v":0}]
[]
[{"v":7,"d":"7 "},null,"44mm Door 813 x 2125mm high (TP-06)",null,"No",3,null,{"$f":"ROUND($F829*G829,2)","v":0}]
[]
[null,null,"BUDGETARY ALLOWANCE"]
[]
[{"v":8,"d":"8 "},null,"Provide a budgetary allowance of Twenty Five Thousand Rand for sundry carpentry and joinery to be used as directed by the Principal Agent and to be deducted in whole or in part if not required.",null,"Item",1,null,{"$f":"ROUND($F833*G833,2)","v":0}]
[]
[null,null,"SECTION 2"]
[]
[null,null,"BILL NO. 6"]
[]
[null,null,"CEILINGS, PARTITIONS AND ACCESS FLOORING"]
[]
[null,null,"WORK GROUP ALLOCATION"]
[]
[null,null,"Unless otherwise stated, all items in this Bill will be allocated to Work Group 129 - Ceilings"]
[]
[null,null,"PREAMBLES"]
[]
[null,null,"The General Preambles for Trades (2017 edition) as published by the Association of South African Quantity Surveyors shall be deemed to be incorporated in these bills of quantities and no claims arising from brevity of description of items fully described in the said General Preambles will be entertained"]
[]
[null,null,"The following \"Supplementary Preambles\" are incorporated in this bill to satisfy the requirements of the project and shall take precedence over the provisions of the said General Preambles"]
[]
[null,null,"SUPPLEMENTARY PREAMBLES"]
[]
[null,null,"Fixing:"]
[]
[null,null,"Items described as \"nailed\" shall be deemed to be fixed with hardened steel nails or pins, or to be shot-pinned, to brickwork or concrete"]
[]
[null,null,"Items described as \"plugged\" shall be deemed to include screwing to fibre, plastic or metal plugs at not exceeding 500mm centres, and where described as \"bolted\", the bolts have been given separately elsewhere"]
[]
[null,null,"Ceilings:"]
[]
[null,null,"Unless otherwise described, ceilings shall be deemed to be horizontal"]
[]
[null,null,"Bulkheads:"]
[]
[null,null,"Bulkheads are defined as those portions of ceilings which are stepped down from the general ceiling level in a particular room or area and which generally occur along the perimeter. Their purpose is either to conceal services or to create architectural features"]
[]
[null,null,"Bulkheads have only been described as such where they conform to the above definition and where the horizontal, vertical or sloping dimensions do not exceed 1200mm. Where these dimensions are more than 1200mm such portions of ceilings have been included in the appropriate general items of ceilings"]
[]
[null,null,"Unless otherwise described, bulkheads shall be deemed to be horizontal along the length"]
[]
[null,null,"Openings:"]
[]
[null,null,"Prices for openings for light fittings, ventilation grilles, air conditioning diffusers, etc. are to include for any necessary additional support, trimming around, etc."]
[]
[null,null,"Steel components:"]
[]
[null,null,"All steel components for ceilings, partitions, etc are to be galvanised in accordance with SANS 121"]
[]
[null,null,"INSULATION"]
[]
[null,null,"Non-combustible fibreglass insulation of a density of not less than 10kg/m3 bonded with an inert thermo-setting resin:"]
[]
[{"v":1,"d":"1 "},null,"120mm Insulation in blanket form, closely fitted and laid on top of brandering between roof timbers, etc.",null,"m²",132,null,{"$f":"ROUND($F883*G883,2)","v":0}]
[]
[null,null,"NAILED UP CEILINGS"]
[]
[null,null,"9.5mm Fibre-cement plain ceiling boards with H-profile galvanised steel jointing strips:"]
[]
[{"v":2,"d":"2 "},null,"Ceilings including 38 x 38mm sawn softwood brandering at 400mm centres and cross brandering at 400mm centres",null,"m²",8,null,{"$f":"ROUND($F889*G889,2)","v":0}]
[]
[null,null,"12mm Fibre-cement plain ceiling boards with H-profile galvanised steel jointing strips:"]
[]
[{"v":3,"d":"3 "},null,"Ceilings including 38 x 38mm sawn softwood brandering at 400mm centres and cross brandering at 400mm centres",null,"m²",60,null,{"$f":"ROUND($F893*G893,2)","v":0}]
[]
[{"v":4,"d":"4 "},null,"Extra over ceiling for 600 x 600mm trap door of 38 x 38mm wrought softwood rebated framing with one cross brander, covered with ceiling board and fitted flush in opening, including necessary trimmers around",null,"No",9,null,{"$f":"ROUND($F895*G895,2)","v":0}]
[]
[null,null,"Gypsum plasterboard cornices:"]
[]
[{"v":5,"d":"5 "},null,"75mm Coved cornices",null,"m",323,null,{"$f":"ROUND($F899*G899,2)","v":0}]
[]
[null,null,"SECTION 2"]
[]
[null,null,"BILL NO. 7"]
[]
[null,null,"IRONMONGERY"]
[]
[null,null,"WORK GROUP ALLOCATION"]
[]
[null,null,"Unless otherwise stated, all items in this Bill will be allocated to Work Group 132 - Ironmongery"]
[]
[null,null,"PREAMBLES"]
[]
[null,null,"The General Preambles for Trades (2017 edition) as published by the Association of South African Quantity Surveyors shall be deemed to be incorporated in these bills of quantities and no claims arising from brevity of description of items fully described in the said General Preambles will be entertained"]
[]
[null,null,"The following \"Supplementary Preambles\" are incorporated in this bill to satisfy the requirements of the project and shall take precedence over the provisions of the said General Preambles"]
[]
[null,null,"SUPPLEMENTARY PREAMBLES"]
[]
[null,null,"Proprietary items:"]
[]
[null,null,"Where applicable, the manufacturers' names or product catalogue titles are given in sub-headings preceding the itemsNote that the manufacturers names specified in this trade are for the purposes of competitive pricing. Prices are to be based on the specific products/articles specified.On request, returnable samples are to be provided to the Project Manager for consideration"]
[]
[null,null,"Locks:"]
[]
[null,null,"Notwithstanding Clause 2, Item 3 of the \"Ironmongery\" trade of the \"Standard System of Measuring Building Work, Seventh Edition\", descriptions of locks shall be deemed to include two keys per lock"]
[]
[null,null,"Finishes to ironmongery:"]
[]
[null,null,"Where applicable, finishes to ironmongery are indicated by suffixes in accordance with the following list: BS\tSatin bronze lacqueredCH\tChromium plated SC\tSatin chromium plated SE\tSilver enamelled GE\tGrey enamelledAN\tAnodised natural AS\tAnodised silver AB\tAnodised bronze AG\tAnodised gold ABL\tAnodised black PB\tPolished brass PL\tPolished and lacquered PT\tEpoxy coated SD\tSandedBBS\tBrushed stainless steel"]
[]
[null,null," - - - - - - - - - - - - - - - - - - - - - - - - -"]
[]
[null,null,"HINGES, BOLTS, ETC"]
[]
[null,null," \"Union\" or similar approved:"]
[]
[{"v":1,"d":"1 "},null,"\"Ref. CZ80941SCR\" or similar approved sliding indicator bolt set",null,"No",20,null,{"$f":"ROUND($F937*G937,2)","v":0}]
[]
[null,null,"LOCKS"]
[]
[{"v":2,"d":"2 "},null,"Commercial cylinder sash lock",null,"No",17,null,{"$f":"ROUND($F941*G941,2)","v":0}]
[]
[{"v":3,"d":"3 "},null,"75mm Three lever upright mortice rebated lockset with satin chrome furniture (TP-01)",null,"No",10,null,{"$f":"ROUND($F943*G943,2)","v":0}]
[]
[null,null,"\"Calini\" or similar approved:"]
[]
[{"v":4,"d":"4 "},null,"\"Ref. IW2051\" or similar approved double cylinder suitable for master key",null,"No",0,null,"RATE ONLY"]
[]
[null,null,"HANDLES"]
[]
[null,null,"\"Union Assa Abloy\" or similar approved:"]
[]
[{"v":5,"d":"5 "},null,"\"Ref.AL6D67-05A5\" or similar approved anodised aluminium pull handle with back plates",null,"No",20,null,{"$f":"ROUND($F953*G953,2)","v":0}]
[]
[{"v":6,"d":"6 "},null,"\"Ref.AL6D67-05A5\" or similar approved anodised aluminium pull handle",null,"No",0,null,"RATE ONLY"]
[]
[{"v":7,"d":"7 "},null,"100mm Chromium plated bow handle bolted through door with the bolt ends hammered to prevent the nuts being removed",null,"No",10,null,{"$f":"ROUND($F957*G957,2)","v":0}]
[]
[null,null,"PUSH PLATES AND KICK PLATES"]
[]
[null,null,"1,2mm Thick satin finished stainless steel plates countersunk screwed along edges at not exceeding 200mm centres:"]
[]
[{"v":8,"d":"8 "},null," 300 x 150mm Kick plate",null,"No",17,null,{"$f":"ROUND($F963*G963,2)","v":0}]
[]
[null,null,"DOOR CLOSERS"]
[]
[null,null,"\"Union Assa Abloy\" or similar approved:"]
[]
[{"v":9,"d":"9 "},null,"\"Ref. 7770\" door closer",null,"No",2,null,{"$f":"ROUND($F969*G969,2)","v":0}]
[]
[null,null,"SUNDRIES"]
[]
[null,null,"\"Union Assa Abloy\"or similar approved:"]
[]
[{"v":10,"d":"10 "},null,"\"Ref. 99022SS\" door stop, plugged",null,"No",24,null,{"$f":"ROUND($F975*G975,2)","v":0}]
[]
[null,null,"BATHROOM FITTINGS"]
[]
[null,null,"\"Franke\" or similar approved:"]
[]
[{"v":11,"d":"11 "},null,"\"Ref. EXOS618X\" soap dispenser, plugged",null,"No",2,null,{"$f":"ROUND($F981*G981,2)","v":0}]
[]
[{"v":12,"d":"12 "},null,"\"Ref. BS646\" stainless steel soap dish, plugged",null,"No",2,null,{"$f":"ROUND($F983*G983,2)","v":0}]
[]
[{"v":13,"d":"13 "},null,"\"Ref. STRX672\" stainless steel lockable toilet roll holder, plugged",null,"No",17,null,{"$f":"ROUND($F985*G985,2)","v":0}]
[]
[{"v":14,"d":"14 "},null,"\"Ref. RODX602 \" paper towel dispenser and waste bin combination, plugged",null,"No",19,null,{"$f":"ROUND($F987*G987,2)","v":0}]
[]
[{"v":15,"d":"15 "},null,"\"Ref. BS611V\"  stainless steel sanitary towel disposal bin, plugged",null,"No",17,null,{"$f":"ROUND($F989*G989,2)","v":0}]
[]
[{"v":16,"d":"16 "},null,"32mm \"Ref. CNTX750\" stainless steel back grab rail 750mm long, plugged",null,"No",1,null,{"$f":"ROUND($F991*G991,2)","v":0}]
[]
[{"v":17,"d":"17 "},null,"32mm \"Ref. CNTX700A\" stainless steel side grab rail 874mm girth, plugged",null,"No",1,null,{"$f":"ROUND($F993*G993,2)","v":0}]
[]
[{"v":18,"d":"18 "},null,"\"Ref. CNTX400A\" fold down shower seat, plugged",null,"No",2,null,{"$f":"ROUND($F995*G995,2)","v":0}]
[]
[null,null,"BUDGETARY ALLOWANCE"]
[]
[{"v":19,"d":"19 "},null,"Provide a budgetary allowance of Twenty Five Thousand Rand for sundry ironmongery to be used as directed by the Principal Agent and to be deducted in whole or in part if not required.",null,"Item",1,null,{"$f":"ROUND($F999*G999,2)","v":0}]
[]
[null,null,"SECTION 2"]
[]
[null,null,"BILL NO. 8"]
[]
[null,null,"STRUCTURAL STEELWORK"]
[]
[null,null,"WORK GROUP ALLOCATION"]
[]
[null,null,"Unless otherwise stated, all items in this Bill will be allocated to Work Group 134 - Structural Steelwork in Buildings"]
[]
[null,null,"PREAMBLES"]
[]
[null,null,"The General Preambles for Trades (2017 edition) as published by the Association of South African Quantity Surveyors shall be deemed to be incorporated in these bills of quantities and no claims arising from brevity of description of items fully described in the said General Preambles will be entertained"]
[]
[null,null,"The following \"Supplementary Preambles\" are incorporated in this bill to satisfy the requirements of the project and shall take precedence over the provisions of the said General Preambles"]
[]
[null,null,"SUPPLEMENTARY PREAMBLES"]
[]
[null,null,"Specification:"]
[]
[null,null,"All structural steel must comply with SANS 1200H (Degree of Accuracy II)"]
[]
[null,null,"All hot rolled structural steel sections must comply with SANS 1431 grade 300W, unless otherwise specified on the drawings"]
[]
[null,null,"Unless otherwise designated, all bolts and nuts will be grade 4.6 to SANS 135 and BS 916. Descriptions of bolts shall be deemed to include nuts and washers. Descriptions of L-shaped and U-shaped anchor bolts shall be deemed to include bending, threading, nuts and washers and embedding in concrete. Descriptions of expansion anchors and bolts and chemical anchors and bolts shall be deemed to include nuts, washers and mortices in brickwork or concrete"]
[]
[null,null,"All connections must be welded all round with a 6mm fillet weld, unless otherwise specified on the drawings"]
[]
[null,null,"Drawings and shop details:"]
[]
[null,null,"The Contractor shall be responsible for preparing shop drawings and details which must be submitted to the Principal Agent for approval prior to commencement of fabrication.  Before commencing any fabrication, the steel fabricator must check the accessibility of the site and design the sizes of individual parts accordingly"]
[]
[null,null,"Hot-dipped galvanizing:"]
[]
[null,null,"After fabrication and prior to delivery to site, all steelwork described as hot-dipped galvanized, is to be descaled and thoroughly cleaned by pickling, after which it is to be hot dip galvanized in accordance with the requirements of SANS 121/1501461"]
[]
[null,null,"Descriptions:"]
[]
[null,null,"Descriptions of bolts shall be deemed to include nuts and washers"]
[]
[null,null,"Descriptions of L-shaped and U-shaped anchor bolts shall be deemed to include bending, threading, nuts and washers and embedding in concrete"]
[]
[null,null,"Descriptions of expansion anchors and bolts and chemical anchors and bolts shall be deemed to include nuts, washers and mortices in brickwork or concrete"]
[]
[null,null,"BUDGETARY ALLOWANCE"]
[]
[{"v":1,"d":"1 "},null,"Provide a budgetary allowance of One Hundred Thousand Rand for sundry alterations to structural steelworks be used as directed by the Principal Agent and to be deducted in whole or in part if not required.",null,"Item",1,null,{"$f":"ROUND($F1047*G1047,2)","v":0}]
[]
[null,null,"Paint testing:"]
[]
[{"v":2,"d":"2 "},null,"Subcontract amount of Twenty Five Thousand Rand for quality control inspection by an authorised independent authority",null,"SUM",1,null,{"$f":"ROUND($F1051*G1051,2)","v":0}]
[]
[{"v":3,"d":"3 "},null,"Profit",null,"%",{"v":0,"d":"0%"},null,{"$f":"ROUND($F1053*G1053,2)","v":0}]
[]
[{"v":4,"d":"4 "},null,"Attendance",null,"%",{"v":0,"d":"0%"},null,{"$f":"ROUND($F1055*G1055,2)","v":0}]
[]
[null,null,"SECTION 2"]
[]
[null,null,"BILL NO. 9"]
[]
[null,null,"METALWORK"]
[]
[null,null,"WORK GROUP ALLOCATION"]
[]
[null,null,"Unless otherwise stated, all items in this Bill will be allocated to Work Group 136 - Metalwork"]
[]
[null,null,"PREAMBLES"]
[]
[null,null,"The General Preambles for Trades (2017 edition) as published by the Association of South African Quantity Surveyors shall be deemed to be incorporated in these bills of quantities and no claims arising from brevity of description of items fully described in the said General Preambles will be entertained"]
[]
[null,null,"The following \"Supplementary Preambles\" are incorporated in this bill to satisfy the requirements of the project and shall take precedence over the provisions of the said General Preambles"]
[]
[null,null,"SUPPLEMENTARY PREAMBLES"]
[]
[null,null,"Descriptions of bolts, anchors, etc:"]
[]
[null,null,"Descriptions of bolts shall be deemed to include nuts and washers"]
[]
[null,null,"Descriptions of expansion anchors and bolts and chemical anchors and bolts shall be deemed to include nuts, washers and mortices in brickwork or concrete"]
[]
[null,null,"Items described as \"holed for bolt(s)\" shall be deemed to exclude the bolts, unless otherwise described"]
[]
[null,null,"Items described as \"plugged\" shall be deemed to include screwing to fibre, plastic or metal plugs at not exceeding 600mm centres"]
[]
[null,null,"Fixing:"]
[]
[null,null,"Unless otherwise described, descriptions of items shall be deemed to include for fixing to brickwork or concrete  Where items are described as \"bolted\", the bolts are measured elsewhere as stated in clause N.7 of the Model Preambles"]
[]
[null,null,"PRESSED STEEL DOOR FRAMES"]
[]
[null,null,"1,6mm Rebated frames suitable for one brick walls:"]
[]
[{"v":1,"d":"1 "},null,"Frame for door 820 x 2400mm high with three hinges per leaf (TP-02)",null,"No",1,null,{"$f":"ROUND($F1093*G1093,2)","v":0}]
[]
[{"v":2,"d":"2 "},null,"Frame for door 810 x 2125mm high with three hinges per leaf (TP-03)",null,"No",2,null,{"$f":"ROUND($F1095*G1095,2)","v":0}]
[]
[{"v":3,"d":"3 "},null,"Frame for door 813 x 2125mm high with three hinges per leaf (TP-04)",null,"No",1,null,{"$f":"ROUND($F1097*G1097,2)","v":0}]
[]
[{"v":4,"d":"4 "},null,"Frame for door 813 x 2125mm high with three hinges per leaf (TP-06)",null,"No",3,null,{"$f":"ROUND($F1099*G1099,2)","v":0}]
[]
[null,null,"PRESSED STEEL COMBINATION DOORS AND FRAMES"]
[]
[null,null,"Flush both sides doors:"]
[]
[{"v":5,"d":"5 "},null," 835 x 2070mm High anti-corrosive galvanised and epoxy coated mild steel door with concealed sides and edges (TP-01)",null,"No",2,null,{"$f":"ROUND($F1105*G1105,2)","v":0}]
[]
[{"v":6,"d":"6 "},null," 835 x 2070mm High anti-corrosive galvanised and epoxy coated mild steel door with concealed sides and edges (TP-05)",null,"No",1,null,{"$f":"ROUND($F1107*G1107,2)","v":0}]
[]
[null,null,"ALUMINIUM WINDOWS, DOORS, ETC"]
[]
[null,null,"Aluminium windows, doors, etc:"]
[]
[null,null,"The successful tenderer shall be responsible for the complete design work including determining required section sizes and fixing details, all subject to the Project Manager's approval"]
[]
[null,null,"Doors, windows, etc shall be designed and constructed to withstand wind pressures of 1,1kn/m2 (unfactored) and 1,5kn/m2 (factored)"]
[]
[null,null,"All calculations shall be submitted to the Project Manager for approval"]
[]
[null,null,"Doors and windows shall comply with AAAMSA design criteria"]
[]
[null,null,"Glazing shall comply with SAGGA regulations.  Glass thicknesses shall comply with SAGGA regulations irrespective of thicknesses shown on the schedules/drawings"]
[]
[null,null,"Doors and windows shall be supplied with protective tape and plastic which shall be removed only once surrounding trades have been completed"]
[]
[null,null,"The following certificates shall be provided prior to commencement of site work:  1\tA copy of the relevant AAAMSA Performance Test Certificate from the manufacturer/contractor supplying the architectural aluminium product"]
[]
[null,null,"2\tA Certificate of Conformance confirming that anodising or powder coating has been processed in accordance with SANS 999 and SANS 1796 respectively"]
[]
[null,null,"3\tA copy of the relevant Performance Compliance Report from the system suppliers"]
[]
[null,null,"4\tA copy of the relevant Safiera Energy Rating Certification"]
[]
[null,null,"5\tA powder guarantee of not less than 15 years issued by the powder manufacturer. The specific conditions contained in this guarantee shall form part of the powder coating process"]
[]
[null,null,"6\tA Certificate of Conformance confirming that glazing has been installed in accordance with SANS 10400-N, ensuring that safety glazing materials have been installed in the mandatory areas and that each individual pane of safety glazing materials has been permanently marked"]
[]
[null,null,"7\tA warranty from the manufacturer of the laminated safety glass and/or hermetically sealed glazing units guaranteeing the products against delamination and colour degradation for a period of not less than five years"]
[]
[null,null,"All windows and door joints must be sealed to the inside with \"Dow Corning\" or similar approved silicone during manufacturing"]
[]
[null,null,"All dimensions shall be verified on site before commencing the work and a full set of shop drawings showing all relevant details shall be submitted to the Architect for his approval, prior to the manufacture of the units"]
[]
[null,null,"Sizes"]
[]
[null,null,"Where sizes are given these are nominal sizes"]
[]
[null,null,"Ironmongery"]
[]
[null,null,"The tenderer must allow in his pricing for supply and fixing of ALL ironmongery  Heavy duty high quality fittings must be allowed for and samples will be required for approval by the Project Manager"]
[]
[null,null,"STEEL ROLLER SHUTTERS, ETC"]
[]
[null,null,"Natural anodised zincalume roller shutters:"]
[]
[{"v":7,"d":"7 "},null,"Steel security gate approximately 2485mm wide x 2500mm high overall (TP-08)",null,"No",14,null,{"$f":"ROUND($F1155*G1155,2)","v":0}]
[]
[null,null,"BUDGETARY ALLOWANCE"]
[]
[{"v":8,"d":"8 "},null,"Provide a budgetary allowance of Twenty Five Thousand Rand for sundry metalwork to be used as directed by the Principal Agent and to be deducted in whole or in part if not required.",null,"Item",1,null,{"$f":"ROUND($F1159*G1159,2)","v":0}]
[]
[null,null,"SECTION 2"]
[]
[null,null,"BILL NO. 10"]
[]
[null,null,"PLASTERING"]
[]
[null,null,"WORK GROUP ALLOCATION"]
[]
[null,null,"Unless otherwise stated, all items in this Bill will be allocated to Work Group 142 - In situ finishes"]
[]
[null,null,"PREAMBLES"]
[]
[null,null,"The General Preambles for Trades (2017 edition) as published by the Association of South African Quantity Surveyors shall be deemed to be incorporated in these bills of quantities and no claims arising from brevity of description of items fully described in the said General Preambles will be entertained"]
[]
[null,null,"The following \"Supplementary Preambles\" are incorporated in this bill to satisfy the requirements of the project and shall take precedence over the provisions of the said General Preambles"]
[]
[null,null,"SUPPLEMENTARY PREAMBLES"]
[]
[null,null,"Moisture tests:"]
[]
[null,null,"Before any finishes, coverings, etc are applied to screeds, plastering, etc or any other in-situ finish, moisture tests are to be carried out to the  complete satisfaction of the Project Manager to ensure that these surfaces have the correct moisture content for the finish to be applied"]
[]
[null,null,"Labours, etc"]
[]
[null,null,"Labours such as fair, rounded and chamfered edges, trowel cuts, throats, V-joints, angles, etc shall be deemed to be included in the descriptions"]
[]
[null,null,"Sample Panels"]
[]
[null,null,"A sample panel size 1m x1m, of each of the various plaster type wall and floor finishes in this contract, shall be prepared for the approval of the Project Manager and the cost of the sample panel(s) shall be deemed to be included in the overall costs of the relevant wall and floor finishes"]
[]
[null,null,"GRANOLITHIC"]
[]
[null,null,"Method:"]
[]
[null,null,"The method to be used shall be either the monolithic method or the bonded method"]
[]
[null,null,"Preparation:"]
[]
[null,null,"For granolithic applied monolithically, the concrete floor shall be swept clean after bleeding of the concrete has ceased and the slab has begun to stiffen; any remaining bleed water shall be removed and the granolithic applied immediately thereafter. For granolithic to be bonded to the floor slab after it has hardened, the slab surface shall be hacked (preferably by mechanical means) until all laitance, dirt, oil, etc is dislodged and swept clean of all loose matter. The slab shall then be wetted and kept damp for at least six hours before applying the granolithic"]
[]
[null,null,"Mix:"]
[]
[null,null,"Unless otherwise described, granolithic shall attain a compressive strength of at least 41MPa. The coarse aggregate shall comply with SANS 1083 and shall generally be capable of passing a 10mm mesh sieve. Where the thickness of the granolithic exceeds 25mm, the size of the coarse aggregate shall be increased to the maximum size compatible with the thickness of the granolithic"]
[]
[null,null,"Panels:"]
[]
[null,null,"Granolithic shall be laid in panels not exceeding 14m\"² for monolithic finishes, not exceeding 9,5m\"² for bonded finishes and not exceeding 6m\"² for all external granolithic. Wherever possible, panels shall be square but at no time should the length of the panel exceed 1,5 times its width"]
[]
[null,null,"Where possible joints between panels shall be positioned over joints in the floor slab and shall be at least 3mm wide through the full thickness of the finish, separated by strips of wood or fibreboard and finished with V-joints"]
[]
[null,null,"Laying:"]
[]
[null,null,"Monolithic granolithic shall be applied to the partially set slab and thoroughly compacted and lightly wood floated to the required levels"]
[]
[null,null,"Bonded granolithic shall be applied to the slab after applying a 1:1 sand-and-cement slurry brushed over the surface and allowed to partially set before applying the granolithic. The granolithic shall be throughly compacted and lightly wood floated to the required levels"]
[]
[null,null,"After wood floating, the monolithic and bonded granolithic shall remain undisturbed until bleeding has ceased and the surface has stiffened. Any remaining bleed water and laitance shall then be removed and the surface steel trowelled or power floated"]
[]
[null,null,"Curing, seasoning and protection:"]
[]
[null,null,"Granolithic shall be covered with clean hessian with waterproof building foil over and kept wet for at least seven days after laying"]
[]
[null,null,"Colour:"]
[]
[null,null,"Coloured granolithic shall be tinted with an approved colouring pigment mixed into a true and even colour"]
[]
[null,null,"TINTED WHITE CEMENT SCREEDS"]
[]
[null,null,"Tinted screed shall be composed of one bag White Portland Cement or similar approved and two wheelbarrows \"Malmesbury\" or similar approved sand. Surfaces shall be finished with a steel trowel to leave a smooth finish and coated with two coats \"Earthcote S.I. Floorcote\" or similar approved two-pack polyurethane floor sealer applied as per the manufacturer's recommendations"]
[]
[null,null,"NOTE: Tinted screeds are to be strengthened with \"Primal Eccos\" acrylic polymer (15% of the water volume is to be substituted with the acrylic polymer during the mixing process)  Coarse sand is to be used for these screeds  All tinting, finishing, strengthening, etc are to be mixed, applied, etc strictly in accoprdance with the manufacturer's instructions"]
[]
[null,null,"CEMENT PLASTER"]
[]
[null,null,"Unless otherwise described, cement plaster shall be taken to mean Class 1 cement plaster i.e. 1:4 cement:sand plaster (common cement)"]
[]
[null,null,"INTERNAL PLASTER"]
[]
[null,null,"Cement plaster wood floated for tiles, on brickwork:"]
[]
[{"v":1,"d":"1 "},null,"On walls",null,"m²",9,null,{"$f":"ROUND($F1241*G1241,2)","v":0}]
[]
[{"v":2,"d":"2 "},null,"On narrow widths",null,"m²",5,null,{"$f":"ROUND($F1243*G1243,2)","v":0}]
[]
[null,null,"SECTION 2"]
[]
[null,null,"BILL NO. 11"]
[]
[null,null,"TILING"]
[]
[null,null,"WORK GROUP ALLOCATION"]
[]
[null,null,"Unless otherwise stated, all items in this Bill will be allocated to Work Group 144 - Tiling"]
[]
[null,null,"PREAMBLES"]
[]
[null,null,"The General Preambles for Trades (2017 edition) as published by the Association of South African Quantity Surveyors shall be deemed to be incorporated in these bills of quantities and no claims arising from brevity of description of items fully described in the said General Preambles will be entertained"]
[]
[null,null,"The following \"Supplementary Preambles\" are incorporated in this bill to satisfy the requirements of the project and shall take precedence over the provisions of the said General Preambles"]
[]
[null,null,"SUPPLEMENTARY PREAMBLES"]
[]
[null,null,"Fixing:"]
[]
[null,null,"Unless described as \"fixed with adhesive to plaster (plaster elsewhere)\", descriptions of tiling on brick or concrete walls, columns, etc shall be deemed to include 1:4 cement plaster backing and descriptions of tiling on concrete floors, etc shall be deemed to include 1:3 cement plaster bedding"]
[]
[null,null,"Tiling described as \"fixed with adhesive on power floated concrete\" shall be deemed to include for approved tiling key-coat"]
[]
[null,null,"Ceramic, porcelain, marble and granite tiles are to be fixed and grouted with suitable adhesives and grouts from the \"Tal Goldstar\" or similar approved range of products as recommended by the manufacturer of the tiles"]
[]
[null,null,"Preparatory work to existing painted plastered surfaces:"]
[]
[null,null,"Preparation of all existing painted plastered surfaces is to include for removing all loose and flaking material by wire brushing, thoroughly washing down and allowing to dry completely and applying one coat masonry bonding agent"]
[]
[null,null,"WALL TILING"]
[]
[null,null,"Ceramic tiles (Allow a Prime Cost Amount of R 350/m2 delivered to site) fixed with adhesive to plaster (plaster elsewhere) and flush pointing with and including waterproof grout:"]
[]
[{"v":1,"d":"1 "},null,"On walls",null,"m²",648,null,{"$f":"ROUND($F1279*G1279,2)","v":0}]
[]
[{"v":2,"d":"2 "},null,"On narrow widths",null,"m²",60,null,{"$f":"ROUND($F1281*G1281,2)","v":0}]
[]
[{"v":3,"d":"3 "},null,"On walls in isolated panels, splashbacks, etc.",null,"m²",5,null,{"$f":"ROUND($F1283*G1283,2)","v":0}]
[]
[null,null,"FLOOR TILING"]
[]
[null,null,"Porcelain floor tiles (Allow a Prime Cost Amount of R 350/m2 delivered to site) fixed with adhesive to screed (screed elsewhere) and flush pointing with and including waterproof grout:"]
[]
[{"v":4,"d":"4 "},null,"On floors",null,"m²",133,null,{"$f":"ROUND($F1289*G1289,2)","v":0}]
[]
[{"v":5,"d":"5 "},null,"Skirting 100mm high (of fair cut tiles)",null,"m",0,null,"RATE ONLY"]
[]
[null,null,"SUNDRIES"]
[]
[null,null,"Stainless steel dividing strips:"]
[]
[{"v":6,"d":"6 "},null,"28 x 10 x 2,5mm L-section dividing strips between tiles",null,"m",176,null,{"$f":"ROUND($F1297*G1297,2)","v":0}]
[]
[null,null,"SECTION 2"]
[]
[null,null,"BILL NO. 12"]
[]
[null,null,"PLUMBING AND DRAINAGE (PROVISIONAL)"]
[]
[null,null,"WORK GROUP ALLOCATION"]
[]
[null,null,"The items in this Bill will be allocated to Work Groups as indicated in brackets at the end of headings or descriptions"]
[]
[null,null,"PREAMBLES"]
[]
[null,null,"The General Preambles for Trades (2017 edition) as published by the Association of South African Quantity Surveyors shall be deemed to be incorporated in these bills of quantities and no claims arising from brevity of description of items fully described in the said General Preambles will be entertained"]
[]
[null,null,"The following \"Supplementary Preambles\" are incorporated in this bill to satisfy the requirements of the project and shall take precedence over the provisions of the said General Preambles"]
[]
[null,null,"SUPPLEMENTARY PREAMBLES"]
[]
[null,null,"Wire gratings:"]
[]
[null,null,"Descriptions of gutter outlets, etc shall be deemed to include wire balloon gratings"]
[]
[null,null,"Stormwater channels:"]
[]
[null,null,"Descriptions of channels shall be deemed to include necessary excavation, surface preparation, compaction, etc and disposal of surplus material on site"]
[]
[null,null,"French drains:"]
[]
[null,null,"Descriptions of french drains shall be deemed to include excavation, stone filling graded from 300mm diameter at bottom to 75mm diameter at top, approved geofabric filter blanket over stone, 300mm earthfilling over and disposal of surplus material on site"]
[]
[null,null,"Septic tanks:"]
[]
[null,null,"Descriptions of proprietary type septic tanks shall be deemed to include excavation, bedding and jointing, concrete base slabs, jointing to drains and backfilling, compaction, etc all in accordance with the manufacturer's instructions and disposal of surplus material on site"]
[]
[null,null,"Stainless steel basins, sinks, wash troughs, urinals, etc:"]
[]
[null,null,"Stainless steel for economy basins, domestic sinks and worktops shall be Type 430 (17/0)  Stainless steel for urinals, basins, quality sinks, wash troughs, institutional equipment, etc shall be Type 304 (18/8)  Stainless steel for laboratory sinks, photographic equipment, etc shall be Type 316 (18/8)  Units shall have standard aprons on all exposed edges and tiling keys against walls where applicable"]
[]
[null,null,"Sealing of edges:"]
[]
[null,null,"Outer edges of sinks, basins, baths, urinals, etc are to be sealed against adjacent surfaces with approved mildew resistant silicone sealant and prices must include therefor"]
[]
[null,null,"uPVC pipes and fittings:"]
[]
[null,null,"Sewer and drainage pipes and fittings shall be jointed and sealed with butyl rubber rings  Soil, waste and vent pipes and fittings shall be solvent weld jointed or sealed with butyl rubber rings"]
[]
[null,null,"uPVC pressure pipes and fittings:"]
[]
[null,null,"Pipes of 50mm diameter and smaller shall be plain ended with solvent welded uPVC loose sockets and fittings  Pipes of 63mm diameter and greater shall have sockets and spigots with push-in type integral rubber ring joints.  Bends shall be uPVC and all other fittings shall be cast iron, all with similar push-in type joints"]
[]
[null,null,"High density polyethylene (HDPe) pipes and fittings:"]
[]
[null,null,"Pipes shall be type IV and of the class specified with \"Plasson\" or \"Alprene\" or similar approved compression fittings"]
[]
[null,null,"Polycop polypropylene pipes:"]
[]
[null,null,"Polypropylene pipes 54mm diameter and smaller shall be seamless copper coloured Class 16 pipes jointed with \"Fast-fuse\" heat welded thermoplastic or where so described \"Polylock\" or similar approved compression fittings  Pipes shall be firmly fixed to walls, etc with coloured nylon snap-in pipe clips with provision for accommodating thermal movement and jointed and fixed strictly in accordance with the manufacturer's instructions"]
[]
[null,null,"Copper pipes:"]
[]
[null,null,"Pipes shall be hard drawn and half-hard \"Maksal\" or similar approved pipes of the class described.  Class 0 (thin walled hard drawn) pipes shall not be bent.  Class 1 (thin walled half-hard), Class 2 (half-hard) and Class 3 (heavy walled half-hard) pipes shall only be bent with benders with inner and outer formers.  Fittings to copper waste, vent and anti-syphon pipes, capillary solder fittings and compression fittings shall be \"Cobra Watertech\" or similar approved type.  Capillary solder fittings shall comply with ISO 2016. Only compression fittings shall be used in walls or in ground"]
[]
[null,null,"Copper pipes are to be installed in accordance with the latest revision of the Code of Practice for Copper Plumbing soldering techniques.  Flux, solder, etc to be strictly in accordance with the manufacturer's requirements with special attention to copper flux composition"]
[]
[null,null,"Reducing fittings:"]
[]
[null,null,"Where fittings have reducing ends or branches they are described as \"reducing\". In the case of pipes with diameters not exceeding 60mm, only the largest end or branch size is given. Should the Contractor wish to use other fittings and bushes or reducers he may do so on the understanding that no claim in this regard will be entertained. In the case of pipes with diameters exceeding 60mm, all sizes are given and no claims for extra bushes, reducers, etc will be entertained"]
[]
[null,null,"Fixing of pipes:"]
[]
[null,null,"Unless specifically otherwise stated, descriptions of pipes shall be deemed to include fixing to walls, etc casting in, building in or suspending not exceeding 1m below suspension level"]
[]
[null,null,"Paper wrapping to pipes:"]
[]
[null,null,"Pipes chased into brickwork must be wrapped with two layers of stout brown paper tied with wire.  Rates are to include for wrapping around joints and fittings"]
[]
[null,null,"Disinfection of water pipework:"]
[]
[null,null,"Water pipework is to be disinfected at completion in accordance with SANS 1200L (provision for disinfection elsewhere)"]
[]
[null,null,"\"Densyl\" or similar approved petrolatum anti-corrosion tape"]
[]
[null,null,"Pipes to be taped shall be coated with the appropriate primer and the tape shall be applied in the appropriate widths and with suitable overlaps  Couplings and fittings to pipes shall be taped in strict accordance with the manufacturer's instructions including mastic, tape, \"Layflat\" or similar approved sheeting, securing of same, etc"]
[]
[null,null,"Prices for wrapping of pipes shall include for all work as described to couplings in the length"]
[]
[null,null,"Laying, backfilling, bedding, etc of pipes:"]
[]
[null,null,"Pipes shall be laid and bedded in accordance with manufacturers' instructions and trenches shall be carefully backfilled"]
[]
[null,null,"Where no manufacturers' instructions exist, pipes shall be laid in accordance with Clauses 5.1 and 5.2 of each of the following: SANS 1200L\t: Medium-pressure pipelines SANS 1200LD\t: Sewers SANS 1200LE\t: Stormwater drainage Pipe trenches, etc shall be backfilled in accordance with Clauses 3, 5.5, 5.6, 5.7 and 7 of SANS 1200DB : Earthworks (Pipe trenches)Pipes shall be bedded in accordance with Clauses 3.1 to 3.4.1, 5.1 to 5.3 and 7 of SANS 1200LB : Bedding (Pipes)Unless otherwise described, bedding of rigid pipes shall be Class B bedding"]
[]
[null,null,"General:"]
[]
[null,null,"Descriptions of cast iron roof outlets shall be deemed to include joints to pipes and casting into concrete (adaptors for joints to PVC pipes, etc are given separately)  Descriptions of overflow pipes where measured in number, shall be deemed to include joints to cisterns and splay cut ends"]
[]
[null,null,"Descriptions of pipes laid in and including trenches and of inspection chambers, catchpits, etc shall be deemed to include excavation, bedding, backfilling, compaction to a minimum of 98% Mod AASHTO density and disposal of surplus material on site"]
[]
[null,null,"Descriptions of service pipes and flexible connecting pipes shall be deemed to include connections to taps, cisterns, etc and to steel pipes (adaptors for connections to copper pipes, etc are given separately)"]
[]
[null,null,"Descriptions of WC pans, slop hoppers, etc shall be deemed to include for joints to soil pipes (pan connectors are separately measured) and shall have straight or side outlets and \"P\" or \"S\" traps as necessary"]
[]
[null,null,"Description of waste unions shall be deemed to include rubber or vulcanite plugs and chains fixed to fittings."]
[]
[null,null,"As-built drawings:"]
[]
[null,null,"Where required, the Contractor shall prepare an updated set of as-built drawings.  At completion of the contract the Contractor shall hand these drawings to the Project Manager for reproducing onto the originals for handing over to the Employer (provision for allowance of as-built drawings elsewhere)"]
[]
[null,null,"Proprietary items:"]
[]
[null,null,"Where applicable, the manufacturers' names or product catalogue titles are given in sub-headings preceding the itemsNote that the manufacturers names specified in this trade are for the purposes of competitive pricing. Prices are to be based on the specific products/articles specified.On request, returnable samples are to be provided to the Project Manager for consideration"]
[]
[null,null,"- - - - - - - - - - - - - - - - - - - - - - - - -"]
[]
[null,null,"SANITARY FITTINGS (WORK GROUP 148)"]
[]
[null,null,"\"Franke\" or similar approved stainless steel:"]
[]
[{"v":1,"d":"1 "},null,"1050 x 535mm \"Trendline 711 Code: 1030006\" sink with 350 x 460mm end bowl, on cupboard (cupboard elsewhere)",null,"No",1,null,{"$f":"ROUND($F1417*G1417,2)","v":0}]
[]
[null,null,"\"Vaal\" or similar approved:"]
[]
[{"v":2,"d":"2 "},null,"455 x 290mm \"Hibiscus\" 7050 wash hand basin bolted to wall",null,"No",2,null,{"$f":"ROUND($F1421*G1421,2)","v":0}]
[]
[{"v":3,"d":"3 "},null,"\"Hibiscus\" 772402 close-coupled WC suite comprising pan with double flap heavy duty thermoset seat (Code: 8531Z0) and matching 9 litre cistern",null,"No",1,null,{"$f":"ROUND($F1423*G1423,2)","v":0}]
[]
[null,null,"WASTE UNIONS, ETC"]
[]
[null,null,"\"Cobra Watertech\" or similar approved:"]
[]
[{"v":4,"d":"4 "},null,"40mm Code 317 CP basin waste union and code 309CP anti-theft plug",null,"No",2,null,{"$f":"ROUND($F1429*G1429,2)","v":0}]
[]
[null,null,"TRAPS, ETC"]
[]
[null,null,"uPVC:"]
[]
[{"v":5,"d":"5 "},null,"40mm \"P\" or \"S\" trap",null,"No",2,null,{"$f":"ROUND($F1435*G1435,2)","v":0}]
[]
[null,null,"TAPS, VALVES, ETC"]
[]
[null,null,"\"Cobra Watertech\" or similar approved:"]
[]
[{"v":6,"d":"6 "},null,"15mm Code1065-15CP fullway isolating ball valve",null,"No",2,null,{"$f":"ROUND($F1441*G1441,2)","v":0}]
[]
[{"v":7,"d":"7 "},null,"15mm Code 902CP \"Focus\" basin mixer with waste union, etc and angle flow regulating valves",null,"No",2,null,{"$f":"ROUND($F1443*G1443,2)","v":0}]
[]
[null,null,"AS-BUILT DRAWINGS"]
[]
[{"v":8,"d":"8 "},null,"Provision of as-built drawings",null,"Item",1,null,{"$f":"ROUND($F1447*G1447,2)","v":0}]
[]
[null,null,"BUDGETARY ALLOWANCE"]
[]
[{"v":9,"d":"9 "},null,"Provide a budgetary allowance of Twenty Five Thousand Rand for sundry plumbing works to be used as directed by the Principal Agent and to be deducted in whole or in part if not required.",null,"Item",1,null,{"$f":"ROUND($F1451*G1451,2)","v":0}]
[]
[null,null,"SECTION 2"]
[]
[null,null,"BILL NO. 13"]
[]
[null,null,"GLAZING"]
[]
[null,null,"WORK GROUP ALLOCATION"]
[]
[null,null,"Unless otherwise stated, all items in this Bill will be allocated to Work Group 150 - Glazing"]
[]
[null,null,"PREAMBLES"]
[]
[null,null,"The General Preambles for Trades (2017 edition) as published by the Association of South African Quantity Surveyors shall be deemed to be incorporated in these bills of quantities and no claims arising from brevity of description of items fully described in the said General Preambles will be entertained"]
[]
[null,null,"The following \"Supplementary Preambles\" are incorporated in this bill to satisfy the requirements of the project and shall take precedence over the provisions of the said General Preambles"]
[]
[null,null,"SUPPLEMENTARY PREAMBLES"]
[]
[null,null,"Float glass:"]
[]
[null,null,"The term \"float glass\" is used for monolithic annealed glass"]
[]
[null,null,"Laminated glass:"]
[]
[null,null,"Laminated glass to have polyvinyl butyral (PVB) interlayer(s)"]
[]
[null,null,"GLAZING TO STEEL WITH PUTTY"]
[]
[null,null,"6,38mm Normal strength (NS) clear laminated safety glass:"]
[]
[{"v":1,"d":"1 "},null,"Panes not exceeding 0,5m2",null,"m²",2,null,{"$f":"ROUND($F1483*G1483,2)","v":0}]
[]
[{"v":2,"d":"2 "},null,"Panes exceeding 0,5m2 and not exceeding 2,0m2",null,"m²",3,null,{"$f":"ROUND($F1485*G1485,2)","v":0}]
[]
[null,null,"TOPS, SHELVES, DOORS, MIRRORS, ETC"]
[]
[null,null,"4mm Silvered float glass copper backed mirrors with 10mm bevelled and polished edges fixed with double sided adhesive tape:"]
[]
[{"v":3,"d":"3 "},null,"Mirror 600 x 1200mm high",null,"No",2,null,{"$f":"ROUND($F1491*G1491,2)","v":0}]
[]
[null,null,"SECTION 2"]
[]
[null,null,"BILL NO. 14"]
[]
[null,null,"PAINTWORK"]
[]
[null,null,"WORK GROUP ALLOCATION"]
[]
[null,null,"Unless otherwise stated, all items in this Bill will be allocated to Work Group 152 - Painting"]
[]
[null,null,"PREAMBLES"]
[]
[null,null,"The General Preambles for Trades (2017 edition) as published by the Association of South African Quantity Surveyors shall be deemed to be incorporated in these bills of quantities and no claims arising from brevity of description of items fully described in the said General Preambles will be entertained"]
[]
[null,null,"The following \"Supplementary Preambles\" are incorporated in this bill to satisfy the requirements of the project and shall take precedence over the provisions of the said General Preambles"]
[]
[null,null,"SUPPLEMENTARY PREAMBLES"]
[]
[null,null,"PREPARATORY WORK TO EXISTING WORK"]
[]
[null,null,"Previously painted plastered surfaces:"]
[]
[null,null,"Surfaces shall be thoroughly washed down and allowed to dry completely before any paint is applied. Blistered or peeling paint shall be completely removed and minor cracks shall be opened, filled with a suitable filler and finished smooth"]
[]
[null,null,"Previously painted metal surfaces:"]
[]
[null,null,"Surfaces shall be thoroughly rubbed and cleaned down.  Blistered or peeling paint shall be completely removed down to bare metal"]
[]
[null,null,"Previously painted wood surfaces:"]
[]
[null,null,"Surfaces shall be thoroughly cleaned down.  Blistered or peeling paint shall be completely removed and cracks and crevices shall be primed, filled with suitable filler and finished smooth"]
[]
[null,null,"PAINT SPECIFICATIONS"]
[]
[null,null,"All painting shall be done in accordance with \"Plascon\" or similar approved, etc specifications, unless otherwise described"]
[]
[null,null,"COLOURS"]
[]
[null,null,"When staining timber, the resultant colour or shade must be to the complete satisfaction of the Project Manager before any overcoating or preservative is applied  Paintwork is classified in the following different colour groups: \"White\", \"Pastel\", \"Deep\" and \"Transparent\" in accordance with the \"Natural Colour System\" (NCS) adopted by the SA National Standards Unless otherwise described, all paintwork shall be deemed to be classified in the \"White\" colour group"]
[]
[null,null,"PAINTWORK, ETC TO PREVIOUSLY PAINTED WORK"]
[]
[null,null,"ON INTERNAL FLOATED PLASTER SURFACES"]
[]
[null,null,"One coat superior quality acrylic emulsion paint for interior and exterior use, on work in sound condition:"]
[]
[{"v":1,"d":"1 "},null,"Walls",null,"m²",734,null,{"$f":"ROUND($F1539*G1539,2)","v":0}]
[]
[null,null,"ON FIBRE-CEMENT BOARD SURFACES"]
[]
[null,null,"One coat alkali resistant primer and two coats superior quality acrylic emulsion paint for interior and exterior use, on:"]
[]
[{"v":2,"d":"2 "},null,"Ceilings and cornices, including priming metal cover strips and nailheads",null,"m²",132,null,{"$f":"ROUND($F1545*G1545,2)","v":0}]
[]
[{"v":3,"d":"3 "},null,"On fascias and barge boards, etc. not exceeding 300mm girth",null,"m",20,null,{"$f":"ROUND($F1547*G1547,2)","v":0}]
[]
[null,null,"METAL SURFACES WITH"]
[]
[null,null,"One coat alkyd based zinc phosphate primer and two coats premium quality polyurethane enamel paint, on steel:"]
[]
[{"v":4,"d":"4 "},null,"Doors",null,"m²",2,null,{"$f":"ROUND($F1553*G1553,2)","v":0}]
[]
[{"v":5,"d":"5 "},null,"Window with burglars",null,"m²",5,null,{"$f":"ROUND($F1555*G1555,2)","v":0}]
[]
[{"v":6,"d":"6 "},null,"Roof coverings",null,"m²",748,null,{"$f":"ROUND($F1557*G1557,2)","v":0}]
[]
[null,null,"ON WOOD SURFACES"]
[]
[null,null,"One coat primer, one coat alkyd based universal undercoat and two coats superior quality universal enamel paint, on:"]
[]
[{"v":7,"d":"7 "},null,"Doors",null,"m²",34,null,{"$f":"ROUND($F1563*G1563,2)","v":0}]
[]
[{"v":1,"d":"1 "},null,"Alterations",{"$nulls":4},{"$f":"SUM(H417:H590)","v":0}]
[]
[{"v":2,"d":"2 "},null,"Masonry",{"$nulls":4},{"$f":"SUM(H597:H684)","v":0}]
[]
[{"v":3,"d":"3 "},null,"Waterproofing",{"$nulls":4},{"$f":"SUM(H689:H712)","v":0}]
[]
[{"v":4,"d":"4 "},null,"Roof Coverings",{"$nulls":4},{"$f":"SUM(H724:H754)","v":0}]
[]
[{"v":5,"d":"5 "},null,"Carpentry and Joinery",{"$nulls":4},{"$f":"SUM(H762:H834)","v":0}]
[]
[{"v":6,"d":"6 "},null,"Ceilings, Partitions and Access Flooring",{"$nulls":4},{"$f":"SUM(H867:H900)","v":0}]
[]
[{"v":7,"d":"7 "},null,"Ironmongery",{"$nulls":4},{"$f":"SUM(H921:H1000)","v":0}]
[]
[{"v":8,"d":"8 "},null,"Structural Steelwork",{"$nulls":4},{"$f":"SUM(H1015:H1056)","v":0}]
[]
[{"v":9,"d":"9 "},null,"Metalwork",{"$nulls":4},{"$f":"SUM(H1063:H1160)","v":0}]
[]
[{"v":10,"d":"10 "},null,"Plastering",{"$nulls":4},{"$f":"SUM(H1215:H1244)","v":0}]
[]
[{"v":11,"d":"11 "},null,"Tiling",{"$nulls":4},{"$f":"SUM(H1257:H1298)","v":0}]
[]
[{"v":12,"d":"12 "},null,"Plumbing and Drainage",{"$nulls":4},{"$f":"SUM(H1355:H1451)","v":0}]
[]
[{"v":13,"d":"13 "},null,"Glazing",{"$nulls":4},{"$f":"SUM(H1467:H1492)","v":0}]
[]
[{"v":14,"d":"14 "},null,"Paintwork",{"$nulls":4},{"$f":"SUM(H1520:H1563)","v":0}]
[]
[null,null,"SECTION 3"]
[]
[null,null,"BILL NO. 1"]
[]
[null,null,"EXTERNAL WORK (PROVISIONAL)"]
[]
[null,null,"(ALL TRADES)"]
[]
[null,null,"WORK GROUP ALLOCATION"]
[]
[null,null,"The items in this Bill will be allocated to Work Groups as indicated in brackets at the end of headings or descriptions"]
[]
[null,null,"PREAMBLES"]
[]
[null,null,"The Model Preambles for Trades (2008 edition) as published by the Association of South African Quantity Surveyors shall be deemed to be incorporated in these bills of quantities and no claims arising from brevity of description of items fully described in the said General Preambles will be entertained"]
[]
[null,null,"The following \"Supplementary Preambles\" are incorporated in this bill to satisfy the requirements of the project and shall take precedence over the provisions of the said General Preambles"]
[]
[null,null,"SUPPLEMENTARY PREAMBLES"]
[]
[null,null,"Nature of ground:"]
[]
[null,null,"The nature of the ground is assumed to be loose sandy material, therefore \"earth\", but possibly interspersed with \"soft rock\" or \"hard rock\""]
[]
[null,null,"The nature of the ground is assumed to be gravel, therefore \"earth\", but possibly interspersed with \"soft rock\" or \"hard rock\""]
[]
[null,null,"The nature of the ground is assumed to be silty clay with loose river boulders varying in size up to approximately 450mm diameter, all of which will be deemed as \"earth\", but possibly interspersed with \"hard rock\""]
[]
[null,null,"Trial holes indicate that the nature of the ground is silty clay to a depth of approximately 500mm with fine to medium loose sandy material below, therefore \"earth\""]
[]
[null,null,"A soils investigation has been carried out on the site by the Engineer and the report is annexed to these bills of quantities.  The soils report indicates that the ground varies between transported soils at surface comprising gravel layers of varying  thickness and interspersed with clay, and weathered shales varying from very soft rock to medium hard rock consistency, all of which will be deemed as \"earth\". All very hard unweathered shale, ironstone, etc the removal of which necessitates the use of explosives or heavy duty hydraulic percussion hammers (peckers), will be classified as \"hard rock\""]
[]
[null,null,"Should the Contractor encounter any \"soft\" or \"hard\" rock in the excavations, he shall immediately notify the Engineer who shall be the sole arbiter as to what constitutes \"soft\" or \"hard\" rock for final account purposes"]
[]
[null,null,"Subterranean water:"]
[]
[null,null,"No subterranean water is expected"]
[]
[null,null,"Excavation for working space in rock:"]
[]
[null,null,"Notwithstanding clause 11 of the Standard System of Measuring Building Work, excavation for working space in rock will be measured in cubic metres to the extent executed and given as \"extra over\" bulk excavation or trench and hole excavation as the case may be"]
[]
[null,null,"Carting away of excavated material:"]
[]
[null,null,"Descriptions of carting away of excavated material shall be deemed to include loading excavated material onto trucks directly from the excavations or, alternatively, from stock piles situated on the building site"]
[]
[null,null,"Filling:"]
[]
[null,null,"Notwithstanding the reference to prescribed multiple handling in Clause 1 of the Standard System of Measuring Building Work, prices for filling and backfilling shall include for all selection and any necessary multiple handling of material"]
[]
[null,null,"Testing:"]
[]
[null,null,"Prices for backfilling to trenches and holes only are to include for all necessary density tests in accordance with SANS 1200D"]
[]
[null,null,"Maintenance period:"]
[]
[null,null,"The maintenance period to civil works such as roads, parking and related earthworks shall be twelve calender months"]
[]
[null,null,"DEMOLITIONS, ETC (WORK GROUP 104)"]
[]
[null,null,"Breaking up and removing:"]
[]
[{"v":1,"d":"1 "},null,"Existing tar surfaces and replace with 30mm tar (Tar measured elsewhere)",null,"m²",100,null,{"$f":"ROUND($F1655*G1655,2)","v":0}]
[]
[null,null,"Taking down and removing:"]
[]
[{"v":2,"d":"2 "},null,"2400mm High precast concrete panel fence",null,"m",50,null,{"$f":"ROUND($F1659*G1659,2)","v":0}]
[]
[null,null,"SITE CLEARANCE, ETC (WORK GROUP 104)"]
[]
[null,null,"Site clearance:"]
[]
[{"v":3,"d":"3 "},null,"Digging up and removing rubbish, debris, vegetation, hedges, shrubs, bush, etc and trees not exceeding 200mm girth",null,"m²",500,null,{"$f":"ROUND($F1665*G1665,2)","v":0}]
[]
[null,null,"ROADS, PAVINGS, ETC."]
[]
[null,null,"ROADWORK"]
[]
[null,null,"Site clearance"]
[]
[{"v":4,"d":"4 "},null,"Digging up and removing rubbish, debris, vegetation, hedges, shrubs and trees not exceeding 200mm girth, bush, etc.",null,"m²",100,null,{"$f":"ROUND($F1673*G1673,2)","v":0}]
[]
[null,null,"Excavation not exceeding 2m deep"]
[]
[{"v":5,"d":"5 "},null,"Over site between buildings, retaining walls, etc. to reduce levels and depositing excavated material in prescribed stock piles on site",null,"m³",33,null,{"$f":"ROUND($F1677*G1677,2)","v":0}]
[]
[null,null,"Extra over bulk excavation in earth for excavation in"]
[]
[{"v":6,"d":"6 "},null,"Soft rock",null,"m³",5,null,{"$f":"ROUND($F1681*G1681,2)","v":0}]
[]
[{"v":7,"d":"7 "},null,"Hard rock",null,"m³",3,null,{"$f":"ROUND($F1683*G1683,2)","v":0}]
[]
[null,null,"Extra over bulk excavation in earth for breaking up and removing"]
[]
[{"v":8,"d":"8 "},null,"30mm Asphalt",null,"m³",5,null,{"$f":"ROUND($F1687*G1687,2)","v":0}]
[]
[null,null,"Extra over all excavations for carting away"]
[]
[{"v":9,"d":"9 "},null,"Surplus material from stock piles on site to a dumping site to be located by the contractor",null,"m³",33,null,{"$f":"ROUND($F1691*G1691,2)","v":0}]
[]
[null,null,"Keeping excavations free of water"]
[]
[{"v":10,"d":"10 "},null,"Keeping excavations free of all water other than subterranean water",null,"Item",1,null,{"$f":"ROUND($F1695*G1695,2)","v":0}]
[]
[null,null,"Earth filling supplied by the contractor under pavings etc"]
[]
[{"v":11,"d":"11 "},null,"Over site of G7 material in accordance with SABS 1200 DM compacted to 93% Mod AASHTO density",null,"m³",15,null,{"$f":"ROUND($F1699*G1699,2)","v":0}]
[]
[{"v":12,"d":"12 "},null,"Over site of G5 material in accordance with SABS 1200 DM compacted to 95% Mod AASHTO density",null,"m³",15,null,{"$f":"ROUND($F1701*G1701,2)","v":0}]
[]
[null,null,"Compaction of surfaces"]
[]
[{"v":13,"d":"13 "},null,"Compaction of ground surface under roads, pavings, etc. including scarifying for a depth of ?mm, breaking down oversize material, adding suitable material where necessary and compacting to 95% Mod AASHTO density",null,"m²",100,null,{"$f":"ROUND($F1705*G1705,2)","v":0}]
[]
[null,null,"Prescribed density tests on filling"]
[]
[{"v":14,"d":"14 "},null,"In-situ dry density (sand replacement) test in accordance with method A10 (a) of TMH 1",null,"No",8,null,{"$f":"ROUND($F1709*G1709,2)","v":0}]
[]
[{"v":15,"d":"15 "},null,"Maximum dry density and optimum moisture content test in accordance with method A7 of TMH 1",null,"No",8,null,{"$f":"ROUND($F1711*G1711,2)","v":0}]
[]
[null,null,"Bituminous premix road surfacing:"]
[]
[{"v":16,"d":"16 "},null,"35mm Thick paving to parking areas, roadways, etc. including bitumen spray to base course",null,"m²",100,null,{"$f":"ROUND($F1715*G1715,2)","v":0}]
[]
[null,null,"Bituminous surface treatment with aggregate and slurry seal 13.2mm  aggregate"]
[]
[{"v":17,"d":"17 "},null,"Bitumen rubber binder in the tack coat and 60%net bitumen emulsion in the penetration spray",null,"m²",100,null,{"$f":"ROUND($F1719*G1719,2)","v":0}]
[]
[null,null,"Variations in quantities of prime and bituminous binders"]
[]
[{"v":18,"d":"18 "},null,"RTH 3/12P or RTL 3/12P tar prime",null,"LITRE",147,null,{"$f":"ROUND($F1723*G1723,2)","v":0}]
[]
[null,null,"Paintwork:"]
[]
[null,null,"Prepare and apply one coat white reflective road marking paint on bituminous road surfacing, precast concrete paving blocks, etc:"]
[]
[{"v":19,"d":"19 "},null,"100mm Wide line",null,"m",527,null,{"$f":"ROUND($F1729*G1729,2)","v":0}]
[]
[null,null,"FENCING  (WORK GROUP 136)"]
[]
[null,null,"Precast concrete fencing"]
[]
[{"v":20,"d":"20 "},null,"Precast concrete palisade fencing 2.40m high",null,"m",50,null,{"$f":"ROUND($F1735*G1735,2)","v":0}]
[]
[null,null,"New gates:"]
[]
[{"v":21,"d":"21 "},null,"Double leaf Sliding Gate 6.2 x 1.8m to suit palisade fence",null,"No",1,null,{"$f":"ROUND($F1739*G1739,2)","v":0}]
[]
[null,null,"BUDGETARY ALLOWANCE"]
[]
[{"v":22,"d":"22 "},null,"Provide a budgetary allowance of Fifteen Thousand Rand for sundry external works to be used as directed by the Principal Agent and to be deducted in whole or in part if not required.",null,"Item",1,null,{"$f":"ROUND($F1743*G1743,2)","v":0}]
[]
[null,null,"SECTION 3"]
[]
[null,null,"BILL NO. 2"]
[]
[null,null,"SITE SERVICES (PROVISIONAL)"]
[]
[null,null,"WORK GROUP ALLOCATION"]
[]
[null,null,"The items in this Bill will be allocated to Work Groups as indicated in brackets at the end of headings or descriptions"]
[]
[null,null,"PREAMBLES"]
[]
[null,null,"The Model Preambles for Trades (2008 edition) as published by the Association of South African Quantity Surveyors shall be deemed to be incorporated in these bills of quantities and no claims arising from brevity of description of items fully described in the said General Preambles will be entertained"]
[]
[null,null,"The following \"Supplementary Preambles\" are incorporated in this bill to satisfy the requirements of the project and shall take precedence over the provisions of the said General Preambles"]
[]
[null,null,"SUPPLEMENTARY PREAMBLES"]
[]
[null,null,"Stormwater channels:"]
[]
[null,null,"Descriptions of channels shall be deemed to include necessary excavation, surface preparation, compaction, etc and disposal of surplus material on site"]
[]
[null,null,"French drains:"]
[]
[null,null,"Descriptions of french drains shall be deemed to include excavation, stone filling graded from 300mm diameter at bottom to 75mm diameter at top, approved geofabric filter blanket over stone, 300mm earthfilling over and disposal of surplus material on site"]
[]
[null,null,"Septic tanks:"]
[]
[null,null,"Descriptions of proprietary type septic tanks shall be deemed to include excavation, bedding and jointing, concrete base slabs, jointing to drains and backfilling, compaction, etc all in accordance with the manufacturer's instructions and disposal of surplus material on site"]
[]
[null,null,"uPVC pipes and fittings:"]
[]
[null,null,"Sewer and drainage pipes and fittings shall be jointed and sealed with butyl rubber rings  Soil, waste and vent pipes and fittings shall be solvent weld jointed or sealed with butyl rubber rings"]
[]
[null,null,"uPVC pressure pipes and fittings:"]
[]
[null,null,"Pipes of 50mm diameter and smaller shall be plain ended with solvent welded uPVC loose sockets and fittings  Pipes of 63mm diameter and greater shall have sockets and spigots with push-in type integral rubber ring joints.  Bends shall be uPVC and all other fittings shall be cast iron, all with similar push-in type joints"]
[]
[null,null,"High density polyethylene (HDPe) pipes and fittings:"]
[]
[null,null,"Pipes shall be type IV and of the class specified with \"Plasson\" or \"Alprene\" or similar approved compression fittings"]
[]
[null,null,"Polycop polypropylene pipes:"]
[]
[null,null,"Polypropylene pipes 54mm diameter and smaller shall be seamless copper coloured Class 16 pipes jointed with \"Fast-fuse\" heat welded thermoplastic or where so described \"Polylock\" or similar approved compression fittings  Pipes shall be firmly fixed to walls, etc with coloured nylon snap-in pipe clips with provision for accommodating thermal movement and jointed and fixed strictly in accordance with the manufacturer's instructions"]
[]
[null,null,"Copper pipes:"]
[]
[null,null,"Pipes shall be hard drawn and half-hard \"Maksal\" or similar approved pipes of the class described.  Class 0 (thin walled hard drawn) pipes shall not be bent.  Class 1 (thin walled half-hard), Class 2 (half-hard) and Class 3 (heavy walled half-hard) pipes shall only be bent with benders with inner and outer formers.  Fittings to copper waste, vent and anti-syphon pipes, capillary solder fittings and compression fittings shall be \"Cobra Watertech\" or similar approved type.  Capillary solder fittings shall comply with ISO 2016"]
[]
[null,null,"Copper pipes are to be installed in accordance with the latest revision of the Code of Practice for Copper Plumbing soldering techniques.  Flux, solder, etc to be strictly in accordance with the manufacturer's requirements with special attention to copper flux composition"]
[]
[null,null,"Reducing fittings:"]
[]
[null,null,"Where fittings have reducing ends or branches they are described as \"reducing\". In the case of pipes with diameters not exceeding 60mm, only the largest end or branch size is given. Should the Contractor wish to use other fittings and bushes or reducers he may do so on the understanding that no claim in this regard will be entertained. In the case of pipes with diameters exceeding 60mm, all sizes are given and no claim for extra bushes, reducers, etc will be entertained"]
[]
[null,null,"Disinfection of water pipework:"]
[]
[null,null,"Water pipework is to be disinfected at completion in accordance with SABS 1200L (provision for disinfection elsewhere)"]
[]
[null,null,"\"Densyl\" or similar approved petrolatum anti-corrosion tape"]
[]
[null,null,"Pipes to be taped shall be coated with the appropriate primer and the tape shall be applied in the appropriate widths and with suitable overlaps  Couplings and fittings to pipes shall be taped in strict accordance with the manufacturer's instructions including mastic, tape, \"Layflat\" or similar approved sheeting, securing of same, etc"]
[]
[null,null,"Prices for wrapping of pipes shall include for all work as described to couplings in the length"]
[]
[null,null,"Laying, backfilling, bedding, etc of pipes:"]
[]
[null,null,"Pipes shall be laid and bedded in accordance with manufacturers' instructions and trenches shall be carefully backfilled"]
[]
[null,null,"Where no manufacturers' instructions exist, pipes shall be laid in accordance with Clauses 5.1 and 5.2 of each of the following: SABS 1200L\t: Medium-pressure pipelines SABS 1200LD\t: Sewers SABS 1200LE\t: Stormwater drainage Pipe trenches, etc shall be backfilled in accordance with Clauses 3, 5.5, 5.6, 5.7 and 7 of SABS 1200DB : Earthworks (Pipe trenches)Pipes shall be bedded in accordance with Clauses 3.1 to 3.4.1, 5.1 to 5.3 and 7 of SABS 1200LB : Bedding (Pipes)Unless otherwise described, bedding of rigid pipes shall be Class B bedding"]
[]
[null,null,"General:"]
[]
[null,null,"Descriptions of pipes laid in and including trenches and of inspection chambers, catchpits, etc shall be deemed to include excavation, bedding, backfilling, compaction to a minimum of 98% Mod AASHTO density and disposal of surplus material on site"]
[]
[null,null,"Descriptions of service pipes and flexible connecting pipes shall be deemed to include connections to taps, cisterns, etc and to steel pipes (adaptors for connections to copper pipes, etc are given separately)"]
[]
[null,null,"As-built drawings:"]
[]
[null,null,"Where required, the Contractor shall prepare an updated set of as-built drawings.  At completion of the contract the Contractor shall hand these drawings to the Project Manager for reproducing onto the originals for handing over to the Employer (provision for allowance of as-built drawings elsewhere)"]
[]
[null,null," - - - - - - - - - - - - - - - - - - - - - - - - -"]
[]
[null,null,"SOIL DRAINAGE (WORK GROUP 146)"]
[]
[{"v":1,"d":"1 "},null,"Excavation in earth not exceeding 1m deep for pipe trenches",null,"m³",53,null,{"$f":"ROUND($F1831*G1831,2)","v":0}]
[]
[{"v":2,"d":"2 "},null,"Excavation in earth exceeding 1m and not exceeding 2m deep for pipe trenches",null,"m³",76,null,{"$f":"ROUND($F1833*G1833,2)","v":0}]
[]
[{"v":3,"d":"3 "},null,"Excavation in earth exceeding 2m and not exceeding 3m deep for pipe trenches",null,"m³",95,null,{"$f":"ROUND($F1835*G1835,2)","v":0}]
[]
[{"v":4,"d":"4 "},null,"Backfilling to pipe trenches",null,"m³",1,null,{"$f":"ROUND($F1837*G1837,2)","v":0}]
[]
[{"v":5,"d":"5 "},null,"Selected granular filling in bedding under and filling around pipes",null,"m³",66,null,{"$f":"ROUND($F1839*G1839,2)","v":0}]
[]
[null,null,"Heavy duty (Class 34) uPVC sewer and drain pipes:"]
[]
[{"v":6,"d":"6 "},null,"110mm Pipes laid in trenches (trenches elsewhere)",null,"m",10,null,{"$f":"ROUND($F1843*G1843,2)","v":0}]
[]
[{"v":7,"d":"7 "},null,"160mm Pipes laid in trenches (trenches elsewhere)",null,"m",170,null,{"$f":"ROUND($F1845*G1845,2)","v":0}]
[]
[null,null,"Extra over heavy duty (Class 34) uPVC sewer and drain pipes for fittings:"]
[]
[{"v":8,"d":"8 "},null,"110mm Bend",null,"No",6,null,{"$f":"ROUND($F1849*G1849,2)","v":0}]
[]
[{"v":9,"d":"9 "},null,"110mm Junction",null,"No",5,null,{"$f":"ROUND($F1851*G1851,2)","v":0}]
[]
[{"v":10,"d":"10 "},null,"110mm Rodding eye",null,"No",3,null,{"$f":"ROUND($F1853*G1853,2)","v":0}]
[]
[{"v":11,"d":"11 "},null,"110mm Reducing junction",null,"No",3,null,{"$f":"ROUND($F1855*G1855,2)","v":0}]
[]
[{"v":12,"d":"12 "},null,"160mm Overflow gulley head",null,"No",2,null,{"$f":"ROUND($F1857*G1857,2)","v":0}]
[]
[{"v":13,"d":"13 "},null,"160mm Access reducing junction",null,"No",2,null,{"$f":"ROUND($F1859*G1859,2)","v":0}]
[]
[{"v":14,"d":"14 "},null,"160mm Access junction",null,"No",6,null,{"$f":"ROUND($F1861*G1861,2)","v":0}]
[]
[null,null,"Cast iron covers, etc:"]
[]
[{"v":15,"d":"15 "},null,"1000mm Diameter manhole cover and frame",null,"No",6,null,{"$f":"ROUND($F1865*G1865,2)","v":0}]
[]
[{"v":16,"d":"16 "},null,"Lifting-key for manhole cover (handed to Employer)",null,"No",6,null,{"$f":"ROUND($F1867*G1867,2)","v":0}]
[]
[null,null,"Precast Concrete Manhole"]
[]
[null,null,"Manhole formed of precast concrete manhole rings, components all bedded and jointed with approved water tight jointing, 260mm thick 20MPa/19mm mass concrete base projecting 75mm beyond external face of chamber ring and sealed to ring with 75mm wide x 125mm high 20MPa/19mm mass concrete triangular fillet, complete with precast concrete medium duty cover and frame, with and including neccessary step iron, 20MPa/19mm mass concrete benching in bottom with top surfaces to falls and including 160mm vitrified clay channels, channel bends, channel junctions, etc., additional excavation and backfilling compacted to 93% modified AASHTO density"]
[]
[{"v":17,"d":"17 "},null,"1000mm Diameter manhole not exceeding 1m deep",null,"No",2,null,{"$f":"ROUND($F1873*G1873,2)","v":0}]
[]
[{"v":18,"d":"18 "},null,"1000mm Diameter manhole exceeding 1m but not exceeding 2m deep",null,"No",2,null,{"$f":"ROUND($F1875*G1875,2)","v":0}]
[]
[{"v":19,"d":"19 "},null,"1000mm Diameter manhole exceeding 2m but not exceeding 3m deep",null,"No",2,null,{"$f":"ROUND($F1877*G1877,2)","v":0}]
[]
[{"v":20,"d":"20 "},null,"Cutting into existing 160mm drain pipe for and forming junction with 110mm pipe",null,"No",1,null,{"$f":"ROUND($F1879*G1879,2)","v":0}]
[]
[null,null,"Alterations:"]
[]
[{"v":21,"d":"21 "},null,"Excavate for and locate existing 160mm diameter uPVC soil drain pipe approximately 2000mm deep and connect to 160mm diameter uPVC pipe including all necessary fittings, backfilling, etc",null,"No",3,null,{"$f":"ROUND($F1883*G1883,2)","v":0}]
[]
[null,null,"Testing:"]
[]
[{"v":22,"d":"22 "},null,"Testing soil drainage system",null,"Item",1,null,{"$f":"ROUND($F1887*G1887,2)","v":0}]
[]
[null,null,"AS-BUILT DRAWINGS"]
[]
[{"v":23,"d":"23 "},null,"Provision of as-built drawings",null,"Item",1,null,{"$f":"ROUND($F1891*G1891,2)","v":0}]
[]
[null,null,"BUDGETARY ALLOWANCE"]
[]
[{"v":24,"d":"24 "},null,"Provide a budgetary allowance of Seventy Five Thousand Rand for the decommissioning of an old and construction of a new septic tank to be used as directed by the Principal Agent and to be deducted in whole or in part if not required.",null,"Item",1,null,{"$f":"ROUND($F1895*G1895,2)","v":0}]
[]
[{"v":1,"d":"1 "},null,"External Works (Provisional)",{"$nulls":4},{"$f":"SUM(H1633:H1744)","v":0}]
[]
[{"v":2,"d":"2 "},null,"Site Services (Provisional)",{"$nulls":4},{"$f":"SUM(H1819:H1895)","v":0}]
[]
[null,null,"SECTION NO. 4"]
[]
[null,null,"BILL NO. 1"]
[]
[null,null,"ELECTRICAL INSTALLATION"]
[]
[null,null,"LOW VOLTAGE"]
[]
[null,null,"DISCONNECTION/ REMOVAL OF REDUNDANT ELECTRICAL EQUIPMENT"]
[]
[null,null,"The following equipment shall be isolated, disconnected, removed and handed over to the Employer's"]
[]
[{"v":1,"d":"1 "},null,"Decommissioning and stripping of existing electrical installations including cables, conductors, luminiares, control devices, DB's, etc in the existing building.",null,"SUM",1,null,{"$f":"ROUND($F1913*G1913,2)","v":0}]
[]
[null,null,"LV SWITCHGEAR DBs and LV Switchgear"]
[]
[null,null,"Manufacture, deliver to site, install, commission, test kiosks, distribution boards as per specification and single line diagram, to be housed in electrical. All electrical panels shall be stainless steel material, rates to include powder coated, busbars and drilling, busbar connections internal wiring etc. Refer to single line diagram for electrical panel colour"]
[]
[{"v":2,"d":"2 "},null,"Kiosk - Main DB",null,"No",1,null,{"$f":"ROUND($F1919*G1919,2)","v":0}]
[]
[{"v":3,"d":"3 "},null,"Kiosk - Hawkers",null,"No",1,null,{"$f":"ROUND($F1921*G1921,2)","v":0}]
[]
[null,null,"CABLES AND CONDUCTORS"]
[]
[null,null,"Supply, deliver to site cables and conductors as specified. Install, rack, strap and testing of cables as per specification including clamps, ties and cable numbering system"]
[]
[{"v":4,"d":"4 "},null,"2,5mm conductors (mixed colours - live, neutral and earth)",null,"m",620,null,{"$f":"ROUND($F1927*G1927,2)","v":0}]
[]
[{"v":5,"d":"5 "},null,"4,0mm conductors (mixed colours - live, neutral and earth)",null,"m",100,null,{"$f":"ROUND($F1929*G1929,2)","v":0}]
[]
[{"v":6,"d":"6 "},null,"2.5 mm\"² 4c 600/1000V PVC/SWA/PVC ECC Cu Cable",null,"m",30,null,{"$f":"ROUND($F1931*G1931,2)","v":0}]
[]
[{"v":7,"d":"7 "},null,"10 mm\"² 2c 600/1000V PVC/SWA/PVC ECC Cu Cable",null,"m",250,null,{"$f":"ROUND($F1933*G1933,2)","v":0}]
[]
[null,null,"CABLES TERMINATIONS"]
[]
[null,null,"Termination of cables shall include supply installation and testing of the glands with corrossion  guard , making-off the cable, lugs, and fitting the gland to the board gland plate, switchgear or equipment and final connection of cable tails into board or terminals.  Include for Reducing Glands and shrouds where applicable. NB:  IP65 Glands are to be used where applicable."]
[]
[{"v":8,"d":"8 "},null,"10 mm\"² 2c 600/1000V PVC/SWA/PVC ECC Cu Cable",null,"No",4,null,{"$f":"ROUND($F1939*G1939,2)","v":0}]
[]
[{"v":9,"d":"9 "},null,"2,5mm\"² 4c 600/1000V PVC/SWA/PVC ECC Cu Cable",null,"No",2,null,{"$f":"ROUND($F1941*G1941,2)","v":0}]
[]
[{"v":10,"d":"10 "},null,"20mm PVC Conduit including all necessary accessories. Rate to include chasing wall for conduit in the wall, close wall and make good.",null,"m",260,null,{"$f":"ROUND($F1943*G1943,2)","v":0}]
[]
[null,null,"LUMINARIES AND CONTROL DEVICES"]
[]
[null,null,"Supply, deliver, accept and store the following luminaries, complete with lamps and control gear as per specification. See and refer to the specification document for details of each luminary."]
[]
[{"v":11,"d":"11 "},null,"Type A5 - IP65 Rated, 30W / 4440 lm LED - 4000k vapour-proof Surface-mounted weather-proof luminaire, GRP body and acrylic diffuser, with 50000 hours lifespan.",null,"No",8,null,{"$f":"ROUND($F1949*G1949,2)","v":0}]
[]
[{"v":12,"d":"12 "},null,"Type B1 - IP65 Rated high-pressure die cast aluminium base and trim ring 20W/  2600lm LED - 4000k bulkhead luminaire with an opal high-impact acrylic diffuser, with 50000 hours lifespan.",null,"No",11,null,{"$f":"ROUND($F1951*G1951,2)","v":0}]
[]
[{"v":13,"d":"13 "},null,"Type FL1  - 180W / 27000lm LED (4000k) Streetlight rated IP66 with powder coating as per specification",null,"No",5,null,{"$f":"ROUND($F1953*G1953,2)","v":0}]
[]
[{"v":14,"d":"14 "},null,"Retrofit existing luminiare by replacing existing with 36W T8 / T5 lamps with a LED tube 28W / 2100lumen on a 4ft luminaire",null,"No",20,null,{"$f":"ROUND($F1955*G1955,2)","v":0}]
[]
[{"v":15,"d":"15 "},null,"Photo electric cell as per specification",null,"No",2,null,{"$f":"ROUND($F1957*G1957,2)","v":0}]
[]
[{"v":16,"d":"16 "},null,"New steel cage for lighting. Cage shall be hot dip galvanised",null,"No",8,null,{"$f":"ROUND($F1959*G1959,2)","v":0}]
[]
[{"v":17,"d":"17 "},null,"Supply and installation of 20 Amp 1-Pole surface mounted isolator, complete with all necessary accessories",null,"No",1,null,{"$f":"ROUND($F1961*G1961,2)","v":0}]
[]
[{"v":18,"d":"18 "},null,"Supply and installation of 20 Amp, IP66, 1-pole surface isolator mounted on the security steel cage, complete with all necessary accessories",null,"No",1,null,{"$f":"ROUND($F1963*G1963,2)","v":0}]
[]
[null,null,"Supply, install, test and commissioning of the Lightning protection of the buildings on two corners of the buildings, complete with all necessary required material, accessories for a complete installation. Contractor to use copper earth spike, aluminium or copper conductors as per specification, and have testing points for the building.  Rates to include all necessary required accessories for a complete installation. The installation must comply with SANS 10313."]
[]
[{"v":19,"d":"19 "},null,"Hawkers/Shops & ablutions",null,"SUM",1,null,{"$f":"ROUND($F1967*G1967,2)","v":0}]
[]
[null,null,"GENERATOR SET"]
[]
[null,null,"Manufacture, deliver to site, install, test and commission of a generator set 400 volts at 50Hz as per specification and single line diagram. The generator shall be enclosed or containerised on a stainless steel Grl316.  Rates to include for steelwork and powder coated, busbars and drilling, busbar connections internal wiring, earthing for the generator set, etc. Refer to attached single line diagram."]
[]
[{"v":20,"d":"20 "},null,"60kVA, 400V, 3phase silent Diesel Engine Alternator Set including automatic change-over panel and weatherproof 3CR12-steel canopy.",null,"SUM",1,null,{"$f":"ROUND($F1973*G1973,2)","v":0}]
[]
[{"v":21,"d":"21 "},null,"Stainless steel Metal cladded thermal insulation of exhaust pipe and silencer within the enclosure.",null,"SUM",1,null,{"$f":"ROUND($F1975*G1975,2)","v":0}]
[]
[{"v":22,"d":"22 "},null,"Water Trap/Fuel Filter cartridge",null,"SUM",1,null,{"$f":"ROUND($F1977*G1977,2)","v":0}]
[]
[null,null,"Electrical reticulation"]
[]
[{"v":23,"d":"23 "},null,"Interconnecting control & power cabling between genset and alternator and AMF panel",null,"SUM",1,null,{"$f":"ROUND($F1981*G1981,2)","v":0}]
[]
[{"v":24,"d":"24 "},null,"Support & protection of exposed cabling between genset & AMF panel",null,"SUM",1,null,{"$f":"ROUND($F1983*G1983,2)","v":0}]
[]
[{"v":25,"d":"25 "},null,"Electronic hooter & red flashing general alarm light mounted on the AMF panel.",null,"SUM",1,null,{"$f":"ROUND($F1985*G1985,2)","v":0}]
[]
[{"v":26,"d":"26 "},null,"Remote alarm indicator panel complete the red indicator lamp and label - GENERATOR FAULT",null,"SUM",1,null,{"$f":"ROUND($F1987*G1987,2)","v":0}]
[]
[{"v":27,"d":"27 "},null,"External emergency stop push button and cabling",null,"SUM",1,null,{"$f":"ROUND($F1989*G1989,2)","v":0}]
[]
[{"v":28,"d":"28 "},null,"Earthing of the generator set",null,"SUM",1,null,{"$f":"ROUND($F1991*G1991,2)","v":0}]
[]
[null,null,"Commissioning"]
[]
[{"v":29,"d":"29 "},null,"Test & commission on site with load",null,"SUM",1,null,{"$f":"ROUND($F1995*G1995,2)","v":0}]
[]
[{"v":30,"d":"30 "},null,"Resistance testing of earth system",null,"SUM",1,null,{"$f":"ROUND($F1997*G1997,2)","v":0}]
[]
[{"v":31,"d":"31 "},null,"Balancing of the essential loads",null,"SUM",1,null,{"$f":"ROUND($F1999*G1999,2)","v":0}]
[]
[{"v":32,"d":"32 "},null,"Electrical Certification of Compliance",null,"SUM",1,null,{"$f":"ROUND($F2001*G2001,2)","v":0}]
[]
[null,null,"Signage"]
[]
[{"v":33,"d":"33 "},null,"As per OHS Act - fire & resussitation etc.",null,"SUM",1,null,{"$f":"ROUND($F2005*G2005,2)","v":0}]
[]
[{"v":34,"d":"34 "},null,"Generator \"Manual Start/Test Procedure\"",null,"SUM",1,null,{"$f":"ROUND($F2007*G2007,2)","v":0}]
[]
[{"v":35,"d":"35 "},null,"Electricity logo on door to AMF panel",null,"SUM",1,null,{"$f":"ROUND($F2009*G2009,2)","v":0}]
[]
[{"v":36,"d":"36 "},null,"Contractors & PRASA's details - laminated plastic",null,"SUM",1,null,{"$f":"ROUND($F2011*G2011,2)","v":0}]
[]
[null,null,"General"]
[]
[{"v":37,"d":"37 "},null,"Diesel fuel for full tank",null,"SUM",1,null,{"$f":"ROUND($F2015*G2015,2)","v":0}]
[]
[{"v":38,"d":"38 "},null,"Laminated plastic framed schematic wiring diagram fixed to the inside of the enclosure adjacent the AMF panel",null,"No",1,null,{"$f":"ROUND($F2017*G2017,2)","v":0}]
[]
[{"v":39,"d":"39 "},null,"A4 size log book on chain in metal envelope in door",null,"No",1,null,{"$f":"ROUND($F2019*G2019,2)","v":0}]
[]
[{"v":40,"d":"40 "},null,"Operational training of Employer's staff",null,"SUM",1,null,{"$f":"ROUND($F2021*G2021,2)","v":0}]
[]
[{"v":41,"d":"41 "},null,"Manuals - 3 sets",null,"SUM",1,null,{"$f":"ROUND($F2023*G2023,2)","v":0}]
[]
[{"v":42,"d":"42 "},null,"Drawings",null,"SUM",1,null,{"$f":"ROUND($F2025*G2025,2)","v":0}]
[]
[null,null,"Service"]
[]
[{"v":43,"d":"43 "},null,"Monthly Inspection every quarter  new fuel filters for 1st year",null,"No",4,null,{"$f":"ROUND($F2029*G2029,2)","v":0}]
[]
[{"v":44,"d":"44 "},null,"Full annual service  new battery for 1st year",null,"No",1,null,{"$f":"ROUND($F2031*G2031,2)","v":0}]
[]
[{"v":45,"d":"45 "},null,"Removal of existing generator set off site to Durban depot",null,"SUM",1,null,{"$f":"ROUND($F2033*G2033,2)","v":0}]
[]
[null,null,"TEST AND COMMISSIONING"]
[]
[null,null,"Test and commission  the complete electrical installation including completion of quality check sheets, Compliance Certificates & test results and submitting them to the Employer's Representative."]
[]
[{"v":46,"d":"46 "},null,"Test and commission  the complete electrical installation including Certificates of Compliance & test results to the Engineer.",null,"SUM",1,null,{"$f":"ROUND($F2039*G2039,2)","v":0}]
[]
[null,null,"SECTION 5"]
[]
[null,null,"BILL NO. 1"]
[]
[null,null,"HVAC INSTALLATIONS"]
[]
[null,null,"Supply, deliver and install the following HVAC units as per specification:"]
[]
[{"v":1,"d":"1 "},null,"3.5 kW cooling midwall split indoor unit",null,"No",3,null,{"$f":"ROUND($F2049*G2049,2)","v":0}]
[]
[{"v":2,"d":"2 "},null,"3.5 kW inverter type outdoor condensing unit",null,"No",3,null,{"$f":"ROUND($F2051*G2051,2)","v":0}]
[]
[{"v":3,"d":"3 "},null,"Refrigeration copper piping with thermal insulation and all associated fittings",null,"m",155,null,{"$f":"ROUND($F2053*G2053,2)","v":0}]
[]
[{"v":4,"d":"4 "},null,"PVC condensate drain piping with insulation",null,"m",15,null,{"$f":"ROUND($F2055*G2055,2)","v":0}]
[]
[{"v":5,"d":"5 "},null,"Wired controller",null,"No",3,null,{"$f":"ROUND($F2057*G2057,2)","v":0}]
[]
[{"v":6,"d":"6 "},null,"Provide full service to the through wall / window type unit",null,"No",2,null,{"$f":"ROUND($F2059*G2059,2)","v":0}]
[]
[{"v":7,"d":"7 "},null,"Fabricate, supply, and install lockable security cages around each outdoor condensing unit",null,"No",3,null,{"$f":"ROUND($F2061*G2061,2)","v":0}]
[]
[{"v":8,"d":"8 "},null,"Application of approved coastal treatment for the outdoor condensing units",null,"No",3,null,{"$f":"ROUND($F2063*G2063,2)","v":0}]
[]
[null,null,"SECTION 5"]
[]
[null,null,"BILL NO. 2"]
[]
[null,null,"WET SERVICES"]
[]
[null,null,"COLD WATER INSTALLATION"]
[]
[null,null,"Supply, install, and commission the water reticulation systems per specification"]
[]
[null,null,"Class 12 HDPE piping laid and buried trenches not exceeding 800mm deep"]
[]
[{"v":1,"d":"1 "},null,"32mm diameter HDPE CI 12 underground water pipe",null,"m",10,null,{"$f":"ROUND($F2077*G2077,2)","v":0}]
[]
[null,null,"Fittings for HDPE class 12 piping"]
[]
[{"v":2,"d":"2 "},null,"25mm diameter Adaptor to pex piping",null,"m",2,null,{"$f":"ROUND($F2081*G2081,2)","v":0}]
[]
[{"v":3,"d":"3 "},null,"32mm diameter Equal tee",null,"m",2,null,{"$f":"ROUND($F2083*G2083,2)","v":0}]
[]
[{"v":4,"d":"4 "},null,"32mm diameter - 25mm diameter Reducer",null,"m",2,null,{"$f":"ROUND($F2085*G2085,2)","v":0}]
[]
[null,null,"PEX piping"]
[]
[{"v":5,"d":"5 "},null,"15mm diameter pipe",null,"m",101,null,{"$f":"ROUND($F2089*G2089,2)","v":0}]
[]
[{"v":6,"d":"6 "},null,"22mm diameter pipe",null,"m",30,null,{"$f":"ROUND($F2091*G2091,2)","v":0}]
[]
[{"v":7,"d":"7 "},null,"28mm diameter pipe",null,"m",12,null,{"$f":"ROUND($F2093*G2093,2)","v":0}]
[]
[null,null,"PEX piping fittings"]
[]
[{"v":8,"d":"8 "},null,"15mm diameter Elbow",null,"No",37,null,{"$f":"ROUND($F2097*G2097,2)","v":0}]
[]
[{"v":9,"d":"9 "},null,"22mm diameter Elbow",null,"No",4,null,{"$f":"ROUND($F2099*G2099,2)","v":0}]
[]
[{"v":10,"d":"10 "},null,"28mm diameter Elbow",null,"No",1,null,{"$f":"ROUND($F2101*G2101,2)","v":0}]
[]
[{"v":11,"d":"11 "},null,"22mm diameter Equal tee",null,"No",20,null,{"$f":"ROUND($F2103*G2103,2)","v":0}]
[]
[{"v":12,"d":"12 "},null,"22-15mm diameter Reducer",null,"No",36,null,{"$f":"ROUND($F2105*G2105,2)","v":0}]
[]
[{"v":13,"d":"13 "},null,"28-15mm diameter Reducer",null,"No",4,null,{"$f":"ROUND($F2107*G2107,2)","v":0}]
[]
[{"v":14,"d":"14 "},null,"28-22mm diameter Reducer",null,"No",2,null,{"$f":"ROUND($F2109*G2109,2)","v":0}]
[]
[null,null,"Plastic pipe compression fittings and valves"]
[]
[{"v":15,"d":"15 "},null,"15mm Female elbow",null,"No",32,null,{"$f":"ROUND($F2113*G2113,2)","v":0}]
[]
[{"v":16,"d":"16 "},null,"22mm diameter Isolation valve",null,"No",4,null,{"$f":"ROUND($F2115*G2115,2)","v":0}]
[]
[{"v":17,"d":"17 "},null,"22mm diameter strainer valve",null,"No",4,null,{"$f":"ROUND($F2117*G2117,2)","v":0}]
[]
[{"v":18,"d":"18 "},null,"28mm diameter Isolation valve",null,"No",1,null,{"$f":"ROUND($F2119*G2119,2)","v":0}]
[]
[{"v":19,"d":"19 "},null,"28mm diameter strainer valve",null,"No",1,null,{"$f":"ROUND($F2121*G2121,2)","v":0}]
[]
[null,null,"Pipe hangers - anchor, treaded rod & hilti hanger"]
[]
[{"v":20,"d":"20 "},null,"15mm diameter",null,"No",20,null,{"$f":"ROUND($F2125*G2125,2)","v":0}]
[]
[{"v":21,"d":"21 "},null,"22mm diameter",null,"No",15,null,{"$f":"ROUND($F2127*G2127,2)","v":0}]
[]
[{"v":22,"d":"22 "},null,"28mm diameter",null,"No",3,null,{"$f":"ROUND($F2129*G2129,2)","v":0}]
[]
[null,null,"Heavy brown paper loosely wrapped around pipe as shealth for expansion"]
[]
[{"v":23,"d":"23 "},null,"15-22mm diameter",null,"m",80,null,{"$f":"ROUND($F2133*G2133,2)","v":0}]
[]
[null,null,"Potable water system"]
[]
[{"v":24,"d":"24 "},null,"10 000 I PVC Potable water tank with all associated isolation valves and strainers",null,"No",1,null,{"$f":"ROUND($F2137*G2137,2)","v":0}]
[]
[{"v":25,"d":"25 "},null,"Variable speed potable water booster pump capable of delivering 2.3 I/s at 45m of H2O with all associated valves, fitting, PVC pipework, and auto start/stop control circuit.",null,"No",2,null,{"$f":"ROUND($F2139*G2139,2)","v":0}]
[]
[{"v":26,"d":"26 "},null,"Fabricate, supply, and install lockable security cages around the duty/standby potable water pumps",null,"No",1,null,{"$f":"ROUND($F2141*G2141,2)","v":0}]
[]
[null,null,"DRAINAGE, ETC"]
[]
[null,null,"Sewer and drainage pipes and fittings shall be through solid wall Class 34 uPVC socketed soil piping in according to SABS 791, jointed and sealed with butyl rubber rings soil, waste and vent pipes and fittings shall be according to SABS 967 and solvent jointed cold water supply pressure pipes fittings shall be according SABS 966 and jointed by means of the \"Lyng\" type jointing system. Pipes shall be fixed and jointed according to SABS 0112"]
[]
[null,null,"Class 34 uPVC pipe"]
[]
[{"v":27,"d":"27 "},null,"50mm diameter pipe",null,"m",40,null,{"$f":"ROUND($F2149*G2149,2)","v":0}]
[]
[{"v":28,"d":"28 "},null,"110mm diameter pipe",null,"m",70,null,{"$f":"ROUND($F2151*G2151,2)","v":0}]
[]
[null,null,"Class 34 uPVC fittings"]
[]
[{"v":29,"d":"29 "},null,"50mm diameter 90 Deg bend",null,"No",18,null,{"$f":"ROUND($F2155*G2155,2)","v":0}]
[]
[{"v":30,"d":"30 "},null,"110mm diameter 90 Deg bend",null,"No",12,null,{"$f":"ROUND($F2157*G2157,2)","v":0}]
[]
[{"v":31,"d":"31 "},null,"110mm diameter 90 Deg access bend",null,"No",15,null,{"$f":"ROUND($F2159*G2159,2)","v":0}]
[]
[{"v":32,"d":"32 "},null,"50mm diameter 45 Deg bend",null,"No",20,null,{"$f":"ROUND($F2161*G2161,2)","v":0}]
[]
[{"v":33,"d":"33 "},null,"110mm diameter 45 Deg bend",null,"No",15,null,{"$f":"ROUND($F2163*G2163,2)","v":0}]
[]
[{"v":34,"d":"34 "},null,"110mm  diameter Pan connector",null,"No",15,null,{"$f":"ROUND($F2165*G2165,2)","v":0}]
[]
[{"v":35,"d":"35 "},null,"50mm diameter Equal access junction",null,"No",12,null,{"$f":"ROUND($F2167*G2167,2)","v":0}]
[]
[{"v":36,"d":"36 "},null,"110mm diameter - 50mm diameter junction",null,"No",9,null,{"$f":"ROUND($F2169*G2169,2)","v":0}]
[]
[{"v":37,"d":"37 "},null,"110mm diameter Equal access junction",null,"No",15,null,{"$f":"ROUND($F2171*G2171,2)","v":0}]
[]
[{"v":1,"d":"1 "},null,"HVAC Installations",{"$nulls":4},{"$f":"SUM(H2047:H2064)","v":0}]
[]
[{"v":2,"d":"2 "},null,"Wet Services",{"$nulls":4},{"$f":"SUM(H2075:H2171)","v":0}]
[]
[null,null,"SECTION 6"]
[]
[null,null,"BILL NO. 1"]
[]
[null,null,"PROVISIONAL AMOUNTS"]
[]
[null,null,"PREAMBLES"]
[]
[null,null,"The Model Preambles for Trades (2008 edition) as published by the Association of South African Quantity Surveyors shall be deemed to be incorporated in these bills of quantities and no claims arising from brevity of description of items fully described in the said Model Preambles will be entertained"]
[]
[null,null,"The following \"Supplementary Preambles\" are incorporated in this bill to satisfy the requirements of the project and shall take precedence over the provisions of the said Model Preambles"]
[]
[null,null,"SUPPLEMENTARY PREAMBLES"]
[]
[null,null,"General:"]
[]
[null,null,"Subcontract amounts are net.  Subcontract amounts are for material and equipment supplied and installed complete by firms of specialists"]
[]
[null,null,"Each subcontract amount may comprise more than one element of work.  Therefore, each subcontract amount may include for work to be carried out by more than one subcontractor"]
[]
[null,null,"Profit:"]
[]
[null,null,"Where stated, the contractor may allow for profit if required"]
[]
[null,null,"General attendance on nominated/selected subcontractors:"]
[]
[null,null,"The item \"General Attendance\" which follows each subcontract amount for nominated/selected subcontractors' work, shall be deemed to cover all the contractor's costs incurred in providing free of charge to the nominated/selected subcontractors, the following:"]
[]
[null,null,"1.  Access to the site and places where the subcontract work is to be carried out, including the reasonable use of any temporary personnel hoists erected by the contractor"]
[]
[null,null,"2.  The provision of water and lighting and of single phase electric power to a position within 50 metres of the place where the subcontract work is to be carried out but excluding water, fuel and power for commissioning of any installation"]
[]
[null,null,"3.  The provision of an area for the subcontractor to establish temporary office accommodation and workshops and for the storage of plant and materials"]
[]
[null,null,"4.  The use of erected scaffolding belonging to the contractor, in common with others having the like right, while it remains erected on the site"]
[]
[null,null,"5.  The use, at reasonable times by arrangement of the contractor's erected hoisting equipment"]
[]
[null,null,"6.  Making good in all trades and cleaning down and removal of rubbish on completion"]
[]
[null,null,"Special attendance on nominated/selected subcontractors:"]
[]
[null,null,"Where stated, special attendance as set out in clause 8.1 of section B of the Preliminaries will be described in detail in this bill"]
[]
[null,null,"Builder's work:"]
[]
[null,null,"Builder's work in connection with specialist services is given elsewhere in these bills of quantities"]
[]
[null,null,"PROTECTION SERVICES"]
[]
[{"v":1,"d":"1 "},null,"Sub-contract amount of Four Hundred Thousand Rand for the provision of protection services  to be spent as the Principal Agent may direct and to be deducted in whole or in part if not required",null,"Item",1,null,{"$f":"ROUND($F2227*G2227,2)","v":0}]
[]
[{"v":2,"d":"2 "},null,"Profit",null,"%",{"v":0,"d":"0%"},null,{"$f":"ROUND($F2229*G2229,2)","v":0}]
[]
[{"v":3,"d":"3 "},null,"General attendance",null,"%",{"v":0,"d":"0%"},null,{"$f":"ROUND($F2231*G2231,2)","v":0}]
[]
[null,null,"STATION FIXED FURNITURE"]
[]
[{"v":4,"d":"4 "},null,"Subcontract amount of One Hundred and Fifty Thousand Rand for the provision of fixed station furniture installed complete  to be spent as the Principal Agent may direct and to be deducted in whole or in part if not required",null,"Item",1,null,{"$f":"ROUND($F2235*G2235,2)","v":0}]
[]
[{"v":5,"d":"5 "},null,"Profit",null,"%",{"v":0,"d":"0%"},null,{"$f":"ROUND($F2237*G2237,2)","v":0}]
[]
[{"v":6,"d":"6 "},null,"General Attendance",null,"%",{"v":0,"d":"0%"},null,{"$f":"ROUND($F2239*G2239,2)","v":0}]
[]
[null,null,"STATION SIGNAGE"]
[]
[{"v":7,"d":"7 "},null,"Subcontract amount of One Hundred and Seventy Five Thousand Rand for the provision of station signage installed complete  to be spent as the Principal Agent may direct and to be deducted in whole or in part if not required",null,"Item",1,null,{"$f":"ROUND($F2243*G2243,2)","v":0}]
[]
[{"v":8,"d":"8 "},null,"Profit",null,"%",{"v":0,"d":"0%"},null,{"$f":"ROUND($F2245*G2245,2)","v":0}]
[]
[{"v":9,"d":"9 "},null,"General attendance",null,"%",{"v":0,"d":"0%"},null,{"$f":"ROUND($F2247*G2247,2)","v":0}]
[]
[null,null,"BUILT-IN CUPBOARDS"]
[]
[{"v":10,"d":"10 "},null,"Subcontract amount of Twenty Five Thousand Rand for the provision of Built-In Cupboards installed complete  to be spent as the Principal Agent may direct and to be deducted in whole or in part if not required",null,"Item",1,null,{"$f":"ROUND($F2251*G2251,2)","v":0}]
[]
[{"v":11,"d":"11 "},null,"Profit",null,"%",{"v":0,"d":"0%"},null,{"$f":"ROUND($F2253*G2253,2)","v":0}]
[]
[{"v":12,"d":"12 "},null,"General attendance",null,"%",{"v":0,"d":"0%"},null,{"$f":"ROUND($F2255*G2255,2)","v":0}]
[]
[null,null,"COMMUNITY LIAISON OFFICER"]
[]
[{"v":13,"d":"13 "},null,"Subcontract amount of one Ninety Thousand Rand for Community Liaison Officer for a period of six (6) months",null,"Item",1,null,{"$f":"ROUND($F2259*G2259,2)","v":0}]
[]
[{"v":14,"d":"14 "},null,"Profit",null,"%",{"v":0,"d":"0%"},null,{"$f":"ROUND($F2261*G2261,2)","v":0}]
[]
[{"v":15,"d":"15 "},null,"General attendance",null,"%",{"v":0,"d":"0%"},null,{"$f":"ROUND($F2263*G2263,2)","v":0}]
[]
[null,null,"SUMMARY"]
[]
[{"v":1,"d":"1 "},null,"Preliminaries and General",{"$nulls":4},{"$f":"SUM(H25:H413)","v":0}]
[]
[{"v":2,"d":"2 "},null,"Building Works",{"$nulls":4},{"$f":"SUM(H1565:H1592)","v":0}]
[]
[{"v":3,"d":"3 "},null,"External Works",{"$nulls":4},{"$f":"SUM(H1897:H1899)","v":0}]
[]
[{"v":4,"d":"4 "},null,"Electrical Installations",{"$nulls":4},{"$f":"SUM(H1910:H2040)","v":0}]
[]
[{"v":5,"d":"5 "},null,"Mechanical Installations",{"$nulls":4},{"$f":"SUM(H2173:H2176)","v":0}]
[]
[{"v":6,"d":"6 "},null,"Provisional Sums",{"$nulls":4},{"$f":"SUM(H2210:H2263)","v":0}]
[]
[null,null,"SUB TOTAL (EXCLUDING CONTINGENCIES)",{"$nulls":4},{"$f":"SUM(H2267:H2278)","v":0}]
[]
[null,null,"CONTRACT CONTINGENCIES"]
[]
[null,null,"Allow the sum of 10% for Contingencies to be spent as the Principal Agent may direct and to be deducted in whole or in part if not required",{"$nulls":4},{"$f":"H2279*0.1","v":0}]
[]
[null,null,"SUBTOTAL (INCLUDING CONTINGENCIES)",{"$nulls":4},{"$f":"SUM(H2279:H2284)","v":0}]
[]
[null,null,"VALUE ADDED TAX"]
[]
[null,null,"Value Added Tax ",{"$nulls":4},{"$f":"H2285*0.15","v":0}]
[]
[null,null,"Carried to Form of Tender",{"$nulls":4},{"$f":"SUM(H2285:H2290)","v":0}]

{"sheet":"AMANZIMTOTI PROTECTION SERVICES","index":2,"n_rows":1505,"n_cols":8,"rows_kept":1505}
["ITEM NO",null,"DESCRIPTION",null,"UNIT","QUANTITY","RATE","AMOUNT"]
[]
[null,null,"SECTION NO. 1"]
[]
[null,null,"BILL NO. 1"]
[]
[null,null,"PRELIMINARIES AND GENERAL"]
[]
[null,null,"BUILDING AGREEMENT AND PRELIMINARIES"]
[]
[null,null,"The  JBCC Principal Building Agreement (May 2018 Edition 6.2) prepared by the Joint Building Contracts Committee shall be the applicable building agreement, amended as hereinafter described"]
[]
[null,null,"The JBCC Principal Building Agreement contract data form an integral part of this agreement"]
[]
[null,null,"The Preliminaries revision 1 (February 2016) published by the Association of South African Quantity Surveyors for use with the JBCC Principal Building Agreement Edition 6.2 shall be deemed to be incorporated in these bills of quantities, amended as hereinafter described"]
[]
[null,null,"The contractor is deemed to have referred to the abovementioned documents for the full intent and meaning of each clause"]
[]
[null,null,"The clauses in the abovementioned documents are hereinafter referred to by clause number and heading only"]
[]
[null,null,"Where any item is not relevant to this agreement such item is marked N/A signifying \"not applicable\""]
[]
[null,null,"PREAMBLES FOR TRADES"]
[]
[null,null,"The Model Preambles for Trades 2008 published by the Association of South African Quantity Surveyors is designed to support and extend the abbreviated descriptions utilised in these bills of quantities by inter alia referring to SANS construction standards."]
[]
[null,null,"Note that the text of the Standard System of Measuring Building Work (seventh edition) and that of the Standard Method of Measuring Building Work for Africa 2015 (first edition) is the same"]
[]
[null,null,"The Model Preambles for Trades 2008 as published by the Association of South African Quantity Surveyors shall be deemed to be incorporated in these bills of quantities and no claims arising from brevity of description of items fully described in the said Model Preambles will be entertained"]
[]
[null,null,"Supplementary preambles and/or specifications are incorporated in these bills of quantities to satisfy the requirements of this project. Such supplementary preambles and/or specifications shall take precedence over the provisions of the Model Preambles"]
[]
[null,null,"The contractor's prices for all items throughout these bills of quantities shall take account of and include for all of the obligations, requirements and specifications given in the Model Preambles and in any supplementary preambles and/or specifications"]
[]
[null,null,"NOTES TO TENDERERS"]
[]
[null,null,"Tenderers are to inspect the drawings issued with these Bills of Quantities and to satisfy themselves with the nature and the requirements of the Contract works. Failure to do so will be the complete responsibility of the Tenderer and no claims whatsoever will be entertained in this regard."]
[]
[null,null,"Tenderers are to read the descriptions, which are intended as a means of identifying various facets of the work, in conjunction with the drawings. Tenderers shall allow for all costs in connection with the various items taking full cognisance of both the drawings and the Bills of Quantities."]
[]
[null,null,"Tenderers shall notify the Quantity Surveyor in writing of any discrepancies encountered upon which clarification will be given by the Quantity Surveyor in writing to the Tenderer. Failure to do so will be the complete responsibility of the Tenderer and no claims whatsoever will be entertained in this regard"]
[]
[null,null,"Tenderers are to note that setting out of the works will be the complete responsibility of the Tenderer and they should therefore acquaint themselves with the site boundaries, site co-ordinates, datum levels etc. Failure to do so will be the complete responsibility of the Tenderer and no claims whatsoever will be entertained in this regard.  Tenderers are to note that all items with ZERO quantities are Rate Only items and should be priced as such."]
[]
[null,null,"Tenderers are to note that there might be specified suppliers to be used for certain trades as per the annexure to this tender document. Tenderers should familiarise themselves with the suppliers on the list and ensure to allow for accordingly. Failure to do so will be the complete responsibility of the Tenderer and no claims whatsoever will be entertained in this regard."]
[]
[null,null,"Tenderers are to fully acquaint themselves with the construction period and shall allow for any night shift if required. Failure to do so will be the complete responsibility of the Tenderer and no claims whatsoever will be entertained in this regard."]
[]
[null,null,"STRUCTURE OF THIS PRELIMINARIES BILL"]
[]
[null,null,"Section A : A recital of the headings of the individual clauses of the aforementioned JBCC Principal Building Agreement"]
[]
[null,null,"Section B : A recital of the headings of the individual clauses of the aforementioned Preliminaries document"]
[]
[null,null,"Section C : Any special clauses to meet the particular circumstances of the project"]
[]
[null,null,"PRICING OF PRELIMINARIES"]
[]
[null,null,"Should the contractor select Option A in the contract data for the adjustment of preliminaries, the amounts entered against the relevant items in these preliminaries are to be divided into one or more of the three categories provided namely fixed (F), value related (V) and time related (T)"]
[]
[null,null,"SECTION A: PRINCIPAL BUILDING AGREEMENT"]
[]
[null,null,"Interpretation (A1-A7)"]
[]
[{"v":1,"d":"1 "},null,"Clause 1.0 - Definitions and interpretation",null,"CONT"]
[]
[null,null,"F:............................. V:............................ T:............................",null,"Item",{"v":0,"d":"0 "},null,{"$f":"ROUND($F67*G67,2)","v":0}]
[]
[{"v":2,"d":"2 "},null,"Clause 2.0 - Law, regulations and notices",null,"CONT"]
[]
[null,null,"F:............................. V:............................ T:............................",null,"Item",{"v":0,"d":"0 "},null,{"$f":"ROUND($F71*G71,2)","v":0}]
[]
[{"v":3,"d":"3 "},null,"Clause 3.0 - Offer and acceptance  F:............................. V:............................ T:............................",null,"Item",{"v":0,"d":"0 "},null,{"$f":"ROUND($F73*G73,2)","v":0}]
[]
[{"v":4,"d":"4 "},null,"Clause 4.0 - Assignment and cession  F:............................. V:............................ T:............................",null,"Item",{"v":0,"d":"0 "},null,{"$f":"ROUND($F75*G75,2)","v":0}]
[]
[{"v":5,"d":"5 "},null,"Clause 5.0 - Contract documents",null,"CONT"]
[]
[null,null,"F:............................. V:............................ T:............................",null,"Item",{"v":0,"d":"0 "},null,{"$f":"ROUND($F79*G79,2)","v":0}]
[]
[{"v":6,"d":"6 "},null,"Clause 6.0 - Employer's agents",null,"CONT"]
[]
[null,null,"F:............................. V:............................ T:............................",null,"Item",{"v":0,"d":"0 "},null,{"$f":"ROUND($F83*G83,2)","v":0}]
[]
[{"v":7,"d":"7 "},null,"Clause 7.0 - Design responsibility  F:............................. V:............................ T:............................",null,"Item",{"v":0,"d":"0 "},null,{"$f":"ROUND($F85*G85,2)","v":0}]
[]
[null,null,"Insurance and security (A8-A11)"]
[]
[{"v":8,"d":"8 "},null,"Clause 8.0 - Works risk  F:............................. V:............................ T:............................",null,"Item",{"v":0,"d":"0 "},null,{"$f":"ROUND($F89*G89,2)","v":0}]
[]
[{"v":9,"d":"9 "},null,"Clause 9.0 - Indemnities  F:............................. V:............................ T:............................",null,"Item",{"v":0,"d":"0 "},null,{"$f":"ROUND($F91*G91,2)","v":0}]
[]
[{"v":10,"d":"10 "},null,"Clause 10.0 - Insurances  F:............................. V:............................ T:............................",null,"Item",{"v":0,"d":"0 "},null,{"$f":"ROUND($F93*G93,2)","v":0}]
[]
[{"v":11,"d":"11 "},null,"Clause 11.0 - Security",null,"CONT"]
[]
[null,null,"F:............................. V:............................ T:............................",null,"Item",{"v":0,"d":"0 "},null,{"$f":"ROUND($F97*G97,2)","v":0}]
[]
[null,null,"Execution (A12 - A17)"]
[]
[{"v":12,"d":"12 "},null,"Clause 12.0 - Duties of the parties",null,"CONT"]
[]
[null,null,"F:............................. V:............................ T:............................",null,"Item",{"v":1,"d":"1 "},null,{"$f":"ROUND($F103*G103,2)","v":0}]
[]
[{"v":13,"d":"13 "},null,"Clause 13.0 - Setting out  F:............................. V:............................ T:............................",null,"Item",{"v":0,"d":"0 "},null,{"$f":"ROUND($F105*G105,2)","v":0}]
[]
[{"v":14,"d":"14 "},null,"Clause 14.0 - Nominated subcontractors",null,"CONT"]
[]
[null,null,"F:............................. V:............................ T:............................",null,"Item",{"v":0,"d":"0 "},null,{"$f":"ROUND($F109*G109,2)","v":0}]
[]
[{"v":15,"d":"15 "},null,"Clause 15.0 - Selected subcontractors",null,"CONT"]
[]
[null,null,"F:............................. V:............................ T:............................",null,"Item",{"v":0,"d":"0 "},null,{"$f":"ROUND($F113*G113,2)","v":0}]
[]
[{"v":16,"d":"16 "},null,"Clause 16.0 - Direct contractors  Attendance on direct contractors  In respect of direct contractors the contractor shall:",null,"CONT"]
[]
[null,null,"F:............................. V:............................ T:............................",null,"Item",{"v":0,"d":"0 "},null,{"$f":"ROUND($F117*G117,2)","v":0}]
[]
[{"v":17,"d":"17 "},null,"Clause 17.0 - Contract instructions  Site instructions  Instructions issued on site are to be recorded in a site instruction book which is to be supplied and maintained on site by the contractor",null,"CONT"]
[]
[null,null,"F:............................. V:............................ T:............................",null,"Item",{"v":0,"d":"0 "},null,{"$f":"ROUND($F121*G121,2)","v":0}]
[]
[null,null,"Completion (A18 - A24)"]
[]
[{"v":18,"d":"18 "},null,"Clause 18.0 - Interim completion  F:............................. V:............................ T:............................",null,"Item",{"v":0,"d":"0 "},null,{"$f":"ROUND($F125*G125,2)","v":0}]
[]
[{"v":19,"d":"19 "},null,"Clause 19.0 - Practical completion   F:............................. V:............................ T:............................",null,"Item",{"v":0,"d":"0 "},null,{"$f":"ROUND($F127*G127,2)","v":0}]
[]
[{"v":20,"d":"20 "},null,"Clause 20.0 - Sectional completion",null,"CONT"]
[]
[null,null,"F:............................. V:............................ T:............................",null,"Item",{"v":0,"d":"0 "},null,{"$f":"ROUND($F131*G131,2)","v":0}]
[]
[{"v":21,"d":"21 "},null,"Clause 21.0 - Defects liability period and final completion",null,"CONT"]
[]
[null,null,"F:............................. V:............................ T:............................",null,"Item",{"v":0,"d":"0 "},null,{"$f":"ROUND($F135*G135,2)","v":0}]
[]
[{"v":22,"d":"22 "},null,"Clause 22.0 - Latent defects liability period F:............................. V:............................ T:............................",null,"Item",{"v":0,"d":"0 "},null,{"$f":"ROUND($F137*G137,2)","v":0}]
[]
[{"v":23,"d":"23 "},null,"Clause 23.0 - Revision of date for practical completion  Substitution of materials and goods  The removal or substitution of any materials and goods which do not conform to the specification or the contract drawings shall not constitute grounds for the extension of the construction period nor for the adjustment of the contract value [17.1.8, 23.1 & 2]",null,"CONT"]
[]
[null,null,"F:............................. V:............................ T:............................",null,"Item",{"v":0,"d":"0 "},null,{"$f":"ROUND($F141*G141,2)","v":0}]
[]
[{"v":24,"d":"24 "},null,"Clause 24.0 - Penalty for late or non-completion    F:............................. V:............................ T:............................ [To be determined based on the contract sum]",null,"Item",{"v":0,"d":"0 "},null,{"$f":"ROUND($F143*G143,2)","v":0}]
[]
[null,null,"Payment (A25 - A27)"]
[]
[{"v":25,"d":"25 "},null,"Clause 25.0 - Payment",null,"CONT"]
[]
[null,null,"F:............................. V:............................ T:............................",null,"Item",{"v":0,"d":"0 "},null,{"$f":"ROUND($F149*G149,2)","v":0}]
[]
[{"v":26,"d":"26 "},null,"Clause 26.0 - Adjustment of the contract value and final account",null,"CONT"]
[]
[null,null,"F:............................. V:............................ T:............................",null,"Item",{"v":0,"d":"0 "},null,{"$f":"ROUND($F153*G153,2)","v":0}]
[]
[{"v":27,"d":"27 "},null,"Clause 27.0 - Recovery of expense and/or loss  F:............................. V:............................ T:............................",null,"Item",{"v":0,"d":"0 "},null,{"$f":"ROUND($F155*G155,2)","v":0}]
[]
[null,null,"Suspension and termination (A28 - A29)"]
[]
[{"v":28,"d":"28 "},null,"Clause 28.0 - Suspension by the contractor",null,"CONT"]
[]
[null,null,"F:............................. V:............................ T:............................",null,"Item",{"v":0,"d":"0 "},null,{"$f":"ROUND($F161*G161,2)","v":0}]
[]
[{"v":29,"d":"29 "},null,"Clause 29.0 - Termination",null,"CONT"]
[]
[null,null,"F:............................. V:............................ T:............................",null,"Item",{"v":0,"d":"0 "},null,{"$f":"ROUND($F165*G165,2)","v":0}]
[]
[null,null,"Dispute resolution (A30)"]
[]
[{"v":30,"d":"30 "},null,"Clause 30.0 - Dispute resolution  F:............................. V:............................ T:............................",null,"Item",{"v":0,"d":"0 "},null,{"$f":"ROUND($F169*G169,2)","v":0}]
[]
[null,null,"The required information of the parties and the amount of the contract sum shall be inserted in the agreement for signature of the agreement by the parties  F:............................. V:............................ T:............................",null,"Item",{"v":0,"d":"0 "},null,{"$f":"ROUND($F171*G171,2)","v":0}]
[]
[null,null,"F:............................. V:............................ T:............................",null,"Item",{"v":0,"d":"0 "},null,{"$f":"ROUND($F173*G173,2)","v":0}]
[]
[null,null,"42.1  \tCONTRACTING AND OTHER PARTIES"]
[]
[null,null,"42.1.1Employer: Passenger Rail Agency of South AfricaPostal address: PO Box 51324Durban4062Tel.: \t(031) 813 0376Physical Address:65 Masabalala Yengwa AvenueDurban StationDurban4000"]
[]
[null,null,"42.2  \tCONTRACT DETAILS"]
[]
[null,null,"42.2.1 \tWorks Description: Refurbishment, Alterations and Additions at Amanzimtoti Protection Services for a period of six (6) months"]
[]
[null,null,"42.2.2 \tSite Description: \t\t\tAmanzimtoti Train Station\t"]
[]
[null,null,"42.2.3 \tWork or installations by direct contractors:  N/A"]
[]
[null,null,"42.2.4 \tThis agreement is for a government contract where there are specific options that are applicable to a State organ only Yes"]
[]
[null,null,"42.2.5 \tDate on which possession of the site is intended to be given: TBC"]
[]
[null,null,"42.2.6 \tPeriod for the commencement of the works after the contractor takes possession: TBC"]
[]
[null,null,"42.2.7 \tFor the works as a whole. Intended date of practical completion and the penalty per calendar day Six (6) Months after contractual commencement date               0.04% of contract amount per calender day Penalty Amount"]
[]
[null,null,"42.2.8\tFor the works in sections:  Intended date of practical completion and the penalty per calender day: N/A"]
[]
[null,null,"42.2.9 The law applicable to this agreement shall be that of South Africa     (country)"]
[]
[null,null,"42.3 \tINSURANCES"]
[]
[null,null,"42.3.1 \tContract works insurance to be effected by:Contractor: For the Sum of R Contract Amount  30.00 % With a deductible of - to be determined by the contractor"]
[]
[null,null,"42.3.2 \tSupplementary insurance is required No"]
[]
[null,null,"42.3.3 \tPublic liability insurance to be effected by:Contractor: For the Sum of R 1 000 000-00With a deductible of - to be determined by the contractor"]
[]
[null,null,"42.4 \tDOCUMENTS"]
[]
[null,null,"42.4.1 \tWaivers of contractors lien or right of continuing possession is required  \tYes"]
[]
[null,null,"42.4.2 \tNumber of construction document copies to be \tsupplied to the contractor free of charge: 3   Number of"]
[]
[null,null,"42.4.3 \tBills of Quantities/Lump sum document schedule of rates drawn up in accordance with:  \t\"€œStandard System of Measuring Builders\"€™ Work\"€\u009d"]
[]
[null,null,"42.4.4 \tOn acceptance of the tender the bills of quantities/lump sum document is to be submitted within:  The priced bills of quantities must be handed in with the tender"]
[]
[null,null,"42.4.5 \tJBCC Engineering General Conditions are to be included in the contract documents: No"]
[]
[null,null,"42.4.6 \tThe contract value is to be adjusted using escalation adjustment indices  N/A \tWhere JBCC CPAP is to be used Base Month    N/A"]
[]
[null,null,"42.4.7 \tDetails of changes made to the provision of JBCC standard documentation:"]
[]
[null,null,"SECTION B:  PRELIMINARIES"]
[]
[null,null,"Interpretation (B1)"]
[]
[{"v":31,"d":"31 "},null,"Clause 1.1 - Definitions  F:............................. V:............................ T:............................",null,"Item",{"v":0,"d":"0 "},null,{"$f":"ROUND($F227*G227,2)","v":0}]
[]
[{"v":32,"d":"32 "},null,"Clause 1.2 - Interpretation  F:............................. V:............................ T:............................",null,"Item",{"v":0,"d":"0 "},null,{"$f":"ROUND($F229*G229,2)","v":0}]
[]
[null,null,"Documents (B2)"]
[]
[{"v":33,"d":"33 "},null,"Clause 2.1 - Checking of documents  F:............................. V:............................ T:............................",null,"Item",{"v":0,"d":"0 "},null,{"$f":"ROUND($F233*G233,2)","v":0}]
[]
[{"v":34,"d":"34 "},null,"Clause 2.2 - Provisional bills of quantities",null,"CONT"]
[]
[null,null," F:............................. V:............................ T:............................",null,"Item",{"v":0,"d":"0 "},null,{"$f":"ROUND($F237*G237,2)","v":0}]
[]
[{"v":35,"d":"35 "},null,"Clause 2.3 - Availability of construction information   F:............................. V:............................ T:............................",null,"Item",{"v":0,"d":"0 "},null,{"$f":"ROUND($F239*G239,2)","v":0}]
[]
[{"v":36,"d":"36 "},null,"Clause 2.4 - Ordering of materials and goods  F:............................. V:............................ T:............................",null,"Item",{"v":0,"d":"0 "},null,{"$f":"ROUND($F241*G241,2)","v":0}]
[]
[null,null,"Previous work and adjoining properties (B3)"]
[]
[{"v":37,"d":"37 "},null,"Clause 3.1 - Previous work - dimensional accuracy  F:............................. V:............................ T:............................",null,"Item",{"v":0,"d":"0 "},null,{"$f":"ROUND($F245*G245,2)","v":0}]
[]
[{"v":38,"d":"38 "},null,"Clause 3.2 - Previous work - defects  F:............................. V:............................ T:............................",null,"Item",{"v":0,"d":"0 "},null,{"$f":"ROUND($F247*G247,2)","v":0}]
[]
[{"v":39,"d":"39 "},null,"Clause 3.3 - Inspection of adjoining properties  F:............................. V:............................ T:............................",null,"Item",{"v":0,"d":"0 "},null,{"$f":"ROUND($F249*G249,2)","v":0}]
[]
[null,null,"The site (B4)"]
[]
[{"v":40,"d":"40 "},null,"Clause 4.1 - Defined works area  F:............................. V:............................ T:...........................",null,"Item",{"v":0,"d":"0 "},null,{"$f":"ROUND($F253*G253,2)","v":0}]
[]
[{"v":41,"d":"41 "},null,"Clause 4.2 - Handover of site in stages  F:............................. V:............................ T:............................",null,"Item",{"v":0,"d":"0 "},null,{"$f":"ROUND($F255*G255,2)","v":0}]
[]
[{"v":42,"d":"42 "},null,"Clause 4.3 - Enclosure of the works  F:............................. V:............................ T:............................",null,"Item",{"v":0,"d":"0 "},null,{"$f":"ROUND($F257*G257,2)","v":0}]
[]
[{"v":43,"d":"43 "},null,"Clause 4.4 - Geotechnical investigation  F:............................. V:............................ T:............................",null,"Item",{"v":0,"d":"0 "},null,{"$f":"ROUND($F259*G259,2)","v":0}]
[]
[{"v":44,"d":"44 "},null,"Clause 4.5 - Encroachments  F:............................. V:............................ T:............................",null,"Item",{"v":0,"d":"0 "},null,{"$f":"ROUND($F261*G261,2)","v":0}]
[]
[{"v":45,"d":"45 "},null,"Clause 4.6 - Existing premises occupied  F:............................. V:............................ T:............................",null,"Item",{"v":0,"d":"0 "},null,{"$f":"ROUND($F263*G263,2)","v":0}]
[]
[{"v":46,"d":"46 "},null,"Clause 4.7 - Services - known  F:............................. V:............................ T:............................",null,"Item",{"v":0,"d":"0 "},null,{"$f":"ROUND($F265*G265,2)","v":0}]
[]
[{"v":47,"d":"47 "},null,"Clause 4.8 - Protection of trees and/or relevant natural features  F:............................. V:............................ T:...........................",null,"Item",{"v":0,"d":"0 "},null,{"$f":"ROUND($F267*G267,2)","v":0}]
[]
[null,null,"Management of contract (B5)"]
[]
[{"v":48,"d":"48 "},null,"Clause 5.1 - Management of the works  F:............................. V:............................ T:............................",null,"Item",{"v":0,"d":"0 "},null,{"$f":"ROUND($F271*G271,2)","v":0}]
[]
[{"v":49,"d":"49 "},null,"Clause 5.2 - Progress meetings  F:............................. V:............................ T:............................",null,"Item",{"v":0,"d":"0 "},null,{"$f":"ROUND($F273*G273,2)","v":0}]
[]
[{"v":50,"d":"50 "},null,"Clause 5.3 - Technical meetings  F:............................. V:............................ T:............................",null,"Item",{"v":0,"d":"0 "},null,{"$f":"ROUND($F275*G275,2)","v":0}]
[]
[null,null,"Samples, shop drawings and manufacturer's instructions (B6)"]
[]
[{"v":51,"d":"51 "},null,"Clause 6.1 - Samples of materials  F:............................. V:............................ T:...........................",null,"Item",{"v":0,"d":"0 "},null,{"$f":"ROUND($F279*G279,2)","v":0}]
[]
[{"v":52,"d":"52 "},null,"Clause 6.2 - Workmanship samples  F:............................. V:............................ T:............................",null,"Item",{"v":0,"d":"0 "},null,{"$f":"ROUND($F281*G281,2)","v":0}]
[]
[{"v":53,"d":"53 "},null,"Clause 6.3 - Shop drawings  F:............................. V:............................ T:............................",null,"Item",{"v":0,"d":"0 "},null,{"$f":"ROUND($F283*G283,2)","v":0}]
[]
[{"v":54,"d":"54 "},null,"Clause 6.4 - Compliance with manufacturer's instructions  F:............................. V:............................ T:............................",null,"Item",{"v":0,"d":"0 "},null,{"$f":"ROUND($F285*G285,2)","v":0}]
[]
[null,null,"Deposits and fees (B7)"]
[]
[{"v":55,"d":"55 "},null,"Clause 7.1 - Deposits and fees  F:............................. V:............................ T:............................",null,"Item",{"v":0,"d":"0 "},null,{"$f":"ROUND($F289*G289,2)","v":0}]
[]
[null,null,"Temporary services (B8)"]
[]
[{"v":56,"d":"56 "},null,"Clause 8.1 - Water  F:............................. V:............................ T:............................",null,"Item",{"v":0,"d":"0 "},null,{"$f":"ROUND($F293*G293,2)","v":0}]
[]
[{"v":57,"d":"57 "},null,"Clause 8.2 - Electricity  F:............................. V:............................ T:............................",null,"Item",{"v":0,"d":"0 "},null,{"$f":"ROUND($F295*G295,2)","v":0}]
[]
[{"v":58,"d":"58 "},null,"Clause 8.3 - Ablution and welfare facilities  F:............................. V:............................ T:............................",null,"Item",{"v":0,"d":"0 "},null,{"$f":"ROUND($F297*G297,2)","v":0}]
[]
[{"v":59,"d":"59 "},null,"Clause 8.4 - Communication facilities  F:............................. V:............................ T:............................",null,"Item",{"v":0,"d":"0 "},null,{"$f":"ROUND($F299*G299,2)","v":0}]
[]
[null,null,"Prime cost amounts (B9)"]
[]
[{"v":60,"d":"60 "},null,"Clause 9.1 - Responsibility for prime cost amounts",null,"CONT"]
[]
[null,null," F:............................. V:............................ T:............................",null,"Item",{"v":0,"d":"0 "},null,{"$f":"ROUND($F305*G305,2)","v":0}]
[]
[null,null,"Attendance on subcontractors (B10)"]
[]
[{"v":61,"d":"61 "},null,"Clause 10.1 - General attendance   F:............................. V:............................ T:............................",null,"Item",{"v":0,"d":"0 "},null,{"$f":"ROUND($F309*G309,2)","v":0}]
[]
[{"v":62,"d":"62 "},null,"Clause 10.2 - Special attendance",null,"CONT"]
[]
[null,null," F:............................. V:............................ T:............................",null,"Item",{"v":0,"d":"0 "},null,{"$f":"ROUND($F313*G313,2)","v":0}]
[]
[null,null,"General (B11)"]
[]
[{"v":63,"d":"63 "},null,"Clause 11.1 - Protection of the works  F:............................. V:............................ T:............................",null,"Item",{"v":0,"d":"0 "},null,{"$f":"ROUND($F317*G317,2)","v":0}]
[]
[{"v":64,"d":"64 "},null,"Clause 11.2 - Protection/isolation of existing/sectionally occupied works  F:............................. V:............................ T:............................",null,"Item",{"v":0,"d":"0 "},null,{"$f":"ROUND($F319*G319,2)","v":0}]
[]
[{"v":65,"d":"65 "},null,"Clause 11.3 - Security of the works  F:............................. V:............................ T:............................",null,"Item",{"v":0,"d":"0 "},null,{"$f":"ROUND($F321*G321,2)","v":0}]
[]
[{"v":66,"d":"66 "},null,"Clause 11.4 - Notice before covering work  F:............................. V:............................ T:............................",null,"Item",{"v":0,"d":"0 "},null,{"$f":"ROUND($F323*G323,2)","v":0}]
[]
[{"v":67,"d":"67 "},null,"Clause 11.5 - Disturbance  F:............................. V:............................ T:............................",null,"Item",{"v":0,"d":"0 "},null,{"$f":"ROUND($F325*G325,2)","v":0}]
[]
[null,null,"Clause 11.6 - Environmental disturbance  F:............................. V:............................ T:............................",null,"Item",{"v":0,"d":"0 "},null,{"$f":"ROUND($F327*G327,2)","v":0}]
[]
[{"v":68,"d":"68 "},null,"Clause 11.7 - Works cleaning and clearing  F:............................. V:............................ T:............................",null,"Item",{"v":0,"d":"0 "},null,{"$f":"ROUND($F329*G329,2)","v":0}]
[]
[{"v":69,"d":"69 "},null,"Clause 11.8 - Vermin  F:............................. V:............................ T:............................",null,"Item",{"v":0,"d":"0 "},null,{"$f":"ROUND($F331*G331,2)","v":0}]
[]
[{"v":70,"d":"70 "},null,"Clause 11.9 - Overhand work  F:............................. V:............................ T:............................",null,"Item",{"v":0,"d":"0 "},null,{"$f":"ROUND($F333*G333,2)","v":0}]
[]
[{"v":71,"d":"71 "},null,"Clause 11.11 - Advertising  F:............................. V:............................ T:............................",null,"Item",{"v":0,"d":"0 "},null,{"$f":"ROUND($F335*G335,2)","v":0}]
[]
[null,null,"Preliminaries schedule (B12)"]
[]
[{"v":72,"d":"72 "},null,"Information for completion of the preliminaries schedule  Information necessary for elections and completion of those clauses contained in the preliminaries schedule which are necessary for tender purposes is given hereunder. Where no information is given it shall mean that no specific requirements are expected or that the clause is not relevant to this specific contract",null,"CONT"]
[]
[null,null,"12.1 -\tProvisional bills of quantities [2.2]  \tThe quantities are provisional - Yes"]
[]
[null,null,"12.2 -\tAvailability of construction information [2.3]  \tConstruction documentation is complete - Yes"]
[]
[null,null,"12.3 -\tPrevious work - dimensional accuracy [3.1]"]
[]
[null,null,"12.4 -\tPrevious work - defects [3.2]"]
[]
[null,null,"12.5 -\tInspection of adjoining properties [3.3]"]
[]
[null,null,"12.6 -\tDefined works area [4.1]"]
[]
[null,null,"12.7 -\tHandover of site in stages [4.2]"]
[]
[null,null,"12.8 -\tEnclosure of the works [4.3]"]
[]
[null,null,"12.9 -\tGeotechnical investigation [4.4]"]
[]
[null,null,"12.10 -\tExisting premises occupied [4.6]"]
[]
[null,null,"12.11 -\tServices - known [4.7]"]
[]
[null,null,"12.12 -\tProtection of trees and/or relevant natural features \t[4.8]"]
[]
[null,null,"12.13 -\tWater [8.1]  \tOption A (by contractor) - Yes  \tOption B (by employer - free of charge)\t - No  \tOption C (by employer - metered) -  No"]
[]
[null,null,"12.14 -\tElectricity [8.2]\tOption A (by contractor) - Yes\tOption B (by employer - free of charge)\t - No\tOption C (by employer - metered) -  No"]
[]
[null,null,"12.15 -\tAblution and welfare facilities [8.3]  \tOption A (by contractor) - Yes  \tOption B (by employer - free of charge)\t - No"]
[]
[null,null,"12.16 -\tCommunication facilities [8.4]"]
[]
[null,null,"12.17 -\tProtection of the works [11.1]"]
[]
[null,null,"12.18 -\tProtection/isolation of existing/sectionally occupied works [11.2]  \tProtection/isolation is required - Yes"]
[]
[null,null,"12.19 -\tDisturbance [11.5]"]
[]
[null,null,"12.20 -\tEnvironmental disturbance [11.6]"]
[]
[null,null,"Controlling all forms of pollution  The contractor shall be responsible for and take all precautions in controlling by whatever means necessary all forms of pollution emanating from the site during the construction period due inter alia to noise, artificial light, wind-blown sand, dust, deposits of mud, etc"]
[]
[null,null,"The contractor is to ensure that all roads which border the site and is used by the contractor during the execution of the works are kept clean and free of any dirt or debris caused by the execution of the works"]
[]
[null,null,"F:............................. V:............................ T:............................",null,"Item",{"v":0,"d":"0 "},null,{"$f":"ROUND($F385*G385,2)","v":0}]
[]
[null,null,"SECTION  C: SPECIFIC PRELIMINARIES"]
[]
[null,null,"Section C Section C contains specific preliminary items which apply to this contract except where N/A (Not Applicable) appears against an item"]
[]
[null,null,"The warranty will not be enforced if the work is damaged by defects in the execution of the works, in which case the responsibility for replacement shall rest entirely with the contractor  F:............................. V:............................ T:............................",null,"Item",{"v":0,"d":"0 "},null,{"$f":"ROUND($F391*G391,2)","v":0}]
[]
[{"v":73,"d":"73 "},null,"Overtime  Should overtime be required to be worked for any reason whatsoever, the cost of such overtime is to be borne by the contractor unless the principal agent has specifically authorised, prior to execution thereof, that costs for such overtime are to be borne by the employer  F:............................. V:............................ T:............................",null,"Item",{"v":0,"d":"0 "},null,{"$f":"ROUND($F393*G393,2)","v":0}]
[]
[{"v":74,"d":"74 "},null,"Co-operation of the contractor for cost management  It is specifically agreed that the contractor accepts the obligation of assisting the principal agent in implementing proper cost management. The contractor will be advised by the principal agent of all cost management procedures which will be implemented to ensure that the contract value does not exceed the budget  F:............................. V:............................ T:............................",null,"Item",{"v":0,"d":"0 "},null,{"$f":"ROUND($F395*G395,2)","v":0}]
[]
[{"v":75,"d":"75 "},null,"Overloading  The contractor shall take all necessary steps to ensure that no damage occurs due to overloading of any portion of the works or temporary works eg scaffolding, etc. The contractor shall submit details of his proposed loading, storage, plant erection, etc to the principal agent for approval prior to proceeding with such loading, storing or erecting and shall comply with and pay for the principal agent's requirements in connection with the provision of temporary support work, etc. Any damage caused to the works by overloading shall be made good by the contractor at his sole expense  F:............................. V:............................ T:............................",null,"Item",{"v":0,"d":"0 "},null,{"$f":"ROUND($F397*G397,2)","v":0}]
[]
[{"v":76,"d":"76 "},null,"Propping of floors below  The contractor is advised that propping of floors below may be required if he wishes to use any areas of completed suspended reinforced concrete slabs for vehicle access, storage of materials and goods and location of plant, scaffolding, etc. The location of these areas and any necessary propping shall be approved by the principal agent and the cost thereof shall be borne by the contractor  F:............................. V:............................ T:............................",null,"Item",{"v":0,"d":"0 "},null,{"$f":"ROUND($F399*G399,2)","v":0}]
[]
[{"v":77,"d":"77 "},null,"Testing of flat roof waterproofing for watertightness  Flat roof waterproof areas shall be prepared with small sand dykes around them of a size and enclosing an area approved by the principal agent, flooded with water and kept \"ponded\" for at least forty (40) hours as a test to ensure the watertightness of the waterproofing and before any further construction work is carried out above the waterproofing  F:............................. V:............................ T:............................",null,"Item",{"v":0,"d":"0 "},null,{"$f":"ROUND($F401*G401,2)","v":0}]
[]
[null,null,"The contractor is to submit to the principal agent on an annual basis a schedule of spend, split into vendors engaged as subcontractors and suppliers indicating their BBBEE rating including proof of the said rating  F:............................. V:............................ T:............................",null,"Item",{"v":0,"d":"0 "},null,{"$f":"ROUND($F403*G403,2)","v":0}]
[]
[{"v":78,"d":"78 "},null,"Advertising rights  The employer may elect to contract with advertising agencies for the erection of advertising hoardings, banners, wraps or the like for the duration of the contract. The contractor shall not prevent such an arrangement and will assist in the facilitation of same. Position and type of advertising structure to be agreed with the principal agent so as not to hinder the contractor in meeting the obligations under this agreement  F:............................. V:............................ T:............................",null,"Item",{"v":0,"d":"0 "},null,{"$f":"ROUND($F405*G405,2)","v":0}]
[]
[{"v":79,"d":"79 "},null,"Confidentiality  The contractor undertakes to maintain in confidence any and all information regarding this project and shall obtain appropriate similar undertakings from all subcontractors and suppliers. Such information shall not be used in any way except in connection with the execution of the works  No information regarding this project shall be published or disclosed without the prior written consent of the employer  F:............................. V:............................ T:............................",null,"Item",{"v":0,"d":"0 "},null,{"$f":"ROUND($F407*G407,2)","v":0}]
[]
[{"v":80,"d":"80 "},null,"Media releases  All rights of publication of articles in the media, together with any advertising relating thereto or in any way connected with this project, shall vest with the employer  The contractor together with his subcontractors shall not, without the prior written consent of the employer, cause any statement or advertisement connected with this project to be printed, screened or aired by the media  F:............................. V:............................ T:............................",null,"Item",{"v":0,"d":"0 "},null,{"$f":"ROUND($F409*G409,2)","v":0}]
[]
[null,null,"SUMMARY OF CATEGORIES"]
[]
[null,null,"Category : Fixed   R........................................  Category : Value   R........................................  Category : Time    R........................................"]
[]
[null,null,"SECTION 2"]
[]
[null,null,"BILL NO.1"]
[]
[null,null,"ALTERATIONS (PROVISIONAL)"]
[]
[null,null,"WORK GROUP ALLOCATION"]
[]
[null,null,"Unless otherwise stated, all items in this Bill will be allocated to Work Group 102 - Alterations"]
[]
[null,null,"PREAMBLES"]
[]
[null,null,"The General Preambles for Trades (2017 edition), as published by the Association of South African Quantity Surveyors, shall be deemed to be incorporated in these bills of quantities and no claims arising from brevity of description of items, fully described in the said General Preambles, will be entertained"]
[]
[null,null,"The following \"Supplementary Preambles\" are incorporated in this bill to satisfy the requirements of the project and shall take precedence over the provisions of the said General Preambles"]
[]
[null,null,"SUPPLEMENTARY PREAMBLES"]
[]
[null,null,"View site:"]
[]
[null,null,"Before submitting his tender, the Contractor shall visit the site and satisfy himself as to the nature and extent of the work to be done and the value of the materials contained in the buildings or portions of the buildings to be demolished.  No claim for any variations of the contract sum in respect of the nature and extent of the work or of inferior or damaged materials will be entertained"]
[]
[null,null,"Old materials to become property of the Contractor:"]
[]
[null,null,"Old materials from alterations, except where described as to be re-used or handed over, become the property of the Contractor, who must allow credit for same in the last item of the \"Alterations\" trade"]
[]
[null,null,"Old materials to be carted away:"]
[]
[null,null,"Old materials from the alterations, except where described as to be re-used or handed over, as well as all rubbish, etc must be regularly carted from the site and not be allowed to accumulate on or around the site"]
[]
[null,null,"Old materials to be re-used:"]
[]
[null,null,"None of the old materials are to be used for new work, except where specifically described as being set aside for re-use"]
[]
[null,null,"Handing over of materials:"]
[]
[null,null,"Where certain materials or articles from demolitions or alterations are described as to be \"handed over to the Employer\", it shall be taken to mean \"handed over by the Contractor to the Principal Agent\" and such materials or articles shall be properly stored by the Contractor until handing over thereof and shall include all necessary transport The Contractor must obtain an official receipt from the Principal Agent listing the materials or articles and dates of handing overShould the Contractor fail to submit the receipt when requested to do so, it shall be deemed that the materials or articles are still in his possession and he will be held liable to the Employer for the full replacement value thereof, which amount will be deducted from any monies due to the Contractor"]
[]
[null,null,"Explosives:"]
[]
[null,null,"No explosives whatsoever may be used for demolition purposes, unless otherwise stated"]
[]
[null,null,"GENERAL"]
[]
[null,null,"The contractor shall carry out the whole of the work with as little mess and noise as possible and with a minimum of disturbance to adjoining premises and their tenants. He shall provide proper protection and provide and erect any temporarytarpaulins and temporary plumbing that may be necessary during the progress of the works, all to the satisfaction of the Architect, and remove when directed."]
[]
[null,null,"Any water supplies pipes and other piping that may be met withand found necessary to disconnect or cut, shall be effectually stopped of or grubbed up and removed, and any new connections that may be necessary shall be made with proper fittings, to the satisfaction of the Architect."]
[]
[null,null,"Doors, fanlights, fittings, frames, linings, etc shall be thoroughly overhauled before re-fixing including taking off, easing and rehanging, cramping up, re-wedging as required and making good cramps, dowels, etc and easing, oiling, adjusting and repairing ironmongery if necessary, replacing any glass damaged in removal or subsequently and stopping up all nail and screw holes with tinted wood to match timber."]
[]
[null,null,"Where doors, windows, etc are described as taken out this shall be understood to include for removal of all beads, architraves, ironmongery, etc and doors which are re-fixed are to be provided with new architraves       (elsewhere measured )."]
[]
[null,null,"Prices for taking out and removing doors and frames shall include for removing door stops, cabin locks, etc and making good to match existing."]
[]
[null,null,"With regard to building up openings in existing walls, cement screeds and pavings, granolithic, etc, shall be levelled and prepared for raising of brickwork."]
[]
[null,null,"Allow for making good all existing plastered walls where damaged by furniture, etc, and stopping up all screw and holes before painting."]
[]
[null,null,"Making good finishes shall be deemed to iclude making good of the brick and concrete surfaces onto which new finishes are applied, where necessary."]
[]
[null,null,"The contractor will be required to take all dimensions affecting existing building on the site and he will be held solely responsible for the accuracy of all such dimensions."]
[]
[null,null,"Hazardous materials:"]
[]
[null,null,"Demolitions of buildings, services, external works, site services, etc are to include for the safe removal and disposal of asbestos or asbestos products or other hazardous materials by approved Registered Specialists"]
[]
[null,null,"TEMPORARY BARRIERS, SCREENS, ETC"]
[]
[null,null,"Temporary barriers, screens, etc including removal:"]
[]
[{"v":1,"d":"1 "},null,"Dust screen 2100mm high formed of suitable timber framing with 250 micron polyethylene sheeting stapled on including corners, ends, etc, to be used on al the phases of the construction project and in accordance to the Health and Safety specifications and regulations",null,"m",{"v":150,"d":"150 "},null,{"$f":"ROUND($F485*G485,2)","v":0}]
[]
[null,null,"Taking out and removing doors, windows, etc including thresholds, sills, etc from brickwork (altering openings and making good finishes elsewhere):"]
[]
[{"v":2,"d":"2 "},null,"Timber single door and frame not exceeding 2,5m\"²",null,"No",{"v":22,"d":"22 "},null,{"$f":"ROUND($F489*G489,2)","v":0}]
[]
[null,null,"Taking down and removing roof coverings, accessories, etc.:"]
[]
[{"v":3,"d":"3 "},null,"Roof tiling",null,"m²",{"v":415,"d":"415 "},null,{"$f":"ROUND($F493*G493,2)","v":0}]
[]
[null,null,"Taking down and removing ceilings, partitions, etc:"]
[]
[{"v":4,"d":"4 "},null,"Gypsum plasterboard ceilings, including cornices, timber brandering, etc.",null,"m²",{"v":208,"d":"208 "},null,{"$f":"ROUND($F497*G497,2)","v":0}]
[]
[null,null,"Taking out/off and removing ironmongery:"]
[]
[{"v":5,"d":"5 "},null,"Toilet paper holder from wall",null,"No",{"v":4,"d":"4 "},null,{"$f":"ROUND($F501*G501,2)","v":0}]
[]
[null,null,"Hacking up/off and removing ceramic and porcelain tiles, including removing mortar bed or adhesive from concrete or brickwork and preparing surfaces for new screed, plaster, tile finishes, etc:"]
[]
[{"v":6,"d":"6 "},null,"Tiles to floors",null,"m²",{"v":208,"d":"208 "},null,{"$f":"ROUND($F505*G505,2)","v":0}]
[]
[{"v":7,"d":"7 "},null,"Tiles to walls",null,"m²",{"v":320,"d":"320 "},null,{"$f":"ROUND($F507*G507,2)","v":0}]
[]
[{"v":8,"d":"8 "},null,"Tile skirtings 100mm high",null,"m",{"v":274,"d":"274 "},null,{"$f":"ROUND($F509*G509,2)","v":0}]
[]
[null,null,"Taking out and removing piping, sanitary fittings, etc including cutting off as necessary, disconnecting piping from fittings and blocking off and making good damaged plasterwork to walls and screeds to floors (all redecoration work elsewhere):"]
[]
[{"v":9,"d":"9 "},null,"Vitreous china wash hand basin, including short lengths of piping, etc.",null,"No",{"v":7,"d":"7 "},null,{"$f":"ROUND($F513*G513,2)","v":0}]
[]
[{"v":10,"d":"10 "},null,"Vitreous china WC pan with flush valve, including short lengths of piping, etc.",null,"No",{"v":4,"d":"4 "},null,{"$f":"ROUND($F515*G515,2)","v":0}]
[]
[{"v":11,"d":"11 "},null,"150 Litre hot water geyser mounted in roof space including drip tray, valves, connecting pipework, etc.",null,"No",{"v":4,"d":"4 "},null,{"$f":"ROUND($F517*G517,2)","v":0}]
[]
[null,null,"Taking out/off and removing glass and mirrors:"]
[]
[{"v":12,"d":"12 "},null,"Mirror 600 x 600mm high from wall",null,"No",{"v":39,"d":"39 "},null,{"$f":"ROUND($F521*G521,2)","v":0}]
[]
[null,null,"MAKING GOOD OF FINISHES, ETC"]
[]
[null,null,"Making good concrete:"]
[]
[{"v":13,"d":"13 "},null,"Floors in patches",null,"m²",{"v":156,"d":"156 "},null,{"$f":"ROUND($F527*G527,2)","v":0}]
[]
[null,null,"Making good internal/external cement plaster:"]
[]
[{"v":14,"d":"14 "},null,"Walls in patches",null,"m²",{"v":745,"d":"745 "},null,{"$f":"ROUND($F531*G531,2)","v":0}]
[]
[null,null,"GENERAL REPAIRWORK"]
[]
[null,null,"Repairwork to existing brick walls:"]
[]
[{"v":15,"d":"15 "},null,"Waterjetting surfaces of existing facebrick walls with high pressure low-volume water jetting lance to remove all dirt, brushing down and washing to remove surface contamination, mould, fungus, damp and treating with two coats of antifungal wash and leaving perfectly clean on completion",null,"m²",{"v":254,"d":"254 "},null,{"$f":"ROUND($F537*G537,2)","v":0}]
[]
[null,null,"ALTERATIONS, SERVICING AND REPAIRWORK TO EXISTING DOORS, FRAMES AND WINDOWS"]
[]
[null,null,"Notes:"]
[]
[null,null,"The removal and reinstatement of doors, frames, windows, etc for the purpose of altering, servicing and/or repairing are measured elsewhere"]
[]
[null,null,"The removal of ironmongery, glass, putty, etc and the refixing, reglazing and redecorating of existing doors, frames, windows, etc are all measured elsewhere"]
[]
[null,null,"Repairing and/or replacement of existing ironmongery is measured elsewhere"]
[]
[null,null,"Supplementary Preambles:"]
[]
[null,null,"Repairwork to timber to include for the following, unless otherwise described:"]
[]
[null,null,"1.\tTimber used in repairs is to match existing in type, moisture content, colour and grain as closely as possible"]
[]
[null,null,"2.\tApproved modern, high-strength waterproof glues which can accommodate any timber movement should be used together with sawdust filler of matching timber"]
[]
[null,null,"3.\tOnly non-corrosive fixings are to be used"]
[]
[null,null,"4.\tAll clamping and pinning as necessary"]
[]
[null,null,"EXISTING WINDOWS"]
[]
[null,null,"Servicing of existing windows including thoroughly cleaning down of all dirt, scale and general contamination from all surfaces, pulleys, handles, rods, fanlight openers, catches, etc. and servicing and lubricating all moving parts, carefully removing all paint from and polishing all brassware and replacing of damaged or missing screws, nuts, etc. (repairing or replacement of existing ironmongery, removal of glass, putty, etc. re-glazing and preparing for and redecorating of existing frames, sashes, etc. all elsewhere measured):"]
[]
[{"v":16,"d":"16 "},null,"Aluminium window size 500 x 1185mm high overall with burglar bars (WT-01)",null,"No",{"v":4,"d":"4 "},null,{"$f":"ROUND($F565*G565,2)","v":0}]
[]
[{"v":17,"d":"17 "},null,"Aluminium window size 600 x 900mm high overall with burglar bars (WT-02)",null,"No",{"v":22,"d":"22 "},null,{"$f":"ROUND($F567*G567,2)","v":0}]
[]
[null,null,"BUDGETARY ALLOWANCE"]
[]
[{"v":18,"d":"18 "},null,"Provide a budgetary allowance of Fifty Thousand Rand for sundry alterations to be used as directed by the Principal Agent and to be deducted in whole or in part if not required.",null,"Item",{"v":1,"d":"1 "},null,{"$f":"ROUND($F571*G571,2)","v":0}]
[]
[null,null,"SECTION 2"]
[]
[null,null,"BILL NO. 2"]
[]
[null,null,"ROOF COVERINGS"]
[]
[null,null,"WORK GROUP ALLOCATION"]
[]
[null,null,"The items in this Bill will be allocated to Work Groups as indicated in brackets at the ends of headings or descriptions"]
[]
[null,null,"PREAMBLES"]
[]
[null,null,"The General Preambles for Trades (2017 edition) as published by the Association of South African Quantity Surveyors shall be deemed to be incorporated in these bills of quantities and no claims arising from brevity of description of items fully described in the said General Preambles will be entertained"]
[]
[null,null,"The following \"Supplementary Preambles\" are incorporated in this bill to satisfy the requirements of the project and shall take precedence over the provisions of the said General Preambles"]
[]
[null,null,"SUPPLEMENTARY PREAMBLES"]
[]
[null,null,"Profiled metal roof sheeting and accessories shall be supplied with a 10 year guarantee and be installed by an approved installer"]
[]
[null,null,"All fixing holes shall be drilled and not punched"]
[]
[null,null,"Roof covering accessories shall be manufactured from the same material as used for roof covering"]
[]
[null,null,"TILES"]
[]
[null,null,"User note:"]
[]
[null,null,"The fixing recommendations of the manufacturer of the tiles used for the specific region and/or situation are to be incorporated as supplementary preambles"]
[]
[null,null,"340  x 420mm \"Double Roman\" or similar approved concrete/terra cotta tiles nailed with non-corrosive tile nails to 38 x 38mm sawn softwood battens at 340mm centres"]
[]
[{"v":1,"d":"1 "},null,"Roof covering with pitch not exceeding 25 degrees",null,"m²",{"v":415,"d":"415 "},null,{"$f":"ROUND($F605*G605,2)","v":0}]
[]
[{"v":2,"d":"2 "},null,"Ridge tiles to match roofing tiles bedded and pointed in 1:3 cement mortar tinted to match tile colour",null,"m",{"v":34,"d":"34 "},null,{"$f":"ROUND($F607*G607,2)","v":0}]
[]
[null,null,"ROOF AND WALL INSULATION (WORK GROUP 122)"]
[]
[null,null,"Heavy industrial grade aluminium foil based insulation:"]
[]
[{"v":3,"d":"3 "},null,"Two sided bubble insulation membrane",null,"m²",{"v":415,"d":"415 "},null,{"$f":"ROUND($F613*G613,2)","v":0}]
[]
[null,null,"SECTION 2"]
[]
[null,null,"BILL NO. 3"]
[]
[null,null,"CARPENTRY AND JOINERY"]
[]
[null,null,"WORK GROUP ALLOCATION"]
[]
[null,null,"Unless otherwise stated, all items in this Bill will be allocated to Work Group 126 - Carpentry & Joinery"]
[]
[null,null,"PREAMBLES"]
[]
[null,null,"The General Preambles for Trades (2017 edition) as published by the Association of South African Quantity Surveyors shall be deemed to be incorporated in these bills of quantities and no claims arising from brevity of description of items fully described in the said General Preambles will be entertained"]
[]
[null,null,"The following \"Supplementary Preambles\" are incorporated in this bill to satisfy the requirements of the project and shall take precedence over the provisions of the said General Preambles"]
[]
[null,null,"SUPPLEMENTARY PREAMBLES"]
[]
[null,null,"Fixing:"]
[]
[null,null,"Items described as \"nailed\" shall be deemed to be fixed with hardened steel nails or pins, or to be shot-pinned, to brickwork or concrete"]
[]
[null,null,"Items described as \"plugged\" shall be deemed to include screwing to fibre, plastic or metal plugs at not exceeding 500mm centres, and where described as \"bolted\", the bolts have been given separately elsewhere"]
[]
[null,null,"Joinery:"]
[]
[null,null,"Descriptions of frames shall be deemed to include frames, transomes, rails, etc"]
[]
[null,null,"Descriptions of hardwood joinery shall be deemed to include sinking and pelleting heads and nuts of bolts"]
[]
[null,null,"Particle board"]
[]
[null,null,"All particle board shall comply with SANS 50312 having the required marking as per SANS 50312/EN 312"]
[]
[null,null,"Decorative thermosetting plastic laminate covering:"]
[]
[null,null,"Laminate covering shall be glued under pressure and edge strips of same shall be butt jointed at junctions with adjacent similar finish"]
[]
[null,null,"Sizes:"]
[]
[null,null,"Sizes are nominal and the Contractor shall make allowance in his prices for minor variances in stated finished sizes of timber doors, door members, door frames, architraves, etc"]
[]
[null,null,"Prices"]
[]
[null,null,"Prices for all joinery work are to include for general framing, housing and notching, arris rounded angles, glueing, blocking, planting on, screwing, adhesives, dowels, pellets, cross tongues, screws and nails and setting up complete and also for all square cutting and waste. Tops shall be secured with metal or hardwood buttons."]
[]
[null,null,"ROOFS, ETC"]
[]
[null,null,"EAVES, VERGES, ETC"]
[]
[null,null,"Medium density plain fibre-cement fascias and barge boards:"]
[]
[{"v":1,"d":"1 "},null,"19 x 235mm Fascias and barge boards, including aluminium H-profile jointing strips [ LI ]",null,"m",{"v":94,"d":"94 "},null,{"$f":"ROUND($F667*G667,2)","v":0}]
[]
[null,null,"FLOORS, ETC"]
[]
[null,null,"SKIRTINGS"]
[]
[null,null,"Wrought meranti:"]
[]
[{"v":2,"d":"2 "},null,"19 x 76mm Skirtings including 19mm quadrant bead, nailed",null,"m",{"v":274,"d":"274 "},null,{"$f":"ROUND($F675*G675,2)","v":0}]
[]
[null,null,"DOORS, ETC"]
[]
[null,null,"Solid hardwood with slated panels with sides and counselled edges to suit opening, hung to steel frames:"]
[]
[{"v":3,"d":"3 "},null,"44mm Door 820 x 2100mm high, including 390 x 300mm high framed openings (TP-01)",null,"No",{"v":11,"d":"11 "},null,{"$f":"ROUND($F681*G681,2)","v":0}]
[]
[{"v":4,"d":"4 "},null,"44mm Door 900 x 2400mm high, including 390 x 300mm high framed openings (TP-02)",null,"No",{"v":11,"d":"11 "},null,{"$f":"ROUND($F683*G683,2)","v":0}]
[]
[{"v":5,"d":"5 "},null,"44mm Door 890 x 2125mm high (TP-03)",null,"No",{"v":7,"d":"7 "},null,{"$f":"ROUND($F685*G685,2)","v":0}]
[]
[{"v":6,"d":"6 "},null,"44mm Door 813 x 2125mm high (TP-04)",null,"No",{"v":4,"d":"4 "},null,{"$f":"ROUND($F687*G687,2)","v":0}]
[]
[null,null,"SUPPLEMENTARY PREAMBLES"]
[]
[null,null,"Fire doors:"]
[]
[null,null,"Fire doors are to be in accordance with SANS 1253"]
[]
[null,null,"BUDGETARY ALLOWANCE"]
[]
[{"v":7,"d":"7 "},null,"Provide a budgetary allowance of Fifteen Thousand Rand for sundry carpentry and joinery to be used as directed by the Principal Agent and to be deducted in whole or in part if not required.",null,"Item",{"v":1,"d":"1 "},null,{"$f":"ROUND($F697*G697,2)","v":0}]
[]
[null,null,"SECTION 2"]
[]
[null,null,"BILL NO. 4"]
[]
[null,null,"CEILINGS, PARTITIONS AND ACCESS FLOORING"]
[]
[null,null,"WORK GROUP ALLOCATION"]
[]
[null,null,"Unless otherwise stated, all items in this Bill will be allocated to Work Group 129 - Ceilings"]
[]
[null,null,"PREAMBLES"]
[]
[null,null,"The General Preambles for Trades (2017 edition) as published by the Association of South African Quantity Surveyors shall be deemed to be incorporated in these bills of quantities and no claims arising from brevity of description of items fully described in the said General Preambles will be entertained"]
[]
[null,null,"The following \"Supplementary Preambles\" are incorporated in this bill to satisfy the requirements of the project and shall take precedence over the provisions of the said General Preambles"]
[]
[null,null,"SUPPLEMENTARY PREAMBLES"]
[]
[null,null,"Fixing:"]
[]
[null,null,"Items described as \"nailed\" shall be deemed to be fixed with hardened steel nails or pins, or to be shot-pinned, to brickwork or concrete"]
[]
[null,null,"Items described as \"plugged\" shall be deemed to include screwing to fibre, plastic or metal plugs at not exceeding 500mm centres, and where described as \"bolted\", the bolts have been given separately elsewhere"]
[]
[null,null,"Ceilings:"]
[]
[null,null,"Unless otherwise described, ceilings shall be deemed to be horizontal"]
[]
[null,null,"Bulkheads:"]
[]
[null,null,"Bulkheads are defined as those portions of ceilings which are stepped down from the general ceiling level in a particular room or area and which generally occur along the perimeter. Their purpose is either to conceal services or to create architectural features"]
[]
[null,null,"Bulkheads have only been described as such where they conform to the above definition and where the horizontal, vertical or sloping dimensions do not exceed 1200mm. Where these dimensions are more than 1200mm such portions of ceilings have been included in the appropriate general items of ceilings"]
[]
[null,null,"Unless otherwise described, bulkheads shall be deemed to be horizontal along the length"]
[]
[null,null,"Openings:"]
[]
[null,null,"Prices for openings for light fittings, ventilation grilles, air conditioning diffusers, etc. are to include for any necessary additional support, trimming around, etc."]
[]
[null,null,"Steel components:"]
[]
[null,null,"All steel components for ceilings, partitions, etc are to be galvanised in accordance with SANS 121"]
[]
[null,null,"INSULATION"]
[]
[null,null,"Non-combustible fibreglass insulation of a density of not less than 10kg/m3 bonded with an inert thermo-setting resin:"]
[]
[{"v":1,"d":"1 "},null,"120mm Insulation in blanket form, closely fitted and laid on top of brandering between roof timbers, etc.",null,"m²",{"v":156,"d":"156 "},null,{"$f":"ROUND($F747*G747,2)","v":0}]
[]
[null,null,"NAILED UP CEILINGS"]
[]
[null,null,"9.5mm Fibre-cement plain ceiling boards with H-profile galvanised steel jointing strips:"]
[]
[{"v":2,"d":"2 "},null,"Ceilings including 38 x 38mm sawn softwood brandering at 400mm centres and cross brandering at 400mm centres",null,"m²",{"v":156,"d":"156 "},null,{"$f":"ROUND($F753*G753,2)","v":0}]
[]
[null,null,"12mm Fibre-cement plain ceiling boards with H-profile galvanised steel jointing strips:"]
[]
[{"v":3,"d":"3 "},null,"Ceilings including 38 x 38mm sawn softwood brandering at 400mm centres and cross brandering at 400mm centres",null,"m²",{"v":52,"d":"52 "},null,{"$f":"ROUND($F757*G757,2)","v":0}]
[]
[{"v":4,"d":"4 "},null,"Extra over ceiling for 600 x 600mm trap door of 38 x 38mm wrought softwood rebated framing with one cross brander, covered with ceiling board and fitted flush in opening, including necessary trimmers around",null,"No",{"v":18,"d":"18 "},null,{"$f":"ROUND($F759*G759,2)","v":0}]
[]
[null,null,"Gypsum plasterboard cornices:"]
[]
[{"v":5,"d":"5 "},null,"75mm Coved cornices",null,"m",{"v":274,"d":"274 "},null,{"$f":"ROUND($F763*G763,2)","v":0}]
[]
[null,null,"SECTION 2"]
[]
[null,null,"BILL NO. 5"]
[]
[null,null,"IRONMONGERY"]
[]
[null,null,"WORK GROUP ALLOCATION"]
[]
[null,null,"Unless otherwise stated, all items in this Bill will be allocated to Work Group 132 - Ironmongery"]
[]
[null,null,"PREAMBLES"]
[]
[null,null,"The General Preambles for Trades (2017 edition) as published by the Association of South African Quantity Surveyors shall be deemed to be incorporated in these bills of quantities and no claims arising from brevity of description of items fully described in the said General Preambles will be entertained"]
[]
[null,null,"The following \"Supplementary Preambles\" are incorporated in this bill to satisfy the requirements of the project and shall take precedence over the provisions of the said General Preambles"]
[]
[null,null,"SUPPLEMENTARY PREAMBLES"]
[]
[null,null,"Proprietary items:"]
[]
[null,null,"Where applicable, the manufacturers' names or product catalogue titles are given in sub-headings preceding the itemsNote that the manufacturers names specified in this trade are for the purposes of competitive pricing. Prices are to be based on the specific products/articles specified.On request, returnable samples are to be provided to the Project Manager for consideration"]
[]
[null,null,"Locks:"]
[]
[null,null,"Notwithstanding Clause 2, Item 3 of the \"Ironmongery\" trade of the \"Standard System of Measuring Building Work, Seventh Edition\", descriptions of locks shall be deemed to include two keys per lock"]
[]
[null,null,"Finishes to ironmongery:"]
[]
[null,null,"Where applicable, finishes to ironmongery are indicated by suffixes in accordance with the following list: BS\tSatin bronze lacqueredCH\tChromium plated SC\tSatin chromium plated SE\tSilver enamelled GE\tGrey enamelledAN\tAnodised natural AS\tAnodised silver AB\tAnodised bronze AG\tAnodised gold ABL\tAnodised black PB\tPolished brass PL\tPolished and lacquered PT\tEpoxy coated SD\tSandedBBS\tBrushed stainless steel"]
[]
[null,null,"HINGES, BOLTS, ETC"]
[]
[null,null," \"Union\" or similar approved:"]
[]
[{"v":1,"d":"1 "},null,"\"Ref. CZ80941SCR\" or similar approved sliding indicator bolt set",null,"No",{"v":4,"d":"4 "},null,{"$f":"ROUND($F799*G799,2)","v":0}]
[]
[null,null,"LOCKS"]
[]
[{"v":2,"d":"2 "},null,"Commercial cylinder sash lock",null,"No",{"v":4,"d":"4 "},null,{"$f":"ROUND($F803*G803,2)","v":0}]
[]
[{"v":3,"d":"3 "},null,"75mm Three lever upright mortice rebated lockset with satin chrome furniture (TP-01)",null,"No",{"v":18,"d":"18 "},null,{"$f":"ROUND($F805*G805,2)","v":0}]
[]
[null,null,"\"Calini\" or similar approved:"]
[]
[{"v":4,"d":"4 "},null,"\"Ref. IW2051\" or similar approved double cylinder suitable for master key",null,"No",{"v":7,"d":"7 "},null,{"$f":"ROUND($F809*G809,2)","v":0}]
[]
[null,null,"HANDLES"]
[]
[null,null,"\"Union Assa Abloy\" or similar approved:"]
[]
[{"v":5,"d":"5 "},null,"\"Ref.AL6D67-05A5\" or similar approved anodised aluminium pull handle with back plates",null,"No",{"v":4,"d":"4 "},null,{"$f":"ROUND($F815*G815,2)","v":0}]
[]
[{"v":6,"d":"6 "},null,"\"Ref.AL6D67-05A5\" or similar approved anodised aluminium pull handle",null,"No",{"v":0,"d":"0 "},null,"RATE ONLY"]
[]
[{"v":7,"d":"7 "},null,"100mm Chromium plated bow handle bolted through door with the bolt ends hammered to prevent the nuts being removed",null,"No",{"v":18,"d":"18 "},null,{"$f":"ROUND($F819*G819,2)","v":0}]
[]
[null,null,"DOOR CLOSERS"]
[]
[null,null,"\"Union Assa Abloy\" or similar approved:"]
[]
[{"v":8,"d":"8 "},null,"\"Ref. 7770\" door closer",null,"No",{"v":22,"d":"22 "},null,{"$f":"ROUND($F825*G825,2)","v":0}]
[]
[null,null,"SUNDRIES"]
[]
[null,null,"\"Union Assa Abloy\"or similar approved:"]
[]
[{"v":9,"d":"9 "},null,"\"Ref. 99022SS\" door stop, plugged",null,"No",{"v":15,"d":"15 "},null,{"$f":"ROUND($F831*G831,2)","v":0}]
[]
[null,null,"BATHROOM FITTINGS"]
[]
[null,null,"\"Franke\" or similar approved:"]
[]
[{"v":10,"d":"10 "},null,"\"Ref. EXOS618X\" soap dispenser, plugged",null,"No",{"v":21,"d":"21 "},null,{"$f":"ROUND($F837*G837,2)","v":0}]
[]
[{"v":11,"d":"11 "},null,"\"Ref. STRX672\" stainless steel lockable toilet roll holder, plugged",null,"No",{"v":4,"d":"4 "},null,{"$f":"ROUND($F839*G839,2)","v":0}]
[]
[{"v":12,"d":"12 "},null,"\"Ref. RODX602 \" paper towel dispenser and waste bin combination, plugged",null,"No",{"v":14,"d":"14 "},null,{"$f":"ROUND($F841*G841,2)","v":0}]
[]
[null,null,"BUDGETARY ALLOWANCE"]
[]
[{"v":13,"d":"13 "},null,"Provide a budgetary allowance of Fifteen Thousand Rand for sundry ironmongery to be used as directed by the Principal Agent and to be deducted in whole or in part if not required.",null,"Item",{"v":1,"d":"1 "},null,{"$f":"ROUND($F845*G845,2)","v":0}]
[]
[null,null,"SECTION 2"]
[]
[null,null,"BILL NO. 6"]
[]
[null,null,"METALWORK"]
[]
[null,null,"WORK GROUP ALLOCATION"]
[]
[null,null,"Unless otherwise stated, all items in this Bill will be allocated to Work Group 136 - Metalwork"]
[]
[null,null,"PREAMBLES"]
[]
[null,null,"The General Preambles for Trades (2017 edition) as published by the Association of South African Quantity Surveyors shall be deemed to be incorporated in these bills of quantities and no claims arising from brevity of description of items fully described in the said General Preambles will be entertained"]
[]
[null,null,"The following \"Supplementary Preambles\" are incorporated in this bill to satisfy the requirements of the project and shall take precedence over the provisions of the said General Preambles"]
[]
[null,null,"SUPPLEMENTARY PREAMBLES"]
[]
[null,null,"Descriptions of bolts, anchors, etc:"]
[]
[null,null,"Descriptions of bolts shall be deemed to include nuts and washers"]
[]
[null,null,"Descriptions of expansion anchors and bolts and chemical anchors and bolts shall be deemed to include nuts, washers and mortices in brickwork or concrete"]
[]
[null,null,"Items described as \"holed for bolt(s)\" shall be deemed to exclude the bolts, unless otherwise described"]
[]
[null,null,"Items described as \"plugged\" shall be deemed to include screwing to fibre, plastic or metal plugs at not exceeding 600mm centres"]
[]
[null,null,"Fixing:"]
[]
[null,null,"Unless otherwise described, descriptions of items shall be deemed to include for fixing to brickwork or concrete  Where items are described as \"bolted\", the bolts are measured elsewhere as stated in clause N.7 of the Model Preambles"]
[]
[null,null,"PRESSED STEEL DOOR FRAMES"]
[]
[null,null,"1,6mm Rebated frames suitable for one brick walls:"]
[]
[{"v":1,"d":"1 "},null,"Frame for door 820 x 2400mm high with three hinges per leaf (TP-02)",null,"No",{"v":18,"d":"18 "},null,{"$f":"ROUND($F883*G883,2)","v":0}]
[]
[{"v":2,"d":"2 "},null,"Frame for door 813 x 2125mm high with three hinges per leaf (TP-04)",null,"No",{"v":4,"d":"4 "},null,{"$f":"ROUND($F885*G885,2)","v":0}]
[]
[null,null,"ALUMINIUM WINDOWS, DOORS, ETC"]
[]
[null,null,"Aluminium windows, doors, etc:"]
[]
[null,null,"The successful tenderer shall be responsible for the complete design work including determining required section sizes and fixing details, all subject to the Project Manager's approval"]
[]
[null,null,"Doors, windows, etc shall be designed and constructed to withstand wind pressures of 1,1kn/m2 (unfactored) and 1,5kn/m2 (factored)"]
[]
[null,null,"All calculations shall be submitted to the Project Manager for approval"]
[]
[null,null,"Doors and windows shall comply with AAAMSA design criteria"]
[]
[null,null,"Glazing shall comply with SAGGA regulations.  Glass thicknesses shall comply with SAGGA regulations irrespective of thicknesses shown on the schedules/drawings"]
[]
[null,null,"Doors and windows shall be supplied with protective tape and plastic which shall be removed only once surrounding trades have been completed"]
[]
[null,null,"The following certificates shall be provided prior to commencement of site work:  1\tA copy of the relevant AAAMSA Performance Test Certificate from the manufacturer/contractor supplying the architectural aluminium product"]
[]
[null,null,"2\tA Certificate of Conformance confirming that anodising or powder coating has been processed in accordance with SANS 999 and SANS 1796 respectively"]
[]
[null,null,"3\tA copy of the relevant Performance Compliance Report from the system suppliers"]
[]
[null,null,"4\tA copy of the relevant Safiera Energy Rating Certification"]
[]
[null,null,"5\tA powder guarantee of not less than 15 years issued by the powder manufacturer. The specific conditions contained in this guarantee shall form part of the powder coating process"]
[]
[null,null,"6\tA Certificate of Conformance confirming that glazing has been installed in accordance with SANS 10400-N, ensuring that safety glazing materials have been installed in the mandatory areas and that each individual pane of safety glazing materials has been permanently marked"]
[]
[null,null,"7\tA warranty from the manufacturer of the laminated safety glass and/or hermetically sealed glazing units guaranteeing the products against delamination and colour degradation for a period of not less than five years"]
[]
[null,null,"All windows and door joints must be sealed to the inside with \"Dow Corning\" silicone or similar approved during manufacturing"]
[]
[null,null,"All dimensions shall be verified on site before commencing the work and a full set of shop drawings showing all relevant details shall be submitted to the Architect for his approval, prior to the manufacture of the units"]
[]
[null,null,"Sizes"]
[]
[null,null,"Where sizes are given these are nominal sizes"]
[]
[null,null,"Ironmongery"]
[]
[null,null,"The tenderer must allow in his pricing for supply and fixing of ALL ironmongery  Heavy duty high quality fittings must be allowed for and samples will be required for approval by the Project Manager"]
[]
[null,null,"BUDGETARY ALLOWANCE"]
[]
[{"v":3,"d":"3 "},null,"Provide a budgetary allowance of Fifteen Thousand Rand for sundry metalwork to be used as directed by the Principal Agent and to be deducted in whole or in part if not required.",null,"Item",{"v":1,"d":"1 "},null,{"$f":"ROUND($F931*G931,2)","v":0}]
[]
[null,null,"SECTION 2"]
[]
[null,null,"BILL NO. 7"]
[]
[null,null,"TILING"]
[]
[null,null,"WORK GROUP ALLOCATION"]
[]
[null,null,"Unless otherwise stated, all items in this Bill will be allocated to Work Group 144 - Tiling"]
[]
[null,null,"PREAMBLES"]
[]
[null,null,"The General Preambles for Trades (2017 edition) as published by the Association of South African Quantity Surveyors shall be deemed to be incorporated in these bills of quantities and no claims arising from brevity of description of items fully described in the said General Preambles will be entertained"]
[]
[null,null,"The following \"Supplementary Preambles\" are incorporated in this bill to satisfy the requirements of the project and shall take precedence over the provisions of the said General Preambles"]
[]
[null,null,"SUPPLEMENTARY PREAMBLES"]
[]
[null,null,"Fixing:"]
[]
[null,null,"Unless described as \"fixed with adhesive to plaster (plaster elsewhere)\", descriptions of tiling on brick or concrete walls, columns, etc shall be deemed to include 1:4 cement plaster backing and descriptions of tiling on concrete floors, etc shall be deemed to include 1:3 cement plaster bedding"]
[]
[null,null,"Tiling described as \"fixed with adhesive on power floated concrete\" shall be deemed to include for approved tiling key-coat"]
[]
[null,null,"Ceramic, porcelain, marble and granite tiles are to be fixed and grouted with suitable adhesives and grouts from the \"Tal Goldstar\" or similar approved range of products as recommended by the manufacturer of the tiles"]
[]
[null,null,"Preparatory work to existing painted plastered surfaces:"]
[]
[null,null,"Preparation of all existing painted plastered surfaces is to include for removing all loose and flaking material by wire brushing, thoroughly washing down and allowing to dry completely and applying one coat masonry bonding agent"]
[]
[null,null,"WALL TILING"]
[]
[null,null,"350 x 350mm Ceramic tiles (Allow a Prime Cost Amount of R 250/m2 delivered to site) fixed with adhesive to plaster (plaster elsewhere) and flush pointing with and including waterproof grout:"]
[]
[{"v":1,"d":"1 "},null,"On walls",null,"m²",{"v":320,"d":"320 "},null,{"$f":"ROUND($F967*G967,2)","v":0}]
[]
[{"v":2,"d":"2 "},null,"On narrow widths",null,"m²",{"v":16,"d":"16 "},null,{"$f":"ROUND($F969*G969,2)","v":0}]
[]
[null,null,"FLOOR TILING"]
[]
[null,null,"Porcelain floor tiles (Allow a Prime Cost Amount of R 350/m2 delivered to site) fixed with adhesive to screed (screed elsewhere) and flush pointing with and including waterproof grout:"]
[]
[{"v":3,"d":"3 "},null,"On floors",null,"m²",{"v":208,"d":"208 "},null,{"$f":"ROUND($F975*G975,2)","v":0}]
[]
[{"v":4,"d":"4 "},null,"Skirting 100mm high (of fair cut tiles)",null,"m",{"v":118,"d":"118 "},null,{"$f":"ROUND($F977*G977,2)","v":0}]
[]
[null,null,"SUNDRIES"]
[]
[null,null,"Stainless steel dividing strips:"]
[]
[{"v":5,"d":"5 "},null,"28 x 10 x 2,5mm L-section dividing strips between tiles",null,"m",{"v":118,"d":"118 "},null,{"$f":"ROUND($F983*G983,2)","v":0}]
[]
[null,null,"SECTION 2"]
[]
[null,null,"BILL NO. 8"]
[]
[null,null,"PLUMBING AND DRAINAGE (PROVISIONAL)"]
[]
[null,null,"WORK GROUP ALLOCATION"]
[]
[null,null,"The items in this Bill will be allocated to Work Groups as indicated in brackets at the end of headings or descriptions"]
[]
[null,null,"PREAMBLES"]
[]
[null,null,"The General Preambles for Trades (2017 edition) as published by the Association of South African Quantity Surveyors shall be deemed to be incorporated in these bills of quantities and no claims arising from brevity of description of items fully described in the said General Preambles will be entertained"]
[]
[null,null,"The following \"Supplementary Preambles\" are incorporated in this bill to satisfy the requirements of the project and shall take precedence over the provisions of the said General Preambles"]
[]
[null,null,"SUPPLEMENTARY PREAMBLES"]
[]
[null,null,"Wire gratings:"]
[]
[null,null,"Descriptions of gutter outlets, etc shall be deemed to include wire balloon gratings"]
[]
[null,null,"Stormwater channels:"]
[]
[null,null,"Descriptions of channels shall be deemed to include necessary excavation, surface preparation, compaction, etc and disposal of surplus material on site"]
[]
[null,null,"French drains:"]
[]
[null,null,"Descriptions of french drains shall be deemed to include excavation, stone filling graded from 300mm diameter at bottom to 75mm diameter at top, approved geofabric filter blanket over stone, 300mm earthfilling over and disposal of surplus material on site"]
[]
[null,null,"Septic tanks:"]
[]
[null,null,"Descriptions of proprietary type septic tanks shall be deemed to include excavation, bedding and jointing, concrete base slabs, jointing to drains and backfilling, compaction, etc all in accordance with the manufacturer's instructions and disposal of surplus material on site"]
[]
[null,null,"Stainless steel basins, sinks, wash troughs, urinals, etc:"]
[]
[null,null,"Stainless steel for economy basins, domestic sinks and worktops shall be Type 430 (17/0)  Stainless steel for urinals, basins, quality sinks, wash troughs, institutional equipment, etc shall be Type 304 (18/8)  Stainless steel for laboratory sinks, photographic equipment, etc shall be Type 316 (18/8)  Units shall have standard aprons on all exposed edges and tiling keys against walls where applicable"]
[]
[null,null,"Sealing of edges:"]
[]
[null,null,"Outer edges of sinks, basins, baths, urinals, etc are to be sealed against adjacent surfaces with approved mildew resistant silicone sealant and prices must include therefor"]
[]
[null,null,"uPVC pipes and fittings:"]
[]
[null,null,"Sewer and drainage pipes and fittings shall be jointed and sealed with butyl rubber rings  Soil, waste and vent pipes and fittings shall be solvent weld jointed or sealed with butyl rubber rings"]
[]
[null,null,"uPVC pressure pipes and fittings:"]
[]
[null,null,"Pipes of 50mm diameter and smaller shall be plain ended with solvent welded uPVC loose sockets and fittings  Pipes of 63mm diameter and greater shall have sockets and spigots with push-in type integral rubber ring joints.  Bends shall be uPVC and all other fittings shall be cast iron, all with similar push-in type joints"]
[]
[null,null,"High density polyethylene (HDPe) pipes and fittings:"]
[]
[null,null,"Pipes shall be type IV and of the class specified with \"Plasson\" or \"Alprene\" or similar approved compression fittings"]
[]
[null,null,"Polycop polypropylene pipes:"]
[]
[null,null,"Polypropylene pipes 54mm diameter and smaller shall be seamless copper coloured Class 16 pipes jointed with \"Fast-fuse\" heat welded thermoplastic or where so described \"Polylock\" or similar approved compression fittings  Pipes shall be firmly fixed to walls, etc with coloured nylon snap-in pipe clips with provision for accommodating thermal movement and jointed and fixed strictly in accordance with the manufacturer's instructions"]
[]
[null,null,"Copper pipes:"]
[]
[null,null,"Pipes shall be hard drawn and half-hard \"Maksal\" or similar approved pipes of the class described.  Class 0 (thin walled hard drawn) pipes shall not be bent.  Class 1 (thin walled half-hard), Class 2 (half-hard) and Class 3 (heavy walled half-hard) pipes shall only be bent with benders with inner and outer formers.  Fittings to copper waste, vent and anti-syphon pipes, capillary solder fittings and compression fittings shall be \"Cobra Watertech\" or similar approved type.  Capillary solder fittings shall comply with ISO 2016. Only compression fittings shall be used in walls or in ground"]
[]
[null,null,"Copper pipes are to be installed in accordance with the latest revision of the Code of Practice for Copper Plumbing soldering techniques.  Flux, solder, etc to be strictly in accordance with the manufacturer's requirements with special attention to copper flux composition"]
[]
[null,null,"Reducing fittings:"]
[]
[null,null,"Where fittings have reducing ends or branches they are described as \"reducing\". In the case of pipes with diameters not exceeding 60mm, only the largest end or branch size is given. Should the Contractor wish to use other fittings and bushes or reducers he may do so on the understanding that no claim in this regard will be entertained. In the case of pipes with diameters exceeding 60mm, all sizes are given and no claims for extra bushes, reducers, etc will be entertained"]
[]
[null,null,"Fixing of pipes:"]
[]
[null,null,"Unless specifically otherwise stated, descriptions of pipes shall be deemed to include fixing to walls, etc casting in, building in or suspending not exceeding 1m below suspension level"]
[]
[null,null,"Paper wrapping to pipes:"]
[]
[null,null,"Pipes chased into brickwork must be wrapped with two layers of stout brown paper tied with wire.  Rates are to include for wrapping around joints and fittings"]
[]
[null,null,"Disinfection of water pipework:"]
[]
[null,null,"Water pipework is to be disinfected at completion in accordance with SANS 1200L (provision for disinfection elsewhere)"]
[]
[null,null,"\"Densyl\" or similar approved petrolatum anti-corrosion tape"]
[]
[null,null,"Pipes to be taped shall be coated with the appropriate primer and the tape shall be applied in the appropriate widths and with suitable overlaps  Couplings and fittings to pipes shall be taped in strict accordance with the manufacturer's instructions including mastic, tape, \"Layflat\" or similar approved sheeting, securing of same, etc"]
[]
[null,null,"Prices for wrapping of pipes shall include for all work as described to couplings in the length"]
[]
[null,null,"Laying, backfilling, bedding, etc of pipes:"]
[]
[null,null,"Pipes shall be laid and bedded in accordance with manufacturers' instructions and trenches shall be carefully backfilled"]
[]
[null,null,"Where no manufacturers' instructions exist, pipes shall be laid in accordance with Clauses 5.1 and 5.2 of each of the following: SANS 1200L\t: Medium-pressure pipelines SANS 1200LD\t: Sewers SANS 1200LE\t: Stormwater drainage Pipe trenches, etc shall be backfilled in accordance with Clauses 3, 5.5, 5.6, 5.7 and 7 of SANS 1200DB : Earthworks (Pipe trenches)Pipes shall be bedded in accordance with Clauses 3.1 to 3.4.1, 5.1 to 5.3 and 7 of SANS 1200LB : Bedding (Pipes)Unless otherwise described, bedding of rigid pipes shall be Class B bedding"]
[]
[null,null,"General:"]
[]
[null,null,"Descriptions of cast iron roof outlets shall be deemed to include joints to pipes and casting into concrete (adaptors for joints to PVC pipes, etc are given separately)  Descriptions of overflow pipes where measured in number, shall be deemed to include joints to cisterns and splay cut ends"]
[]
[null,null,"Descriptions of pipes laid in and including trenches and of inspection chambers, catchpits, etc shall be deemed to include excavation, bedding, backfilling, compaction to a minimum of 98% Mod AASHTO density and disposal of surplus material on site"]
[]
[null,null,"Descriptions of service pipes and flexible connecting pipes shall be deemed to include connections to taps, cisterns, etc and to steel pipes (adaptors for connections to copper pipes, etc are given separately)"]
[]
[null,null,"Descriptions of WC pans, slop hoppers, etc shall be deemed to include for joints to soil pipes (pan connectors are separately measured) and shall have straight or side outlets and \"P\" or \"S\" traps as necessary"]
[]
[null,null,"Description of waste unions shall be deemed to include rubber or vulcanite plugs and chains fixed to fittings."]
[]
[null,null,"As-built drawings:"]
[]
[null,null,"Where required, the Contractor shall prepare an updated set of as-built drawings.  At completion of the contract the Contractor shall hand these drawings to the Project Manager for reproducing onto the originals for handing over to the Employer (provision for allowance of as-built drawings elsewhere)"]
[]
[null,null,"Proprietary items:"]
[]
[null,null,"Where applicable, the manufacturers' names or product catalogue titles are given in sub-headings preceding the itemsNote that the manufacturers names specified in this trade are for the purposes of competitive pricing. Prices are to be based on the specific products/articles specified.On request, returnable samples are to be provided to the Project Manager for consideration"]
[]
[null,null,"SANITARY FITTINGS (WORK GROUP 148)"]
[]
[null,null,"\"Franke\" or similar approved stainless steel:"]
[]
[{"v":1,"d":"1 "},null,"1050 x 535mm \"Trendline 711 Code: 1030006\" sink with 350 x 460mm end bowl, on cupboard (cupboard elsewhere)",null,"No",{"v":1,"d":"1 "},null,{"$f":"ROUND($F1101*G1101,2)","v":0}]
[]
[null,null,"\"Vaal\" or similar approved:"]
[]
[{"v":2,"d":"2 "},null,"455 x 290mm \"Hibiscus\" 7050 wash hand basin bolted to wall",null,"No",{"v":7,"d":"7 "},null,{"$f":"ROUND($F1105*G1105,2)","v":0}]
[]
[null,null,"WASTE UNIONS, ETC"]
[]
[null,null,"\"Cobra Watertech\" or similar approved:"]
[]
[{"v":3,"d":"3 "},null,"40mm Code 317 CP basin waste union and code 309CP anti-theft plug",null,"No",{"v":7,"d":"7 "},null,{"$f":"ROUND($F1111*G1111,2)","v":0}]
[]
[null,null,"TRAPS, ETC"]
[]
[null,null,"uPVC:"]
[]
[{"v":4,"d":"4 "},null,"40mm \"P\" or \"S\" trap",null,"No",{"v":7,"d":"7 "},null,{"$f":"ROUND($F1117*G1117,2)","v":0}]
[]
[null,null,"TAPS, VALVES, ETC"]
[]
[null,null,"\"Cobra Watertech\" or similar approved:"]
[]
[{"v":5,"d":"5 "},null,"15mm Code1065-15CP fullway isolating ball valve",null,"No",{"v":7,"d":"7 "},null,{"$f":"ROUND($F1123*G1123,2)","v":0}]
[]
[{"v":6,"d":"6 "},null,"15mm Code 902CP \"Focus\" basin mixer with waste union, etc and angle flow regulating valves",null,"No",{"v":7,"d":"7 "},null,{"$f":"ROUND($F1125*G1125,2)","v":0}]
[]
[null,null,"AS-BUILT DRAWINGS"]
[]
[{"v":7,"d":"7 "},null,"Provision of as-built drawings",null,"Item",{"v":1,"d":"1 "},null,{"$f":"ROUND($F1129*G1129,2)","v":0}]
[]
[null,null,"BUDGETARY ALLOWANCE"]
[]
[{"v":8,"d":"8 "},null,"Provide a budgetary allowance of Fifteen Thousand Rand for sundry plumbing works to be used as directed by the Principal Agent and to be deducted in whole or in part if not required.",null,"Item",{"v":1,"d":"1 "},null,{"$f":"ROUND($F1133*G1133,2)","v":0}]
[]
[null,null,"SECTION 2"]
[]
[null,null,"BILL NO. 9"]
[]
[null,null,"GLAZING"]
[]
[null,null,"WORK GROUP ALLOCATION"]
[]
[null,null,"Unless otherwise stated, all items in this Bill will be allocated to Work Group 150 - Glazing"]
[]
[null,null,"PREAMBLES"]
[]
[null,null,"The General Preambles for Trades (2017 edition) as published by the Association of South African Quantity Surveyors shall be deemed to be incorporated in these bills of quantities and no claims arising from brevity of description of items fully described in the said General Preambles will be entertained"]
[]
[null,null,"The following \"Supplementary Preambles\" are incorporated in this bill to satisfy the requirements of the project and shall take precedence over the provisions of the said General Preambles"]
[]
[null,null,"SUPPLEMENTARY PREAMBLES"]
[]
[null,null,"Float glass:"]
[]
[null,null,"The term \"float glass\" is used for monolithic annealed glass"]
[]
[null,null,"Laminated glass:"]
[]
[null,null,"Laminated glass to have polyvinyl butyral (PVB) interlayer(s)"]
[]
[null,null,"GLAZING TO STEEL WITH PUTTY"]
[]
[null,null,"6,38mm Normal strength (NS) clear laminated safety glass:"]
[]
[{"v":1,"d":"1 "},null,"Panes exceeding 0,5m2 and not exceeding 2,0m2",null,"m²",{"v":29,"d":"29 "},null,{"$f":"ROUND($F1165*G1165,2)","v":0}]
[]
[null,null,"TOPS, SHELVES, DOORS, MIRRORS, ETC"]
[]
[null,null,"4mm Silvered float glass copper backed mirrors with 10mm bevelled and polished edges fixed with double sided adhesive tape:"]
[]
[{"v":2,"d":"2 "},null,"Mirror 600 x 1200mm high",null,"No",{"v":12,"d":"12 "},null,{"$f":"ROUND($F1171*G1171,2)","v":0}]
[]
[null,null,"SECTION 2"]
[]
[null,null,"BILL NO. 10"]
[]
[null,null,"PAINTWORK"]
[]
[null,null,"WORK GROUP ALLOCATION"]
[]
[null,null,"Unless otherwise stated, all items in this Bill will be allocated to Work Group 152 - Painting"]
[]
[null,null,"PREAMBLES"]
[]
[null,null,"The General Preambles for Trades (2017 edition) as published by the Association of South African Quantity Surveyors shall be deemed to be incorporated in these bills of quantities and no claims arising from brevity of description of items fully described in the said General Preambles will be entertained"]
[]
[null,null,"The following \"Supplementary Preambles\" are incorporated in this bill to satisfy the requirements of the project and shall take precedence over the provisions of the said General Preambles"]
[]
[null,null,"SUPPLEMENTARY PREAMBLES"]
[]
[null,null,"PREPARATORY WORK TO EXISTING WORK"]
[]
[null,null,"Previously painted plastered surfaces:"]
[]
[null,null,"Surfaces shall be thoroughly washed down and allowed to dry completely before any paint is applied. Blistered or peeling paint shall be completely removed and minor cracks shall be opened, filled with a suitable filler and finished smooth"]
[]
[null,null,"Previously painted metal surfaces:"]
[]
[null,null,"Surfaces shall be thoroughly rubbed and cleaned down.  Blistered or peeling paint shall be completely removed down to bare metal"]
[]
[null,null,"Previously painted wood surfaces:"]
[]
[null,null,"Surfaces shall be thoroughly cleaned down.  Blistered or peeling paint shall be completely removed and cracks and crevices shall be primed, filled with suitable filler and finished smooth"]
[]
[null,null,"PAINT SPECIFICATIONS"]
[]
[null,null,"All painting shall be done in accordance with \"Plascon\" or similar approved, etc specifications, unless otherwise described"]
[]
[null,null,"COLOURS"]
[]
[null,null,"When staining timber, the resultant colour or shade must be to the complete satisfaction of the Project Manager before any overcoating or preservative is applied  Paintwork is classified in the following different colour groups: \"White\", \"Pastel\", \"Deep\" and \"Transparent\" in accordance with the \"Natural Colour System\" (NCS) adopted by the SA National Standards Unless otherwise described, all paintwork shall be deemed to be classified in the \"White\" colour group"]
[]
[null,null,"PAINTWORK, ETC TO PREVIOUSLY PAINTED WORK"]
[]
[null,null,"ON INTERNAL FLOATED PLASTER SURFACES"]
[]
[null,null,"One coat superior quality acrylic emulsion paint for interior and exterior use, on work in sound condition:"]
[]
[{"v":1,"d":"1 "},null,"Walls",null,"m²",{"v":424,"d":"424 "},null,{"$f":"ROUND($F1219*G1219,2)","v":0}]
[]
[null,null,"ON FIBRE-CEMENT BOARD SURFACES"]
[]
[null,null,"One coat alkali resistant primer and two coats superior quality acrylic emulsion paint for interior and exterior use, on:"]
[]
[{"v":2,"d":"2 "},null,"Ceilings and cornices, including priming metal cover strips and nailheads",null,"m²",{"v":208,"d":"208 "},null,{"$f":"ROUND($F1225*G1225,2)","v":0}]
[]
[{"v":3,"d":"3 "},null,"On fascias and barge boards, etc. not exceeding 300mm girth",null,"m",{"v":187,"d":"187 "},null,{"$f":"ROUND($F1227*G1227,2)","v":0}]
[]
[null,null,"ON WOOD SURFACES"]
[]
[null,null,"One coat primer, one coat alkyd based universal undercoat and two coats superior quality universal enamel paint, on:"]
[]
[{"v":4,"d":"4 "},null,"Doors",null,"m²",{"v":72,"d":"72 "},null,{"$f":"ROUND($F1233*G1233,2)","v":0}]
[]
[{"v":1,"d":"1 "},null,"Alterations",{"$nulls":4},{"$f":"SUM(H465:H572)","v":0}]
[]
[{"v":2,"d":"2 "},null,"Roof Coverings",{"$nulls":4},{"$f":"SUM(H577:H614)","v":0}]
[]
[{"v":3,"d":"3 "},null,"Carpentry and Joinery",{"$nulls":4},{"$f":"SUM(H619:H698)","v":0}]
[]
[{"v":4,"d":"4 "},null,"Ceilings, Partitions and Access Flooring",{"$nulls":4},{"$f":"SUM(H729:H764)","v":0}]
[]
[{"v":5,"d":"5 "},null,"Ironmongery",{"$nulls":4},{"$f":"SUM(H777:H846)","v":0}]
[]
[{"v":6,"d":"6 "},null,"Metalwork",{"$nulls":4},{"$f":"SUM(H856:H932)","v":0}]
[]
[{"v":7,"d":"7 "},null,"Tiling",{"$nulls":4},{"$f":"SUM(H952:H984)","v":0}]
[]
[{"v":8,"d":"8 "},null,"Plumbing and Drainage",{"$nulls":4},{"$f":"SUM(H1073:H1134)","v":0}]
[]
[{"v":9,"d":"9 "},null,"Glazing",{"$nulls":4},{"$f":"SUM(H1144:H1172)","v":0}]
[]
[{"v":10,"d":"10 "},null,"Paintwork",{"$nulls":4},{"$f":"SUM(H1207:H1234)","v":0}]
[]
[null,null,"SECTION NO. 3"]
[]
[null,null,"BILL NO. 1"]
[]
[null,null,"ELECTRICAL INSTALLATION"]
[]
[null,null,"LOW VOLTAGE"]
[]
[{"v":1,"d":"1 "},null,"Retrofit existing luminiare with LED tube 28W / on a 4ft luminaire.",null,"No",{"v":30,"d":"30 "},null,{"$f":"ROUND($F1263*G1263,2)","v":0}]
[]
[null,null,"SECTION 5"]
[]
[null,null,"BILL NO. 1"]
[]
[null,null,"HVAC INSTALLATIONS"]
[]
[null,null,"Supply, deliver and install the following HVAC units as per specification:"]
[]
[{"v":1,"d":"1 "},null,"3.5 kW cooling midwall split indoor unit",null,"No",{"v":1,"d":"1 "},null,{"$f":"ROUND($F1273*G1273,2)","v":0}]
[]
[{"v":2,"d":"2 "},null,"3.5 kW inverter type outdoor condensing unit",null,"No",{"v":1,"d":"1 "},null,{"$f":"ROUND($F1275*G1275,2)","v":0}]
[]
[{"v":3,"d":"3 "},null,"6.4 kW cooling throughwall type unit",null,"No",{"v":1,"d":"1 "},null,{"$f":"ROUND($F1277*G1277,2)","v":0}]
[]
[{"v":4,"d":"4 "},null,"Refrigeration copper piping with thermal insulation and all associated fittings",null,"m",{"v":5,"d":"5 "},null,{"$f":"ROUND($F1279*G1279,2)","v":0}]
[]
[{"v":5,"d":"5 "},null,"PVC condensate drain piping with insulation",null,"m",{"v":5,"d":"5 "},null,{"$f":"ROUND($F1281*G1281,2)","v":0}]
[]
[{"v":6,"d":"6 "},null,"Wired controller",null,"No",{"v":3,"d":"3 "},null,{"$f":"ROUND($F1283*G1283,2)","v":0}]
[]
[{"v":7,"d":"7 "},null,"Provide full service to the existing wall mounted unit and the outdoor condensing unit",null,"No",{"v":2,"d":"2 "},null,{"$f":"ROUND($F1285*G1285,2)","v":0}]
[]
[{"v":8,"d":"8 "},null,"Provide full service to the through wall / window type unit",null,"No",{"v":1,"d":"1 "},null,{"$f":"ROUND($F1287*G1287,2)","v":0}]
[]
[{"v":9,"d":"9 "},null,"Fabricate, supply, and install lockable security cages around each outdoor condensing unit",null,"No",{"v":3,"d":"3 "},null,{"$f":"ROUND($F1289*G1289,2)","v":0}]
[]
[{"v":10,"d":"10 "},null,"Application of approved coastal treatment for the outdoor condensing units",null,"No",{"v":5,"d":"5 "},null,{"$f":"ROUND($F1291*G1291,2)","v":0}]
[]
[null,null,"SECTION 5"]
[]
[null,null,"BILL NO. 2"]
[]
[null,null,"WET SERVICES"]
[]
[null,null,"COLD WATER INSTALLATION"]
[]
[null,null,"Supply, install, and commission the water reticulation systems per specification"]
[]
[null,null,"Class 12 HDPE piping laid and buried trenches not exceeding 800mm deep"]
[]
[{"v":1,"d":"1 "},null,"32mm diameter HDPE CI 12 underground water pipe",null,"m",{"v":45,"d":"45 "},null,{"$f":"ROUND($F1305*G1305,2)","v":0}]
[]
[null,null,"Fittings for HDPE class 12 piping"]
[]
[{"v":2,"d":"2 "},null,"25mm diameter Adaptor to pex piping",null,"m",{"v":1,"d":"1 "},null,{"$f":"ROUND($F1309*G1309,2)","v":0}]
[]
[{"v":3,"d":"3 "},null,"32mm - 28mm diameter Adaptor to pex piping",null,"m",{"v":1,"d":"1 "},null,{"$f":"ROUND($F1311*G1311,2)","v":0}]
[]
[{"v":4,"d":"4 "},null,"32mm diameter Equal tee",null,"m",{"v":2,"d":"2 "},null,{"$f":"ROUND($F1313*G1313,2)","v":0}]
[]
[{"v":5,"d":"5 "},null,"32mm diameter - 25mm diameter Reducer",null,"m",{"v":3,"d":"3 "},null,{"$f":"ROUND($F1315*G1315,2)","v":0}]
[]
[null,null,"PEX piping"]
[]
[{"v":6,"d":"6 "},null,"15mm diameter pipe",null,"m",{"v":10,"d":"10 "},null,{"$f":"ROUND($F1319*G1319,2)","v":0}]
[]
[{"v":7,"d":"7 "},null,"22mm diameter pipe",null,"m",{"v":10,"d":"10 "},null,{"$f":"ROUND($F1321*G1321,2)","v":0}]
[]
[null,null,"PEX piping fittings"]
[]
[{"v":8,"d":"8 "},null,"15mm diameter Elbow",null,"No",{"v":5,"d":"5 "},null,{"$f":"ROUND($F1325*G1325,2)","v":0}]
[]
[{"v":9,"d":"9 "},null,"22mm diameter Elbow",null,"No",{"v":5,"d":"5 "},null,{"$f":"ROUND($F1327*G1327,2)","v":0}]
[]
[{"v":10,"d":"10 "},null,"15mm diameter Equal tee",null,"No",{"v":5,"d":"5 "},null,{"$f":"ROUND($F1329*G1329,2)","v":0}]
[]
[{"v":11,"d":"11 "},null,"22mm diameter Equal tee",null,"No",{"v":5,"d":"5 "},null,{"$f":"ROUND($F1331*G1331,2)","v":0}]
[]
[{"v":12,"d":"12 "},null,"22-15mm diameter Reducer",null,"No",{"v":5,"d":"5 "},null,{"$f":"ROUND($F1333*G1333,2)","v":0}]
[]
[null,null,"Plastic pipe compression fittings and valves"]
[]
[{"v":13,"d":"13 "},null,"15mm diameter Female elbow",null,"No",{"v":5,"d":"5 "},null,{"$f":"ROUND($F1337*G1337,2)","v":0}]
[]
[{"v":14,"d":"14 "},null,"22mm diameter - 15mm diameter Female reducing tee",null,"No",{"v":5,"d":"5 "},null,{"$f":"ROUND($F1339*G1339,2)","v":0}]
[]
[{"v":15,"d":"15 "},null,"22mm diameter Isolation valve",null,"No",{"v":5,"d":"5 "},null,{"$f":"ROUND($F1341*G1341,2)","v":0}]
[]
[{"v":16,"d":"16 "},null,"22mm diameter strainer valve",null,"No",{"v":5,"d":"5 "},null,{"$f":"ROUND($F1343*G1343,2)","v":0}]
[]
[null,null,"Pipe hangers - anchor, treaded rod & hilti hanger"]
[]
[{"v":17,"d":"17 "},null,"15mm diameter",null,"No",{"v":5,"d":"5 "},null,{"$f":"ROUND($F1347*G1347,2)","v":0}]
[]
[{"v":18,"d":"18 "},null,"22mm diameter",null,"No",{"v":5,"d":"5 "},null,{"$f":"ROUND($F1349*G1349,2)","v":0}]
[]
[null,null,"Heavy brown paper loosely wrapped around pipe as shealth for expansion"]
[]
[{"v":19,"d":"19 "},null,"15-22mm diameter",null,"m",{"v":5,"d":"5 "},null,{"$f":"ROUND($F1353*G1353,2)","v":0}]
[]
[null,null,"Potable water system"]
[]
[{"v":20,"d":"20 "},null,"10 000 I PVC Potable water tank with all associated isolation valves and strainers",null,"No",{"v":1,"d":"1 "},null,{"$f":"ROUND($F1357*G1357,2)","v":0}]
[]
[{"v":21,"d":"21 "},null,"Variable speed potable water booster pump capable of delivering 2.3 I/s at 45m of H2O with all associated valves, fitting, PVC pipework, and auto start/stop control circuit.",null,"No",{"v":2,"d":"2 "},null,{"$f":"ROUND($F1359*G1359,2)","v":0}]
[]
[{"v":22,"d":"22 "},null,"Fabricate, supply, and install lockable security cages around the duty/standby potable water pumps",null,"No",{"v":1,"d":"1 "},null,{"$f":"ROUND($F1361*G1361,2)","v":0}]
[]
[{"v":23,"d":"23 "},null,"3.8 kW heat pump will all associated piping and fittings installed as per manufacturer's recommendation",null,"No",{"v":1,"d":"1 "},null,{"$f":"ROUND($F1363*G1363,2)","v":0}]
[]
[{"v":24,"d":"24 "},null,"Application of approved coastal treatment for the outdoor condensing units",null,"No",{"v":1,"d":"1 "},null,{"$f":"ROUND($F1365*G1365,2)","v":0}]
[]
[null,null,"DRAINAGE, ETC"]
[]
[null,null,"Sewer and drainage pipes and fittings shall be through solid wall Class 34 uPVC socketed soil piping in according to SABS 791, jointed and sealed with butyl rubber rings soil, waste and vent pipes and fittings shall be according to SABS 967 and solvent jointed cold water supply pressure pipes fittings shall be according SABS 966 and jointed by means of the \"Lyng\" type jointing system. Pipes shall be fixed and jointed according to SABS 0112"]
[]
[null,null,"Class 34 uPVC pipe"]
[]
[{"v":25,"d":"25 "},null,"50mm diameter pipe",null,"m",{"v":2,"d":"2 "},null,{"$f":"ROUND($F1373*G1373,2)","v":0}]
[]
[{"v":26,"d":"26 "},null,"110mm diameter pipe",null,"m",{"v":2,"d":"2 "},null,{"$f":"ROUND($F1375*G1375,2)","v":0}]
[]
[null,null,"Class 34 uPVC fittings"]
[]
[{"v":27,"d":"27 "},null,"50mm diameter 90 Deg bend",null,"No",{"v":2,"d":"2 "},null,{"$f":"ROUND($F1379*G1379,2)","v":0}]
[]
[{"v":28,"d":"28 "},null,"110mm diameter 90 Deg bend",null,"No",{"v":4,"d":"4 "},null,{"$f":"ROUND($F1381*G1381,2)","v":0}]
[]
[{"v":29,"d":"29 "},null,"110mm diameter 90 Deg access bend",null,"No",{"v":4,"d":"4 "},null,{"$f":"ROUND($F1383*G1383,2)","v":0}]
[]
[{"v":30,"d":"30 "},null,"50mm diameter 45 Deg bend",null,"No",{"v":2,"d":"2 "},null,{"$f":"ROUND($F1385*G1385,2)","v":0}]
[]
[{"v":31,"d":"31 "},null,"110mm diameter 45 Deg bend",null,"No",{"v":2,"d":"2 "},null,{"$f":"ROUND($F1387*G1387,2)","v":0}]
[]
[{"v":32,"d":"32 "},null,"110mm  diameter Pan connector",null,"No",{"v":4,"d":"4 "},null,{"$f":"ROUND($F1389*G1389,2)","v":0}]
[]
[{"v":33,"d":"33 "},null,"50mm diameter Equal access junction",null,"No",{"v":3,"d":"3 "},null,{"$f":"ROUND($F1391*G1391,2)","v":0}]
[]
[{"v":34,"d":"34 "},null,"110mm diameter - 50mm diameter junction",null,"No",{"v":2,"d":"2 "},null,{"$f":"ROUND($F1393*G1393,2)","v":0}]
[]
[{"v":35,"d":"35 "},null,"110mm diameter Equal access junction",null,"No",{"v":4,"d":"4 "},null,{"$f":"ROUND($F1395*G1395,2)","v":0}]
[]
[{"v":1,"d":"1 "},null,"HVAC Installations",{"$nulls":4},{"$f":"SUM(H1272:H1292)","v":0}]
[]
[{"v":2,"d":"2 "},null,"Wet Services",{"$nulls":4},{"$f":"SUM(H1297:H1395)","v":0}]
[]
[null,null,"SECTION 6"]
[]
[null,null,"BILL NO. 1"]
[]
[null,null,"PROVISIONAL AMOUNTS"]
[]
[null,null,"PREAMBLES"]
[]
[null,null,"The Model Preambles for Trades (2008 edition) as published by the Association of South African Quantity Surveyors shall be deemed to be incorporated in these bills of quantities and no claims arising from brevity of description of items fully described in the said Model Preambles will be entertained"]
[]
[null,null,"The following \"Supplementary Preambles\" are incorporated in this bill to satisfy the requirements of the project and shall take precedence over the provisions of the said Model Preambles"]
[]
[null,null,"SUPPLEMENTARY PREAMBLES"]
[]
[null,null,"General:"]
[]
[null,null,"Subcontract amounts are net.  Subcontract amounts are for material and equipment supplied and installed complete by firms of specialists"]
[]
[null,null,"Each subcontract amount may comprise more than one element of work.  Therefore, each subcontract amount may include for work to be carried out by more than one subcontractor"]
[]
[null,null,"Profit:"]
[]
[null,null,"Where stated, the contractor may allow for profit if required"]
[]
[null,null,"General attendance on nominated/selected subcontractors:"]
[]
[null,null,"The item \"General Attendance\" which follows each subcontract amount for nominated/selected subcontractors' work, shall be deemed to cover all the contractor's costs incurred in providing free of charge to the nominated/selected subcontractors, the following:"]
[]
[null,null,"1.  Access to the site and places where the subcontract work is to be carried out, including the reasonable use of any temporary personnel hoists erected by the contractor"]
[]
[null,null,"2.  The provision of water and lighting and of single phase electric power to a position within 50 metres of the place where the subcontract work is to be carried out but excluding water, fuel and power for commissioning of any installation"]
[]
[null,null,"3.  The provision of an area for the subcontractor to establish temporary office accommodation and workshops and for the storage of plant and materials"]
[]
[null,null,"4.  The use of erected scaffolding belonging to the contractor, in common with others having the like right, while it remains erected on the site"]
[]
[null,null,"5.  The use, at reasonable times by arrangement of the contractor's erected hoisting equipment"]
[]
[null,null,"6.  Making good in all trades and cleaning down and removal of rubbish on completion"]
[]
[null,null,"Special attendance on nominated/selected subcontractors:"]
[]
[null,null,"Where stated, special attendance as set out in clause 8.1 of section B of the Preliminaries will be described in detail in this bill"]
[]
[null,null,"Builder's work:"]
[]
[null,null,"Builder's work in connection with specialist services is given elsewhere in these bills of quantities"]
[]
[null,null,"STATION FIXED FURNITURE"]
[]
[{"v":1,"d":"1 "},null,"Subcontract amount of Twenty Five Thousand Rand for the provision and installation of station fixed furniture complete as directed by the Principal Agent to be deducted in whole or in part as necessary",null,"Item",{"v":1,"d":"1 "},null,{"$f":"ROUND($F1451*G1451,2)","v":0}]
[]
[{"v":2,"d":"2 "},null,"Profit",null,"%",{"v":0,"d":"0%"},null,{"$f":"ROUND($F1453*G1453,2)","v":0}]
[]
[{"v":3,"d":"3 "},null,"General Attendance",null,"%",{"v":0,"d":"0%"},null,{"$f":"ROUND($F1455*G1455,2)","v":0}]
[]
[null,null,"STATION SIGNAGE"]
[]
[{"v":4,"d":"4 "},null,"Subcontract amount of Fifty Thousand Rand for the provision and installation of station signage complete as directed by the Principal Agent to be deducted in whole or in part as necessary",null,"Item",{"v":1,"d":"1 "},null,{"$f":"ROUND($F1459*G1459,2)","v":0}]
[]
[{"v":5,"d":"5 "},null,"Profit",null,"%",{"v":0,"d":"0%"},null,{"$f":"ROUND($F1461*G1461,2)","v":0}]
[]
[{"v":6,"d":"6 "},null,"General attendance",null,"%",{"v":0,"d":"0%"},null,{"$f":"ROUND($F1463*G1463,2)","v":0}]
[]
[null,null,"BUILT-IN CUPBOARDS"]
[]
[{"v":7,"d":"7 "},null,"Subcontract amount of Twenty Five Thousand Rand for the provision and installation of Built-In Cupboards complete as directed by the Principal Agent to be deducted in whole or in part as necessary",null,"Item",{"v":1,"d":"1 "},null,{"$f":"ROUND($F1467*G1467,2)","v":0}]
[]
[{"v":8,"d":"8 "},null,"Profit",null,"%",{"v":0,"d":"0%"},null,{"$f":"ROUND($F1469*G1469,2)","v":0}]
[]
[{"v":9,"d":"9 "},null,"General attendance",null,"%",{"v":0,"d":"0%"},null,{"$f":"ROUND($F1471*G1471,2)","v":0}]
[]
[null,null,"COMMUNITY LIAISON OFFICER"]
[]
[{"v":10,"d":"10 "},null,"Subcontract amount of one Ninety Thousand Rand for Community Liaison Officer for a period of six (6) months",null,"Item",{"v":1,"d":"1 "},null,{"$f":"ROUND($F1475*G1475,2)","v":0}]
[]
[{"v":11,"d":"11 "},null,"Profit",null,"%",{"v":0,"d":"0%"},null,{"$f":"ROUND($F1477*G1477,2)","v":0}]
[]
[{"v":12,"d":"12 "},null,"General attendance",null,"%",{"v":0,"d":"0%"},null,{"$f":"ROUND($F1479*G1479,2)","v":0}]
[]
[null,null,"SUMMARY"]
[]
[{"v":1,"d":"1 "},null,"Preliminaries and General",{"$nulls":4},{"$f":"SUM(H4:H412)","v":0}]
[]
[{"v":2,"d":"2 "},null,"Building Works",{"$nulls":4},{"$f":"SUM(H1234:H1254)","v":0}]
[]
[{"v":3,"d":"3 "},null,"Electrical Installations",{"$nulls":4},{"$f":"SUM(H1263)","v":0}]
[]
[{"v":4,"d":"4 "},null,"Mechanical Installations",{"$nulls":4},{"$f":"SUM(H1396:H1400)","v":0}]
[]
[{"v":5,"d":"5 "},null,"Provisional Sums",{"$nulls":4},{"$f":"SUM(H1409:H1482)","v":0}]
[]
[null,null,"SUB TOTAL (EXCLUDING CONTINGENCIES)",{"$nulls":4},{"$f":"SUM(H1482:H1492)","v":0}]
[]
[null,null,"CONTRACT CONTINGENCIES"]
[]
[null,null,"Allow the sum of 10% for Contingencies to be spent as the Principal Agent may direct and to be deducted in whole or in part if not required",{"$nulls":4},{"$f":"H1493*0.1","v":0}]
[]
[null,null,"SUBTOTAL (INCLUDING CONTINGENCIES)",{"$nulls":4},{"$f":"SUM(H1492:H1498)","v":0}]
[]
[null,null,"VALUE ADDED TAX"]
[]
[null,null,"Value Added Tax",{"$nulls":4},{"$f":"H1499*0.15","v":0}]
[]
[null,null,"Carried to Form of Tender",{"$nulls":4},{"$f":"SUM(H1499:H1504)","v":0}]

{"sheet":"WARNER BEACH STATION","index":3,"n_rows":1809,"n_cols":15,"rows_kept":1809}
["COUNTER","ISC","SECTION","BILL","PAGE NO","ITEM NO","DOC REF","PAY REF",null,"DESCRIPTION",null,"UNIT","QUANTITY","RATE","AMOUNT"]
[]
[1,9549,1,1,1,null,"1",null,null,"SECTION NO. 1"]
[]
[2,9550,1,1,1,null,"1",null,null,"BILL NO. 1"]
[]
[3,9551,1,1,1,null,"1",null,null,"PRELIMINARIES AND GENERAL"]
[]
[4,9552,1,1,1,{"$nulls":4},"BUILDING AGREEMENT AND PRELIMINARIES"]
[]
[5,9553,1,1,1,null,"1",null,null,"The  JBCC Principal Building Agreement (May 2018 Edition 6.2) prepared by the Joint Building Contracts Committee shall be the applicable building agreement, amended as hereinafter described"]
[]
[6,9554,1,1,1,{"$nulls":4},"The JBCC Principal Building Agreement contract data form an integral part of this agreement"]
[]
[7,9555,1,1,1,null,"1",null,null,"The Preliminaries revision 1 (February 2016) published by the Association of South African Quantity Surveyors for use with the JBCC Principal Building Agreement Edition 6.2 shall be deemed to be incorporated in these bills of quantities, amended as hereinafter described"]
[]
[8,9556,1,1,1,null,"1",null,null,"The contractor is deemed to have referred to the abovementioned documents for the full intent and meaning of each clause"]
[]
[9,9557,1,1,1,null,"1",null,null,"The clauses in the abovementioned documents are hereinafter referred to by clause number and heading only"]
[]
[10,9558,1,1,1,null,"1",null,null,"Where any item is not relevant to this agreement such item is marked N/A signifying \"not applicable\""]
[]
[11,9559,1,1,1,{"$nulls":4},"PREAMBLES FOR TRADES"]
[]
[12,9560,1,1,1,{"$nulls":4},"The Model Preambles for Trades 2008 published by the Association of South African Quantity Surveyors is designed to support and extend the abbreviated descriptions utilised in these bills of quantities by inter alia referring to SANS construction standards."]
[]
[13,9561,1,1,1,{"$nulls":4},"Note that the text of the Standard System of Measuring Building Work (seventh edition) and that of the Standard Method of Measuring Building Work for Africa 2015 (first edition) is the same"]
[]
[14,9562,1,1,2,{"$nulls":4},"The Model Preambles for Trades 2008 as published by the Association of South African Quantity Surveyors shall be deemed to be incorporated in these bills of quantities and no claims arising from brevity of description of items fully described in the said Model Preambles will be entertained"]
[]
[15,9563,1,1,2,{"$nulls":4},"Supplementary preambles and/or specifications are incorporated in these bills of quantities to satisfy the requirements of this project. Such supplementary preambles and/or specifications shall take precedence over the provisions of the Model Preambles"]
[]
[16,9564,1,1,2,{"$nulls":4},"The contractor's prices for all items throughout these bills of quantities shall take account of and include for all of the obligations, requirements and specifications given in the Model Preambles and in any supplementary preambles and/or specifications"]
[]
[17,9566,1,1,3,{"$nulls":4},"NOTES TO TENDERERS"]
[]
[18,9568,1,1,3,null,"1",null,null,"Tenderers are to inspect the drawings issued with these Bills of Quantities and to satisfy themselves with the nature and the requirements of the Contract works. Failure to do so will be the complete responsibility of the Tenderer and no claims whatsoever will be entertained in this regard."]
[]
[19,9569,1,1,3,null,"1",null,null,"Tenderers are to read the descriptions, which are intended as a means of identifying various facets of the work, in conjunction with the drawings. Tenderers shall allow for all costs in connection with the various items taking full cognisance of both the drawings and the Bills of Quantities."]
[]
[20,9570,1,1,3,null,"2",null,null,"Tenderers shall notify the Quantity Surveyor in writing of any discrepancies encountered upon which clarification will be given by the Quantity Surveyor in writing to the Tenderer. Failure to do so will be the complete responsibility of the Tenderer and no claims whatsoever will be entertained in this regard"]
[]
[21,9571,1,1,3,null,"2",null,null,"Tenderers are to note that setting out of the works will be the complete responsibility of the Tenderer and they should therefore acquaint themselves with the site boundaries, site co-ordinates, datum levels etc. Failure to do so will be the complete responsibility of the Tenderer and no claims whatsoever will be entertained in this regard.  Tenderers are to note that all items with ZERO quantities are Rate Only items and should be priced as such."]
[]
[22,9572,1,1,3,null,"2",null,null,"Tenderers are to note that there might be specified suppliers to be used for certain trades as per the annexure to this tender document. Tenderers should familiarise themselves with the suppliers on the list and ensure to allow for accordingly. Failure to do so will be the complete responsibility of the Tenderer and no claims whatsoever will be entertained in this regard."]
[]
[23,9573,1,1,3,{"$nulls":4},"Tenderers are to fully acquaint themselves with the construction period and shall allow for any night shift if required. Failure to do so will be the complete responsibility of the Tenderer and no claims whatsoever will be entertained in this regard."]
[]
[24,9574,1,1,4,{"$nulls":4},"STRUCTURE OF THIS PRELIMINARIES BILL"]
[]
[25,9575,1,1,4,{"$nulls":4},"Section A : A recital of the headings of the individual clauses of the aforementioned JBCC Principal Building Agreement"]
[]
[26,9576,1,1,4,{"$nulls":4},"Section B : A recital of the headings of the individual clauses of the aforementioned Preliminaries document"]
[]
[27,9577,1,1,4,{"$nulls":4},"Section C : Any special clauses to meet the particular circumstances of the project"]
[]
[28,9578,1,1,4,{"$nulls":4},"PRICING OF PRELIMINARIES"]
[]
[29,9579,1,1,4,{"$nulls":4},"Should the contractor select Option A in the contract data for the adjustment of preliminaries, the amounts entered against the relevant items in these preliminaries are to be divided into one or more of the three categories provided namely fixed (F), value related (V) and time related (T)"]
[]
[30,9580,1,1,4,null,"2",null,null,"SECTION A: PRINCIPAL BUILDING AGREEMENT"]
[]
[31,9581,1,1,4,null,"2",null,null,"Interpretation (A1-A7)"]
[]
[32,9582,1,1,4,{"v":1,"d":"1 "},"2.1",null,null,"Clause 1.0 - Definitions and interpretation",null,"CONT"]
[]
[33,9583,1,1,4,{"$nulls":4},"F:............................. V:............................ T:............................",null,"Item",{"v":0,"d":"0 "},null,{"$f":"ROUND($M67*N67,2)","v":0}]
[]
[34,9584,1,1,4,{"v":2,"d":"2 "},"2.1",null,null,"Clause 2.0 - Law, regulations and notices",null,"CONT"]
[]
[35,9585,1,1,4,{"$nulls":4},"F:............................. V:............................ T:............................",null,"Item",{"v":0,"d":"0 "},null,{"$f":"ROUND($M71*N71,2)","v":0}]
[]
[36,9586,1,1,4,{"v":3,"d":"3 "},"2.2",null,null,"Clause 3.0 - Offer and acceptance  F:............................. V:............................ T:............................",null,"Item",{"v":0,"d":"0 "},null,{"$f":"ROUND($M73*N73,2)","v":0}]
[]
[37,9587,1,1,4,{"v":4,"d":"4 "},{"$nulls":3},"Clause 4.0 - Assignment and cession  F:............................. V:............................ T:............................",null,"Item",{"v":0,"d":"0 "},null,{"$f":"ROUND($M75*N75,2)","v":0}]
[]
[38,9588,1,1,5,{"v":5,"d":"5 "},{"$nulls":3},"Clause 5.0 - Contract documents",null,"CONT"]
[]
[39,9589,1,1,5,{"$nulls":4},"F:............................. V:............................ T:............................",null,"Item",{"v":0,"d":"0 "},null,{"$f":"ROUND($M79*N79,2)","v":0}]
[]
[40,9590,1,1,5,{"v":6,"d":"6 "},{"$nulls":3},"Clause 6.0 - Employer's agents",null,"CONT"]
[]
[41,9592,1,1,5,{"$nulls":4},"F:............................. V:............................ T:............................",null,"Item",{"v":0,"d":"0 "},null,{"$f":"ROUND($M83*N83,2)","v":0}]
[]
[42,9593,1,1,5,{"v":7,"d":"7 "},{"$nulls":3},"Clause 7.0 - Design responsibility  F:............................. V:............................ T:............................",null,"Item",{"v":0,"d":"0 "},null,{"$f":"ROUND($M85*N85,2)","v":0}]
[]
[43,9594,1,1,5,null,"2",null,null,"Insurance and security (A8-A11)"]
[]
[44,9595,1,1,5,{"v":8,"d":"8 "},{"$nulls":3},"Clause 8.0 - Works risk  F:............................. V:............................ T:............................",null,"Item",{"v":0,"d":"0 "},null,{"$f":"ROUND($M89*N89,2)","v":0}]
[]
[45,9596,1,1,5,{"v":9,"d":"9 "},{"$nulls":3},"Clause 9.0 - Indemnities  F:............................. V:............................ T:............................",null,"Item",{"v":0,"d":"0 "},null,{"$f":"ROUND($M91*N91,2)","v":0}]
[]
[46,9597,1,1,5,{"v":10,"d":"10 "},{"$nulls":3},"Clause 10.0 - Insurances  F:............................. V:............................ T:............................",null,"Item",{"v":0,"d":"0 "},null,{"$f":"ROUND($M93*N93,2)","v":0}]
[]
[47,9598,1,1,5,{"v":11,"d":"11 "},{"$nulls":3},"Clause 11.0 - Security",null,"CONT"]
[]
[48,9599,1,1,5,{"$nulls":4},"F:............................. V:............................ T:............................",null,"Item",{"v":0,"d":"0 "},null,{"$f":"ROUND($M97*N97,2)","v":0}]
[]
[49,9600,1,1,5,null,"3",null,null,"Execution (A12 - A17)"]
[]
[50,9601,1,1,5,{"v":12,"d":"12 "},"3.15",null,null,"Clause 12.0 - Duties of the parties",null,"CONT"]
[]
[51,9602,1,1,5,{"$nulls":4},"F:............................. V:............................ T:............................",null,"Item",{"v":1,"d":"1 "},null,{"$f":"ROUND($M103*N103,2)","v":0}]
[]
[52,9603,1,1,6,{"v":13,"d":"13 "},"3.16",null,null,"Clause 13.0 - Setting out  F:............................. V:............................ T:............................",null,"Item",{"v":0,"d":"0 "},null,{"$f":"ROUND($M105*N105,2)","v":0}]
[]
[53,9604,1,1,6,{"v":14,"d":"14 "},"3.20",null,null,"Clause 14.0 - Nominated subcontractors",null,"CONT"]
[]
[54,9605,1,1,6,{"$nulls":4},"F:............................. V:............................ T:............................",null,"Item",{"v":0,"d":"0 "},null,{"$f":"ROUND($M109*N109,2)","v":0}]
[]
[55,9606,1,1,6,{"v":15,"d":"15 "},"3.20",null,null,"Clause 15.0 - Selected subcontractors",null,"CONT"]
[]
[56,9607,1,1,6,{"$nulls":4},"F:............................. V:............................ T:............................",null,"Item",{"v":0,"d":"0 "},null,{"$f":"ROUND($M113*N113,2)","v":0}]
[]
[57,9608,1,1,6,{"v":16,"d":"16 "},{"$nulls":3},"Clause 16.0 - Direct contractors  Attendance on direct contractors  In respect of direct contractors the contractor shall:",null,"CONT"]
[]
[58,9609,1,1,6,null,"3.20",null,null,"F:............................. V:............................ T:............................",null,"Item",{"v":0,"d":"0 "},null,{"$f":"ROUND($M117*N117,2)","v":0}]
[]
[59,9610,1,1,6,{"v":17,"d":"17 "},"3.17",null,null,"Clause 17.0 - Contract instructions  Site instructions  Instructions issued on site are to be recorded in a site instruction book which is to be supplied and maintained on site by the contractor",null,"CONT"]
[]
[60,9611,1,1,6,{"$nulls":4},"F:............................. V:............................ T:............................",null,"Item",{"v":0,"d":"0 "},null,{"$f":"ROUND($M121*N121,2)","v":0}]
[]
[61,9612,1,1,6,null,"4",null,null,"Completion (A18 - A24)"]
[]
[62,9613,1,1,6,{"v":18,"d":"18 "},"3.18",null,null,"Clause 18.0 - Interim completion  F:............................. V:............................ T:............................",null,"Item",{"v":0,"d":"0 "},null,{"$f":"ROUND($M125*N125,2)","v":0}]
[]
[63,9614,1,1,6,{"v":19,"d":"19 "},"3.19",null,null,"Clause 19.0 - Practical completion   F:............................. V:............................ T:............................",null,"Item",{"v":0,"d":"0 "},null,{"$f":"ROUND($M127*N127,2)","v":0}]
[]
[64,9615,1,1,7,{"v":20,"d":"20 "},"3.20",null,null,"Clause 20.0 - Sectional completion",null,"CONT"]
[]
[65,9616,1,1,7,{"$nulls":4},"F:............................. V:............................ T:............................",null,"Item",{"v":0,"d":"0 "},null,{"$f":"ROUND($M131*N131,2)","v":0}]
[]
[66,9617,1,1,7,{"v":21,"d":"21 "},"4.21",null,null,"Clause 21.0 - Defects liability period and final completion",null,"CONT"]
[]
[67,9618,1,1,7,{"$nulls":4},"F:............................. V:............................ T:............................",null,"Item",{"v":0,"d":"0 "},null,{"$f":"ROUND($M135*N135,2)","v":0}]
[]
[68,9619,1,1,7,{"v":22,"d":"22 "},"4.22",null,null,"Clause 22.0 - Latent defects liability period F:............................. V:............................ T:............................",null,"Item",{"v":0,"d":"0 "},null,{"$f":"ROUND($M137*N137,2)","v":0}]
[]
[69,9620,1,1,7,{"v":23,"d":"23 "},"4.23",null,null,"Clause 23.0 - Revision of date for practical completion  Substitution of materials and goods  The removal or substitution of any materials and goods which do not conform to the specification or the contract drawings shall not constitute grounds for the extension of the construction period nor for the adjustment of the contract value [17.1.8, 23.1 & 2]",null,"CONT"]
[]
[70,9621,1,1,7,{"$nulls":4},"F:............................. V:............................ T:............................",null,"Item",{"v":0,"d":"0 "},null,{"$f":"ROUND($M141*N141,2)","v":0}]
[]
[71,9622,1,1,7,{"v":24,"d":"24 "},"4.24",null,null,"Clause 24.0 - Penalty for late or non-completion    F:............................. V:............................ T:............................",null,"Item",{"v":0,"d":"0 "},null,{"$f":"ROUND($M143*N143,2)","v":0}]
[]
[72,9623,1,1,7,null,"4",null,null,"Payment (A25 - A27)"]
[]
[73,9624,1,1,7,{"v":25,"d":"25 "},"4.25",null,null,"Clause 25.0 - Payment",null,"CONT"]
[]
[74,9625,1,1,7,{"$nulls":4},"F:............................. V:............................ T:............................",null,"Item",{"v":0,"d":"0 "},null,{"$f":"ROUND($M149*N149,2)","v":0}]
[]
[75,9626,1,1,7,{"v":26,"d":"26 "},"4.26",null,null,"Clause 26.0 - Adjustment of the contract value and final account",null,"CONT"]
[]
[76,9627,1,1,8,{"$nulls":4},"F:............................. V:............................ T:............................",null,"Item",{"v":0,"d":"0 "},null,{"$f":"ROUND($M153*N153,2)","v":0}]
[]
[77,9628,1,1,8,{"v":27,"d":"27 "},"4.27",null,null,"Clause 27.0 - Recovery of expense and/or loss  F:............................. V:............................ T:............................",null,"Item",{"v":0,"d":"0 "},null,{"$f":"ROUND($M155*N155,2)","v":0}]
[]
[78,9629,1,1,8,null,"5",null,null,"Suspension and termination (A28 - A29)"]
[]
[79,9630,1,1,8,{"v":28,"d":"28 "},"4.28",null,null,"Clause 28.0 - Suspension by the contractor",null,"CONT"]
[]
[80,9631,1,1,8,{"$nulls":4},"F:............................. V:............................ T:............................",null,"Item",{"v":0,"d":"0 "},null,{"$f":"ROUND($M161*N161,2)","v":0}]
[]
[81,9632,1,1,8,{"v":29,"d":"29 "},"4.29",null,null,"Clause 29.0 - Termination",null,"CONT"]
[]
[82,9633,1,1,8,{"$nulls":4},"F:............................. V:............................ T:............................",null,"Item",{"v":0,"d":"0 "},null,{"$f":"ROUND($M165*N165,2)","v":0}]
[]
[83,9634,1,1,8,null,"6",null,null,"Dispute resolution (A30)"]
[]
[84,9635,1,1,8,{"v":30,"d":"30 "},"4.30",null,null,"Clause 30.0 - Dispute resolution  F:............................. V:............................ T:............................",null,"Item",{"v":0,"d":"0 "},null,{"$f":"ROUND($M169*N169,2)","v":0}]
[]
[85,9636,1,1,8,{"$nulls":4},"The required information of the parties and the amount of the contract sum shall be inserted in the agreement for signature of the agreement by the parties  F:............................. V:............................ T:............................",null,"Item",{"v":0,"d":"0 "},null,{"$f":"ROUND($M171*N171,2)","v":0}]
[]
[86,9637,1,1,8,{"$nulls":4},"F:............................. V:............................ T:............................",null,"Item",{"v":0,"d":"0 "},null,{"$f":"ROUND($M173*N173,2)","v":0}]
[]
[87,10735,1,1,9,null,"9",null,null,"42.1  \tCONTRACTING AND OTHER PARTIES"]
[]
[88,10736,1,1,9,null,"9",null,null,"42.1.1Employer: Passenger Rail Agency of South AfricaPostal address: PO Box 51324Durban4062Tel.: \t(031) 813 0376Physical Address:65 Masabalala Yengwa AvenueDurban StationDurban4000"]
[]
[89,10738,1,1,9,null,"11",null,null,"42.2  \tCONTRACT DETAILS"]
[]
[90,10739,1,1,9,null,"11",null,null,"42.2.1 \tWorks Description: Refurbishment, Alterations and Additions at Warner Beach Station for a period of six (6) months"]
[]
[91,10740,1,1,9,null,"11",null,null,"42.2.2 \tSite Description: \t\t\tWarner Beach Train Station\t"]
[]
[92,10741,1,1,9,null,"11",null,null,"42.2.3 \tWork or installations by direct contractors:  N/A"]
[]
[93,10742,1,1,9,null,"11",null,null,"42.2.4 \tThis agreement is for a government contract where there are specific options that are applicable to a State organ only Yes"]
[]
[94,10743,1,1,10,null,"11",null,null,"42.2.5 \tDate on which possession of the site is intended to be given: TBC"]
[]
[95,10744,1,1,10,null,"12",null,null,"42.2.6 \tPeriod for the commencement of the works after the contractor takes possession: TBC"]
[]
[96,10745,1,1,10,null,"12",null,null,"42.2.7 \tFor the works as a whole. Intended date of practical completion and the penalty per calendar day Six (6) Months after contractual commencement date               0.04% of contract amount per calender day Penalty Amount"]
[]
[97,10746,1,1,10,null,"12",null,null,"42.2.8\tFor the works in sections:  Intended date of practical completion and the penalty per calender day: N/A"]
[]
[98,10747,1,1,10,null,"12",null,null,"42.2.9 The law applicable to this agreement shall be that of South Africa     (country)"]
[]
[99,10748,1,1,10,null,"12",null,null,"42.3 \tINSURANCES"]
[]
[100,10749,1,1,10,null,"12",null,null,"42.3.1 \tContract works insurance to be effected by:Contractor: For the Sum of R Contract Amount  30.00 % With a deductible of - to be determined by the contractor"]
[]
[101,10750,1,1,10,null,"12",null,null,"42.3.2 \tSupplementary insurance is required No"]
[]
[102,10751,1,1,11,null,"12",null,null,"42.3.3 \tPublic liability insurance to be effected by:Contractor: For the Sum of R 1 000 000-00With a deductible of - to be determined by the contractor"]
[]
[103,10752,1,1,11,null,"13",null,null,"42.4 \tDOCUMENTS"]
[]
[104,10753,1,1,11,null,"13",null,null,"42.4.1 \tWaivers of contractors lien or right of continuing possession is required  \tYes"]
[]
[105,10754,1,1,11,null,"13",null,null,"42.4.2 \tNumber of construction document copies to be \tsupplied to the contractor free of charge: 3   Number of"]
[]
[106,10755,1,1,11,null,"13",null,null,"42.4.3 \tBills of Quantities/Lump sum document schedule of rates drawn up in accordance with:  \t\"€œStandard System of Measuring Builders\"€™ Work\"€\u009d"]
[]
[107,10756,1,1,11,null,"13",null,null,"42.4.4 \tOn acceptance of the tender the bills of quantities/lump sum document is to be submitted within:  The priced bills of quantities must be handed in with the tender"]
[]
[108,10757,1,1,11,null,"13",null,null,"42.4.5 \tJBCC Engineering General Conditions are to be included in the contract documents: No"]
[]
[109,10758,1,1,11,null,"13",null,null,"42.4.6 \tThe contract value is to be adjusted using escalation adjustment indices  N/A \tWhere JBCC CPAP is to be used Base Month    N/A"]
[]
[110,10759,1,1,11,null,"13",null,null,"42.4.7 \tDetails of changes made to the provision of JBCC standard documentation:"]
[]
[111,9638,1,1,11,null,"9",null,null,"SECTION B:  PRELIMINARIES"]
[]
[112,9639,1,1,12,null,"9",null,null,"Interpretation (B1)"]
[]
[113,9640,1,1,12,{"v":31,"d":"31 "},"9.45",null,null,"Clause 1.1 - Definitions  F:............................. V:............................ T:............................",null,"Item",{"v":0,"d":"0 "},null,{"$f":"ROUND($M227*N227,2)","v":0}]
[]
[114,9641,1,1,12,{"v":32,"d":"32 "},"9.45",null,null,"Clause 1.2 - Interpretation  F:............................. V:............................ T:............................",null,"Item",{"v":0,"d":"0 "},null,{"$f":"ROUND($M229*N229,2)","v":0}]
[]
[115,9642,1,1,12,null,"9",null,null,"Documents (B2)"]
[]
[116,9643,1,1,12,{"v":33,"d":"33 "},"9.46",null,null,"Clause 2.1 - Checking of documents  F:............................. V:............................ T:............................",null,"Item",{"v":0,"d":"0 "},null,{"$f":"ROUND($M233*N233,2)","v":0}]
[]
[117,9644,1,1,12,{"v":34,"d":"34 "},"9.47",null,null,"Clause 2.2 - Provisional bills of quantities",null,"CONT"]
[]
[118,9645,1,1,12,{"$nulls":4}," F:............................. V:............................ T:............................",null,"Item",{"v":0,"d":"0 "},null,{"$f":"ROUND($M237*N237,2)","v":0}]
[]
[119,9646,1,1,12,{"v":35,"d":"35 "},"9.48",null,null,"Clause 2.3 - Availability of construction information   F:............................. V:............................ T:............................",null,"Item",{"v":0,"d":"0 "},null,{"$f":"ROUND($M239*N239,2)","v":0}]
[]
[120,9647,1,1,12,{"v":36,"d":"36 "},"9.48",null,null,"Clause 2.4 - Ordering of materials and goods  F:............................. V:............................ T:............................",null,"Item",{"v":0,"d":"0 "},null,{"$f":"ROUND($M241*N241,2)","v":0}]
[]
[121,9648,1,1,12,null,"10",null,null,"Previous work and adjoining properties (B3)"]
[]
[122,9649,1,1,12,{"v":37,"d":"37 "},{"$nulls":3},"Clause 3.1 - Previous work - dimensional accuracy  F:............................. V:............................ T:............................",null,"Item",{"v":0,"d":"0 "},null,{"$f":"ROUND($M245*N245,2)","v":0}]
[]
[123,9650,1,1,12,{"v":38,"d":"38 "},{"$nulls":3},"Clause 3.2 - Previous work - defects  F:............................. V:............................ T:............................",null,"Item",{"v":0,"d":"0 "},null,{"$f":"ROUND($M247*N247,2)","v":0}]
[]
[124,9651,1,1,13,{"v":39,"d":"39 "},{"$nulls":3},"Clause 3.3 - Inspection of adjoining properties  F:............................. V:............................ T:............................",null,"Item",{"v":0,"d":"0 "},null,{"$f":"ROUND($M249*N249,2)","v":0}]
[]
[125,9652,1,1,13,null,"11",null,null,"The site (B4)"]
[]
[126,9653,1,1,13,{"v":40,"d":"40 "},"11.69",null,null,"Clause 4.1 - Defined works area  F:............................. V:............................ T:...........................",null,"Item",{"v":0,"d":"0 "},null,{"$f":"ROUND($M253*N253,2)","v":0}]
[]
[127,9654,1,1,13,{"v":41,"d":"41 "},"11.70",null,null,"Clause 4.2 - Handover of site in stages  F:............................. V:............................ T:............................",null,"Item",{"v":0,"d":"0 "},null,{"$f":"ROUND($M255*N255,2)","v":0}]
[]
[128,9655,1,1,13,{"v":42,"d":"42 "},"11.71",null,null,"Clause 4.3 - Enclosure of the works  F:............................. V:............................ T:............................",null,"Item",{"v":0,"d":"0 "},null,{"$f":"ROUND($M257*N257,2)","v":0}]
[]
[129,9656,1,1,13,{"v":43,"d":"43 "},{"$nulls":3},"Clause 4.4 - Geotechnical investigation  F:............................. V:............................ T:............................",null,"Item",{"v":0,"d":"0 "},null,{"$f":"ROUND($M259*N259,2)","v":0}]
[]
[130,9657,1,1,13,{"v":44,"d":"44 "},"11.70",null,null,"Clause 4.5 - Encroachments  F:............................. V:............................ T:............................",null,"Item",{"v":0,"d":"0 "},null,{"$f":"ROUND($M261*N261,2)","v":0}]
[]
[131,9658,1,1,13,{"v":45,"d":"45 "},"11.71",null,null,"Clause 4.6 - Existing premises occupied  F:............................. V:............................ T:............................",null,"Item",{"v":0,"d":"0 "},null,{"$f":"ROUND($M263*N263,2)","v":0}]
[]
[132,9659,1,1,13,{"v":46,"d":"46 "},"11.72",null,null,"Clause 4.7 - Services - known  F:............................. V:............................ T:............................",null,"Item",{"v":0,"d":"0 "},null,{"$f":"ROUND($M265*N265,2)","v":0}]
[]
[133,9660,1,1,13,{"v":47,"d":"47 "},"11.69",null,null,"Clause 4.8 - Protection of trees and/or relevant natural features  F:............................. V:............................ T:...........................",null,"Item",{"v":0,"d":"0 "},null,{"$f":"ROUND($M267*N267,2)","v":0}]
[]
[134,9661,1,1,14,null,"12",null,null,"Management of contract (B5)"]
[]
[135,9662,1,1,14,{"v":48,"d":"48 "},"12.73",null,null,"Clause 5.1 - Management of the works  F:............................. V:............................ T:............................",null,"Item",{"v":0,"d":"0 "},null,{"$f":"ROUND($M271*N271,2)","v":0}]
[]
[136,9663,1,1,14,{"v":49,"d":"49 "},"12.76",null,null,"Clause 5.2 - Progress meetings  F:............................. V:............................ T:............................",null,"Item",{"v":0,"d":"0 "},null,{"$f":"ROUND($M273*N273,2)","v":0}]
[]
[137,9664,1,1,14,{"v":50,"d":"50 "},"12.79",null,null,"Clause 5.3 - Technical meetings  F:............................. V:............................ T:............................",null,"Item",{"v":0,"d":"0 "},null,{"$f":"ROUND($M275*N275,2)","v":0}]
[]
[138,9665,1,1,14,null,"11",null,null,"Samples, shop drawings and manufacturer's instructions (B6)"]
[]
[139,9666,1,1,14,{"v":51,"d":"51 "},"11.69",null,null,"Clause 6.1 - Samples of materials  F:............................. V:............................ T:...........................",null,"Item",{"v":0,"d":"0 "},null,{"$f":"ROUND($M279*N279,2)","v":0}]
[]
[140,9667,1,1,14,{"v":52,"d":"52 "},"11.70",null,null,"Clause 6.2 - Workmanship samples  F:............................. V:............................ T:............................",null,"Item",{"v":0,"d":"0 "},null,{"$f":"ROUND($M281*N281,2)","v":0}]
[]
[141,9668,1,1,14,{"v":53,"d":"53 "},"11.71",null,null,"Clause 6.3 - Shop drawings  F:............................. V:............................ T:............................",null,"Item",{"v":0,"d":"0 "},null,{"$f":"ROUND($M283*N283,2)","v":0}]
[]
[142,9669,1,1,14,{"v":54,"d":"54 "},"11.72",null,null,"Clause 6.4 - Compliance with manufacturer's instructions  F:............................. V:............................ T:............................",null,"Item",{"v":0,"d":"0 "},null,{"$f":"ROUND($M285*N285,2)","v":0}]
[]
[143,9670,1,1,14,null,"12",null,null,"Deposits and fees (B7)"]
[]
[144,9671,1,1,14,{"v":55,"d":"55 "},"12.73",null,null,"Clause 7.1 - Deposits and fees  F:............................. V:............................ T:............................",null,"Item",{"v":0,"d":"0 "},null,{"$f":"ROUND($M289*N289,2)","v":0}]
[]
[145,9672,1,1,15,null,"12",null,null,"Temporary services (B8)"]
[]
[146,9673,1,1,15,{"v":56,"d":"56 "},"12.76",null,null,"Clause 8.1 - Water  F:............................. V:............................ T:............................",null,"Item",{"v":0,"d":"0 "},null,{"$f":"ROUND($M293*N293,2)","v":0}]
[]
[147,9674,1,1,15,{"v":57,"d":"57 "},"12.77",null,null,"Clause 8.2 - Electricity  F:............................. V:............................ T:............................",null,"Item",{"v":0,"d":"0 "},null,{"$f":"ROUND($M295*N295,2)","v":0}]
[]
[148,9675,1,1,15,{"v":58,"d":"58 "},"12.79",null,null,"Clause 8.3 - Ablution and welfare facilities  F:............................. V:............................ T:............................",null,"Item",{"v":0,"d":"0 "},null,{"$f":"ROUND($M297*N297,2)","v":0}]
[]
[149,9676,1,1,15,{"v":59,"d":"59 "},"12.78",null,null,"Clause 8.4 - Communication facilities  F:............................. V:............................ T:............................",null,"Item",{"v":0,"d":"0 "},null,{"$f":"ROUND($M299*N299,2)","v":0}]
[]
[150,9677,1,1,15,null,"12",null,null,"Prime cost amounts (B9)"]
[]
[151,9678,1,1,15,{"v":60,"d":"60 "},"12.82",null,null,"Clause 9.1 - Responsibility for prime cost amounts",null,"CONT"]
[]
[152,9679,1,1,15,{"$nulls":4}," F:............................. V:............................ T:............................",null,"Item",{"v":0,"d":"0 "},null,{"$f":"ROUND($M305*N305,2)","v":0}]
[]
[153,9680,1,1,15,null,"13",null,null,"Attendance on subcontractors (B10)"]
[]
[154,9681,1,1,15,{"v":61,"d":"61 "},"12.78",null,null,"Clause 10.1 - General attendance   F:............................. V:............................ T:............................",null,"Item",{"v":0,"d":"0 "},null,{"$f":"ROUND($M309*N309,2)","v":0}]
[]
[155,9682,1,1,15,{"v":62,"d":"62 "},{"$nulls":3},"Clause 10.2 - Special attendance",null,"CONT"]
[]
[156,9683,1,1,15,null,"13.87",null,null," F:............................. V:............................ T:............................",null,"Item",{"v":0,"d":"0 "},null,{"$f":"ROUND($M313*N313,2)","v":0}]
[]
[157,9684,1,1,16,null,"13",null,null,"General (B11)"]
[]
[158,9685,1,1,16,{"v":63,"d":"63 "},"13.88",null,null,"Clause 11.1 - Protection of the works  F:............................. V:............................ T:............................",null,"Item",{"v":0,"d":"0 "},null,{"$f":"ROUND($M317*N317,2)","v":0}]
[]
[159,9686,1,1,16,{"v":64,"d":"64 "},"13.89",null,null,"Clause 11.2 - Protection/isolation of existing/sectionally occupied works  F:............................. V:............................ T:............................",null,"Item",{"v":0,"d":"0 "},null,{"$f":"ROUND($M319*N319,2)","v":0}]
[]
[160,9687,1,1,16,{"v":65,"d":"65 "},{"$nulls":3},"Clause 11.3 - Security of the works  F:............................. V:............................ T:............................",null,"Item",{"v":0,"d":"0 "},null,{"$f":"ROUND($M321*N321,2)","v":0}]
[]
[161,9688,1,1,16,{"v":66,"d":"66 "},{"$nulls":3},"Clause 11.4 - Notice before covering work  F:............................. V:............................ T:............................",null,"Item",{"v":0,"d":"0 "},null,{"$f":"ROUND($M323*N323,2)","v":0}]
[]
[162,9689,1,1,16,{"v":67,"d":"67 "},{"$nulls":3},"Clause 11.5 - Disturbance  F:............................. V:............................ T:............................",null,"Item",{"v":0,"d":"0 "},null,{"$f":"ROUND($M325*N325,2)","v":0}]
[]
[163,9690,1,1,16,{"$nulls":4},"Clause 11.6 - Environmental disturbance  F:............................. V:............................ T:............................",null,"Item",{"v":0,"d":"0 "},null,{"$f":"ROUND($M327*N327,2)","v":0}]
[]
[164,9691,1,1,16,{"v":68,"d":"68 "},{"$nulls":3},"Clause 11.7 - Works cleaning and clearing  F:............................. V:............................ T:............................",null,"Item",{"v":0,"d":"0 "},null,{"$f":"ROUND($M329*N329,2)","v":0}]
[]
[165,9692,1,1,16,{"v":69,"d":"69 "},{"$nulls":3},"Clause 11.8 - Vermin  F:............................. V:............................ T:............................",null,"Item",{"v":0,"d":"0 "},null,{"$f":"ROUND($M331*N331,2)","v":0}]
[]
[166,9693,1,1,16,{"v":70,"d":"70 "},{"$nulls":3},"Clause 11.9 - Overhand work  F:............................. V:............................ T:............................",null,"Item",{"v":0,"d":"0 "},null,{"$f":"ROUND($M333*N333,2)","v":0}]
[]
[167,9695,1,1,17,{"v":71,"d":"71 "},{"$nulls":3},"Clause 11.11 - Advertising  F:............................. V:............................ T:............................",null,"Item",{"v":0,"d":"0 "},null,{"$f":"ROUND($M335*N335,2)","v":0}]
[]
[168,9696,1,1,17,null,"13",null,null,"Preliminaries schedule (B12)"]
[]
[169,9697,1,1,17,{"v":72,"d":"72 "},{"$nulls":3},"Information for completion of the preliminaries schedule  Information necessary for elections and completion of those clauses contained in the preliminaries schedule which are necessary for tender purposes is given hereunder. Where no information is given it shall mean that no specific requirements are expected or that the clause is not relevant to this specific contract",null,"CONT"]
[]
[170,9698,1,1,17,{"$nulls":4},"12.1 -\tProvisional bills of quantities [2.2]  \tThe quantities are provisional - Yes"]
[]
[171,9699,1,1,17,{"$nulls":4},"12.2 -\tAvailability of construction information [2.3]  \tConstruction documentation is complete - Yes"]
[]
[172,9700,1,1,17,{"$nulls":4},"12.3 -\tPrevious work - dimensional accuracy [3.1]"]
[]
[173,9701,1,1,17,{"$nulls":4},"12.4 -\tPrevious work - defects [3.2]"]
[]
[174,9702,1,1,17,{"$nulls":4},"12.5 -\tInspection of adjoining properties [3.3]"]
[]
[175,9703,1,1,17,{"$nulls":4},"12.6 -\tDefined works area [4.1]"]
[]
[176,9704,1,1,17,{"$nulls":4},"12.7 -\tHandover of site in stages [4.2]"]
[]
[177,9705,1,1,17,null,"12.76",null,null,"12.8 -\tEnclosure of the works [4.3]"]
[]
[178,9706,1,1,17,{"$nulls":4},"12.9 -\tGeotechnical investigation [4.4]"]
[]
[179,9707,1,1,17,{"$nulls":4},"12.10 -\tExisting premises occupied [4.6]"]
[]
[180,9708,1,1,17,{"$nulls":4},"12.11 -\tServices - known [4.7]"]
[]
[181,9709,1,1,17,{"$nulls":4},"12.12 -\tProtection of trees and/or relevant natural features \t[4.8]"]
[]
[182,9710,1,1,18,{"$nulls":4},"12.13 -\tWater [8.1]  \tOption A (by contractor) - Yes  \tOption B (by employer - free of charge)\t - No  \tOption C (by employer - metered) -  No"]
[]
[183,9711,1,1,18,{"$nulls":4},"12.14 -\tElectricity [8.2]\tOption A (by contractor) - Yes\tOption B (by employer - free of charge)\t - No\tOption C (by employer - metered) -  No"]
[]
[184,9712,1,1,18,{"$nulls":4},"12.15 -\tAblution and welfare facilities [8.3]  \tOption A (by contractor) - Yes  \tOption B (by employer - free of charge)\t - No"]
[]
[185,9713,1,1,18,{"$nulls":4},"12.16 -\tCommunication facilities [8.4]"]
[]
[186,9714,1,1,18,{"$nulls":4},"12.17 -\tProtection of the works [11.1]"]
[]
[187,9715,1,1,18,{"$nulls":4},"12.18 -\tProtection/isolation of existing/sectionally occupied works [11.2]  \tProtection/isolation is required - Yes"]
[]
[188,9716,1,1,18,{"$nulls":4},"12.19 -\tDisturbance [11.5]"]
[]
[189,9717,1,1,18,{"$nulls":4},"12.20 -\tEnvironmental disturbance [11.6]"]
[]
[190,9718,1,1,18,{"$nulls":4},"Controlling all forms of pollution  The contractor shall be responsible for and take all precautions in controlling by whatever means necessary all forms of pollution emanating from the site during the construction period due inter alia to noise, artificial light, wind-blown sand, dust, deposits of mud, etc"]
[]
[191,9719,1,1,18,{"$nulls":4},"The contractor is to ensure that all roads which border the site and is used by the contractor during the execution of the works are kept clean and free of any dirt or debris caused by the execution of the works"]
[]
[192,9720,1,1,19,{"$nulls":4},"F:............................. V:............................ T:............................",null,"Item",{"v":0,"d":"0 "},null,{"$f":"ROUND($M385*N385,2)","v":0}]
[]
[193,9721,1,1,19,null,"17",null,null,"SECTION  C: SPECIFIC PRELIMINARIES"]
[]
[194,9722,1,1,19,{"$nulls":4},"Section C Section C contains specific preliminary items which apply to this contract except where N/A (Not Applicable) appears against an item"]
[]
[195,9723,1,1,19,{"$nulls":4},"The warranty will not be enforced if the work is damaged by defects in the execution of the works, in which case the responsibility for replacement shall rest entirely with the contractor  F:............................. V:............................ T:............................",null,"Item",{"v":0,"d":"0 "},null,{"$f":"ROUND($M391*N391,2)","v":0}]
[]
[196,9724,1,1,19,{"v":73,"d":"73 "},{"$nulls":3},"Overtime  Should overtime be required to be worked for any reason whatsoever, the cost of such overtime is to be borne by the contractor unless the principal agent has specifically authorised, prior to execution thereof, that costs for such overtime are to be borne by the employer  F:............................. V:............................ T:............................",null,"Item",{"v":0,"d":"0 "},null,{"$f":"ROUND($M393*N393,2)","v":0}]
[]
[197,9725,1,1,19,{"v":74,"d":"74 "},{"$nulls":3},"Co-operation of the contractor for cost management  It is specifically agreed that the contractor accepts the obligation of assisting the principal agent in implementing proper cost management. The contractor will be advised by the principal agent of all cost management procedures which will be implemented to ensure that the contract value does not exceed the budget  F:............................. V:............................ T:............................",null,"Item",{"v":0,"d":"0 "},null,{"$f":"ROUND($M395*N395,2)","v":0}]
[]
[198,9726,1,1,20,{"v":75,"d":"75 "},{"$nulls":3},"Overloading  The contractor shall take all necessary steps to ensure that no damage occurs due to overloading of any portion of the works or temporary works eg scaffolding, etc. The contractor shall submit details of his proposed loading, storage, plant erection, etc to the principal agent for approval prior to proceeding with such loading, storing or erecting and shall comply with and pay for the principal agent's requirements in connection with the provision of temporary support work, etc. Any damage caused to the works by overloading shall be made good by the contractor at his sole expense  F:............................. V:............................ T:............................",null,"Item",{"v":0,"d":"0 "},null,{"$f":"ROUND($M397*N397,2)","v":0}]
[]
[199,9727,1,1,20,{"v":76,"d":"76 "},{"$nulls":3},"Propping of floors below  The contractor is advised that propping of floors below may be required if he wishes to use any areas of completed suspended reinforced concrete slabs for vehicle access, storage of materials and goods and location of plant, scaffolding, etc. The location of these areas and any necessary propping shall be approved by the principal agent and the cost thereof shall be borne by the contractor  F:............................. V:............................ T:............................",null,"Item",{"v":0,"d":"0 "},null,{"$f":"ROUND($M399*N399,2)","v":0}]
[]
[200,9728,1,1,20,{"v":77,"d":"77 "},{"$nulls":3},"Testing of flat roof waterproofing for watertightness  Flat roof waterproof areas shall be prepared with small sand dykes around them of a size and enclosing an area approved by the principal agent, flooded with water and kept \"ponded\" for at least forty (40) hours as a test to ensure the watertightness of the waterproofing and before any further construction work is carried out above the waterproofing  F:............................. V:............................ T:............................",null,"Item",{"v":0,"d":"0 "},null,{"$f":"ROUND($M401*N401,2)","v":0}]
[]
[201,9729,1,1,21,{"$nulls":4},"The contractor is to submit to the principal agent on an annual basis a schedule of spend, split into vendors engaged as subcontractors and suppliers indicating their BBBEE rating including proof of the said rating  F:............................. V:............................ T:............................",null,"Item",{"v":0,"d":"0 "},null,{"$f":"ROUND($M403*N403,2)","v":0}]
[]
[202,9730,1,1,21,{"v":78,"d":"78 "},{"$nulls":3},"Advertising rights  The employer may elect to contract with advertising agencies for the erection of advertising hoardings, banners, wraps or the like for the duration of the contract. The contractor shall not prevent such an arrangement and will assist in the facilitation of same. Position and type of advertising structure to be agreed with the principal agent so as not to hinder the contractor in meeting the obligations under this agreement  F:............................. V:............................ T:............................",null,"Item",{"v":0,"d":"0 "},null,{"$f":"ROUND($M405*N405,2)","v":0}]
[]
[203,9731,1,1,21,{"v":79,"d":"79 "},{"$nulls":3},"Confidentiality  The contractor undertakes to maintain in confidence any and all information regarding this project and shall obtain appropriate similar undertakings from all subcontractors and suppliers. Such information shall not be used in any way except in connection with the execution of the works  No information regarding this project shall be published or disclosed without the prior written consent of the employer  F:............................. V:............................ T:............................",null,"Item",{"v":0,"d":"0 "},null,{"$f":"ROUND($M407*N407,2)","v":0}]
[]
[204,9732,1,1,22,{"v":80,"d":"80 "},{"$nulls":3},"Media releases  All rights of publication of articles in the media, together with any advertising relating thereto or in any way connected with this project, shall vest with the employer  The contractor together with his subcontractors shall not, without the prior written consent of the employer, cause any statement or advertisement connected with this project to be printed, screened or aired by the media  F:............................. V:............................ T:............................",null,"Item",{"v":0,"d":"0 "},null,{"$f":"ROUND($M409*N409,2)","v":0}]
[]
[205,9733,1,1,22,null,"18",null,null,"SUMMARY OF CATEGORIES"]
[]
[206,9734,1,1,22,null,"18",null,null,"Category : Fixed   R........................................  Category : Value   R........................................  Category : Time    R........................................"]
[]
[208,527,2,1,23,{"$nulls":4},"SECTION 2"]
[]
[209,528,2,1,23,null,"8",null,null,"BILL NO.1"]
[]
[210,529,2,1,23,null,"8",null,null,"ALTERATIONS (PROVISIONAL)"]
[]
[211,531,2,1,23,null,"49",null,null,"WORK GROUP ALLOCATION"]
[]
[212,532,2,1,23,null,"49",null,null,"Unless otherwise stated, all items in this Bill will be allocated to Work Group 102 - Alterations"]
[]
[213,533,2,1,23,null,"49",null,null,"PREAMBLES"]
[]
[214,534,2,1,23,null,"49",null,null,"The General Preambles for Trades (2017 edition), as published by the Association of South African Quantity Surveyors, shall be deemed to be incorporated in these bills of quantities and no claims arising from brevity of description of items, fully described in the said General Preambles, will be entertained"]
[]
[215,535,2,1,23,null,"49",null,null,"The following \"Supplementary Preambles\" are incorporated in this bill to satisfy the requirements of the project and shall take precedence over the provisions of the said General Preambles"]
[]
[216,536,2,1,23,null,"8",null,null,"SUPPLEMENTARY PREAMBLES"]
[]
[217,537,2,1,23,null,"49",null,null,"View site:"]
[]
[218,538,2,1,23,null,"49",null,null,"Before submitting his tender, the Contractor shall visit the site and satisfy himself as to the nature and extent of the work to be done and the value of the materials contained in the buildings or portions of the buildings to be demolished.  No claim for any variations of the contract sum in respect of the nature and extent of the work or of inferior or damaged materials will be entertained"]
[]
[219,539,2,1,23,null,"49",null,null,"Old materials to become property of the Contractor:"]
[]
[220,540,2,1,23,null,"49",null,null,"Old materials from alterations, except where described as to be re-used or handed over, become the property of the Contractor, who must allow credit for same in the last item of the \"Alterations\" trade"]
[]
[221,541,2,1,24,null,"50",null,null,"Old materials to be carted away:"]
[]
[222,542,2,1,24,null,"50",null,null,"Old materials from the alterations, except where described as to be re-used or handed over, as well as all rubbish, etc must be regularly carted from the site and not be allowed to accumulate on or around the site"]
[]
[223,543,2,1,24,null,"50",null,null,"Old materials to be re-used:"]
[]
[224,544,2,1,24,null,"50",null,null,"None of the old materials are to be used for new work, except where specifically described as being set aside for re-use"]
[]
[225,545,2,1,24,null,"50",null,null,"Handing over of materials:"]
[]
[226,546,2,1,24,null,"50",null,null,"Where certain materials or articles from demolitions or alterations are described as to be \"handed over to the Employer\", it shall be taken to mean \"handed over by the Contractor to the Principal Agent\" and such materials or articles shall be properly stored by the Contractor until handing over thereof and shall include all necessary transport The Contractor must obtain an official receipt from the Principal Agent listing the materials or articles and dates of handing overShould the Contractor fail to submit the receipt when requested to do so, it shall be deemed that the materials or articles are still in his possession and he will be held liable to the Employer for the full replacement value thereof, which amount will be deducted from any monies due to the Contractor"]
[]
[227,547,2,1,24,null,"50",null,null,"Explosives:"]
[]
[228,548,2,1,24,null,"50",null,null,"No explosives whatsoever may be used for demolition purposes, unless otherwise stated"]
[]
[229,550,2,1,25,null,"9",null,null,"GENERAL"]
[]
[230,551,2,1,25,null,"9",null,null,"The contractor shall carry out the whole of the work with as little mess and noise as possible and with a minimum of disturbance to adjoining premises and their tenants. He shall provide proper protection and provide and erect any temporarytarpaulins and temporary plumbing that may be necessary during the progress of the works, all to the satisfaction of the Architect, and remove when directed."]
[]
[231,552,2,1,25,null,"9",null,null,"Any water supplies pipes and other piping that may be met withand found necessary to disconnect or cut, shall be effectually stopped of or grubbed up and removed, and any new connections that may be necessary shall be made with proper fittings, to the satisfaction of the Architect."]
[]
[232,553,2,1,25,null,"9",null,null,"Doors, fanlights, fittings, frames, linings, etc shall be thoroughly overhauled before re-fixing including taking off, easing and rehanging, cramping up, re-wedging as required and making good cramps, dowels, etc and easing, oiling, adjusting and repairing ironmongery if necessary, replacing any glass damaged in removal or subsequently and stopping up all nail and screw holes with tinted wood to match timber."]
[]
[233,554,2,1,25,null,"9",null,null,"Where doors, windows, etc are described as taken out this shall be understood to include for removal of all beads, architraves, ironmongery, etc and doors which are re-fixed are to be provided with new architraves       (elsewhere measured )."]
[]
[234,555,2,1,25,null,"10",null,null,"Prices for taking out and removing doors and frames shall include for removing door stops, cabin locks, etc and making good to match existing."]
[]
[235,556,2,1,25,null,"10",null,null,"With regard to building up openings in existing walls, cement screeds and pavings, granolithic, etc, shall be levelled and prepared for raising of brickwork."]
[]
[236,557,2,1,25,null,"10",null,null,"Allow for making good all existing plastered walls where damaged by furniture, etc, and stopping up all screw and holes before painting."]
[]
[237,558,2,1,25,null,"10",null,null,"Making good finishes shall be deemed to iclude making good of the brick and concrete surfaces onto which new finishes are applied, where necessary."]
[]
[238,559,2,1,26,null,"10",null,null,"The contractor will be required to take all dimensions affecting existing building on the site and he will be held solely responsible for the accuracy of all such dimensions."]
[]
[239,560,2,1,26,null,"52",null,null,"Hazardous materials:"]
[]
[240,561,2,1,26,null,"52",null,null,"Demolitions of buildings, services, external works, site services, etc are to include for the safe removal and disposal of asbestos or asbestos products or other hazardous materials by approved Registered Specialists"]
[]
[241,562,2,1,26,null,"52",null,null," - - - - - - - - - - - - - - - - - - - - - - - - -"]
[]
[242,563,2,1,26,null,"53",null,null,"TEMPORARY BARRIERS, SCREENS, ETC"]
[]
[243,564,2,1,26,{"$nulls":4},"Temporary barriers, screens, etc including removal:"]
[]
[244,565,2,1,26,{"v":1,"d":"1 "},{"$nulls":3},"Dust screen 2100mm high formed of suitable timber framing with 250 micron polyethylene sheeting stapled on including corners, ends, etc. to be used on all the phases of the construction project and in accordance to the Health and Safety specifications and regulations",null,"m",{"v":200,"d":"200 "},null,{"$f":"ROUND($M487*N487,2)","v":0}]
[]
[245,566,2,1,26,null,"10",null,null,"REMOVAL OF EXISTING WORK"]
[]
[246,584,2,1,26,null,"55",null,null,"Taking out and removing doors, windows, etc including thresholds, sills, etc from brickwork (altering openings and making good finishes elsewhere):"]
[]
[247,585,2,1,26,{"v":2,"d":"2 "},{"$nulls":3},"Timber single door and frame not exceeding 2,5m\"²",null,"No",{"v":9,"d":"9 "},null,{"$f":"ROUND($M493*N493,2)","v":0}]
[]
[248,602,2,1,26,{"$nulls":4},"Taking down and removing roof coverings, accessories, etc.:"]
[]
[249,9534,2,1,26,{"v":3,"d":"3 "},{"$nulls":3},"Asbestos roof covering",null,"m²",{"v":404,"d":"404 "},null,{"$f":"ROUND($M497*N497,2)","v":0}]
[]
[250,607,2,1,26,null,"60",null,null,"Taking down and removing ceilings, partitions, etc:"]
[]
[251,608,2,1,26,{"v":4,"d":"4 "},"60.75",null,null,"Gypsum plasterboard ceilings, including cornices, timber brandering, etc.",null,"m²",{"v":69,"d":"69 "},null,{"$f":"ROUND($M501*N501,2)","v":0}]
[]
[252,626,2,1,27,null,"62",null,null,"Taking out/off and removing ironmongery:"]
[]
[253,627,2,1,27,{"v":5,"d":"5 "},"62.104",null,null,"Toilet paper holder from wall",null,"No",{"v":6,"d":"6 "},null,{"$f":"ROUND($M505*N505,2)","v":0}]
[]
[254,636,2,1,27,null,"64",null,null,"Hacking up/off and removing ceramic and porcelain tiles, including removing mortar bed or adhesive from concrete or brickwork and preparing surfaces for new screed, plaster, tile finishes, etc:"]
[]
[255,637,2,1,27,{"v":6,"d":"6 "},"64.120",null,null,"Tiles to floors",null,"m²",{"v":70,"d":"70 "},null,{"$f":"ROUND($M509*N509,2)","v":0}]
[]
[256,638,2,1,27,{"v":7,"d":"7 "},"64.122",null,null,"Tiles to walls",null,"m²",{"v":221,"d":"221 "},null,{"$f":"ROUND($M511*N511,2)","v":0}]
[]
[257,643,2,1,27,null,"64",null,null,"Taking out and removing piping, sanitary fittings, etc including cutting off as necessary, disconnecting piping from fittings and blocking off and making good damaged plasterwork to walls and screeds to floors (all redecoration work elsewhere):"]
[]
[258,645,2,1,27,{"v":8,"d":"8 "},"65.131",null,null,"Vitreous china wash hand basin, including short lengths of piping, etc.",null,"No",{"v":4,"d":"4 "},null,{"$f":"ROUND($M515*N515,2)","v":0}]
[]
[259,647,2,1,27,{"v":9,"d":"9 "},"65.136",null,null,"Vitreous china WC pan with flush valve, including short lengths of piping, etc.",null,"No",{"v":6,"d":"6 "},null,{"$f":"ROUND($M517*N517,2)","v":0}]
[]
[260,652,2,1,27,{"v":10,"d":"10 "},"65.140",null,null,"150 Litre hot water geyser mounted in roof space including drip tray, valves, connecting pipework, etc.",null,"No",{"v":6,"d":"6 "},null,{"$f":"ROUND($M519*N519,2)","v":0}]
[]
[261,666,2,1,27,null,"66",null,null,"Taking out/off and removing glass and mirrors:"]
[]
[262,670,2,1,27,{"v":11,"d":"11 "},"67.158",null,null,"Mirror 600 x 600mm high from wall",null,"No",{"v":3,"d":"3 "},null,{"$f":"ROUND($M523*N523,2)","v":0}]
[]
[263,701,2,1,27,null,"75",null,null,"MAKING GOOD OF FINISHES, ETC"]
[]
[264,7637,2,1,27,{"$nulls":4},"Making good concrete:"]
[]
[265,7638,2,1,27,{"v":12,"d":"12 "},{"$nulls":3},"Floors in patches",null,"m²",{"v":154,"d":"154 "},null,{"$f":"ROUND($M529*N529,2)","v":0}]
[]
[266,9532,2,1,27,{"v":13,"d":"13 "},{"$nulls":3},"Roof slabs in patches",null,"m²",{"v":81,"d":"81 "},null,{"$f":"ROUND($M531*N531,2)","v":0}]
[]
[267,716,2,1,27,null,"75",null,null,"Making good internal/external cement plaster:"]
[]
[268,717,2,1,27,{"v":14,"d":"14 "},"75.216",null,null,"Walls in patches",null,"m²",{"v":296,"d":"296 "},null,{"$f":"ROUND($M535*N535,2)","v":0}]
[]
[269,7718,2,1,27,{"$nulls":4},"Making good platform surfaces:"]
[]
[270,7719,2,1,27,{"v":15,"d":"15 "},"75.216",null,null,"Surfaces in patches",null,"m²",{"v":3351,"d":"3,351 "},null,{"$f":"ROUND($M539*N539,2)","v":0}]
[]
[271,722,2,1,28,null,"76",null,null,"GENERAL REPAIRWORK"]
[]
[272,723,2,1,28,null,"76",null,null,"Repairwork to existing brick walls:"]
[]
[273,724,2,1,28,{"v":16,"d":"16 "},"76.221",null,null,"Waterjetting surfaces of existing facebrick walls with high pressure low-volume water jetting lance to remove all dirt, brushing down and washing to remove surface contamination, mould, fungus, damp and treating with two coats of antifungal wash and leaving perfectly clean on completion",null,"m²",{"v":289,"d":"289 "},null,{"$f":"ROUND($M545*N545,2)","v":0}]
[]
[274,726,2,1,28,null,"82",null,null,"ALTERATIONS, SERVICING AND REPAIRWORK TO EXISTING DOORS, FRAMES AND WINDOWS"]
[]
[275,727,2,1,28,null,"82",null,null,"Notes:"]
[]
[276,728,2,1,28,null,"82",null,null,"The removal and reinstatement of doors, frames, windows, etc for the purpose of altering, servicing and/or repairing are measured elsewhere"]
[]
[277,729,2,1,28,null,"82",null,null,"The removal of ironmongery, glass, putty, etc and the refixing, reglazing and redecorating of existing doors, frames, windows, etc are all measured elsewhere"]
[]
[278,730,2,1,28,null,"82",null,null,"Repairing and/or replacement of existing ironmongery is measured elsewhere"]
[]
[279,731,2,1,28,null,"82",null,null,"Supplementary Preambles:"]
[]
[280,732,2,1,28,null,"82",null,null,"Repairwork to timber to include for the following, unless otherwise described:"]
[]
[281,733,2,1,28,null,"82",null,null,"1.\tTimber used in repairs is to match existing in type, moisture content, colour and grain as closely as possible"]
[]
[282,734,2,1,28,null,"82",null,null,"2.\tApproved modern, high-strength waterproof glues which can accommodate any timber movement should be used together with sawdust filler of matching timber"]
[]
[283,735,2,1,28,null,"82",null,null,"3.\tOnly non-corrosive fixings are to be used"]
[]
[284,736,2,1,28,null,"82",null,null,"4.\tAll clamping and pinning as necessary"]
[]
[285,737,2,1,28,null,"89",null,null,"EXISTING WINDOWS"]
[]
[286,740,2,1,29,null,"89",null,null,"Servicing of existing windows including thoroughly cleaning down of all dirt, scale and general contamination from all surfaces, pulleys, handles, rods, fanlight openers, catches, etc. and servicing and lubricating all moving parts, carefully removing all paint from and polishing all brassware and replacing of damaged or missing screws, nuts, etc. (repairing or replacement of existing ironmongery, removal of glass, putty, etc. re-glazing and preparing for and redecorating of existing frames, sashes, etc. all elsewhere measured):"]
[]
[287,8430,2,1,29,{"v":17,"d":"17 "},{"$nulls":3},"Aluminium window size 500 x 1185mm high overall with burglar bars (WT-01)",null,"No",{"v":6,"d":"6 "},null,{"$f":"ROUND($M573*N573,2)","v":0}]
[]
[288,9533,2,1,29,{"v":18,"d":"18 "},{"$nulls":3},"Ditto, but size 1670 x 700mm high overall with burglar bars (WT-06)",null,"No",{"v":12,"d":"12 "},null,{"$f":"ROUND($M575*N575,2)","v":0}]
[]
[289,7657,2,1,29,null,"89",null,null,"BUDGETARY ALLOWANCE"]
[]
[290,7658,2,1,29,{"v":19,"d":"19 "},{"$nulls":3},"Provide a budgetary allowance of Ten Thousand Rand for sundry alterations to be used as directed by the Principal Agent and to be deducted in whole or in part if not required.",null,"Item",{"v":1,"d":"1 "},null,{"$f":"ROUND($M579*N579,2)","v":0}]
[]
[292,1097,2,2,30,{"$nulls":4},"SECTION 2"]
[]
[293,1098,2,2,30,{"$nulls":4},"BILL NO. 2"]
[]
[294,1099,2,2,30,{"$nulls":4},"ROOF COVERINGS"]
[]
[295,1101,2,2,30,null,"262",null,null,"WORK GROUP ALLOCATION"]
[]
[296,1102,2,2,30,null,"262",null,null,"The items in this Bill will be allocated to Work Groups as indicated in brackets at the ends of headings or descriptions"]
[]
[297,1103,2,2,30,null,"262",null,null,"PREAMBLES"]
[]
[298,1104,2,2,30,null,"262",null,null,"The General Preambles for Trades (2017 edition) as published by the Association of South African Quantity Surveyors shall be deemed to be incorporated in these bills of quantities and no claims arising from brevity of description of items fully described in the said General Preambles will be entertained"]
[]
[299,1105,2,2,30,null,"262",null,null,"The following \"Supplementary Preambles\" are incorporated in this bill to satisfy the requirements of the project and shall take precedence over the provisions of the said General Preambles"]
[]
[300,1106,2,2,30,null,"49",null,null,"SUPPLEMENTARY PREAMBLES"]
[]
[301,1107,2,2,30,null,"273",null,null,"Profiled metal roof sheeting and accessories shall be supplied with a 10 year guarantee and be installed by an approved installer"]
[]
[302,1108,2,2,30,{"$nulls":4},"All fixing holes shall be drilled and not punched"]
[]
[303,1109,2,2,30,{"$nulls":4},"Roof covering accessories shall be manufactured from the same material as used for roof covering"]
[]
[304,8411,2,2,30,{"$nulls":4},"PROFILED METAL SHEETING AND ACCESSORIES (WORK GROUP 124)"]
[]
[305,8412,2,2,31,null,"274",null,null,"0,53mm \"Klip-Tite 700\" or similar approved profile Z275 spelter galvanised steel light industrial troughed interlocking roof sheeting in single lengths and accessories, with \"Chromodek\" or similar approved finish to one side, fixed to timber/steel purlins:"]
[]
[306,8413,2,2,31,{"v":1,"d":"1 "},"24.5",null,null,"Roof coverings with pitch not exceeding 25 degrees",null,"m²",{"v":404,"d":"404 "},null,{"$f":"ROUND($M609*N609,2)","v":0}]
[]
[307,8414,2,2,31,null,"275",null,null,"Accessories:"]
[]
[308,8415,2,2,31,{"v":2,"d":"2 "},{"$nulls":3},"Ridge capping 462mm girth",null,"m",{"v":41,"d":"41 "},null,{"$f":"ROUND($M613*N613,2)","v":0}]
[]
[309,8420,2,2,31,{"v":3,"d":"3 "},"276.102",null,null,"Narrow and broad flute closers",null,"m",{"v":118,"d":"118 "},null,{"$f":"ROUND($M615*N615,2)","v":0}]
[]
[310,1127,2,2,31,null,"280",null,null,"ROOF AND WALL INSULATION (WORK GROUP 122)"]
[]
[311,1128,2,2,31,{"$nulls":4},"Heavy industrial grade aluminium foil based insulation:"]
[]
[312,1129,2,2,31,{"v":4,"d":"4 "},{"$nulls":3},"Two sided bubble insulation membrane",null,"m²",{"v":404,"d":"404 "},null,{"$f":"ROUND($M621*N621,2)","v":0}]
[]
[314,1131,2,3,32,{"$nulls":4},"SECTION 2"]
[]
[315,1132,2,3,32,{"$nulls":4},"BILL NO. 3"]
[]
[316,1133,2,3,32,{"$nulls":4},"CARPENTRY AND JOINERY"]
[]
[317,1135,2,3,32,null,"287",null,null,"WORK GROUP ALLOCATION"]
[]
[318,1136,2,3,32,null,"287",null,null,"Unless otherwise stated, all items in this Bill will be allocated to Work Group 126 - Carpentry & Joinery"]
[]
[319,1137,2,3,32,null,"287",null,null,"PREAMBLES"]
[]
[320,1138,2,3,32,null,"287",null,null,"The General Preambles for Trades (2017 edition) as published by the Association of South African Quantity Surveyors shall be deemed to be incorporated in these bills of quantities and no claims arising from brevity of description of items fully described in the said General Preambles will be entertained"]
[]
[321,1139,2,3,32,null,"287",null,null,"The following \"Supplementary Preambles\" are incorporated in this bill to satisfy the requirements of the project and shall take precedence over the provisions of the said General Preambles"]
[]
[322,1140,2,3,32,null,"287",null,null,"SUPPLEMENTARY PREAMBLES"]
[]
[323,1141,2,3,32,null,"287",null,null,"Fixing:"]
[]
[324,1142,2,3,32,null,"287",null,null,"Items described as \"nailed\" shall be deemed to be fixed with hardened steel nails or pins, or to be shot-pinned, to brickwork or concrete"]
[]
[325,1143,2,3,32,null,"287",null,null,"Items described as \"plugged\" shall be deemed to include screwing to fibre, plastic or metal plugs at not exceeding 500mm centres, and where described as \"bolted\", the bolts have been given separately elsewhere"]
[]
[326,1144,2,3,32,null,"287",null,null,"Joinery:"]
[]
[327,1145,2,3,32,null,"287",null,null,"Descriptions of frames shall be deemed to include frames, transomes, rails, etc"]
[]
[328,1146,2,3,32,null,"287",null,null,"Descriptions of hardwood joinery shall be deemed to include sinking and pelleting heads and nuts of bolts"]
[]
[329,1147,2,3,33,null,"288",null,null,"Particle board"]
[]
[330,1148,2,3,33,null,"288",null,null,"All particle board shall comply with SANS 50312 having the required marking as per SANS 50312/EN 312"]
[]
[331,1149,2,3,33,null,"288",null,null,"Decorative thermosetting plastic laminate covering:"]
[]
[332,1150,2,3,33,null,"288",null,null,"Laminate covering shall be glued under pressure and edge strips of same shall be butt jointed at junctions with adjacent similar finish"]
[]
[333,1151,2,3,33,null,"288",null,null,"Sizes:"]
[]
[334,1152,2,3,33,null,"288",null,null,"Sizes are nominal and the Contractor shall make allowance in his prices for minor variances in stated finished sizes of timber doors, door members, door frames, architraves, etc"]
[]
[335,1153,2,3,33,null,"288",null,null,"Prices"]
[]
[336,1154,2,3,33,null,"288",null,null,"Prices for all joinery work are to include for general framing, housing and notching, arris rounded angles, glueing, blocking, planting on, screwing, adhesives, dowels, pellets, cross tongues, screws and nails and setting up complete and also for all square cutting and waste. Tops shall be secured with metal or hardwood buttons."]
[]
[337,1157,2,3,34,{"$nulls":4},"ROOFS, ETC"]
[]
[338,1191,2,3,34,{"$nulls":4},"EAVES, VERGES, ETC"]
[]
[339,1193,2,3,34,null,"297",null,null,"Medium density plain fibre-cement fascias and barge boards:"]
[]
[340,1195,2,3,34,{"v":1,"d":"1 "},{"$nulls":3},"19 x 235mm Fascias and barge boards, including aluminium H-profile jointing strips [ LI ]",null,"m",{"v":118,"d":"118 "},null,{"$f":"ROUND($M675*N675,2)","v":0}]
[]
[341,1197,2,3,34,null,"299",null,null,"FLOORS, ETC"]
[]
[342,1202,2,3,34,{"$nulls":4},"DOORS, ETC"]
[]
[343,1223,2,3,34,null,"303",null,null,"Solid hardwood with slated panels with sides and counselled edges to suit opening, hung to steel frames:"]
[]
[344,6528,2,3,34,{"v":2,"d":"2 "},{"$nulls":3},"44mm Door 890 x 2125mm high (TP-03)",null,"No",{"v":3,"d":"3 "},null,{"$f":"ROUND($M683*N683,2)","v":0}]
[]
[345,6529,2,3,34,{"v":3,"d":"3 "},{"$nulls":3},"44mm Door 813 x 2125mm high (TP-04)",null,"No",{"v":6,"d":"6 "},null,{"$f":"ROUND($M685*N685,2)","v":0}]
[]
[346,7727,2,3,34,null,"89",null,null,"BUDGETARY ALLOWANCE"]
[]
[347,7726,2,3,34,{"v":4,"d":"4 "},{"$nulls":3},"Provide a budgetary allowance of Fifteen Thousand Rand for sundry carpentry and joinery to be used as directed by the Principal Agent and to be deducted in whole or in part if not required.",null,"Item",{"v":1,"d":"1 "},null,{"$f":"ROUND($M689*N689,2)","v":0}]
[]
[349,1244,2,4,35,{"$nulls":4},"SECTION 2"]
[]
[350,1245,2,4,35,{"$nulls":4},"BILL NO. 4"]
[]
[351,1246,2,4,35,{"$nulls":4},"CEILINGS, PARTITIONS AND ACCESS FLOORING"]
[]
[352,1248,2,4,35,null,"345",null,null,"WORK GROUP ALLOCATION"]
[]
[353,1249,2,4,35,null,"345",null,null,"Unless otherwise stated, all items in this Bill will be allocated to Work Group 129 - Ceilings"]
[]
[354,1250,2,4,35,null,"345",null,null,"PREAMBLES"]
[]
[355,1251,2,4,35,null,"345",null,null,"The General Preambles for Trades (2017 edition) as published by the Association of South African Quantity Surveyors shall be deemed to be incorporated in these bills of quantities and no claims arising from brevity of description of items fully described in the said General Preambles will be entertained"]
[]
[356,1252,2,4,35,null,"345",null,null,"The following \"Supplementary Preambles\" are incorporated in this bill to satisfy the requirements of the project and shall take precedence over the provisions of the said General Preambles"]
[]
[357,1253,2,4,35,null,"345",null,null,"SUPPLEMENTARY PREAMBLES"]
[]
[358,1254,2,4,35,null,"345",null,null,"Fixing:"]
[]
[359,1255,2,4,35,null,"345",null,null,"Items described as \"nailed\" shall be deemed to be fixed with hardened steel nails or pins, or to be shot-pinned, to brickwork or concrete"]
[]
[360,1256,2,4,35,null,"345",null,null,"Items described as \"plugged\" shall be deemed to include screwing to fibre, plastic or metal plugs at not exceeding 500mm centres, and where described as \"bolted\", the bolts have been given separately elsewhere"]
[]
[361,1257,2,4,35,null,"345",null,null,"Ceilings:"]
[]
[362,1258,2,4,35,null,"345",null,null,"Unless otherwise described, ceilings shall be deemed to be horizontal"]
[]
[363,1259,2,4,36,null,"346",null,null,"Bulkheads:"]
[]
[364,1260,2,4,36,null,"346",null,null,"Bulkheads are defined as those portions of ceilings which are stepped down from the general ceiling level in a particular room or area and which generally occur along the perimeter. Their purpose is either to conceal services or to create architectural features"]
[]
[365,1261,2,4,36,null,"346",null,null,"Bulkheads have only been described as such where they conform to the above definition and where the horizontal, vertical or sloping dimensions do not exceed 1200mm. Where these dimensions are more than 1200mm such portions of ceilings have been included in the appropriate general items of ceilings"]
[]
[366,1262,2,4,36,null,"346",null,null,"Unless otherwise described, bulkheads shall be deemed to be horizontal along the length"]
[]
[367,1263,2,4,36,null,"346",null,null,"Openings:"]
[]
[368,1264,2,4,36,null,"346",null,null,"Prices for openings for light fittings, ventilation grilles, air conditioning diffusers, etc. are to include for any necessary additional support, trimming around, etc."]
[]
[369,1265,2,4,36,null,"346",null,null,"Steel components:"]
[]
[370,1266,2,4,36,null,"346",null,null,"All steel components for ceilings, partitions, etc are to be galvanised in accordance with SANS 121"]
[]
[371,1272,2,4,36,{"$nulls":4},"NAILED UP CEILINGS"]
[]
[372,1275,2,4,36,null,"349",null,null,"12mm Fibre-cement plain ceiling boards with H-profile galvanised steel jointing strips:"]
[]
[373,1276,2,4,36,{"v":1,"d":"1 "},"349.25",null,null,"Ceilings including 38 x 38mm sawn softwood brandering at 400mm centres and cross brandering at 400mm centres",null,"m²",{"v":69,"d":"69 "},null,{"$f":"ROUND($M739*N739,2)","v":0}]
[]
[374,1283,2,4,36,{"v":2,"d":"2 "},{"$nulls":3},"Extra over ceiling for 600 x 600mm trap door of 38 x 38mm wrought softwood rebated framing with one cross brander, covered with ceiling board and fitted flush in opening, including necessary trimmers around [ LI ] 428.40",null,"No",{"v":3,"d":"3 "},null,{"$f":"ROUND($M741*N741,2)","v":0}]
[]
[375,1285,2,4,36,null,"351",null,null,"Gypsum plasterboard cornices:"]
[]
[376,1286,2,4,36,{"v":3,"d":"3 "},"351.51",null,null,"75mm Coved cornices",null,"m",{"v":81,"d":"81 "},null,{"$f":"ROUND($M745*N745,2)","v":0}]
[]
[378,1358,2,5,37,{"$nulls":4},"SECTION 2"]
[]
[379,1359,2,5,37,{"$nulls":4},"BILL NO. 5"]
[]
[380,1360,2,5,37,{"$nulls":4},"IRONMONGERY"]
[]
[381,1362,2,5,37,null,"377",null,null,"WORK GROUP ALLOCATION"]
[]
[382,1363,2,5,37,null,"377",null,null,"Unless otherwise stated, all items in this Bill will be allocated to Work Group 132 - Ironmongery"]
[]
[383,1364,2,5,37,null,"377",null,null,"PREAMBLES"]
[]
[384,1365,2,5,37,null,"377",null,null,"The General Preambles for Trades (2017 edition) as published by the Association of South African Quantity Surveyors shall be deemed to be incorporated in these bills of quantities and no claims arising from brevity of description of items fully described in the said General Preambles will be entertained"]
[]
[385,1366,2,5,37,null,"377",null,null,"The following \"Supplementary Preambles\" are incorporated in this bill to satisfy the requirements of the project and shall take precedence over the provisions of the said General Preambles"]
[]
[386,1367,2,5,37,null,"377",null,null,"SUPPLEMENTARY PREAMBLES"]
[]
[387,1368,2,5,37,null,"377",null,null,"Proprietary items:"]
[]
[388,1369,2,5,37,null,"377",null,null,"Where applicable, the manufacturers' names or product catalogue titles are given in sub-headings preceding the itemsNote that the manufacturers names specified in this trade are for the purposes of competitive pricing. Prices are to be based on the specific products/articles specified.On request, returnable samples are to be provided to the Project Manager for consideration"]
[]
[389,1370,2,5,38,null,"378",null,null,"Locks:"]
[]
[390,1371,2,5,38,null,"378",null,null,"Notwithstanding Clause 2, Item 3 of the \"Ironmongery\" trade of the \"Standard System of Measuring Building Work, Seventh Edition\", descriptions of locks shall be deemed to include two keys per lock"]
[]
[391,1372,2,5,38,null,"378",null,null,"Finishes to ironmongery:"]
[]
[392,1373,2,5,38,null,"378",null,null,"Where applicable, finishes to ironmongery are indicated by suffixes in accordance with the following list: BS\tSatin bronze lacqueredCH\tChromium plated SC\tSatin chromium plated SE\tSilver enamelled GE\tGrey enamelledAN\tAnodised natural AS\tAnodised silver AB\tAnodised bronze AG\tAnodised gold ABL\tAnodised black PB\tPolished brass PL\tPolished and lacquered PT\tEpoxy coated SD\tSandedBBS\tBrushed stainless steel"]
[]
[393,1375,2,5,38,null,"379",null,null,"HINGES, BOLTS, ETC"]
[]
[394,1382,2,5,38,{"$nulls":4}," \"Union\" or similar approved:"]
[]
[395,1384,2,5,38,{"v":1,"d":"1 "},{"$nulls":3},"\"Ref. CZ80941SCR\" or similar approved sliding indicator bolt set",null,"No",{"v":6,"d":"6 "},null,{"$f":"ROUND($M781*N781,2)","v":0}]
[]
[396,1389,2,5,38,null,"382",null,null,"LOCKS"]
[]
[397,1390,2,5,38,{"v":2,"d":"2 "},{"$nulls":3},"Commercial cylinder sash lock",null,"No",{"v":6,"d":"6 "},null,{"$f":"ROUND($M785*N785,2)","v":0}]
[]
[398,7247,2,5,38,{"v":3,"d":"3 "},{"$nulls":3},"75mm Three lever upright mortice rebated lockset with satin chrome furniture (TP-01)",null,"No",{"v":3,"d":"3 "},null,{"$f":"ROUND($M787*N787,2)","v":0}]
[]
[399,1391,2,5,38,null,"382",null,null,"\"Calini\" or similar approved:"]
[]
[400,1393,2,5,38,{"v":4,"d":"4 "},{"$nulls":3},"\"Ref. IW2051\" or similar approved double cylinder suitable for master key",null,"No",{"v":1,"d":"1 "},null,{"$f":"ROUND($M791*N791,2)","v":0}]
[]
[401,1403,2,5,38,null,"385",null,null,"HANDLES"]
[]
[402,1404,2,5,39,null,"385",null,null,"\"Union Assa Abloy\" or similar approved:"]
[]
[403,6534,2,5,39,{"v":5,"d":"5 "},{"$nulls":3},"\"Ref.AL6D67-05A5\" or similar approved anodised aluminium pull handle",null,"No",{"v":3,"d":"3 "},null,{"$f":"ROUND($M797*N797,2)","v":0}]
[]
[404,6537,2,5,39,{"v":6,"d":"6 "},{"$nulls":3},"100mm Chromium plated bow handle bolted through door with the bolt ends hammered to prevent the nuts being removed",null,"No",{"v":3,"d":"3 "},null,{"$f":"ROUND($M799*N799,2)","v":0}]
[]
[405,1407,2,5,39,null,"385",null,null,"PUSH PLATES AND KICK PLATES"]
[]
[406,1408,2,5,39,null,"385",null,null,"1,2mm Thick satin finished stainless steel plates countersunk screwed along edges at not exceeding 200mm centres:"]
[]
[407,1412,2,5,39,{"v":7,"d":"7 "},"386.99",null,null," 300 x 150mm Kick plate",null,"No",{"v":3,"d":"3 "},null,{"$f":"ROUND($M805*N805,2)","v":0}]
[]
[408,1415,2,5,39,null,"386",null,null,"DOOR CLOSERS"]
[]
[409,1416,2,5,39,null,"386",null,null,"\"Union Assa Abloy\" or similar approved:"]
[]
[410,1418,2,5,39,{"v":8,"d":"8 "},{"$nulls":3},"\"Ref. 7770\" door closer",null,"No",{"v":3,"d":"3 "},null,{"$f":"ROUND($M811*N811,2)","v":0}]
[]
[411,1488,2,5,39,null,"392",null,null,"SUNDRIES"]
[]
[412,1489,2,5,39,null,"392",null,null,"\"Union Assa Abloy\"or similar approved:"]
[]
[413,1490,2,5,39,{"v":9,"d":"9 "},"392.160",null,null,"\"Ref. 99022SS\" door stop, plugged",null,"No",{"v":6,"d":"6 "},null,{"$f":"ROUND($M817*N817,2)","v":0}]
[]
[414,1495,2,5,40,null,"393",null,null,"BATHROOM FITTINGS"]
[]
[415,1496,2,5,40,null,"393",null,null,"\"Franke\" or similar approved:"]
[]
[416,1497,2,5,40,{"v":10,"d":"10 "},"393.184",null,null,"\"Ref. EXOS618X\" soap dispenser, plugged",null,"No",{"v":6,"d":"6 "},null,{"$f":"ROUND($M823*N823,2)","v":0}]
[]
[417,1498,2,5,40,{"v":11,"d":"11 "},"393.183",null,null,"\"Ref. BS646\" stainless steel soap dish, plugged",null,"No",{"v":3,"d":"3 "},null,{"$f":"ROUND($M825*N825,2)","v":0}]
[]
[418,1500,2,5,40,{"v":12,"d":"12 "},"393.182",null,null,"\"Ref. STRX672\" stainless steel lockable toilet roll holder, plugged",null,"No",{"v":3,"d":"3 "},null,{"$f":"ROUND($M827*N827,2)","v":0}]
[]
[419,1501,2,5,40,{"v":13,"d":"13 "},"393.185",null,null,"\"Ref. RODX602 \" paper towel dispenser and waste bin combination, plugged",null,"No",{"v":2,"d":"2 "},null,{"$f":"ROUND($M829*N829,2)","v":0}]
[]
[420,1504,2,5,40,{"v":14,"d":"14 "},{"$nulls":3},"\"Ref. BS611V\"  stainless steel sanitary towel disposal bin, plugged",null,"No",{"v":2,"d":"2 "},null,{"$f":"ROUND($M831*N831,2)","v":0}]
[]
[421,7749,2,5,40,null,"89",null,null,"BUDGETARY ALLOWANCE"]
[]
[422,7748,2,5,40,{"v":15,"d":"15 "},{"$nulls":3},"Provide a budgetary allowance of Fifteen Thousand Rand for sundry ironmongery to be used as directed by the Principal Agent and to be deducted in whole or in part if not required.",null,"Item",{"v":1,"d":"1 "},null,{"$f":"ROUND($M835*N835,2)","v":0}]
[]
[424,1527,2,6,41,{"$nulls":4},"SECTION 2"]
[]
[425,1528,2,6,41,{"$nulls":4},"BILL NO. 6"]
[]
[426,1529,2,6,41,{"$nulls":4},"STRUCTURAL STEELWORK"]
[]
[427,1531,2,6,41,null,"400",null,null,"WORK GROUP ALLOCATION"]
[]
[428,1532,2,6,41,null,"400",null,null,"Unless otherwise stated, all items in this Bill will be allocated to Work Group 134 - Structural Steelwork in Buildings"]
[]
[429,1533,2,6,41,null,"400",null,null,"PREAMBLES"]
[]
[430,1534,2,6,41,null,"400",null,null,"The General Preambles for Trades (2017 edition) as published by the Association of South African Quantity Surveyors shall be deemed to be incorporated in these bills of quantities and no claims arising from brevity of description of items fully described in the said General Preambles will be entertained"]
[]
[431,1535,2,6,41,null,"400",null,null,"The following \"Supplementary Preambles\" are incorporated in this bill to satisfy the requirements of the project and shall take precedence over the provisions of the said General Preambles"]
[]
[432,1536,2,6,41,{"$nulls":4},"SUPPLEMENTARY PREAMBLES"]
[]
[433,1537,2,6,41,null,"400",null,null,"Specification:"]
[]
[434,1538,2,6,41,null,"400",null,null,"All structural steel must comply with SANS 1200H (Degree of Accuracy II)"]
[]
[435,1539,2,6,41,null,"400",null,null,"All hot rolled structural steel sections must comply with SANS 1431 grade 300W, unless otherwise specified on the drawings"]
[]
[436,1540,2,6,41,null,"400",null,null,"Unless otherwise designated, all bolts and nuts will be grade 4.6 to SANS 135 and BS 916. Descriptions of bolts shall be deemed to include nuts and washers. Descriptions of L-shaped and U-shaped anchor bolts shall be deemed to include bending, threading, nuts and washers and embedding in concrete. Descriptions of expansion anchors and bolts and chemical anchors and bolts shall be deemed to include nuts, washers and mortices in brickwork or concrete"]
[]
[437,1541,2,6,42,null,"400",null,null,"All connections must be welded all round with a 6mm fillet weld, unless otherwise specified on the drawings"]
[]
[438,1542,2,6,42,null,"401",null,null,"Drawings and shop details:"]
[]
[439,1543,2,6,42,null,"401",null,null,"The Contractor shall be responsible for preparing shop drawings and details which must be submitted to the Principal Agent for approval prior to commencement of fabrication.  Before commencing any fabrication, the steel fabricator must check the accessibility of the site and design the sizes of individual parts accordingly"]
[]
[440,1544,2,6,42,null,"401",null,null,"Hot-dipped galvanizing:"]
[]
[441,1545,2,6,42,null,"401",null,null,"After fabrication and prior to delivery to site, all steelwork described as hot-dipped galvanized, is to be descaled and thoroughly cleaned by pickling, after which it is to be hot dip galvanized in accordance with the requirements of SANS 121/1501461"]
[]
[442,1546,2,6,42,null,"401",null,null,"Descriptions:"]
[]
[443,1547,2,6,42,null,"401",null,null,"Descriptions of bolts shall be deemed to include nuts and washers"]
[]
[444,1548,2,6,42,null,"401",null,null,"Descriptions of L-shaped and U-shaped anchor bolts shall be deemed to include bending, threading, nuts and washers and embedding in concrete"]
[]
[445,1549,2,6,42,null,"401",null,null,"Descriptions of expansion anchors and bolts and chemical anchors and bolts shall be deemed to include nuts, washers and mortices in brickwork or concrete"]
[]
[446,1553,2,6,42,null,"403",null,null,"BUDGETARY ALLOWANCE"]
[]
[447,7729,2,6,42,{"v":1,"d":"1 "},{"$nulls":3},"Provide a budgetary allowance of Fifty Thousand Rand for sundry alterations to structural steelworks be used as directed by the Principal Agent and to be deducted in whole or in part if not required.",null,"Item",{"v":1,"d":"1 "},null,{"$f":"ROUND($M883*N883,2)","v":0}]
[]
[448,1707,2,6,42,null,"411",null,null,"Paint testing:"]
[]
[449,1708,2,6,42,{"v":2,"d":"2 "},"411.97",null,null,"Subcontract amount of Fifteen Thousand Rand for quality control inspection by an authorised independent authority",null,"SUM",{"v":1,"d":"1 "},null,{"$f":"ROUND($M887*N887,2)","v":0}]
[]
[450,1709,2,6,43,{"v":3,"d":"3 "},"411.98",null,null,"Profit",null,"%",{"v":0,"d":"0%"},null,{"$f":"ROUND($M889*N889,2)","v":0}]
[]
[451,7728,2,6,43,{"v":4,"d":"4 "},{"$nulls":3},"Attendance",null,"%",{"v":0,"d":"0%"},null,{"$f":"ROUND($M891*N891,2)","v":0}]
[]
[453,1712,2,7,44,{"$nulls":4},"SECTION 2"]
[]
[454,1713,2,7,44,{"$nulls":4},"BILL NO. 7"]
[]
[455,1714,2,7,44,{"$nulls":4},"METALWORK"]
[]
[456,1716,2,7,44,null,"413",null,null,"WORK GROUP ALLOCATION"]
[]
[457,1717,2,7,44,null,"413",null,null,"Unless otherwise stated, all items in this Bill will be allocated to Work Group 136 - Metalwork"]
[]
[458,1718,2,7,44,null,"413",null,null,"PREAMBLES"]
[]
[459,1719,2,7,44,null,"413",null,null,"The General Preambles for Trades (2017 edition) as published by the Association of South African Quantity Surveyors shall be deemed to be incorporated in these bills of quantities and no claims arising from brevity of description of items fully described in the said General Preambles will be entertained"]
[]
[460,1720,2,7,44,null,"413",null,null,"The following \"Supplementary Preambles\" are incorporated in this bill to satisfy the requirements of the project and shall take precedence over the provisions of the said General Preambles"]
[]
[461,1721,2,7,44,null,"413",null,null,"SUPPLEMENTARY PREAMBLES"]
[]
[462,1722,2,7,44,null,"413",null,null,"Descriptions of bolts, anchors, etc:"]
[]
[463,1723,2,7,44,null,"413",null,null,"Descriptions of bolts shall be deemed to include nuts and washers"]
[]
[464,1724,2,7,44,null,"413",null,null,"Descriptions of expansion anchors and bolts and chemical anchors and bolts shall be deemed to include nuts, washers and mortices in brickwork or concrete"]
[]
[465,1725,2,7,44,null,"413",null,null,"Items described as \"holed for bolt(s)\" shall be deemed to exclude the bolts, unless otherwise described"]
[]
[466,1726,2,7,44,null,"413",null,null,"Items described as \"plugged\" shall be deemed to include screwing to fibre, plastic or metal plugs at not exceeding 600mm centres"]
[]
[467,1727,2,7,45,null,"414",null,null,"Fixing:"]
[]
[468,1728,2,7,45,null,"414",null,null,"Unless otherwise described, descriptions of items shall be deemed to include for fixing to brickwork or concrete  Where items are described as \"bolted\", the bolts are measured elsewhere as stated in clause N.7 of the Model Preambles"]
[]
[469,1757,2,7,46,{"$nulls":4},"PRESSED STEEL DOOR FRAMES"]
[]
[470,1768,2,7,46,null,"434",null,null,"1,6mm Rebated frames suitable for one brick walls:"]
[]
[471,6538,2,7,46,{"v":1,"d":"1 "},{"$nulls":3},"Frame for door 810 x 2125mm high with three hinges per leaf (TP-03)",null,"No",{"v":3,"d":"3 "},null,{"$f":"ROUND($M929*N929,2)","v":0}]
[]
[472,6535,2,7,46,{"v":2,"d":"2 "},{"$nulls":3},"Frame for door 813 x 2125mm high with three hinges per leaf (TP-04)",null,"No",{"v":6,"d":"6 "},null,{"$f":"ROUND($M931*N931,2)","v":0}]
[]
[473,1798,2,7,46,null,"440",null,null,"ALUMINIUM WINDOWS, DOORS, ETC"]
[]
[474,1799,2,7,46,null,"440",null,null,"Aluminium windows, doors, etc:"]
[]
[475,1800,2,7,46,null,"440",null,null,"The successful tenderer shall be responsible for the complete design work including determining required section sizes and fixing details, all subject to the Project Manager's approval"]
[]
[476,1801,2,7,46,null,"440",null,null,"Doors, windows, etc shall be designed and constructed to withstand wind pressures of 1,1kn/m2 (unfactored) and 1,5kn/m2 (factored)"]
[]
[477,1802,2,7,46,null,"440",null,null,"All calculations shall be submitted to the Project Manager for approval"]
[]
[478,1803,2,7,46,null,"440",null,null,"Doors and windows shall comply with AAAMSA design criteria"]
[]
[479,1804,2,7,46,null,"440",null,null,"Glazing shall comply with SAGGA regulations.  Glass thicknesses shall comply with SAGGA regulations irrespective of thicknesses shown on the schedules/drawings"]
[]
[480,1805,2,7,46,null,"440",null,null,"Doors and windows shall be supplied with protective tape and plastic which shall be removed only once surrounding trades have been completed"]
[]
[481,1806,2,7,46,null,"441",null,null,"The following certificates shall be provided prior to commencement of site work:  1\tA copy of the relevant AAAMSA Performance Test Certificate from the manufacturer/contractor supplying the architectural aluminium product"]
[]
[482,1807,2,7,47,null,"441",null,null,"2\tA Certificate of Conformance confirming that anodising or powder coating has been processed in accordance with SANS 999 and SANS 1796 respectively"]
[]
[483,1808,2,7,47,null,"441",null,null,"3\tA copy of the relevant Performance Compliance Report from the system suppliers"]
[]
[484,1809,2,7,47,null,"441",null,null,"4\tA copy of the relevant Safiera Energy Rating Certification"]
[]
[485,1810,2,7,47,null,"441",null,null,"5\tA powder guarantee of not less than 15 years issued by the powder manufacturer. The specific conditions contained in this guarantee shall form part of the powder coating process"]
[]
[486,1811,2,7,47,null,"441",null,null,"6\tA Certificate of Conformance confirming that glazing has been installed in accordance with SANS 10400-N, ensuring that safety glazing materials have been installed in the mandatory areas and that each individual pane of safety glazing materials has been permanently marked"]
[]
[487,1812,2,7,47,null,"441",null,null,"7\tA warranty from the manufacturer of the laminated safety glass and/or hermetically sealed glazing units guaranteeing the products against delamination and colour degradation for a period of not less than five years"]
[]
[488,1813,2,7,47,null,"441",null,null,"All windows and door joints must be sealed to the inside with \"Dow Corning\" or similar approved silicone during manufacturing"]
[]
[489,1814,2,7,47,null,"441",null,null,"All dimensions shall be verified on site before commencing the work and a full set of shop drawings showing all relevant details shall be submitted to the Architect for his approval, prior to the manufacture of the units"]
[]
[490,1815,2,7,47,null,"441",null,null,"Sizes"]
[]
[491,1816,2,7,47,null,"441",null,null,"Where sizes are given these are nominal sizes"]
[]
[492,1817,2,7,48,null,"442",null,null,"Ironmongery"]
[]
[493,1818,2,7,48,null,"442",null,null,"The tenderer must allow in his pricing for supply and fixing of ALL ironmongery  Heavy duty high quality fittings must be allowed for and samples will be required for approval by the Project Manager"]
[]
[494,7762,2,7,48,null,"89",null,null,"BUDGETARY ALLOWANCE"]
[]
[495,7763,2,7,48,{"v":3,"d":"3 "},{"$nulls":3},"Provide a budgetary allowance of Ten Thousand Rand for sundry metalwork to be used as directed by the Principal Agent and to be deducted in whole or in part if not required.",null,"Item",{"v":1,"d":"1 "},null,{"$f":"ROUND($M977*N977,2)","v":0}]
[]
[497,1961,2,8,49,{"$nulls":4},"SECTION 2"]
[]
[498,1962,2,8,49,{"$nulls":4},"BILL NO. 8"]
[]
[499,1963,2,8,49,{"$nulls":4},"TILING"]
[]
[500,1965,2,8,49,null,"470",null,null,"WORK GROUP ALLOCATION"]
[]
[501,1966,2,8,49,null,"470",null,null,"Unless otherwise stated, all items in this Bill will be allocated to Work Group 144 - Tiling"]
[]
[502,1967,2,8,49,null,"470",null,null,"PREAMBLES"]
[]
[503,1968,2,8,49,null,"470",null,null,"The General Preambles for Trades (2017 edition) as published by the Association of South African Quantity Surveyors shall be deemed to be incorporated in these bills of quantities and no claims arising from brevity of description of items fully described in the said General Preambles will be entertained"]
[]
[504,1969,2,8,49,null,"470",null,null,"The following \"Supplementary Preambles\" are incorporated in this bill to satisfy the requirements of the project and shall take precedence over the provisions of the said General Preambles"]
[]
[505,1970,2,8,49,null,"470",null,null,"SUPPLEMENTARY PREAMBLES"]
[]
[506,1971,2,8,49,null,"470",null,null,"Fixing:"]
[]
[507,1972,2,8,49,null,"470",null,null,"Unless described as \"fixed with adhesive to plaster (plaster elsewhere)\", descriptions of tiling on brick or concrete walls, columns, etc shall be deemed to include 1:4 cement plaster backing and descriptions of tiling on concrete floors, etc shall be deemed to include 1:3 cement plaster bedding"]
[]
[508,1973,2,8,49,null,"470",null,null,"Tiling described as \"fixed with adhesive on power floated concrete\" shall be deemed to include for approved tiling key-coat"]
[]
[509,1974,2,8,49,null,"470",null,null,"Ceramic, porcelain, marble and granite tiles are to be fixed and grouted with suitable adhesives and grouts from the \"Tal Goldstar\" or similar approved range of products as recommended by the manufacturer of the tiles"]
[]
[510,1975,2,8,50,null,"471",null,null,"Preparatory work to existing painted plastered surfaces:"]
[]
[511,1976,2,8,50,null,"471",null,null,"Preparation of all existing painted plastered surfaces is to include for removing all loose and flaking material by wire brushing, thoroughly washing down and allowing to dry completely and applying one coat masonry bonding agent"]
[]
[512,1978,2,8,50,{"$nulls":4},"WALL TILING"]
[]
[513,1982,2,8,50,null,"472",null,null,"350 x 350mm Ceramic tiles (Allow a Prime Cost Amount of R 250/m2 delivered to site) fixed with adhesive to plaster (plaster elsewhere) and flush pointing with and including waterproof grout:"]
[]
[514,1980,2,8,50,{"v":1,"d":"1 "},{"$nulls":3},"On walls",null,"m²",{"v":221,"d":"221 "},null,{"$f":"ROUND($M1013*N1013,2)","v":0}]
[]
[515,1981,2,8,50,{"v":2,"d":"2 "},{"$nulls":3},"On narrow widths",null,"m²",{"v":22,"d":"22 "},null,{"$f":"ROUND($M1015*N1015,2)","v":0}]
[]
[516,1990,2,8,50,null,"474",null,null,"FLOOR TILING"]
[]
[517,1991,2,8,50,null,"475",null,null,"600 x 600mm Porcelain floor tiles (Allow a Prime Cost Amount of R 350/m2 delivered to site) fixed with adhesive to screed (screed elsewhere) and flush pointing with and including waterproof grout:"]
[]
[518,1992,2,8,50,{"v":3,"d":"3 "},{"$nulls":3},"On floors",null,"m²",{"v":70,"d":"70 "},null,{"$f":"ROUND($M1021*N1021,2)","v":0}]
[]
[519,1993,2,8,50,{"v":4,"d":"4 "},"476.31",null,null,"Skirting 100mm high (of fair cut tiles)",null,"m",{"v":81,"d":"81 "},null,{"$f":"ROUND($M1023*N1023,2)","v":0}]
[]
[520,2004,2,8,50,null,"478",null,null,"SUNDRIES"]
[]
[521,2005,2,8,50,null,"479",null,null,"Stainless steel dividing strips:"]
[]
[522,2007,2,8,50,{"v":5,"d":"5 "},"479.63",null,null,"28 x 10 x 2,5mm L-section dividing strips between tiles",null,"m",{"v":81,"d":"81 "},null,{"$f":"ROUND($M1029*N1029,2)","v":0}]
[]
[524,2013,2,9,51,{"$nulls":4},"SECTION 2"]
[]
[525,2014,2,9,51,{"$nulls":4},"BILL NO. 9"]
[]
[526,2015,2,9,51,{"$nulls":4},"PLUMBING AND DRAINAGE (PROVISIONAL)"]
[]
[527,2017,2,9,51,null,"481",null,null,"WORK GROUP ALLOCATION"]
[]
[528,2018,2,9,51,null,"481",null,null,"The items in this Bill will be allocated to Work Groups as indicated in brackets at the end of headings or descriptions"]
[]
[529,2019,2,9,51,null,"481",null,null,"PREAMBLES"]
[]
[530,2020,2,9,51,null,"481",null,null,"The General Preambles for Trades (2017 edition) as published by the Association of South African Quantity Surveyors shall be deemed to be incorporated in these bills of quantities and no claims arising from brevity of description of items fully described in the said General Preambles will be entertained"]
[]
[531,2021,2,9,51,null,"481",null,null,"The following \"Supplementary Preambles\" are incorporated in this bill to satisfy the requirements of the project and shall take precedence over the provisions of the said General Preambles"]
[]
[532,2022,2,9,51,null,"481",null,null,"SUPPLEMENTARY PREAMBLES"]
[]
[533,2023,2,9,51,null,"481",null,null,"Wire gratings:"]
[]
[534,2024,2,9,51,null,"481",null,null,"Descriptions of gutter outlets, etc shall be deemed to include wire balloon gratings"]
[]
[535,2025,2,9,51,null,"481",null,null,"Stormwater channels:"]
[]
[536,2026,2,9,51,null,"481",null,null,"Descriptions of channels shall be deemed to include necessary excavation, surface preparation, compaction, etc and disposal of surplus material on site"]
[]
[537,2027,2,9,52,null,"481",null,null,"French drains:"]
[]
[538,2028,2,9,52,null,"481",null,null,"Descriptions of french drains shall be deemed to include excavation, stone filling graded from 300mm diameter at bottom to 75mm diameter at top, approved geofabric filter blanket over stone, 300mm earthfilling over and disposal of surplus material on site"]
[]
[539,2029,2,9,52,null,"482",null,null,"Septic tanks:"]
[]
[540,2030,2,9,52,null,"482",null,null,"Descriptions of proprietary type septic tanks shall be deemed to include excavation, bedding and jointing, concrete base slabs, jointing to drains and backfilling, compaction, etc all in accordance with the manufacturer's instructions and disposal of surplus material on site"]
[]
[541,2031,2,9,52,null,"482",null,null,"Stainless steel basins, sinks, wash troughs, urinals, etc:"]
[]
[542,2032,2,9,52,null,"482",null,null,"Stainless steel for economy basins, domestic sinks and worktops shall be Type 430 (17/0)  Stainless steel for urinals, basins, quality sinks, wash troughs, institutional equipment, etc shall be Type 304 (18/8)  Stainless steel for laboratory sinks, photographic equipment, etc shall be Type 316 (18/8)  Units shall have standard aprons on all exposed edges and tiling keys against walls where applicable"]
[]
[543,2033,2,9,52,null,"482",null,null,"Sealing of edges:"]
[]
[544,2034,2,9,52,null,"482",null,null,"Outer edges of sinks, basins, baths, urinals, etc are to be sealed against adjacent surfaces with approved mildew resistant silicone sealant and prices must include therefor"]
[]
[545,2035,2,9,52,null,"482",null,null,"uPVC pipes and fittings:"]
[]
[546,2036,2,9,52,null,"482",null,null,"Sewer and drainage pipes and fittings shall be jointed and sealed with butyl rubber rings  Soil, waste and vent pipes and fittings shall be solvent weld jointed or sealed with butyl rubber rings"]
[]
[547,2037,2,9,53,null,"482",null,null,"uPVC pressure pipes and fittings:"]
[]
[548,2038,2,9,53,null,"482",null,null,"Pipes of 50mm diameter and smaller shall be plain ended with solvent welded uPVC loose sockets and fittings  Pipes of 63mm diameter and greater shall have sockets and spigots with push-in type integral rubber ring joints.  Bends shall be uPVC and all other fittings shall be cast iron, all with similar push-in type joints"]
[]
[549,2039,2,9,53,null,"483",null,null,"High density polyethylene (HDPe) pipes and fittings:"]
[]
[550,2040,2,9,53,null,"483",null,null,"Pipes shall be type IV and of the class specified with \"Plasson\" or \"Alprene\" or similar approved compression fittings"]
[]
[551,2041,2,9,53,null,"483",null,null,"Polycop polypropylene pipes:"]
[]
[552,2042,2,9,53,null,"483",null,null,"Polypropylene pipes 54mm diameter and smaller shall be seamless copper coloured Class 16 pipes jointed with \"Fast-fuse\" heat welded thermoplastic or where so described \"Polylock\" or similar approved compression fittings  Pipes shall be firmly fixed to walls, etc with coloured nylon snap-in pipe clips with provision for accommodating thermal movement and jointed and fixed strictly in accordance with the manufacturer's instructions"]
[]
[553,2043,2,9,53,null,"483",null,null,"Copper pipes:"]
[]
[554,2044,2,9,53,null,"483",null,null,"Pipes shall be hard drawn and half-hard \"Maksal\" or similar approved pipes of the class described.  Class 0 (thin walled hard drawn) pipes shall not be bent.  Class 1 (thin walled half-hard), Class 2 (half-hard) and Class 3 (heavy walled half-hard) pipes shall only be bent with benders with inner and outer formers.  Fittings to copper waste, vent and anti-syphon pipes, capillary solder fittings and compression fittings shall be \"Cobra Watertech\" or similar approved type.  Capillary solder fittings shall comply with ISO 2016. Only compression fittings shall be used in walls or in ground"]
[]
[555,2045,2,9,54,null,"483",null,null,"Copper pipes are to be installed in accordance with the latest revision of the Code of Practice for Copper Plumbing soldering techniques.  Flux, solder, etc to be strictly in accordance with the manufacturer's requirements with special attention to copper flux composition"]
[]
[556,2046,2,9,54,null,"483",null,null,"Reducing fittings:"]
[]
[557,2047,2,9,54,null,"483",null,null,"Where fittings have reducing ends or branches they are described as \"reducing\". In the case of pipes with diameters not exceeding 60mm, only the largest end or branch size is given. Should the Contractor wish to use other fittings and bushes or reducers he may do so on the understanding that no claim in this regard will be entertained. In the case of pipes with diameters exceeding 60mm, all sizes are given and no claims for extra bushes, reducers, etc will be entertained"]
[]
[558,2048,2,9,54,null,"484",null,null,"Fixing of pipes:"]
[]
[559,2049,2,9,54,null,"484",null,null,"Unless specifically otherwise stated, descriptions of pipes shall be deemed to include fixing to walls, etc casting in, building in or suspending not exceeding 1m below suspension level"]
[]
[560,2050,2,9,54,null,"484",null,null,"Paper wrapping to pipes:"]
[]
[561,2051,2,9,54,null,"484",null,null,"Pipes chased into brickwork must be wrapped with two layers of stout brown paper tied with wire.  Rates are to include for wrapping around joints and fittings"]
[]
[562,2052,2,9,54,null,"484",null,null,"Disinfection of water pipework:"]
[]
[563,2053,2,9,54,null,"484",null,null,"Water pipework is to be disinfected at completion in accordance with SANS 1200L (provision for disinfection elsewhere)"]
[]
[564,2054,2,9,55,null,"484",null,null,"\"Densyl\" or similar approved petrolatum anti-corrosion tape"]
[]
[565,2055,2,9,55,null,"484",null,null,"Pipes to be taped shall be coated with the appropriate primer and the tape shall be applied in the appropriate widths and with suitable overlaps  Couplings and fittings to pipes shall be taped in strict accordance with the manufacturer's instructions including mastic, tape, \"Layflat\" or similar approved sheeting, securing of same, etc"]
[]
[566,2056,2,9,55,null,"484",null,null,"Prices for wrapping of pipes shall include for all work as described to couplings in the length"]
[]
[567,2057,2,9,55,null,"484",null,null,"Laying, backfilling, bedding, etc of pipes:"]
[]
[568,2058,2,9,55,null,"484",null,null,"Pipes shall be laid and bedded in accordance with manufacturers' instructions and trenches shall be carefully backfilled"]
[]
[569,2059,2,9,55,null,"485",null,null,"Where no manufacturers' instructions exist, pipes shall be laid in accordance with Clauses 5.1 and 5.2 of each of the following: SANS 1200L\t: Medium-pressure pipelines SANS 1200LD\t: Sewers SANS 1200LE\t: Stormwater drainage Pipe trenches, etc shall be backfilled in accordance with Clauses 3, 5.5, 5.6, 5.7 and 7 of SANS 1200DB : Earthworks (Pipe trenches)Pipes shall be bedded in accordance with Clauses 3.1 to 3.4.1, 5.1 to 5.3 and 7 of SANS 1200LB : Bedding (Pipes)Unless otherwise described, bedding of rigid pipes shall be Class B bedding"]
[]
[570,2060,2,9,56,null,"485",null,null,"General:"]
[]
[571,2061,2,9,56,null,"485",null,null,"Descriptions of cast iron roof outlets shall be deemed to include joints to pipes and casting into concrete (adaptors for joints to PVC pipes, etc are given separately)  Descriptions of overflow pipes where measured in number, shall be deemed to include joints to cisterns and splay cut ends"]
[]
[572,2062,2,9,56,null,"485",null,null,"Descriptions of pipes laid in and including trenches and of inspection chambers, catchpits, etc shall be deemed to include excavation, bedding, backfilling, compaction to a minimum of 98% Mod AASHTO density and disposal of surplus material on site"]
[]
[573,2063,2,9,56,null,"485",null,null,"Descriptions of service pipes and flexible connecting pipes shall be deemed to include connections to taps, cisterns, etc and to steel pipes (adaptors for connections to copper pipes, etc are given separately)"]
[]
[574,2064,2,9,56,null,"485",null,null,"Descriptions of WC pans, slop hoppers, etc shall be deemed to include for joints to soil pipes (pan connectors are separately measured) and shall have straight or side outlets and \"P\" or \"S\" traps as necessary"]
[]
[575,2065,2,9,56,null,"485",null,null,"Description of waste unions shall be deemed to include rubber or vulcanite plugs and chains fixed to fittings."]
[]
[576,2066,2,9,56,null,"486",null,null,"As-built drawings:"]
[]
[577,2067,2,9,56,null,"486",null,null,"Where required, the Contractor shall prepare an updated set of as-built drawings.  At completion of the contract the Contractor shall hand these drawings to the Project Manager for reproducing onto the originals for handing over to the Employer (provision for allowance of as-built drawings elsewhere)"]
[]
[578,2068,2,9,57,null,"377",null,null,"Proprietary items:"]
[]
[579,2069,2,9,57,null,"377",null,null,"Where applicable, the manufacturers' names or product catalogue titles are given in sub-headings preceding the itemsNote that the manufacturers names specified in this trade are for the purposes of competitive pricing. Prices are to be based on the specific products/articles specified.On request, returnable samples are to be provided to the Project Manager for consideration"]
[]
[580,2088,2,9,57,null,"501",null,null,"SANITARY FITTINGS (WORK GROUP 148)"]
[]
[581,2089,2,9,57,null,"501",null,null,"\"Franke\" or similar approved stainless steel:"]
[]
[582,2090,2,9,57,{"v":1,"d":"1 "},"502.213",null,null,"1050 x 535mm \"Trendline 711 Code: 1030006\" sink with 350 x 460mm end bowl, on cupboard (cupboard elsewhere)",null,"No",{"v":0,"d":"0 "},null,"RATE ONLY"]
[]
[583,2097,2,9,57,null,"502",null,null,"\"Vaal\" or similar approved:"]
[]
[584,2098,2,9,57,{"v":2,"d":"2 "},{"$nulls":3},"455 x 290mm \"Hibiscus\" 7050 wash hand basin bolted to wall",null,"No",{"v":5,"d":"5 "},null,{"$f":"ROUND($M1151*N1151,2)","v":0}]
[]
[585,2102,2,9,57,{"v":3,"d":"3 "},"503.228",null,null,"\"Hibiscus\" 772402 close-coupled WC suite comprising pan with double flap heavy duty thermoset seat (Code: 8531Z0) and matching 9 litre cistern",null,"No",{"v":6,"d":"6 "},null,{"$f":"ROUND($M1153*N1153,2)","v":0}]
[]
[586,2107,2,9,57,null,"503",null,null,"WASTE UNIONS, ETC"]
[]
[587,2108,2,9,57,null,"503",null,null,"\"Cobra Watertech\" or similar approved:"]
[]
[588,2110,2,9,57,{"v":4,"d":"4 "},"503.239",null,null,"40mm Code 317 CP basin waste union and code 309CP anti-theft plug",null,"No",{"v":6,"d":"6 "},null,{"$f":"ROUND($M1159*N1159,2)","v":0}]
[]
[589,2112,2,9,57,{"$nulls":4},"TRAPS, ETC"]
[]
[590,2113,2,9,57,null,"504",null,null,"uPVC:"]
[]
[591,2114,2,9,57,{"v":5,"d":"5 "},"504.243",null,null,"40mm \"P\" or \"S\" trap",null,"No",{"v":6,"d":"6 "},null,{"$f":"ROUND($M1165*N1165,2)","v":0}]
[]
[592,2122,2,9,57,{"$nulls":4},"TAPS, VALVES, ETC"]
[]
[593,2123,2,9,58,null,"505",null,null,"\"Cobra Watertech\" or similar approved:"]
[]
[594,2125,2,9,58,{"v":6,"d":"6 "},"505.268",null,null,"15mm Code1065-15CP fullway isolating ball valve",null,"No",{"v":6,"d":"6 "},null,{"$f":"ROUND($M1171*N1171,2)","v":0}]
[]
[595,2128,2,9,58,{"v":7,"d":"7 "},"507.301",null,null,"15mm Code 902CP \"Focus\" basin mixer with waste union, etc and angle flow regulating valves",null,"No",{"v":5,"d":"5 "},null,{"$f":"ROUND($M1173*N1173,2)","v":0}]
[]
[596,2374,2,9,58,{"$nulls":4},"AS-BUILT DRAWINGS"]
[]
[597,2375,2,9,58,{"v":8,"d":"8 "},{"$nulls":3},"Provision of as-built drawings",null,"Item",{"v":1,"d":"1 "},null,{"$f":"ROUND($M1177*N1177,2)","v":0}]
[]
[598,7766,2,9,58,null,"89",null,null,"BUDGETARY ALLOWANCE"]
[]
[599,7767,2,9,58,{"v":9,"d":"9 "},{"$nulls":3},"Provide a budgetary allowance of Fifteen Thousand Rand for sundry plumbing works to be used as directed by the Principal Agent and to be deducted in whole or in part if not required.",null,"Item",{"v":1,"d":"1 "},null,{"$f":"ROUND($M1181*N1181,2)","v":0}]
[]
[601,2377,2,10,59,{"$nulls":4},"SECTION 2"]
[]
[602,2378,2,10,59,{"$nulls":4},"BILL NO. 10"]
[]
[603,2379,2,10,59,{"$nulls":4},"GLAZING"]
[]
[604,2381,2,10,59,null,"528",null,null,"WORK GROUP ALLOCATION"]
[]
[605,2382,2,10,59,null,"528",null,null,"Unless otherwise stated, all items in this Bill will be allocated to Work Group 150 - Glazing"]
[]
[606,2383,2,10,59,null,"528",null,null,"PREAMBLES"]
[]
[607,2384,2,10,59,null,"528",null,null,"The General Preambles for Trades (2017 edition) as published by the Association of South African Quantity Surveyors shall be deemed to be incorporated in these bills of quantities and no claims arising from brevity of description of items fully described in the said General Preambles will be entertained"]
[]
[608,2385,2,10,59,null,"528",null,null,"The following \"Supplementary Preambles\" are incorporated in this bill to satisfy the requirements of the project and shall take precedence over the provisions of the said General Preambles"]
[]
[609,2386,2,10,59,null,"528",null,null,"SUPPLEMENTARY PREAMBLES"]
[]
[610,2387,2,10,59,null,"528",null,null,"Float glass:"]
[]
[611,2388,2,10,59,null,"528",null,null,"The term \"float glass\" is used for monolithic annealed glass"]
[]
[612,2389,2,10,59,null,"528",null,null,"Laminated glass:"]
[]
[613,2390,2,10,59,null,"528",null,null,"Laminated glass to have polyvinyl butyral (PVB) interlayer(s)"]
[]
[614,2393,2,10,60,{"$nulls":4},"GLAZING TO STEEL WITH PUTTY"]
[]
[615,2395,2,10,60,null,"529",null,null,"6,38mm Normal strength (NS) clear laminated safety glass:"]
[]
[616,8431,2,10,60,{"v":1,"d":"1 "},{"$nulls":3},"Panes not exceeding 0,5m2",null,"m²",{"v":5,"d":"5 "},null,{"$f":"ROUND($M1213*N1213,2)","v":0}]
[]
[617,2403,2,10,60,{"$nulls":4},"TOPS, SHELVES, DOORS, MIRRORS, ETC"]
[]
[618,2405,2,10,60,{"$nulls":4},"4mm Silvered float glass copper backed mirrors with 10mm bevelled and polished edges fixed with double sided adhesive tape:"]
[]
[619,2407,2,10,60,{"v":2,"d":"2 "},"532.25",null,null,"Mirror 600 x 1200mm high",null,"No",{"v":6,"d":"6 "},null,{"$f":"ROUND($M1219*N1219,2)","v":0}]
[]
[621,2415,2,11,61,{"$nulls":4},"SECTION 2"]
[]
[622,2416,2,11,61,{"$nulls":4},"BILL NO. 11"]
[]
[623,2417,2,11,61,{"$nulls":4},"PAINTWORK"]
[]
[624,2419,2,11,61,null,"535",null,null,"WORK GROUP ALLOCATION"]
[]
[625,2420,2,11,61,null,"535",null,null,"Unless otherwise stated, all items in this Bill will be allocated to Work Group 152 - Painting"]
[]
[626,2421,2,11,61,null,"535",null,null,"PREAMBLES"]
[]
[627,2422,2,11,61,null,"535",null,null,"The General Preambles for Trades (2017 edition) as published by the Association of South African Quantity Surveyors shall be deemed to be incorporated in these bills of quantities and no claims arising from brevity of description of items fully described in the said General Preambles will be entertained"]
[]
[628,2423,2,11,61,null,"535",null,null,"The following \"Supplementary Preambles\" are incorporated in this bill to satisfy the requirements of the project and shall take precedence over the provisions of the said General Preambles"]
[]
[629,2424,2,11,61,null,"536",null,null,"SUPPLEMENTARY PREAMBLES"]
[]
[630,2425,2,11,61,null,"536",null,null,"PREPARATORY WORK TO EXISTING WORK"]
[]
[631,2426,2,11,61,null,"536",null,null,"Previously painted plastered surfaces:"]
[]
[632,2427,2,11,61,null,"536",null,null,"Surfaces shall be thoroughly washed down and allowed to dry completely before any paint is applied. Blistered or peeling paint shall be completely removed and minor cracks shall be opened, filled with a suitable filler and finished smooth"]
[]
[633,2428,2,11,61,null,"536",null,null,"Previously painted metal surfaces:"]
[]
[634,2429,2,11,61,null,"536",null,null,"Surfaces shall be thoroughly rubbed and cleaned down.  Blistered or peeling paint shall be completely removed down to bare metal"]
[]
[635,2430,2,11,62,null,"536",null,null,"Previously painted wood surfaces:"]
[]
[636,2431,2,11,62,null,"536",null,null,"Surfaces shall be thoroughly cleaned down.  Blistered or peeling paint shall be completely removed and cracks and crevices shall be primed, filled with suitable filler and finished smooth"]
[]
[637,2432,2,11,62,null,"536",null,null,"PAINT SPECIFICATIONS"]
[]
[638,2433,2,11,62,null,"536",null,null,"All painting shall be done in accordance with \"Plascon\" or similar approved, etc specifications, unless otherwise described"]
[]
[639,2434,2,11,62,null,"537",null,null,"COLOURS"]
[]
[640,2435,2,11,62,null,"537",null,null,"When staining timber, the resultant colour or shade must be to the complete satisfaction of the Project Manager before any overcoating or preservative is applied  Paintwork is classified in the following different colour groups: \"White\", \"Pastel\", \"Deep\" and \"Transparent\" in accordance with the \"Natural Colour System\" (NCS) adopted by the SA National Standards Unless otherwise described, all paintwork shall be deemed to be classified in the \"White\" colour group"]
[]
[641,2505,2,11,62,null,"546",null,null,"PAINTWORK, ETC TO PREVIOUSLY PAINTED WORK"]
[]
[642,2506,2,11,62,null,"546",null,null,"ON INTERNAL FLOATED PLASTER SURFACES"]
[]
[643,2507,2,11,62,null,"546",null,null,"One coat superior quality acrylic emulsion paint for interior and exterior use, on work in sound condition:"]
[]
[644,2508,2,11,62,{"v":1,"d":"1 "},"546.74",null,null,"Walls",null,"m²",{"v":296,"d":"296 "},null,{"$f":"ROUND($M1267*N1267,2)","v":0}]
[]
[645,2467,2,11,62,null,"542",null,null,"ON FIBRE-CEMENT BOARD SURFACES"]
[]
[646,2468,2,11,62,null,"542",null,null,"One coat alkali resistant primer and two coats superior quality acrylic emulsion paint for interior and exterior use, on:"]
[]
[647,2469,2,11,62,{"v":2,"d":"2 "},"542.30",null,null,"Ceilings and cornices, including priming metal cover strips and nailheads",null,"m²",{"v":69,"d":"69 "},null,{"$f":"ROUND($M1273*N1273,2)","v":0}]
[]
[648,8422,2,11,63,{"v":3,"d":"3 "},{"$nulls":3},"On fascias and barge boards, etc. not exceeding 300mm girth",null,"m",{"v":118,"d":"118 "},null,{"$f":"ROUND($M1275*N1275,2)","v":0}]
[]
[649,2474,2,11,63,{"$nulls":4},"METAL SURFACES WITH"]
[]
[650,2475,2,11,63,null,"543",null,null,"One coat alkyd based zinc phosphate primer and two coats premium quality polyurethane enamel paint, on steel:"]
[]
[651,7251,2,11,63,{"v":4,"d":"4 "},{"$nulls":3},"Doors",null,"m²",{"v":11,"d":"11 "},null,{"$f":"ROUND($M1281*N1281,2)","v":0}]
[]
[652,8432,2,11,63,{"v":5,"d":"5 "},{"$nulls":3},"Roof coverings",null,"m²",{"v":404,"d":"404 "},null,{"$f":"ROUND($M1283*N1283,2)","v":0}]
[]
[653,2492,2,11,63,null,"544",null,null,"ON WOOD SURFACES"]
[]
[654,2493,2,11,63,null,"544",null,null,"One coat primer, one coat alkyd based universal undercoat and two coats superior quality universal enamel paint, on:"]
[]
[655,2494,2,11,63,{"v":6,"d":"6 "},{"$nulls":3},"Doors",null,"m²",{"v":10,"d":"10 "},null,{"$f":"ROUND($M1289*N1289,2)","v":0}]
[]
[657,526,2,12,64,{"v":1,"d":"1 "},{"$nulls":3},"Alterations",{"$nulls":4},{"$f":"SUM(O475:O580)","v":0}]
[]
[658,1096,2,12,64,{"v":2,"d":"2 "},{"$nulls":3},"Roof Coverings",{"$nulls":4},{"$f":"SUM(O586:O622)","v":0}]
[]
[659,1130,2,12,64,{"v":3,"d":"3 "},{"$nulls":3},"Carpentry and Joinery",{"$nulls":4},{"$f":"SUM(O628:O690)","v":0}]
[]
[660,1243,2,12,64,{"v":4,"d":"4 "},{"$nulls":3},"Ceilings, Partitions and Access Flooring",{"$nulls":4},{"$f":"SUM(O698:O746)","v":0}]
[]
[661,1357,2,12,64,{"v":5,"d":"5 "},{"$nulls":3},"Ironmongery",{"$nulls":4},{"$f":"SUM(O767:O836)","v":0}]
[]
[662,1526,2,12,64,{"v":6,"d":"6 "},{"$nulls":3},"Structural Steelwork",{"$nulls":4},{"$f":"SUM(O838:O892)","v":0}]
[]
[663,1711,2,12,64,{"v":7,"d":"7 "},{"$nulls":3},"Metalwork",{"$nulls":4},{"$f":"SUM(O912:O978)","v":0}]
[]
[664,1960,2,12,64,{"v":8,"d":"8 "},{"$nulls":3},"Tiling",{"$nulls":4},{"$f":"SUM(O999:O1030)","v":0}]
[]
[665,2012,2,12,64,{"v":9,"d":"9 "},{"$nulls":3},"Plumbing and Drainage",{"$nulls":4},{"$f":"SUM(O1125:O1182)","v":0}]
[]
[666,2376,2,12,64,{"v":10,"d":"10 "},{"$nulls":3},"Glazing",{"$nulls":4},{"$f":"SUM(O1202:O1220)","v":0}]
[]
[667,2414,2,12,64,{"v":11,"d":"11 "},{"$nulls":3},"Paintwork",{"$nulls":4},{"$f":"SUM(O1241:O1290)","v":0}]
[]
[668,2535,3,1,65,null,"626",null,null,"SECTION 3"]
[]
[669,2536,3,1,65,null,"626",null,null,"BILL NO. 1"]
[]
[670,2537,3,1,65,null,"626",null,null,"EXTERNAL WORK (PROVISIONAL)"]
[]
[671,2538,3,1,65,null,"626",null,null,"(ALL TRADES)"]
[]
[672,2540,3,1,65,null,"626",null,null,"WORK GROUP ALLOCATION"]
[]
[673,2541,3,1,65,null,"626",null,null,"The items in this Bill will be allocated to Work Groups as indicated in brackets at the end of headings or descriptions"]
[]
[674,2542,3,1,65,null,"626",null,null,"PREAMBLES"]
[]
[675,2543,3,1,65,null,"626",null,null,"The Model Preambles for Trades (2008 edition) as published by the Association of South African Quantity Surveyors shall be deemed to be incorporated in these bills of quantities and no claims arising from brevity of description of items fully described in the said General Preambles will be entertained"]
[]
[676,2544,3,1,65,null,"626",null,null,"The following \"Supplementary Preambles\" are incorporated in this bill to satisfy the requirements of the project and shall take precedence over the provisions of the said General Preambles"]
[]
[677,2545,3,1,65,null,"627",null,null,"SUPPLEMENTARY PREAMBLES"]
[]
[678,2546,3,1,65,null,"627",null,null,"Nature of ground:"]
[]
[679,2547,3,1,65,null,"627",null,null,"The nature of the ground is assumed to be loose sandy material, therefore \"earth\", but possibly interspersed with \"soft rock\" or \"hard rock\""]
[]
[680,2548,3,1,65,null,"627",null,null,"The nature of the ground is assumed to be gravel, therefore \"earth\", but possibly interspersed with \"soft rock\" or \"hard rock\""]
[]
[681,2549,3,1,65,null,"627",null,null,"The nature of the ground is assumed to be silty clay with loose river boulders varying in size up to approximately 450mm diameter, all of which will be deemed as \"earth\", but possibly interspersed with \"hard rock\""]
[]
[682,2550,3,1,66,null,"627",null,null,"Trial holes indicate that the nature of the ground is silty clay to a depth of approximately 500mm with fine to medium loose sandy material below, therefore \"earth\""]
[]
[683,2551,3,1,66,null,"627",null,null,"A soils investigation has been carried out on the site by the Engineer and the report is annexed to these bills of quantities.  The soils report indicates that the ground varies between transported soils at surface comprising gravel layers of varying  thickness and interspersed with clay, and weathered shales varying from very soft rock to medium hard rock consistency, all of which will be deemed as \"earth\". All very hard unweathered shale, ironstone, etc the removal of which necessitates the use of explosives or heavy duty hydraulic percussion hammers (peckers), will be classified as \"hard rock\""]
[]
[684,2552,3,1,66,null,"627",null,null,"Should the Contractor encounter any \"soft\" or \"hard\" rock in the excavations, he shall immediately notify the Engineer who shall be the sole arbiter as to what constitutes \"soft\" or \"hard\" rock for final account purposes"]
[]
[685,2553,3,1,66,null,"627",null,null,"Subterranean water:"]
[]
[686,2554,3,1,66,null,"627",null,null,"No subterranean water is expected"]
[]
[687,2555,3,1,66,null,"628",null,null,"Excavation for working space in rock:"]
[]
[688,2556,3,1,66,null,"628",null,null,"Notwithstanding clause 11 of the Standard System of Measuring Building Work, excavation for working space in rock will be measured in cubic metres to the extent executed and given as \"extra over\" bulk excavation or trench and hole excavation as the case may be"]
[]
[689,2557,3,1,66,null,"628",null,null,"Carting away of excavated material:"]
[]
[690,2558,3,1,66,null,"628",null,null,"Descriptions of carting away of excavated material shall be deemed to include loading excavated material onto trucks directly from the excavations or, alternatively, from stock piles situated on the building site"]
[]
[691,2559,3,1,66,null,"628",null,null,"Filling:"]
[]
[692,2560,3,1,66,null,"628",null,null,"Notwithstanding the reference to prescribed multiple handling in Clause 1 of the Standard System of Measuring Building Work, prices for filling and backfilling shall include for all selection and any necessary multiple handling of material"]
[]
[693,2563,3,1,67,null,"628",null,null,"Testing:"]
[]
[694,2564,3,1,67,null,"628",null,null,"Prices for backfilling to trenches and holes only are to include for all necessary density tests in accordance with SANS 1200D"]
[]
[695,2565,3,1,67,null,"628",null,null,"Maintenance period:"]
[]
[696,2566,3,1,67,null,"628",null,null,"The maintenance period to civil works such as roads, parking and related earthworks shall be twelve calender months"]
[]
[697,2569,3,1,67,null,"629",null,null,"DEMOLITIONS, ETC (WORK GROUP 104)"]
[]
[698,2579,3,1,67,{"$nulls":4},"Taking down and removing:"]
[]
[699,2581,3,1,67,{"v":1,"d":"1 "},{"$nulls":3},"2400mm High precast concrete panel fence",null,"m",{"v":70,"d":"70 "},null,{"$f":"ROUND($M1375*N1375,2)","v":0}]
[]
[700,2592,3,1,67,null,"631",null,null,"SITE CLEARANCE, ETC (WORK GROUP 104)"]
[]
[701,2593,3,1,67,{"$nulls":4},"Site clearance:"]
[]
[702,8489,3,1,67,{"v":2,"d":"2 "},"157.15",null,null,"Digging up and removing rubbish, debris, vegetation, hedges, shrubs, bush, etc and trees not exceeding 200mm girth",null,"m²",{"v":500,"d":"500 "},null,{"$f":"ROUND($M1381*N1381,2)","v":0}]
[]
[703,3274,3,1,67,null,"663",null,null,"FENCING  (WORK GROUP 136)"]
[]
[704,9546,3,1,67,null,"665",null,null,"\"Clearvu\" or similar approved galvanised steel security fence with posts at 3382mm centres, erected complete including concrete bases, stays, rails, verticals, galvanised steel bolts, straining eye bolts, single overhang with 3 strands of barbed wire, etc. and finished with epoxy coating and including site clearance, preparation of ground, etc:"]
[]
[705,9547,3,1,67,{"v":3,"d":"3 "},{"$nulls":3},"Security fence 3000mm high",null,"m",{"v":70,"d":"70 "},null,{"$f":"ROUND($M1387*N1387,2)","v":0}]
[]
[706,7725,3,1,67,{"$nulls":4},"Precast concrete fencing"]
[]
[707,7724,3,1,67,{"v":4,"d":"4 "},{"$nulls":3},"Precast concrete palisade fencing 2.40m high",null,"m",{"v":70,"d":"70 "},null,{"$f":"ROUND($M1391*N1391,2)","v":0}]
[]
[708,7730,3,1,68,null,"89",null,null,"BUDGETARY ALLOWANCE"]
[]
[709,7731,3,1,68,{"v":5,"d":"5 "},{"$nulls":3},"Provide a budgetary allowance of Fifteen Thousand Rand for sundry external works to be used as directed by the Principal Agent and to be deducted in whole or in part if not required.",null,"Item",{"v":1,"d":"1 "},null,{"$f":"ROUND($M1395*N1395,2)","v":0}]
[]
[711,8969,4,1,69,null,"56",null,null,"SECTION 4"]
[]
[712,8970,4,1,69,null,"56",null,null,"BILL NO. 1"]
[]
[713,8971,4,1,69,null,"56",null,null,"ELECTRICAL INSTALLATION"]
[]
[714,8972,4,1,69,null,"56",null,null,"LOW VOLTAGE"]
[]
[715,8982,4,1,69,null,"57",null,null,"LV SWITCHGEAR DBs and LV Switchgear"]
[]
[716,8983,4,1,69,null,"57",null,null,"Manufacture, deliver to site, install, commission, test kiosks, distribution boards as per specification and single line diagram, to be housed in electrical. All electrical panels shall be stainless steel material, rates to include powder coated, busbars and drilling, busbar connections internal wiring etc. Refer to single line diagram for electrical panel colour and specification document for details"]
[]
[717,8984,4,1,69,{"v":1,"d":"1 "},"57.4",null,null,"Main DB",null,"No",{"v":1,"d":"1 "},null,{"$f":"ROUND($M1409*N1409,2)","v":0}]
[]
[718,8985,4,1,69,{"v":2,"d":"2 "},"57.5",null,null,"Kiosk",null,"No",{"v":1,"d":"1 "},null,{"$f":"ROUND($M1411*N1411,2)","v":0}]
[]
[719,8988,4,1,69,{"v":3,"d":"3 "},"57.8",null,null,"DB - 1",null,"No",{"v":1,"d":"1 "},null,{"$f":"ROUND($M1413*N1413,2)","v":0}]
[]
[720,8989,4,1,69,{"v":4,"d":"4 "},"57.9",null,null,"DB - 2",null,"No",{"v":1,"d":"1 "},null,{"$f":"ROUND($M1415*N1415,2)","v":0}]
[]
[721,8990,4,1,69,{"v":5,"d":"5 "},{"$nulls":3},"UT4 IP65 Box surface mounted with 32A 1-pole isolator, 3x circuit breakers with complete busbar.",null,"No",{"v":1,"d":"1 "},null,{"$f":"ROUND($M1417*N1417,2)","v":0}]
[]
[722,8996,4,1,69,null,"58",null,null,"CABLES AND CONDUCTORS"]
[]
[723,8997,4,1,69,null,"58",null,null,"Supply, deliver to site cables and conductors as specified. Install, rack, strap and testing of cables as per specification including clamps, ties and cable numbering system"]
[]
[724,8998,4,1,69,{"v":6,"d":"6 "},"58.14",null,null,"2,5mm conductors (mixed colours - live, neutral and earth)",null,"m",{"v":4000,"d":"4,000 "},null,{"$f":"ROUND($M1423*N1423,2)","v":0}]
[]
[725,8999,4,1,69,{"v":7,"d":"7 "},"58.15",null,null,"4,0mm conductors (mixed colours - live, neutral and earth)",null,"m",{"v":2000,"d":"2,000 "},null,{"$f":"ROUND($M1425*N1425,2)","v":0}]
[]
[726,9001,4,1,70,{"v":8,"d":"8 "},"58.17",null,null,"4,0 mm\"² 2c 600/1000V PVC/SWA/PVC ECC Cu Cable",null,"m",{"v":50,"d":"50 "},null,{"$f":"ROUND($M1427*N1427,2)","v":0}]
[]
[727,9002,4,1,70,{"v":9,"d":"9 "},{"$nulls":3},"6.0mm\"² 2c 600/1000V PVC/SWA/PVC ECC Cu Cable",null,"m",{"v":80,"d":"80 "},null,{"$f":"ROUND($M1429*N1429,2)","v":0}]
[]
[728,9003,4,1,70,{"v":10,"d":"10 "},"58.19",null,null,"10 mm\"² 4c 600/1000V PVC/SWA/PVC ECC Cu Cable",null,"m",{"v":500,"d":"500 "},null,{"$f":"ROUND($M1431*N1431,2)","v":0}]
[]
[729,9004,4,1,70,{"v":11,"d":"11 "},"41.8",null,null,"16mm\"² 2c 600/1000V PVC/SWA/PVC ECC Cu Cable",null,"m",{"v":300,"d":"300 "},null,{"$f":"ROUND($M1433*N1433,2)","v":0}]
[]
[730,9005,4,1,70,{"v":12,"d":"12 "},{"$nulls":3},"16mm\"² 4c 600/1000V PVC/SWA/PVC ECC Cu Cable",null,"m",{"v":150,"d":"150 "},null,{"$f":"ROUND($M1435*N1435,2)","v":0}]
[]
[731,9006,4,1,70,{"v":13,"d":"13 "},"58.20",null,null,"25 mm\"² 4c 600/1000V PVC/SWA/PVC ECC Cu Cable",null,"m",{"v":100,"d":"100 "},null,{"$f":"ROUND($M1437*N1437,2)","v":0}]
[]
[732,9007,4,1,70,null,"58",null,null,"CABLE TERMINATIONS"]
[]
[733,9008,4,1,70,null,"58",null,null,"Termination of cables shall include supply installation and testing of the glands with corrossion  guard , making-off the cable, lugs, and fitting the gland to the board gland plate, switchgear or equipment and final connection of cable tails into board or terminals.  Include for Reducing Glands and shrouds where applicable. NB:  IP65 Glands are to be used where applicable."]
[]
[734,9009,4,1,70,{"v":14,"d":"14 "},{"$nulls":3},"4,0 mm\"² 2c 600/1000V PVC/SWA/PVC ECC Cu Cable",null,"No",{"v":4,"d":"4 "},null,{"$f":"ROUND($M1443*N1443,2)","v":0}]
[]
[735,9010,4,1,70,{"v":15,"d":"15 "},{"$nulls":3},"6.0mm\"² 2c 600/1000V PVC/SWA/PVC ECC Cu Cable",null,"No",{"v":2,"d":"2 "},null,{"$f":"ROUND($M1445*N1445,2)","v":0}]
[]
[736,9011,4,1,70,{"v":16,"d":"16 "},{"$nulls":3},"10 mm\"² 4c 600/1000V PVC/SWA/PVC ECC Cu Cable",null,"No",{"v":12,"d":"12 "},null,{"$f":"ROUND($M1447*N1447,2)","v":0}]
[]
[737,9012,4,1,70,{"v":17,"d":"17 "},{"$nulls":3},"16mm\"² 2c 600/1000V PVC/SWA/PVC ECC Cu Cable",null,"No",{"v":6,"d":"6 "},null,{"$f":"ROUND($M1449*N1449,2)","v":0}]
[]
[738,9013,4,1,70,{"v":18,"d":"18 "},{"$nulls":3},"16mm\"² 4c 600/1000V PVC/SWA/PVC ECC Cu Cable",null,"No",{"v":4,"d":"4 "},null,{"$f":"ROUND($M1451*N1451,2)","v":0}]
[]
[739,9014,4,1,70,{"v":19,"d":"19 "},{"$nulls":3},"25 mm\"² 4c 600/1000V PVC/SWA/PVC ECC Cu Cable",null,"No",{"v":2,"d":"2 "},null,{"$f":"ROUND($M1453*N1453,2)","v":0}]
[]
[740,9020,4,1,70,{"v":20,"d":"20 "},{"$nulls":3},"20mm steel conduit including all necessary accessories. Rate to include chasing wall for conduit in the wall, close wall and make good.",null,"m",{"v":50,"d":"50 "},null,{"$f":"ROUND($M1455*N1455,2)","v":0}]
[]
[741,9021,4,1,70,{"v":21,"d":"21 "},"59.25",null,null,"20mm PVC conduit including all necessary accessories. Rate to include chasing wall for conduit in the wall, close wall and make good",null,"m",{"v":1500,"d":"1,500 "},null,{"$f":"ROUND($M1457*N1457,2)","v":0}]
[]
[742,9022,4,1,70,{"v":22,"d":"22 "},{"$nulls":3},"32mm steel conduit including all necessary accessories. Rate to include chasing wall for conduit in the wall, close wall and make good.",null,"m",{"v":220,"d":"220 "},null,{"$f":"ROUND($M1459*N1459,2)","v":0}]
[]
[743,9023,4,1,71,{"v":23,"d":"23 "},{"$nulls":3},"65mm round PVC round box complete with all required accessories",null,"No",{"v":50,"d":"50 "},null,{"$f":"ROUND($M1461*N1461,2)","v":0}]
[]
[744,9024,4,1,71,{"v":24,"d":"24 "},{"$nulls":3},"65mm round steel round box complete with all required accessories",null,"No",{"v":20,"d":"20 "},null,{"$f":"ROUND($M1463*N1463,2)","v":0}]
[]
[745,9029,4,1,71,null,"59",null,null,"LUMINARIES AND CONTROL DEVICES"]
[]
[746,9030,4,1,71,null,"59",null,null,"Supply, deliver, accept and store the following luminaries, complete with lamps and control gear as per specification. See and refer to the specification document for details of each luminaire"]
[]
[747,9031,4,1,71,{"v":25,"d":"25 "},"59.31",null,null,"Type A13 - IP65 Rated, 30W / 4440 lm LED - 4000k Rough-guard surface-mounted weather-proof luminaire. Refer to specification document for details",null,"No",{"v":8,"d":"8 "},null,{"$f":"ROUND($M1469*N1469,2)","v":0}]
[]
[748,9032,4,1,71,{"v":26,"d":"26 "},"59.30",null,null,"Type A5 - IP65 Rated, 30W / 4440 lm LED - 4000k vapour-proof surface-mounted weather-proof luminaire. Refer to specification document for details",null,"No",{"v":18,"d":"18 "},null,{"$f":"ROUND($M1471*N1471,2)","v":0}]
[]
[749,9033,4,1,71,{"v":27,"d":"27 "},"59.32",null,null,"Type B1 - IP65 Rated high-pressure die cast aluminium base and trim ring 20W/  2600lm LED - 4000k bulkhead luminaire. Refer to specification document for details.",null,"No",{"v":30,"d":"30 "},null,{"$f":"ROUND($M1473*N1473,2)","v":0}]
[]
[750,9034,4,1,71,{"v":28,"d":"28 "},"60.39",null,null,"Type FL 3  - 75W / 9250lm LED (2700k) Streetlight rated IP66 with powder coating. Refer to specification document for details.",null,"No",{"v":9,"d":"9 "},null,{"$f":"ROUND($M1475*N1475,2)","v":0}]
[]
[751,9035,4,1,71,{"v":29,"d":"29 "},"60.36",null,null,"Type C6  - 80W / 10000lumen LED (4000k) Floodlight, rated IP65 with powder coating. Refer to specification document for details",null,"No",{"v":7,"d":"7 "},null,{"$f":"ROUND($M1477*N1477,2)","v":0}]
[]
[752,9043,4,1,71,{"v":30,"d":"30 "},"60.43",null,null,"Photo electric cell. Refer to specification document for details",null,"No",{"v":5,"d":"5 "},null,{"$f":"ROUND($M1479*N1479,2)","v":0}]
[]
[753,9048,4,1,71,null,"62",null,null,"LIGHT SWITCHES, SOCKET OUTLET, WELDING ISOLATORS AND ACCESSORIES"]
[]
[754,9049,4,1,72,null,"62",null,null,"Supply, deliver and installation of the following  control devices and accessories as per specification. Rate must allow for the termination and connecting of the PVC conductor to the accessory, fixing to the conduit box and the fitting of the cover plate. (PVC coveres)"]
[]
[755,9050,4,1,72,{"v":31,"d":"31 "},"62.52",null,null,"Supply and installation of 15Amp, 1 lever, 1-way, white toggle, white coloured plate, light circuit switch complete with cover and all accessories",null,"No",{"v":20,"d":"20 "},null,{"$f":"ROUND($M1485*N1485,2)","v":0}]
[]
[756,9051,4,1,72,{"v":32,"d":"32 "},"62.54",null,null,"Supply and install 16A, 3pin, 2pin 230V  switched socket outlets, white coloured plate with white toggle",null,"No",{"v":20,"d":"20 "},null,{"$f":"ROUND($M1487*N1487,2)","v":0}]
[]
[757,9052,4,1,72,{"v":33,"d":"33 "},"62.55",null,null,"Supply and install 16A, 3pin, 230V double switched socket outlets, red cover plate, red toggle with chamfered earth",null,"No",{"v":20,"d":"20 "},null,{"$f":"ROUND($M1489*N1489,2)","v":0}]
[]
[758,9053,4,1,72,{"v":34,"d":"34 "},{"$nulls":3},"Supply and installation of 20Amp, 1-pole surface mounted isolator, complete with all necessary accessories",null,"No",{"v":5,"d":"5 "},null,{"$f":"ROUND($M1491*N1491,2)","v":0}]
[]
[759,9054,4,1,72,{"v":35,"d":"35 "},"62.57",null,null,"Supply and installation of 20Amp, IP66, 1-Pole surface mounted isolator, complete with all necessary accessories",null,"No",{"v":2,"d":"2 "},null,{"$f":"ROUND($M1493*N1493,2)","v":0}]
[]
[760,9055,4,1,72,{"v":36,"d":"36 "},{"$nulls":3},"New steel cage for vapour-proof luminiare lighting - 1200mm long. Cage shall be hot dip galvanised",null,"No",{"v":15,"d":"15 "},null,{"$f":"ROUND($M1495*N1495,2)","v":0}]
[]
[761,9056,4,1,72,{"$nulls":4},"CONDUIT BOXES / DRAW BOXES"]
[]
[762,9057,4,1,72,{"$nulls":4},"Supply, deliver and install the following conduit surface mounted boxes. Rate must allow for the termination of conduit"]
[]
[763,9058,4,1,72,{"v":37,"d":"37 "},{"$nulls":3},"100mm x 100mm hot deep galvanised draw box recessed mounted on wall",null,"No",{"v":40,"d":"40 "},null,{"$f":"ROUND($M1501*N1501,2)","v":0}]
[]
[764,9059,4,1,72,{"v":38,"d":"38 "},{"$nulls":3},"100mm x 50mm hot deep galvanised draw box recessed mounted on wall",null,"No",{"v":20,"d":"20 "},null,{"$f":"ROUND($M1503*N1503,2)","v":0}]
[]
[765,9060,4,1,72,{"v":39,"d":"39 "},{"$nulls":3},"4-way junction box IP66",null,"No",{"v":12,"d":"12 "},null,{"$f":"ROUND($M1505*N1505,2)","v":0}]
[]
[766,9061,4,1,72,null,"61",null,null,"EXCAVATIONS"]
[]
[767,9062,4,1,73,null,"61",null,null,"For all low voltage cables from existing Municipality Substation to meter room and buildings through manholes as per drawings.  Trenching shall be calculated using the formula below: (700mm deep * 0.4m wide *  length)"]
[]
[768,9063,4,1,73,{"v":40,"d":"40 "},"61.47",null,null,"Excavate in concrete/tar and hard soil, backfilling and compaction to 93% MOD AASHTO",null,"m³",{"v":100,"d":"100 "},null,{"$f":"ROUND($M1511*N1511,2)","v":0}]
[]
[769,9064,4,1,73,{"v":41,"d":"41 "},"61.48",null,null,"Re-instate tar for above item",null,"m³",{"v":100,"d":"100 "},null,{"$f":"ROUND($M1513*N1513,2)","v":0}]
[]
[770,9065,4,1,73,null,"61",null,null,"SUNDRIES"]
[]
[771,9066,4,1,73,{"v":42,"d":"42 "},"61.49",null,null,"LV reticulation - Preparation of 'As-Built' drawings and manuals as per this specification.",null,"No",{"v":1,"d":"1 "},null,{"$f":"ROUND($M1517*N1517,2)","v":0}]
[]
[772,9067,4,1,73,{"v":43,"d":"43 "},"61.50",null,null,"Labelling of light switches, sockets and isolators outlets as per drawing pop riveted to cover plate.",null,"SUM",{"v":1,"d":"1 "},null,{"$f":"ROUND($M1519*N1519,2)","v":0}]
[]
[773,9068,4,1,73,{"v":44,"d":"44 "},"61.51",null,null,"Supply of hard bound spiral folders containing commissioning/COC certificates, test results & operating & maintenance manuals for the LV equipment, cabling, light fittings, etc.",null,"No",{"v":3,"d":"3 "},null,{"$f":"ROUND($M1521*N1521,2)","v":0}]
[]
[774,9069,4,1,73,{"$nulls":4},"Supply, install, test and commissioning of the lightning protection of the buildings on two corners of the buildings, complete with all necessary required material, accessories for a complete installation. Contractor to use copper earth spike, aluminium or copper conductors as per specification, and have testing points for the building. Rates to include all necessary required accessories for a complete installation. The installation must comply with SANS 10313.Contractor to issue test certificate per building"]
[]
[775,9070,4,1,73,{"v":45,"d":"45 "},{"$nulls":3},"Security office (L-35.1m, W-8.2m and H-3.1m)",null,"SUM",{"v":1,"d":"1 "},null,{"$f":"ROUND($M1525*N1525,2)","v":0}]
[]
[776,9071,4,1,73,{"v":46,"d":"46 "},{"$nulls":3},"Relay room (L-7.4m, W-5.51 and H-3.1m)",null,"SUM",{"v":1,"d":"1 "},null,{"$f":"ROUND($M1527*N1527,2)","v":0}]
[]
[777,9072,4,1,73,{"v":47,"d":"47 "},{"$nulls":3},"Public waiting area (L-6.03m, W-4.44m and H-3.1)",null,"SUM",{"v":1,"d":"1 "},null,{"$f":"ROUND($M1529*N1529,2)","v":0}]
[]
[778,9084,4,1,73,null,"63",null,null,"TEST AND COMMISSIONING"]
[]
[779,9086,4,1,74,null,"63",null,null,"Test and commission  the complete electrical installation including completion of quality check sheets, Compliance Certificates & test results and submitting them to the Employer's Representative."]
[]
[780,9087,4,1,74,{"v":48,"d":"48 "},"63.66",null,null,"Test and commission  the complete electrical installation including Certificates of Compliance & test results to the Engineer.",null,"SUM",{"v":1,"d":"1 "},null,{"$f":"ROUND($M1535*N1535,2)","v":0}]
[]
[782,9115,5,1,75,{"$nulls":4},"SECTION 5"]
[]
[783,9116,5,1,75,{"$nulls":4},"BILL NO. 1"]
[]
[784,9117,5,1,75,{"$nulls":4},"HVAC INSTALLATIONS"]
[]
[785,9118,5,1,75,{"$nulls":4},"Supply, deliver and install the following HVAC units as per specification:"]
[]
[786,9119,5,1,75,{"v":1,"d":"1 "},{"$nulls":3},"9.5kW cooling cassette indoor unit",null,"No",{"v":1,"d":"1 "},null,{"$f":"ROUND($M1545*N1545,2)","v":0}]
[]
[787,9120,5,1,75,{"v":2,"d":"2 "},{"$nulls":3},"9.5kW inverter type outdoor condensing unit",null,"No",{"v":1,"d":"1 "},null,{"$f":"ROUND($M1547*N1547,2)","v":0}]
[]
[788,9121,5,1,75,{"v":3,"d":"3 "},{"$nulls":3},"Refrigeration copper piping with thermal insulation and all associated fittings",null,"m",{"v":6,"d":"6 "},null,{"$f":"ROUND($M1549*N1549,2)","v":0}]
[]
[789,9122,5,1,75,{"v":4,"d":"4 "},{"$nulls":3},"PVC condensate drain piping with insulation",null,"m",{"v":10,"d":"10 "},null,{"$f":"ROUND($M1551*N1551,2)","v":0}]
[]
[790,9123,5,1,75,{"v":5,"d":"5 "},{"$nulls":3},"Wired controller",null,"No",{"v":1,"d":"1 "},null,{"$f":"ROUND($M1553*N1553,2)","v":0}]
[]
[791,9125,5,1,75,{"v":6,"d":"6 "},{"$nulls":3},"Fabricate, supply, and install lockable security cages around each outdoor condensing unit",null,"No",{"v":1,"d":"1 "},null,{"$f":"ROUND($M1555*N1555,2)","v":0}]
[]
[792,9126,5,1,75,{"v":7,"d":"7 "},{"$nulls":3},"Application of approved coastal treatment for the outdoor condensing units",null,"No",{"v":1,"d":"1 "},null,{"$f":"ROUND($M1557*N1557,2)","v":0}]
[]
[794,9248,5,2,76,{"$nulls":4},"SECTION 5"]
[]
[795,9249,5,2,76,{"$nulls":4},"BILL NO. 2"]
[]
[796,9250,5,2,76,{"$nulls":4},"WET SERVICES"]
[]
[797,9252,5,2,76,{"$nulls":4},"COLD WATER INSTALLATION"]
[]
[798,9253,5,2,76,{"$nulls":4},"Supply, install, and commission the water reticulation systems per specification"]
[]
[799,9254,5,2,76,{"$nulls":4},"Class 12 HDPE piping laid and buried trenches not exceeding 800mm deep"]
[]
[800,9255,5,2,76,{"v":1,"d":"1 "},{"$nulls":3},"25mm diameter HDPE CI 12 underground water pipe",null,"m",{"v":40,"d":"40 "},null,{"$f":"ROUND($M1571*N1571,2)","v":0}]
[]
[801,9256,5,2,76,{"$nulls":4},"Fittings for HDPE class 12 piping"]
[]
[802,9257,5,2,76,{"v":2,"d":"2 "},{"$nulls":3},"25mm diameter Adaptor to pex piping",null,"m",{"v":1,"d":"1 "},null,{"$f":"ROUND($M1575*N1575,2)","v":0}]
[]
[803,9258,5,2,76,{"$nulls":4},"PEX piping"]
[]
[804,9259,5,2,76,{"v":3,"d":"3 "},{"$nulls":3},"15mm diameter pipe",null,"m",{"v":78,"d":"78 "},null,{"$f":"ROUND($M1579*N1579,2)","v":0}]
[]
[805,9260,5,2,76,{"v":4,"d":"4 "},{"$nulls":3},"22mm diameter pipe",null,"m",{"v":52,"d":"52 "},null,{"$f":"ROUND($M1581*N1581,2)","v":0}]
[]
[806,9261,5,2,76,{"$nulls":4},"PEX piping fittings"]
[]
[807,9262,5,2,76,{"v":5,"d":"5 "},{"$nulls":3},"15mm diameter Elbow",null,"No",{"v":25,"d":"25 "},null,{"$f":"ROUND($M1585*N1585,2)","v":0}]
[]
[808,9263,5,2,76,{"v":6,"d":"6 "},{"$nulls":3},"22mm diameter Elbow",null,"No",{"v":2,"d":"2 "},null,{"$f":"ROUND($M1587*N1587,2)","v":0}]
[]
[809,9264,5,2,76,{"v":7,"d":"7 "},{"$nulls":3},"22mm diameter Equal tee",null,"No",{"v":13,"d":"13 "},null,{"$f":"ROUND($M1589*N1589,2)","v":0}]
[]
[810,9265,5,2,76,{"v":8,"d":"8 "},{"$nulls":3},"22-15mm diameter Reducer",null,"No",{"v":16,"d":"16 "},null,{"$f":"ROUND($M1591*N1591,2)","v":0}]
[]
[811,9266,5,2,76,{"$nulls":4},"Plastic pipe compression fittings and valves"]
[]
[812,9267,5,2,76,{"v":9,"d":"9 "},{"$nulls":3},"15mm Female elbow",null,"No",{"v":15,"d":"15 "},null,{"$f":"ROUND($M1595*N1595,2)","v":0}]
[]
[813,9268,5,2,76,{"v":10,"d":"10 "},{"$nulls":3},"22mm diameter Isolation valve",null,"No",{"v":4,"d":"4 "},null,{"$f":"ROUND($M1597*N1597,2)","v":0}]
[]
[814,9269,5,2,76,{"v":11,"d":"11 "},{"$nulls":3},"22mm diameter strainer valve",null,"No",{"v":1,"d":"1 "},null,{"$f":"ROUND($M1599*N1599,2)","v":0}]
[]
[815,9270,5,2,77,{"$nulls":4},"Pipe hangers - anchor, treaded rod & hilti hanger"]
[]
[816,9271,5,2,77,{"v":12,"d":"12 "},{"$nulls":3},"15mm diameter",null,"No",{"v":12,"d":"12 "},null,{"$f":"ROUND($M1603*N1603,2)","v":0}]
[]
[817,9272,5,2,77,{"v":13,"d":"13 "},{"$nulls":3},"22mm diameter",null,"No",{"v":25,"d":"25 "},null,{"$f":"ROUND($M1605*N1605,2)","v":0}]
[]
[818,9273,5,2,77,{"$nulls":4},"Heavy brown paper loosely wrapped around pipe as shealth for expansion"]
[]
[819,9274,5,2,77,{"v":14,"d":"14 "},{"$nulls":3},"15-22mm diameter",null,"No",{"v":53,"d":"53 "},null,{"$f":"ROUND($M1609*N1609,2)","v":0}]
[]
[820,9275,5,2,77,{"$nulls":4},"Pipe Leging for hot water piping"]
[]
[821,9276,5,2,77,{"v":15,"d":"15 "},{"$nulls":3},"15mm diameter",null,"m",{"v":15,"d":"15 "},null,{"$f":"ROUND($M1613*N1613,2)","v":0}]
[]
[822,9277,5,2,77,{"v":16,"d":"16 "},{"$nulls":3},"15mm diameter",null,"m",{"v":17,"d":"17 "},null,{"$f":"ROUND($M1615*N1615,2)","v":0}]
[]
[823,9278,5,2,77,{"$nulls":4},"Potable water system"]
[]
[824,9279,5,2,77,{"v":17,"d":"17 "},{"$nulls":3},"5000 Litre PVC Portable water tank with all associated isolation valves and strainers",null,"No",{"v":1,"d":"1 "},null,{"$f":"ROUND($M1619*N1619,2)","v":0}]
[]
[825,9280,5,2,77,{"v":18,"d":"18 "},{"$nulls":3},"Variable speed potable water booster pump capable of delivering 2.3 I/s at 45m of H2O with all associated valves, fitting, PVC pipework, and auto start/stop control circuit.",null,"No",{"v":2,"d":"2 "},null,{"$f":"ROUND($M1621*N1621,2)","v":0}]
[]
[826,9281,5,2,77,{"v":19,"d":"19 "},{"$nulls":3},"Fabricate, supply, and install lockable security cages around the duty/standby potable water pumps",null,"No",{"v":1,"d":"1 "},null,{"$f":"ROUND($M1623*N1623,2)","v":0}]
[]
[827,9282,5,2,77,{"v":20,"d":"20 "},{"$nulls":3},"100 Litre hot water geyser with all associated PVC piping and fittings installed as per manufacturer's specifications",null,"No",{"v":1,"d":"1 "},null,{"$f":"ROUND($M1625*N1625,2)","v":0}]
[]
[828,9283,5,2,77,{"v":21,"d":"21 "},{"$nulls":3},"2.5 kW heat pump with all associated piing and fittings installed as per manufacturer's recommendation",null,"No",{"v":1,"d":"1 "},null,{"$f":"ROUND($M1627*N1627,2)","v":0}]
[]
[829,9284,5,2,77,{"v":22,"d":"22 "},{"$nulls":3},"Application of approved coastal treatment for the outdoor heat pump units",null,"No",{"v":1,"d":"1 "},null,{"$f":"ROUND($M1629*N1629,2)","v":0}]
[]
[830,9285,5,2,77,{"v":23,"d":"23 "},{"$nulls":3},"Fabricate, supply, and install lockable security cages around heat pump unit",null,"No",{"v":1,"d":"1 "},null,{"$f":"ROUND($M1631*N1631,2)","v":0}]
[]
[831,9286,5,2,77,{"$nulls":4},"DRAINAGE, ETC"]
[]
[832,9287,5,2,78,{"$nulls":4},"Sewer and drainage pipes and fittings shall be through solid wall Class 34 uPVC socketed soil piping in according to SABS 791, jointed and sealed with butyl rubber rings soil, waste and vent pipes and fittings shall be according to SABS 967 and solvent jointed cold water supply pressure pipes fittings shall be according SABS 966 and jointed by means of the \"Lyng\" type jointing system. Pipes shall be fixed and jointed according to SABS 0112"]
[]
[833,9288,5,2,78,{"$nulls":4},"Class 34 uPVC pipe"]
[]
[834,9289,5,2,78,{"v":24,"d":"24 "},{"$nulls":3},"50mm diameter pipe",null,"m",{"v":15,"d":"15 "},null,{"$f":"ROUND($M1639*N1639,2)","v":0}]
[]
[835,9290,5,2,78,{"v":25,"d":"25 "},{"$nulls":3},"110mm diameter pipe",null,"m",{"v":22,"d":"22 "},null,{"$f":"ROUND($M1641*N1641,2)","v":0}]
[]
[836,9291,5,2,78,{"$nulls":4},"Class 34 uPVC fittings"]
[]
[837,9292,5,2,78,{"v":26,"d":"26 "},{"$nulls":3},"50mm diameter 90 Deg bend",null,"No",{"v":20,"d":"20 "},null,{"$f":"ROUND($M1645*N1645,2)","v":0}]
[]
[838,9293,5,2,78,{"v":27,"d":"27 "},{"$nulls":3},"110mm diameter 90 Deg bend",null,"No",{"v":3,"d":"3 "},null,{"$f":"ROUND($M1647*N1647,2)","v":0}]
[]
[839,9294,5,2,78,{"v":28,"d":"28 "},{"$nulls":3},"110mm diameter 90 Deg access bend",null,"No",{"v":3,"d":"3 "},null,{"$f":"ROUND($M1649*N1649,2)","v":0}]
[]
[840,9295,5,2,78,{"v":29,"d":"29 "},{"$nulls":3},"50mm diameter 45 Deg bend",null,"No",{"v":9,"d":"9 "},null,{"$f":"ROUND($M1651*N1651,2)","v":0}]
[]
[841,9296,5,2,78,{"v":30,"d":"30 "},{"$nulls":3},"110mm diameter 45 Deg bend",null,"No",{"v":3,"d":"3 "},null,{"$f":"ROUND($M1653*N1653,2)","v":0}]
[]
[842,9297,5,2,78,{"v":31,"d":"31 "},{"$nulls":3},"110mm  diameter Pan connector",null,"No",{"v":3,"d":"3 "},null,{"$f":"ROUND($M1655*N1655,2)","v":0}]
[]
[843,9298,5,2,78,{"v":32,"d":"32 "},{"$nulls":3},"50mm diameter Equal access junction",null,"No",{"v":2,"d":"2 "},null,{"$f":"ROUND($M1657*N1657,2)","v":0}]
[]
[844,9299,5,2,78,{"v":33,"d":"33 "},{"$nulls":3},"110mm diameter - 50mm diameter junction",null,"No",{"v":5,"d":"5 "},null,{"$f":"ROUND($M1659*N1659,2)","v":0}]
[]
[845,9300,5,2,78,{"v":34,"d":"34 "},{"$nulls":3},"110mm diameter Equal access junction",null,"No",{"v":3,"d":"3 "},null,{"$f":"ROUND($M1661*N1661,2)","v":0}]
[]
[847,9405,5,3,79,null,"1",null,null,"SECTION 5"]
[]
[848,9406,5,3,79,{"$nulls":4},"BILL NO. 3"]
[]
[849,9407,5,3,79,{"$nulls":4},"FIRE PROTECTION"]
[]
[850,9408,5,3,79,{"$nulls":4},"Supply, deliver and install all Fire appliances and  piping with complete with all auxiliary fittings :."]
[]
[851,9410,5,3,79,{"v":1,"d":"1 "},{"$nulls":3},"9kg carbon dioxide fire extinguisher mounted on a wooden block",null,"No",{"v":4,"d":"4 "},null,{"$f":"ROUND($M1671*N1671,2)","v":0}]
[]
[852,9411,5,3,79,{"v":2,"d":"2 "},{"$nulls":3},"Photoluminated directional signage",null,"SUM",{"v":1,"d":"1 "},null,{"$f":"ROUND($M1673*N1673,2)","v":0}]
[]
[853,9412,5,3,79,{"v":3,"d":"3 "},{"$nulls":3},"Photoluminated fire signage",null,"SUM",{"v":1,"d":"1 "},null,{"$f":"ROUND($M1675*N1675,2)","v":0}]
[]
[855,9114,5,4,80,{"v":1,"d":"1 "},{"$nulls":3},"HVAC Installations",{"$nulls":4},{"$f":"SUM(O1542:O1558)","v":0}]
[]
[856,9247,5,4,80,{"v":2,"d":"2 "},{"$nulls":3},"Wet Services",{"$nulls":4},{"$f":"SUM(O1569:O1662)","v":0}]
[]
[857,9404,5,4,80,{"v":3,"d":"3 "},{"$nulls":3},"Fire Protection",{"$nulls":4},{"$f":"SUM(O1664:O1675)","v":0}]
[]
[858,8436,6,1,81,{"$nulls":4},"SECTION 6"]
[]
[859,8437,6,1,81,{"$nulls":4},"BILL NO. 1"]
[]
[860,8438,6,1,81,{"$nulls":4},"PROVISIONAL AMOUNTS"]
[]
[861,8440,6,1,81,{"$nulls":4},"PREAMBLES"]
[]
[862,8441,6,1,81,{"$nulls":4},"The Model Preambles for Trades (2008 edition) as published by the Association of South African Quantity Surveyors shall be deemed to be incorporated in these bills of quantities and no claims arising from brevity of description of items fully described in the said Model Preambles will be entertained"]
[]
[863,8442,6,1,81,{"$nulls":4},"The following \"Supplementary Preambles\" are incorporated in this bill to satisfy the requirements of the project and shall take precedence over the provisions of the said Model Preambles"]
[]
[864,8443,6,1,81,{"$nulls":4},"SUPPLEMENTARY PREAMBLES"]
[]
[865,8444,6,1,81,{"$nulls":4},"General:"]
[]
[866,8445,6,1,81,{"$nulls":4},"Subcontract amounts are net.  Subcontract amounts are for material and equipment supplied and installed complete by firms of specialists"]
[]
[867,8446,6,1,81,{"$nulls":4},"Each subcontract amount may comprise more than one element of work.  Therefore, each subcontract amount may include for work to be carried out by more than one subcontractor"]
[]
[868,8447,6,1,81,{"$nulls":4},"Profit:"]
[]
[869,8448,6,1,81,{"$nulls":4},"Where stated, the contractor may allow for profit if required"]
[]
[870,8449,6,1,82,{"$nulls":4},"General attendance on nominated/selected subcontractors:"]
[]
[871,8450,6,1,82,{"$nulls":4},"The item \"General Attendance\" which follows each subcontract amount for nominated/selected subcontractors' work, shall be deemed to cover all the contractor's costs incurred in providing free of charge to the nominated/selected subcontractors, the following:"]
[]
[872,8451,6,1,82,{"$nulls":4},"1.  Access to the site and places where the subcontract work is to be carried out, including the reasonable use of any temporary personnel hoists erected by the contractor"]
[]
[873,8452,6,1,82,{"$nulls":4},"2.  The provision of water and lighting and of single phase electric power to a position within 50 metres of the place where the subcontract work is to be carried out but excluding water, fuel and power for commissioning of any installation"]
[]
[874,8453,6,1,82,{"$nulls":4},"3.  The provision of an area for the subcontractor to establish temporary office accommodation and workshops and for the storage of plant and materials"]
[]
[875,8454,6,1,82,{"$nulls":4},"4.  The use of erected scaffolding belonging to the contractor, in common with others having the like right, while it remains erected on the site"]
[]
[876,8455,6,1,82,{"$nulls":4},"5.  The use, at reasonable times by arrangement of the contractor's erected hoisting equipment"]
[]
[877,8456,6,1,82,{"$nulls":4},"6.  Making good in all trades and cleaning down and removal of rubbish on completion"]
[]
[878,8457,6,1,82,{"$nulls":4},"Special attendance on nominated/selected subcontractors:"]
[]
[879,8458,6,1,82,{"$nulls":4},"Where stated, special attendance as set out in clause 8.1 of section B of the Preliminaries will be described in detail in this bill"]
[]
[880,8459,6,1,82,{"$nulls":4},"Builder's work:"]
[]
[881,8460,6,1,82,{"$nulls":4},"Builder's work in connection with specialist services is given elsewhere in these bills of quantities"]
[]
[882,9735,6,1,83,{"$nulls":4},"CONNECTION FEES"]
[]
[883,9519,6,1,83,{"v":1,"d":"1 "},{"$nulls":3},"Subcontract amount of Fifty Thousand Rand for the application and power connection for the train station from eThekwini Municipality. Amount to be paid at the discretion of Project Manager/Engineer and the Employer upon receiving quotation or invoice from the Municipality via the contractor",null,"Item",{"v":1,"d":"1 "},null,{"$f":"ROUND($M1733*N1733,2)","v":0}]
[]
[884,9520,6,1,83,{"v":2,"d":"2 "},{"$nulls":3},"Contractor's handling fee",null,"%",{"v":0,"d":"0%"},null,{"$f":"ROUND($M1735*N1735,2)","v":0}]
[]
[885,8466,6,1,83,{"$nulls":4},"PROTECTION SERVICES"]
[]
[886,8467,6,1,83,{"v":3,"d":"3 "},{"$nulls":3},"Subcontract amount of Two Hundred Thousand Rand for the provision of protection services  to be spent as the Principal Agent may direct and to be deducted in whole or in part if not required",null,"Item",{"v":1,"d":"1 "},null,{"$f":"ROUND($M1739*N1739,2)","v":0}]
[]
[887,8468,6,1,83,{"v":4,"d":"4 "},{"$nulls":3},"Profit",null,"%",{"v":0,"d":"0%"},null,{"$f":"ROUND($M1741*N1741,2)","v":0}]
[]
[888,8469,6,1,83,{"v":5,"d":"5 "},{"$nulls":3},"General attendance",null,"%",{"v":0,"d":"0%"},null,{"$f":"ROUND($M1743*N1743,2)","v":0}]
[]
[889,8470,6,1,83,{"$nulls":4},"STATION FIXED FURNITURE"]
[]
[890,8471,6,1,83,{"v":6,"d":"6 "},{"$nulls":3},"Subcontract amount of Twenty Five Thousand Rand for the provision of station fixed furniture installed complete  to be spent as the Principal Agent may direct and to be deducted in whole or in part if not required",null,"Item",{"v":1,"d":"1 "},null,{"$f":"ROUND($M1747*N1747,2)","v":0}]
[]
[891,8472,6,1,83,{"v":7,"d":"7 "},{"$nulls":3},"Profit",null,"%",{"v":0,"d":"0%"},null,{"$f":"ROUND($M1749*N1749,2)","v":0}]
[]
[892,8473,6,1,83,{"v":8,"d":"8 "},{"$nulls":3},"General Attendance",null,"%",{"v":0,"d":"0%"},null,{"$f":"ROUND($M1751*N1751,2)","v":0}]
[]
[893,8474,6,1,83,{"$nulls":4},"STATION SIGNAGE"]
[]
[894,8475,6,1,83,{"v":9,"d":"9 "},{"$nulls":3},"Subcontract amount of Fifty Thousand Rand for the provision of station signage installed complete  to be spent as the Principal Agent may direct and to be deducted in whole or in part if not required",null,"Item",{"v":1,"d":"1 "},null,{"$f":"ROUND($M1755*N1755,2)","v":0}]
[]
[895,8476,6,1,83,{"v":10,"d":"10 "},{"$nulls":3},"Profit",null,"%",{"v":0,"d":"0%"},null,{"$f":"ROUND($M1757*N1757,2)","v":0}]
[]
[896,8477,6,1,83,{"v":11,"d":"11 "},{"$nulls":3},"General attendance",null,"%",{"v":0,"d":"0%"},null,{"$f":"ROUND($M1759*N1759,2)","v":0}]
[]
[897,8478,6,1,84,{"$nulls":4},"BUILT-IN CUPBOARDS"]
[]
[898,8479,6,1,84,{"v":12,"d":"12 "},{"$nulls":3},"Subcontract amount of Fifteen Thousand Rand for the provision of Built-In Cupboards installed complete  to be spent as the Principal Agent may direct and to be deducted in whole or in part if not required",null,"Item",{"v":1,"d":"1 "},null,{"$f":"ROUND($M1763*N1763,2)","v":0}]
[]
[899,8480,6,1,84,{"v":13,"d":"13 "},{"$nulls":3},"Profit",null,"%",{"v":0,"d":"0%"},null,{"$f":"ROUND($M1765*N1765,2)","v":0}]
[]
[900,8481,6,1,84,{"v":14,"d":"14 "},{"$nulls":3},"General attendance",null,"%",{"v":0,"d":"0%"},null,{"$f":"ROUND($M1767*N1767,2)","v":0}]
[]
[901,8482,6,1,84,{"$nulls":4},"COMMUNITY LIAISON OFFICER"]
[]
[902,8483,6,1,84,{"v":15,"d":"15 "},{"$nulls":3},"Subcontract amount of one Ninety Thousand Rand for Community Liaison Officer for a period of six (6) months",null,"Item",{"v":1,"d":"1 "},null,{"$f":"ROUND($M1771*N1771,2)","v":0}]
[]
[903,8484,6,1,84,{"v":16,"d":"16 "},{"$nulls":3},"Profit",null,"%",{"v":0,"d":"0%"},null,{"$f":"ROUND($M1773*N1773,2)","v":0}]
[]
[904,8485,6,1,84,{"v":17,"d":"17 "},{"$nulls":3},"General attendance",null,"%",{"v":0,"d":"0%"},null,{"$f":"ROUND($M1775*N1775,2)","v":0}]
[]
[905,9531,6,1,84,{"$nulls":4},"BUDGETARY AMOUNTS"]
[]
[906,9529,6,1,84,{"$nulls":4},"METER ROOM"]
[]
[907,9530,6,1,84,{"v":18,"d":"18 "},{"$nulls":3},"Provide a budgetary allowance of Twenty Five Thousand Rand for meter room to be used as directed by the Principal Agent and to be deducted in whole or in part if not required.",null,"Item",{"v":1,"d":"1 "},null,{"$f":"ROUND($M1781*N1781,2)","v":0}]
[]
[{"$nulls":9},"SUMMARY"]
[]
[909,1,7,1,85,{"v":1,"d":"1 "},{"$nulls":3},"Preliminaries and General",{"$nulls":4},{"$f":"SUM(O3:O414)","v":0}]
[]
[910,524,7,1,85,{"v":2,"d":"2 "},{"$nulls":3},"Building Works",{"$nulls":4},{"$f":"SUM(O1291:O1312)","v":0}]
[]
[911,2533,7,1,85,{"v":3,"d":"3 "},{"$nulls":3},"External Works",{"$nulls":4},{"$f":"SUM(O1353:O1395)","v":0}]
[]
[912,104,7,1,85,{"v":4,"d":"4 "},{"$nulls":3},"Electrical Installations",{"$nulls":4},{"$f":"SUM(O1407:O1536)","v":0}]
[]
[913,5548,7,1,85,{"v":5,"d":"5 "},{"$nulls":3},"Mechanical Installations",{"$nulls":4},{"$f":"SUM(O1676:O1682)","v":0}]
[]
[914,5285,7,1,85,{"v":6,"d":"6 "},{"$nulls":3},"Provisional Sums",{"$nulls":4},{"$f":"SUM(O1727:O1781)","v":0}]
[]
[915,5549,7,1,85,null,"727",null,null,"SUB TOTAL (EXCLUDING CONTINGENCIES)",{"$nulls":4},{"$f":"SUBTOTAL(9,O1785:O1796)","v":0}]
[]
[916,5838,7,1,85,null,"727",null,null,"CONTRACT CONTINGENCIES"]
[]
[917,7772,7,1,85,{"$nulls":4},"Allow the sum of 10% for Contingencies to be spent as the Principal Agent may direct and to be deducted in whole or in part if not required",{"$nulls":4},{"$f":"O1797*0.1","v":0}]
[]
[918,5840,7,1,85,null,"727",null,null,"TOTAL (INCLUDING CONTINGENCIES)",{"$nulls":4},{"$f":"SUM(O1797:O1801)","v":0}]
[]
[919,5550,7,1,85,null,"727",null,null,"VALUE ADDED TAX"]
[]
[920,5551,7,1,85,null,"727",null,null,"Value Added Tax ",{"$nulls":4},{"$f":"O1803*0.15","v":0}]
[]
[{"$nulls":9},"Carried to Form of Tender",{"$nulls":4},{"$f":"SUM(O1803:O1808)","v":0}]

{"sheet":"WINKELSPRUIT STATION","index":4,"n_rows":2459,"n_cols":8,"rows_kept":2459}
["ITEM NO",null,"DESCRIPTION",null,null,"QUANTITY","RATE","AMOUNT"]
[]
[null,null,"SECTION NO. 1"]
[]
[null,null,"BILL NO. 1"]
[]
[null,null,"PRELIMINARIES AND GENERAL"]
[]
[null,null,"BUILDING AGREEMENT AND PRELIMINARIES"]
[]
[null,null,"The  JBCC Principal Building Agreement (May 2018 Edition 6.2) prepared by the Joint Building Contracts Committee shall be the applicable building agreement, amended as hereinafter described"]
[]
[null,null,"The JBCC Principal Building Agreement contract data form an integral part of this agreement"]
[]
[null,null,"The Preliminaries revision 1 (February 2016) published by the Association of South African Quantity Surveyors for use with the JBCC Principal Building Agreement Edition 6.2 shall be deemed to be incorporated in these bills of quantities, amended as hereinafter described"]
[]
[null,null,"The contractor is deemed to have referred to the abovementioned documents for the full intent and meaning of each clause"]
[]
[null,null,"The clauses in the abovementioned documents are hereinafter referred to by clause number and heading only"]
[]
[null,null,"Where any item is not relevant to this agreement such item is marked N/A signifying \"not applicable\""]
[]
[null,null,"PREAMBLES FOR TRADES"]
[]
[null,null,"The Model Preambles for Trades 2008 published by the Association of South African Quantity Surveyors is designed to support and extend the abbreviated descriptions utilised in these bills of quantities by inter alia referring to SANS construction standards."]
[]
[null,null,"Note that the text of the Standard System of Measuring Building Work (seventh edition) and that of the Standard Method of Measuring Building Work for Africa 2015 (first edition) is the same"]
[]
[null,null,"The Model Preambles for Trades 2008 as published by the Association of South African Quantity Surveyors shall be deemed to be incorporated in these bills of quantities and no claims arising from brevity of description of items fully described in the said Model Preambles will be entertained"]
[]
[null,null,"Supplementary preambles and/or specifications are incorporated in these bills of quantities to satisfy the requirements of this project. Such supplementary preambles and/or specifications shall take precedence over the provisions of the Model Preambles"]
[]
[null,null,"The contractor's prices for all items throughout these bills of quantities shall take account of and include for all of the obligations, requirements and specifications given in the Model Preambles and in any supplementary preambles and/or specifications"]
[]
[null,null,"NOTES TO TENDERERS"]
[]
[null,null,"Tenderers are to inspect the drawings issued with these Bills of Quantities and to satisfy themselves with the nature and the requirements of the Contract works. Failure to do so will be the complete responsibility of the Tenderer and no claims whatsoever will be entertained in this regard."]
[]
[null,null,"Tenderers are to read the descriptions, which are intended as a means of identifying various facets of the work, in conjunction with the drawings. Tenderers shall allow for all costs in connection with the various items taking full cognisance of both the drawings and the Bills of Quantities."]
[]
[null,null,"Tenderers shall notify the Quantity Surveyor in writing of any discrepancies encountered upon which clarification will be given by the Quantity Surveyor in writing to the Tenderer. Failure to do so will be the complete responsibility of the Tenderer and no claims whatsoever will be entertained in this regard"]
[]
[null,null,"Tenderers are to note that setting out of the works will be the complete responsibility of the Tenderer and they should therefore acquaint themselves with the site boundaries, site co-ordinates, datum levels etc. Failure to do so will be the complete responsibility of the Tenderer and no claims whatsoever will be entertained in this regard.  Tenderers are to note that all items with ZERO quantities are Rate Only items and should be priced as such."]
[]
[null,null,"Tenderers are to note that there might be specified suppliers to be used for certain trades as per the annexure to this tender document. Tenderers should familiarise themselves with the suppliers on the list and ensure to allow for accordingly. Failure to do so will be the complete responsibility of the Tenderer and no claims whatsoever will be entertained in this regard."]
[]
[null,null,"Tenderers are to fully acquaint themselves with the construction period and shall allow for any night shift if required. Failure to do so will be the complete responsibility of the Tenderer and no claims whatsoever will be entertained in this regard."]
[]
[null,null,"STRUCTURE OF THIS PRELIMINARIES BILL"]
[]
[null,null,"Section A : A recital of the headings of the individual clauses of the aforementioned JBCC Principal Building Agreement"]
[]
[null,null,"Section B : A recital of the headings of the individual clauses of the aforementioned Preliminaries document"]
[]
[null,null,"Section C : Any special clauses to meet the particular circumstances of the project"]
[]
[null,null,"PRICING OF PRELIMINARIES"]
[]
[null,null,"Should the contractor select Option A in the contract data for the adjustment of preliminaries, the amounts entered against the relevant items in these preliminaries are to be divided into one or more of the three categories provided namely fixed (F), value related (V) and time related (T)"]
[]
[null,null,"SECTION A: PRINCIPAL BUILDING AGREEMENT"]
[]
[null,null,"Interpretation (A1-A7)"]
[]
[{"v":1,"d":"1 "},null,"Clause 1.0 - Definitions and interpretation",null,"CONT",{"v":0,"d":"0 "}]
[]
[null,null,"F:............................. V:............................ T:............................",null,"Item",{"v":0,"d":"0 "},null,{"$f":"ROUND($F67*G67,2)","v":0}]
[]
[{"v":2,"d":"2 "},null,"Clause 2.0 - Law, regulations and notices",null,"CONT",{"v":0,"d":"0 "}]
[]
[null,null,"F:............................. V:............................ T:............................",null,"Item",{"v":0,"d":"0 "},null,{"$f":"ROUND($F71*G71,2)","v":0}]
[]
[{"v":3,"d":"3 "},null,"Clause 3.0 - Offer and acceptance  F:............................. V:............................ T:............................",null,"Item",{"v":0,"d":"0 "},null,{"$f":"ROUND($F73*G73,2)","v":0}]
[]
[{"v":4,"d":"4 "},null,"Clause 4.0 - Assignment and cession  F:............................. V:............................ T:............................",null,"Item",{"v":0,"d":"0 "},null,{"$f":"ROUND($F75*G75,2)","v":0}]
[]
[{"v":5,"d":"5 "},null,"Clause 5.0 - Contract documents",null,"CONT",{"v":0,"d":"0 "}]
[]
[null,null,"F:............................. V:............................ T:............................",null,"Item",{"v":0,"d":"0 "},null,{"$f":"ROUND($F79*G79,2)","v":0}]
[]
[{"v":6,"d":"6 "},null,"Clause 6.0 - Employer's agents",null,"CONT",{"v":0,"d":"0 "}]
[]
[null,null,"F:............................. V:............................ T:............................",null,"Item",{"v":0,"d":"0 "},null,{"$f":"ROUND($F83*G83,2)","v":0}]
[]
[{"v":7,"d":"7 "},null,"Clause 7.0 - Design responsibility  F:............................. V:............................ T:............................",null,"Item",{"v":0,"d":"0 "},null,{"$f":"ROUND($F85*G85,2)","v":0}]
[]
[null,null,"Insurance and security (A8-A11)"]
[]
[{"v":8,"d":"8 "},null,"Clause 8.0 - Works risk  F:............................. V:............................ T:............................",null,"Item",{"v":0,"d":"0 "},null,{"$f":"ROUND($F89*G89,2)","v":0}]
[]
[{"v":9,"d":"9 "},null,"Clause 9.0 - Indemnities  F:............................. V:............................ T:............................",null,"Item",{"v":0,"d":"0 "},null,{"$f":"ROUND($F91*G91,2)","v":0}]
[]
[{"v":10,"d":"10 "},null,"Clause 10.0 - Insurances  F:............................. V:............................ T:............................",null,"Item",{"v":0,"d":"0 "},null,{"$f":"ROUND($F93*G93,2)","v":0}]
[]
[{"v":11,"d":"11 "},null,"Clause 11.0 - Security",null,"CONT",{"v":0,"d":"0 "}]
[]
[null,null,"F:............................. V:............................ T:............................",null,"Item",{"v":0,"d":"0 "},null,{"$f":"ROUND($F97*G97,2)","v":0}]
[]
[null,null,"Execution (A12 - A17)"]
[]
[{"v":12,"d":"12 "},null,"Clause 12.0 - Duties of the parties",null,"CONT",{"v":0,"d":"0 "}]
[]
[null,null,"F:............................. V:............................ T:............................",null,"Item",{"v":1,"d":"1 "},null,{"$f":"ROUND($F103*G103,2)","v":0}]
[]
[{"v":13,"d":"13 "},null,"Clause 13.0 - Setting out  F:............................. V:............................ T:............................",null,"Item",{"v":0,"d":"0 "},null,{"$f":"ROUND($F105*G105,2)","v":0}]
[]
[{"v":14,"d":"14 "},null,"Clause 14.0 - Nominated subcontractors",null,"CONT",{"v":0,"d":"0 "}]
[]
[null,null,"F:............................. V:............................ T:............................",null,"Item",{"v":0,"d":"0 "},null,{"$f":"ROUND($F109*G109,2)","v":0}]
[]
[{"v":15,"d":"15 "},null,"Clause 15.0 - Selected subcontractors",null,"CONT",{"v":0,"d":"0 "}]
[]
[null,null,"F:............................. V:............................ T:............................",null,"Item",{"v":0,"d":"0 "},null,{"$f":"ROUND($F113*G113,2)","v":0}]
[]
[{"v":16,"d":"16 "},null,"Clause 16.0 - Direct contractors  Attendance on direct contractors  In respect of direct contractors the contractor shall:",null,"CONT",{"v":0,"d":"0 "}]
[]
[null,null,"F:............................. V:............................ T:............................",null,"Item",{"v":0,"d":"0 "},null,{"$f":"ROUND($F117*G117,2)","v":0}]
[]
[{"v":17,"d":"17 "},null,"Clause 17.0 - Contract instructions  Site instructions  Instructions issued on site are to be recorded in a site instruction book which is to be supplied and maintained on site by the contractor",null,"CONT",{"v":0,"d":"0 "}]
[]
[null,null,"F:............................. V:............................ T:............................",null,"Item",{"v":0,"d":"0 "},null,{"$f":"ROUND($F121*G121,2)","v":0}]
[]
[null,null,"Completion (A18 - A24)"]
[]
[{"v":18,"d":"18 "},null,"Clause 18.0 - Interim completion  F:............................. V:............................ T:............................",null,"Item",{"v":0,"d":"0 "},null,{"$f":"ROUND($F125*G125,2)","v":0}]
[]
[{"v":19,"d":"19 "},null,"Clause 19.0 - Practical completion   F:............................. V:............................ T:............................",null,"Item",{"v":0,"d":"0 "},null,{"$f":"ROUND($F127*G127,2)","v":0}]
[]
[{"v":20,"d":"20 "},null,"Clause 20.0 - Sectional completion",null,"CONT",{"v":0,"d":"0 "}]
[]
[null,null,"F:............................. V:............................ T:............................",null,"Item",{"v":0,"d":"0 "},null,{"$f":"ROUND($F131*G131,2)","v":0}]
[]
[{"v":21,"d":"21 "},null,"Clause 21.0 - Defects liability period and final completion",null,"CONT",{"v":0,"d":"0 "}]
[]
[null,null,"F:............................. V:............................ T:............................",null,"Item",{"v":0,"d":"0 "},null,{"$f":"ROUND($F135*G135,2)","v":0}]
[]
[{"v":22,"d":"22 "},null,"Clause 22.0 - Latent defects liability period F:............................. V:............................ T:............................",null,"Item",{"v":0,"d":"0 "},null,{"$f":"ROUND($F137*G137,2)","v":0}]
[]
[{"v":23,"d":"23 "},null,"Clause 23.0 - Revision of date for practical completion  Substitution of materials and goods  The removal or substitution of any materials and goods which do not conform to the specification or the contract drawings shall not constitute grounds for the extension of the construction period nor for the adjustment of the contract value [17.1.8, 23.1 & 2]",null,"CONT",{"v":0,"d":"0 "}]
[]
[null,null,"F:............................. V:............................ T:............................",null,"Item",{"v":0,"d":"0 "},null,{"$f":"ROUND($F141*G141,2)","v":0}]
[]
[{"v":24,"d":"24 "},null,"Clause 24.0 - Penalty for late or non-completion   F:............................. V:............................ T:............................",null,"Item",{"v":0,"d":"0 "},null,{"$f":"ROUND($F143*G143,2)","v":0}]
[]
[null,null,"Payment (A25 - A27)"]
[]
[{"v":25,"d":"25 "},null,"Clause 25.0 - Payment",null,"CONT",{"v":0,"d":"0 "}]
[]
[null,null,"F:............................. V:............................ T:............................",null,"Item",{"v":0,"d":"0 "},null,{"$f":"ROUND($F149*G149,2)","v":0}]
[]
[{"v":26,"d":"26 "},null,"Clause 26.0 - Adjustment of the contract value and final account",null,"CONT",{"v":0,"d":"0 "}]
[]
[null,null,"F:............................. V:............................ T:............................",null,"Item",{"v":0,"d":"0 "},null,{"$f":"ROUND($F153*G153,2)","v":0}]
[]
[{"v":27,"d":"27 "},null,"Clause 27.0 - Recovery of expense and/or loss  F:............................. V:............................ T:............................",null,"Item",{"v":0,"d":"0 "},null,{"$f":"ROUND($F155*G155,2)","v":0}]
[]
[null,null,"Suspension and termination (A28 - A29)"]
[]
[{"v":28,"d":"28 "},null,"Clause 28.0 - Suspension by the contractor",null,"CONT",{"v":0,"d":"0 "}]
[]
[null,null,"F:............................. V:............................ T:............................",null,"Item",{"v":0,"d":"0 "},null,{"$f":"ROUND($F161*G161,2)","v":0}]
[]
[{"v":29,"d":"29 "},null,"Clause 29.0 - Termination",null,"CONT",{"v":0,"d":"0 "}]
[]
[null,null,"F:............................. V:............................ T:............................",null,"Item",{"v":0,"d":"0 "},null,{"$f":"ROUND($F165*G165,2)","v":0}]
[]
[null,null,"Dispute resolution (A30)"]
[]
[{"v":30,"d":"30 "},null,"Clause 30.0 - Dispute resolution  F:............................. V:............................ T:............................",null,"Item",{"v":0,"d":"0 "},null,{"$f":"ROUND($F169*G169,2)","v":0}]
[]
[null,null,"The required information of the parties and the amount of the contract sum shall be inserted in the agreement for signature of the agreement by the parties  F:............................. V:............................ T:............................",null,"Item",{"v":0,"d":"0 "},null,{"$f":"ROUND($F171*G171,2)","v":0}]
[]
[null,null,"F:............................. V:............................ T:............................",null,"Item",{"v":0,"d":"0 "},null,{"$f":"ROUND($F173*G173,2)","v":0}]
[]
[null,null,"42.1  \tCONTRACTING AND OTHER PARTIES"]
[]
[null,null,"42.1.1Employer: Passenger Rail Agency of South AfricaPostal address: PO Box 51324Durban4062Tel.: \t(031) 813 0376Physical Address:65 Masabalala Yengwa AvenueDurban StationDurban4000"]
[]
[null,null,"42.2  \tCONTRACT DETAILS"]
[]
[null,null,"42.2.1 \tWorks Description: Refurbishment, Alterations and Additions at Winkelspruit Station for a period of six (6) months"]
[]
[null,null,"42.2.2 \tSite Description: \t\t\tWinkilspruit Train Station\t"]
[]
[null,null,"42.2.3 \tWork or installations by direct contractors:  N/A"]
[]
[null,null,"42.2.4 \tThis agreement is for a government contract where there are specific options that are applicable to a State organ only Yes"]
[]
[null,null,"42.2.5 \tDate on which possession of the site is intended to be given: TBC"]
[]
[null,null,"42.2.6 \tPeriod for the commencement of the works after the contractor takes possession: TBC"]
[]
[null,null,"42.2.7 \tFor the works as a whole. Intended date of practical completion and the penalty per calendar day Six (6) Months after contractual commencement date               0.04% of contract amount per calender day Penalty Amount"]
[]
[null,null,"42.2.8\tFor the works in sections:  Intended date of practical completion and the penalty per calender day: N/A"]
[]
[null,null,"42.2.9 The law applicable to this agreement shall be that of South Africa     (country)"]
[]
[null,null,"42.3 \tINSURANCES"]
[]
[null,null,"42.3.1 \tContract works insurance to be effected by:Contractor: For the Sum of R Contract Amount  30.00 % With a deductible of - to be determined by the contractor"]
[]
[null,null,"42.3.2 \tSupplementary insurance is required No"]
[]
[null,null,"42.3.3 \tPublic liability insurance to be effected by:Contractor: For the Sum of R 1 000 000-00With a deductible of - to be determined by the contractor"]
[]
[null,null,"42.4 \tDOCUMENTS"]
[]
[null,null,"42.4.1 \tWaivers of contractors lien or right of continuing possession is required  \tYes"]
[]
[null,null,"42.4.2 \tNumber of construction document copies to be \tsupplied to the contractor free of charge: 3   Number of"]
[]
[null,null,"42.4.3 \tBills of Quantities/Lump sum document schedule of rates drawn up in accordance with:  \t\"€œStandard System of Measuring Builders\"€™ Work\"€\u009d"]
[]
[null,null,"42.4.4 \tOn acceptance of the tender the bills of quantities/lump sum document is to be submitted within:  The priced bills of quantities must be handed in with the tender"]
[]
[null,null,"42.4.5 \tJBCC Engineering General Conditions are to be included in the contract documents: No"]
[]
[null,null,"42.4.6 \tThe contract value is to be adjusted using escalation adjustment indices  N/A \tWhere JBCC CPAP is to be used Base Month    N/A"]
[]
[null,null,"42.4.7 \tDetails of changes made to the provision of JBCC standard documentation:"]
[]
[null,null,"SECTION B:  PRELIMINARIES"]
[]
[null,null,"Interpretation (B1)"]
[]
[{"v":31,"d":"31 "},null,"Clause 1.1 - Definitions  F:............................. V:............................ T:............................",null,"Item",{"v":0,"d":"0 "},null,{"$f":"ROUND($F227*G227,2)","v":0}]
[]
[{"v":32,"d":"32 "},null,"Clause 1.2 - Interpretation  F:............................. V:............................ T:............................",null,"Item",{"v":0,"d":"0 "},null,{"$f":"ROUND($F229*G229,2)","v":0}]
[]
[null,null,"Documents (B2)"]
[]
[{"v":33,"d":"33 "},null,"Clause 2.1 - Checking of documents  F:............................. V:............................ T:............................",null,"Item",{"v":0,"d":"0 "},null,{"$f":"ROUND($F233*G233,2)","v":0}]
[]
[{"v":34,"d":"34 "},null,"Clause 2.2 - Provisional bills of quantities",null,"CONT",{"v":0,"d":"0 "}]
[]
[null,null," F:............................. V:............................ T:............................",null,"Item",{"v":0,"d":"0 "},null,{"$f":"ROUND($F237*G237,2)","v":0}]
[]
[{"v":35,"d":"35 "},null,"Clause 2.3 - Availability of construction information   F:............................. V:............................ T:............................",null,"Item",{"v":0,"d":"0 "},null,{"$f":"ROUND($F239*G239,2)","v":0}]
[]
[{"v":36,"d":"36 "},null,"Clause 2.4 - Ordering of materials and goods  F:............................. V:............................ T:............................",null,"Item",{"v":0,"d":"0 "},null,{"$f":"ROUND($F241*G241,2)","v":0}]
[]
[null,null,"Previous work and adjoining properties (B3)"]
[]
[{"v":37,"d":"37 "},null,"Clause 3.1 - Previous work - dimensional accuracy  F:............................. V:............................ T:............................",null,"Item",{"v":0,"d":"0 "},null,{"$f":"ROUND($F245*G245,2)","v":0}]
[]
[{"v":38,"d":"38 "},null,"Clause 3.2 - Previous work - defects  F:............................. V:............................ T:............................",null,"Item",{"v":0,"d":"0 "},null,{"$f":"ROUND($F247*G247,2)","v":0}]
[]
[{"v":39,"d":"39 "},null,"Clause 3.3 - Inspection of adjoining properties  F:............................. V:............................ T:............................",null,"Item",{"v":0,"d":"0 "},null,{"$f":"ROUND($F249*G249,2)","v":0}]
[]
[null,null,"The site (B4)"]
[]
[{"v":40,"d":"40 "},null,"Clause 4.1 - Defined works area  F:............................. V:............................ T:...........................",null,"Item",{"v":0,"d":"0 "},null,{"$f":"ROUND($F253*G253,2)","v":0}]
[]
[{"v":41,"d":"41 "},null,"Clause 4.2 - Handover of site in stages  F:............................. V:............................ T:............................",null,"Item",{"v":0,"d":"0 "},null,{"$f":"ROUND($F255*G255,2)","v":0}]
[]
[{"v":42,"d":"42 "},null,"Clause 4.3 - Enclosure of the works  F:............................. V:............................ T:............................",null,"Item",{"v":0,"d":"0 "},null,{"$f":"ROUND($F257*G257,2)","v":0}]
[]
[{"v":43,"d":"43 "},null,"Clause 4.4 - Geotechnical investigation  F:............................. V:............................ T:............................",null,"Item",{"v":0,"d":"0 "},null,{"$f":"ROUND($F259*G259,2)","v":0}]
[]
[{"v":44,"d":"44 "},null,"Clause 4.5 - Encroachments  F:............................. V:............................ T:............................",null,"Item",{"v":0,"d":"0 "},null,{"$f":"ROUND($F261*G261,2)","v":0}]
[]
[{"v":45,"d":"45 "},null,"Clause 4.6 - Existing premises occupied  F:............................. V:............................ T:............................",null,"Item",{"v":0,"d":"0 "},null,{"$f":"ROUND($F263*G263,2)","v":0}]
[]
[{"v":46,"d":"46 "},null,"Clause 4.7 - Services - known  F:............................. V:............................ T:............................",null,"Item",{"v":0,"d":"0 "},null,{"$f":"ROUND($F265*G265,2)","v":0}]
[]
[{"v":47,"d":"47 "},null,"Clause 4.8 - Protection of trees and/or relevant natural features  F:............................. V:............................ T:...........................",null,"Item",{"v":0,"d":"0 "},null,{"$f":"ROUND($F267*G267,2)","v":0}]
[]
[null,null,"Management of contract (B5)"]
[]
[{"v":48,"d":"48 "},null,"Clause 5.1 - Management of the works  F:............................. V:............................ T:............................",null,"Item",{"v":0,"d":"0 "},null,{"$f":"ROUND($F271*G271,2)","v":0}]
[]
[{"v":49,"d":"49 "},null,"Clause 5.2 - Progress meetings  F:............................. V:............................ T:............................",null,"Item",{"v":0,"d":"0 "},null,{"$f":"ROUND($F273*G273,2)","v":0}]
[]
[{"v":50,"d":"50 "},null,"Clause 5.3 - Technical meetings  F:............................. V:............................ T:............................",null,"Item",{"v":0,"d":"0 "},null,{"$f":"ROUND($F275*G275,2)","v":0}]
[]
[null,null,"Samples, shop drawings and manufacturer's instructions (B6)"]
[]
[{"v":51,"d":"51 "},null,"Clause 6.1 - Samples of materials  F:............................. V:............................ T:...........................",null,"Item",{"v":0,"d":"0 "},null,{"$f":"ROUND($F279*G279,2)","v":0}]
[]
[{"v":52,"d":"52 "},null,"Clause 6.2 - Workmanship samples  F:............................. V:............................ T:............................",null,"Item",{"v":0,"d":"0 "},null,{"$f":"ROUND($F281*G281,2)","v":0}]
[]
[{"v":53,"d":"53 "},null,"Clause 6.3 - Shop drawings  F:............................. V:............................ T:............................",null,"Item",{"v":0,"d":"0 "},null,{"$f":"ROUND($F283*G283,2)","v":0}]
[]
[{"v":54,"d":"54 "},null,"Clause 6.4 - Compliance with manufacturer's instructions  F:............................. V:............................ T:............................",null,"Item",{"v":0,"d":"0 "},null,{"$f":"ROUND($F285*G285,2)","v":0}]
[]
[null,null,"Deposits and fees (B7)"]
[]
[{"v":55,"d":"55 "},null,"Clause 7.1 - Deposits and fees  F:............................. V:............................ T:............................",null,"Item",{"v":0,"d":"0 "},null,{"$f":"ROUND($F289*G289,2)","v":0}]
[]
[null,null,"Temporary services (B8)"]
[]
[{"v":56,"d":"56 "},null,"Clause 8.1 - Water  F:............................. V:............................ T:............................",null,"Item",{"v":0,"d":"0 "},null,{"$f":"ROUND($F293*G293,2)","v":0}]
[]
[{"v":57,"d":"57 "},null,"Clause 8.2 - Electricity  F:............................. V:............................ T:............................",null,"Item",{"v":0,"d":"0 "},null,{"$f":"ROUND($F295*G295,2)","v":0}]
[]
[{"v":58,"d":"58 "},null,"Clause 8.3 - Ablution and welfare facilities  F:............................. V:............................ T:............................",null,"Item",{"v":0,"d":"0 "},null,{"$f":"ROUND($F297*G297,2)","v":0}]
[]
[{"v":59,"d":"59 "},null,"Clause 8.4 - Communication facilities  F:............................. V:............................ T:............................",null,"Item",{"v":0,"d":"0 "},null,{"$f":"ROUND($F299*G299,2)","v":0}]
[]
[null,null,"Prime cost amounts (B9)"]
[]
[{"v":60,"d":"60 "},null,"Clause 9.1 - Responsibility for prime cost amounts",null,"CONT",{"v":0,"d":"0 "}]
[]
[null,null," F:............................. V:............................ T:............................",null,"Item",{"v":0,"d":"0 "},null,{"$f":"ROUND($F305*G305,2)","v":0}]
[]
[null,null,"Attendance on subcontractors (B10)"]
[]
[{"v":61,"d":"61 "},null,"Clause 10.1 - General attendance   F:............................. V:............................ T:............................",null,"Item",{"v":0,"d":"0 "},null,{"$f":"ROUND($F309*G309,2)","v":0}]
[]
[{"v":62,"d":"62 "},null,"Clause 10.2 - Special attendance",null,"CONT",{"v":0,"d":"0 "}]
[]
[null,null," F:............................. V:............................ T:............................",null,"Item",{"v":0,"d":"0 "},null,{"$f":"ROUND($F313*G313,2)","v":0}]
[]
[null,null,"General (B11)"]
[]
[{"v":63,"d":"63 "},null,"Clause 11.1 - Protection of the works  F:............................. V:............................ T:............................",null,"Item",{"v":0,"d":"0 "},null,{"$f":"ROUND($F317*G317,2)","v":0}]
[]
[{"v":64,"d":"64 "},null,"Clause 11.2 - Protection/isolation of existing/sectionally occupied works  F:............................. V:............................ T:............................",null,"Item",{"v":0,"d":"0 "},null,{"$f":"ROUND($F319*G319,2)","v":0}]
[]
[{"v":65,"d":"65 "},null,"Clause 11.3 - Security of the works  F:............................. V:............................ T:............................",null,"Item",{"v":0,"d":"0 "},null,{"$f":"ROUND($F321*G321,2)","v":0}]
[]
[{"v":66,"d":"66 "},null,"Clause 11.4 - Notice before covering work  F:............................. V:............................ T:............................",null,"Item",{"v":0,"d":"0 "},null,{"$f":"ROUND($F323*G323,2)","v":0}]
[]
[{"v":67,"d":"67 "},null,"Clause 11.5 - Disturbance  F:............................. V:............................ T:............................",null,"Item",{"v":0,"d":"0 "},null,{"$f":"ROUND($F325*G325,2)","v":0}]
[]
[null,null,"Clause 11.6 - Environmental disturbance  F:............................. V:............................ T:............................",null,"Item",{"v":0,"d":"0 "},null,{"$f":"ROUND($F327*G327,2)","v":0}]
[]
[{"v":68,"d":"68 "},null,"Clause 11.7 - Works cleaning and clearing  F:............................. V:............................ T:............................",null,"Item",{"v":0,"d":"0 "},null,{"$f":"ROUND($F329*G329,2)","v":0}]
[]
[{"v":69,"d":"69 "},null,"Clause 11.8 - Vermin  F:............................. V:............................ T:............................",null,"Item",{"v":0,"d":"0 "},null,{"$f":"ROUND($F331*G331,2)","v":0}]
[]
[{"v":70,"d":"70 "},null,"Clause 11.9 - Overhand work  F:............................. V:............................ T:............................",null,"Item",{"v":0,"d":"0 "},null,{"$f":"ROUND($F333*G333,2)","v":0}]
[]
[{"v":71,"d":"71 "},null,"Clause 11.11 - Advertising  F:............................. V:............................ T:............................",null,"Item",{"v":0,"d":"0 "},null,{"$f":"ROUND($F335*G335,2)","v":0}]
[]
[null,null,"Preliminaries schedule (B12)"]
[]
[{"v":72,"d":"72 "},null,"Information for completion of the preliminaries schedule  Information necessary for elections and completion of those clauses contained in the preliminaries schedule which are necessary for tender purposes is given hereunder. Where no information is given it shall mean that no specific requirements are expected or that the clause is not relevant to this specific contract",null,"CONT",{"v":0,"d":"0 "}]
[]
[null,null,"12.1 -\tProvisional bills of quantities [2.2]  \tThe quantities are provisional - Yes"]
[]
[null,null,"12.2 -\tAvailability of construction information [2.3]  \tConstruction documentation is complete - Yes"]
[]
[null,null,"12.3 -\tPrevious work - dimensional accuracy [3.1]"]
[]
[null,null,"12.4 -\tPrevious work - defects [3.2]"]
[]
[null,null,"12.5 -\tInspection of adjoining properties [3.3]"]
[]
[null,null,"12.6 -\tDefined works area [4.1]"]
[]
[null,null,"12.7 -\tHandover of site in stages [4.2]"]
[]
[null,null,"12.8 -\tEnclosure of the works [4.3]"]
[]
[null,null,"12.9 -\tGeotechnical investigation [4.4]"]
[]
[null,null,"12.10 -\tExisting premises occupied [4.6]"]
[]
[null,null,"12.11 -\tServices - known [4.7]"]
[]
[null,null,"12.12 -\tProtection of trees and/or relevant natural features \t[4.8]"]
[]
[null,null,"12.13 -\tWater [8.1]  \tOption A (by contractor) - Yes  \tOption B (by employer - free of charge)\t - No  \tOption C (by employer - metered) -  No"]
[]
[null,null,"12.14 -\tElectricity [8.2]\tOption A (by contractor) - Yes\tOption B (by employer - free of charge)\t - No\tOption C (by employer - metered) -  No"]
[]
[null,null,"12.15 -\tAblution and welfare facilities [8.3]  \tOption A (by contractor) - Yes  \tOption B (by employer - free of charge)\t - No"]
[]
[null,null,"12.16 -\tCommunication facilities [8.4]"]
[]
[null,null,"12.17 -\tProtection of the works [11.1]"]
[]
[null,null,"12.18 -\tProtection/isolation of existing/sectionally occupied works [11.2]  \tProtection/isolation is required - Yes"]
[]
[null,null,"12.19 -\tDisturbance [11.5]"]
[]
[null,null,"12.20 -\tEnvironmental disturbance [11.6]"]
[]
[null,null,"Controlling all forms of pollution  The contractor shall be responsible for and take all precautions in controlling by whatever means necessary all forms of pollution emanating from the site during the construction period due inter alia to noise, artificial light, wind-blown sand, dust, deposits of mud, etc"]
[]
[null,null,"The contractor is to ensure that all roads which border the site and is used by the contractor during the execution of the works are kept clean and free of any dirt or debris caused by the execution of the works"]
[]
[null,null,"F:............................. V:............................ T:............................",null,"Item",{"v":0,"d":"0 "},null,{"$f":"ROUND($F385*G385,2)","v":0}]
[]
[null,null,"SECTION  C: SPECIFIC PRELIMINARIES"]
[]
[null,null,"Section C Section C contains specific preliminary items which apply to this contract except where N/A (Not Applicable) appears against an item"]
[]
[null,null,"The warranty will not be enforced if the work is damaged by defects in the execution of the works, in which case the responsibility for replacement shall rest entirely with the contractor  F:............................. V:............................ T:............................",null,"Item",{"v":0,"d":"0 "},null,{"$f":"ROUND($F391*G391,2)","v":0}]
[]
[{"v":73,"d":"73 "},null,"Overtime  Should overtime be required to be worked for any reason whatsoever, the cost of such overtime is to be borne by the contractor unless the principal agent has specifically authorised, prior to execution thereof, that costs for such overtime are to be borne by the employer  F:............................. V:............................ T:............................",null,"Item",{"v":0,"d":"0 "},null,{"$f":"ROUND($F393*G393,2)","v":0}]
[]
[{"v":74,"d":"74 "},null,"Co-operation of the contractor for cost management  It is specifically agreed that the contractor accepts the obligation of assisting the principal agent in implementing proper cost management. The contractor will be advised by the principal agent of all cost management procedures which will be implemented to ensure that the contract value does not exceed the budget  F:............................. V:............................ T:............................",null,"Item",{"v":0,"d":"0 "},null,{"$f":"ROUND($F395*G395,2)","v":0}]
[]
[{"v":75,"d":"75 "},null,"Overloading  The contractor shall take all necessary steps to ensure that no damage occurs due to overloading of any portion of the works or temporary works eg scaffolding, etc. The contractor shall submit details of his proposed loading, storage, plant erection, etc to the principal agent for approval prior to proceeding with such loading, storing or erecting and shall comply with and pay for the principal agent's requirements in connection with the provision of temporary support work, etc. Any damage caused to the works by overloading shall be made good by the contractor at his sole expense  F:............................. V:............................ T:............................",null,"Item",{"v":0,"d":"0 "},null,{"$f":"ROUND($F397*G397,2)","v":0}]
[]
[{"v":76,"d":"76 "},null,"Propping of floors below  The contractor is advised that propping of floors below may be required if he wishes to use any areas of completed suspended reinforced concrete slabs for vehicle access, storage of materials and goods and location of plant, scaffolding, etc. The location of these areas and any necessary propping shall be approved by the principal agent and the cost thereof shall be borne by the contractor  F:............................. V:............................ T:............................",null,"Item",{"v":0,"d":"0 "},null,{"$f":"ROUND($F399*G399,2)","v":0}]
[]
[{"v":77,"d":"77 "},null,"Testing of flat roof waterproofing for water tightness  Flat roof waterproof areas shall be prepared with small sand dykes around them of a size and enclosing an area approved by the principal agent, flooded with water and kept \"ponded\" for at least forty (40) hours as a test to ensure the water tightness of the waterproofing and before any further construction work is carried out above the waterproofing  F:............................. V:............................ T:............................",null,"Item",{"v":0,"d":"0 "},null,{"$f":"ROUND($F401*G401,2)","v":0}]
[]
[null,null,"The contractor is to submit to the principal agent on an annual basis a schedule of spend, split into vendors engaged as subcontractors and suppliers indicating their BBBEE rating including proof of the said rating  F:............................. V:............................ T:............................",null,"Item",{"v":0,"d":"0 "},null,{"$f":"ROUND($F403*G403,2)","v":0}]
[]
[{"v":78,"d":"78 "},null,"Advertising rights  The employer may elect to contract with advertising agencies for the erection of advertising hoardings, banners, wraps or the like for the duration of the contract. The contractor shall not prevent such an arrangement and will assist in the facilitation of same. Position and type of advertising structure to be agreed with the principal agent so as not to hinder the contractor in meeting the obligations under this agreement  F:............................. V:............................ T:............................",null,"Item",{"v":0,"d":"0 "},null,{"$f":"ROUND($F405*G405,2)","v":0}]
[]
[{"v":79,"d":"79 "},null,"Confidentiality  The contractor undertakes to maintain in confidence any and all information regarding this project and shall obtain appropriate similar undertakings from all subcontractors and suppliers. Such information shall not be used in any way except in connection with the execution of the works  No information regarding this project shall be published or disclosed without the prior written consent of the employer  F:............................. V:............................ T:............................",null,"Item",{"v":0,"d":"0 "},null,{"$f":"ROUND($F407*G407,2)","v":0}]
[]
[{"v":80,"d":"80 "},null,"Media releases  All rights of publication of articles in the media, together with any advertising relating thereto or in any way connected with this project, shall vest with the employer  The contractor together with his subcontractors shall not, without the prior written consent of the employer, cause any statement or advertisement connected with this project to be printed, screened or aired by the media  F:............................. V:............................ T:............................",null,"Item",{"v":0,"d":"0 "},null,{"$f":"ROUND($F409*G409,2)","v":0}]
[]
[null,null,"SUMMARY OF CATEGORIES"]
[]
[null,null,"Category : Fixed   R........................................  Category : Value   R........................................  Category : Time    R........................................"]
[]
[null,null,"SECTION 2"]
[]
[null,null,"BILL NO.1"]
[]
[null,null,"ALTERATIONS (PROVISIONAL)"]
[]
[null,null,"WORK GROUP ALLOCATION"]
[]
[null,null,"Unless otherwise stated, all items in this Bill will be allocated to Work Group 102 - Alterations"]
[]
[null,null,"PREAMBLES"]
[]
[null,null,"The General Preambles for Trades (2017 edition), as published by the Association of South African Quantity Surveyors, shall be deemed to be incorporated in these bills of quantities and no claims arising from brevity of description of items, fully described in the said General Preambles, will be entertained"]
[]
[null,null,"The following \"Supplementary Preambles\" are incorporated in this bill to satisfy the requirements of the project and shall take precedence over the provisions of the said General Preambles"]
[]
[null,null,"SUPPLEMENTARY PREAMBLES"]
[]
[null,null,"View site:"]
[]
[null,null,"Before submitting his tender, the Contractor shall visit the site and satisfy himself as to the nature and extent of the work to be done and the value of the materials contained in the buildings or portions of the buildings to be demolished.  No claim for any variations of the contract sum in respect of the nature and extent of the work or of inferior or damaged materials will be entertained"]
[]
[null,null,"Old materials to become property of the Contractor:"]
[]
[null,null,"Old materials from alterations, except where described as to be re-used or handed over, become the property of the Contractor, who must allow credit for same in the last item of the \"Alterations\" trade"]
[]
[null,null,"Old materials to be carted away:"]
[]
[null,null,"Old materials from the alterations, except where described as to be re-used or handed over, as well as all rubbish, etc must be regularly carted from the site and not be allowed to accumulate on or around the site"]
[]
[null,null,"Old materials to be re-used:"]
[]
[null,null,"None of the old materials are to be used for new work, except where specifically described as being set aside for re-use"]
[]
[null,null,"Handing over of materials:"]
[]
[null,null,"Where certain materials or articles from demolitions or alterations are described as to be \"handed over to the Employer\", it shall be taken to mean \"handed over by the Contractor to the Principal Agent\" and such materials or articles shall be properly stored by the Contractor until handing over thereof and shall include all necessary transport The Contractor must obtain an official receipt from the Principal Agent listing the materials or articles and dates of handing overShould the Contractor fail to submit the receipt when requested to do so, it shall be deemed that the materials or articles are still in his possession and he will be held liable to the Employer for the full replacement value thereof, which amount will be deducted from any monies due to the Contractor"]
[]
[null,null,"Explosives:"]
[]
[null,null,"No explosives whatsoever may be used for demolition purposes, unless otherwise stated"]
[]
[null,null,"GENERAL"]
[]
[null,null,"The contractor shall carry out the whole of the work with as little mess and noise as possible and with a minimum of disturbance to adjoining premises and their tenants. He shall provide proper protection and provide and erect any temporarytarpaulins and temporary plumbing that may be necessary during the progress of the works, all to the satisfaction of the Architect, and remove when directed."]
[]
[null,null,"Any water supplies pipes and other piping that may be met with and found necessary to disconnect or cut, shall be effectually stopped of or grubbed up and removed, and any new connections that may be necessary shall be made with proper fittings, to the satisfaction of the Architect."]
[]
[null,null,"Doors, fanlights, fittings, frames, linings, etc shall be thoroughly overhauled before re-fixing including taking off, easing and rehanging, cramping up, re-wedging as required and making good cramps, dowels, etc and easing, oiling, adjusting and repairing ironmongery if necessary, replacing any glass damaged in removal or subsequently and stopping up all nail and screw holes with tinted wood to match timber."]
[]
[null,null,"Where doors, windows, etc are described as taken out this shall be understood to include for removal of all beads, architraves, ironmongery, etc and doors which are re-fixed are to be provided with new architraves       (elsewhere measured )."]
[]
[null,null,"Prices for taking out and removing doors and frames shall include for removing door stops, cabin locks, etc and making good to match existing."]
[]
[null,null,"With regard to building up openings in existing walls, cement screeds and pavings, granolithic, etc, shall be levelled and prepared for raising of brickwork."]
[]
[null,null,"Allow for making good all existing plastered walls where damaged by furniture, etc, and stopping up all screw and holes before painting."]
[]
[null,null,"Making good finishes shall be deemed to iclude making good of the brick and concrete surfaces onto which new finishes are applied, where necessary."]
[]
[null,null,"The contractor will be required to take all dimensions affecting existing building on the site and he will be held solely responsible for the accuracy of all such dimensions."]
[]
[null,null,"Hazardous materials:"]
[]
[null,null,"Demolitions of buildings, services, external works, site services, etc are to include for the safe removal and disposal of asbestos or asbestos products or other hazardous materials by approved Registered Specialists"]
[]
[null,null," - - - - - - - - - - - - - - - - - - - - - - - - -"]
[]
[null,null,"TEMPORARY BARRIERS, SCREENS, ETC"]
[]
[null,null,"Temporary barriers, screens, etc including removal:"]
[]
[{"v":1,"d":"1 "},null,"Dust screen 2100mm high formed of suitable timber framing with 250 micron polyethylene sheeting stapled on including corners, ends, etc. to be used on all the phases of the construction project and in accordance to the Health and Safety specifications and regulations",null,"m",{"v":527,"d":"527 "},null,{"$f":"ROUND($F487*G487,2)","v":0}]
[]
[null,null,"REMOVAL OF EXISTING WORK"]
[]
[null,null,"Demolishing and removing:"]
[]
[{"v":2,"d":"2 "},null,"Storage shed, 3360 x 1400 x 2530mm high overall comprising one brick walls and steel roof construction",null,"No",{"v":1,"d":"1 "},null,{"$f":"ROUND($F493*G493,2)","v":0}]
[]
[null,null,"Breaking down and removing brickwork, etc:"]
[]
[{"v":3,"d":"3 "},null,"One brickwalls",null,"m²",{"v":11,"d":"11 "},null,{"$f":"ROUND($F497*G497,2)","v":0}]
[]
[null,null,"Taking out and removing doors, windows, etc including thresholds, sills, etc from brickwork (altering openings and making good finishes elsewhere):"]
[]
[{"v":4,"d":"4 "},null,"Timber single door and frame not exceeding 2,5m\"²",null,"No",{"v":15,"d":"15 "},null,{"$f":"ROUND($F501*G501,2)","v":0}]
[]
[null,null,"Carefully taking out and handing over to the Employer doors, windows, etc including taking out and removing thresholds, sills, etc from brickwork and preparing openings to receive new similar doors, windows, etc (elsewhere measured) and making good cement plaster on both sides and into reveals:"]
[]
[{"v":5,"d":"5 "},null,"Roller shutter door approximately 5000mm wide x 2100mm high overall (TP-09)",null,"No",{"v":1,"d":"1 "},null,{"$f":"ROUND($F505*G505,2)","v":0}]
[]
[{"v":6,"d":"6 "},null,"Roller shutter door approximately 1890mm wide x 2100mm high overall (TP-10)",null,"No",{"v":2,"d":"2 "},null,{"$f":"ROUND($F507*G507,2)","v":0}]
[]
[{"v":7,"d":"7 "},null,"Roller shutter door approximately 1500mm wide x 2100mm high overall (TP-11)",null,"No",{"v":1,"d":"1 "},null,{"$f":"ROUND($F509*G509,2)","v":0}]
[]
[null,null,"Taking down and removing roof coverings, accessories, etc.:"]
[]
[{"v":8,"d":"8 "},null,"Profiled sheet metal roof covering including timber purlins",null,"m²",{"v":663,"d":"663 "},null,{"$f":"ROUND($F513*G513,2)","v":0}]
[]
[null,null,"Taking down and removing rainwater goods, etc:"]
[]
[{"v":9,"d":"9 "},null,"Metal box gutters not exceeding 250mm girth including ends, bends, outlets, brackets, etc. complete",null,"m",{"v":323,"d":"323 "},null,{"$f":"ROUND($F517*G517,2)","v":0}]
[]
[null,null,"Taking down and removing ceilings, partitions, etc:"]
[]
[{"v":10,"d":"10 "},null,"Gypsum plasterboard ceilings, including cornices, timber brandering, etc.",null,"m²",{"v":195,"d":"195 "},null,{"$f":"ROUND($F521*G521,2)","v":0}]
[]
[null,null,"Taking up and removing floor coverings, etc from screeded floors:"]
[]
[{"v":11,"d":"11 "},null,"Carpet",null,"m²",{"v":11,"d":"11 "},null,{"$f":"ROUND($F525*G525,2)","v":0}]
[]
[null,null,"Taking out/off and removing ironmongery:"]
[]
[{"v":12,"d":"12 "},null,"Toilet paper holder from wall",null,"No",{"v":12,"d":"12 "},null,{"$f":"ROUND($F529*G529,2)","v":0}]
[]
[null,null,"Taking out/off and removing sundry, metalwork, etc"]
[]
[{"v":13,"d":"13 "},null,"Steel security gate approximately 1500mm wide x 2100mm high overall (TP-03)",null,"No",{"v":1,"d":"1 "},null,{"$f":"ROUND($F533*G533,2)","v":0}]
[]
[null,null,"Hacking up/off and removing ceramic and porcelain tiles, including removing mortar bed or adhesive from concrete or brickwork and preparing surfaces for new screed, plaster, tile finishes, etc:"]
[]
[{"v":14,"d":"14 "},null,"Tiles to floors",null,"m²",{"v":223,"d":"223 "},null,{"$f":"ROUND($F537*G537,2)","v":0}]
[]
[{"v":15,"d":"15 "},null,"Tiles to walls",null,"m²",{"v":161,"d":"161 "},null,{"$f":"ROUND($F539*G539,2)","v":0}]
[]
[{"v":16,"d":"16 "},null,"Tile skirtings 100mm high",null,"m",{"v":75,"d":"75 "},null,{"$f":"ROUND($F541*G541,2)","v":0}]
[]
[null,null,"Taking out and removing piping, sanitary fittings, etc including cutting off as necessary, disconnecting piping from fittings and blocking off and making good damaged plasterwork to walls and screeds to floors (all redecoration work elsewhere):"]
[]
[{"v":17,"d":"17 "},null,"Vitreous china wash hand basin, including short lengths of piping, etc.",null,"No",{"v":9,"d":"9 "},null,{"$f":"ROUND($F545*G545,2)","v":0}]
[]
[{"v":18,"d":"18 "},null,"Vitreous china WC pan with flush valve, including short lengths of piping, etc.",null,"No",{"v":9,"d":"9 "},null,{"$f":"ROUND($F547*G547,2)","v":0}]
[]
[{"v":19,"d":"19 "},null,"150 Litre hot water geyser mounted in roof space including drip tray, valves, connecting pipework, etc.",null,"No",{"v":1,"d":"1 "},null,{"$f":"ROUND($F549*G549,2)","v":0}]
[]
[null,null,"Taking out/off and removing glass and mirrors:"]
[]
[{"v":20,"d":"20 "},null,"Mirror 600 x 600mm high from wall",null,"No",{"v":10,"d":"10 "},null,{"$f":"ROUND($F553*G553,2)","v":0}]
[]
[null,null,"MAKING GOOD OF FINISHES, ETC"]
[]
[null,null,"Making good concrete:"]
[]
[{"v":21,"d":"21 "},null,"Floors in patches",null,"m²",{"v":138,"d":"138 "},null,{"$f":"ROUND($F559*G559,2)","v":0}]
[]
[null,null,"Making good internal/external cement plaster:"]
[]
[{"v":22,"d":"22 "},null,"Walls in patches",null,"m²",{"v":1604,"d":"1,604 "},null,{"$f":"ROUND($F563*G563,2)","v":0}]
[]
[null,null,"Making good platform surfaces:"]
[]
[{"v":23,"d":"23 "},null,"Surfaces in patches",null,"m²",{"v":3720,"d":"3,720 "},null,{"$f":"ROUND($F567*G567,2)","v":0}]
[]
[null,null,"GENERAL REPAIRWORK"]
[]
[null,null,"Repairwork to existing brick walls:"]
[]
[{"v":24,"d":"24 "},null,"Waterjetting surfaces of existing facebrick walls with high pressure low-volume water jetting lance to remove all dirt, brushing down and washing to remove surface contamination, mould, fungus, damp and treating with two coats of antifungal wash and leaving perfectly clean on completion",null,"m²",{"v":1033,"d":"1,033 "},null,{"$f":"ROUND($F573*G573,2)","v":0}]
[]
[null,null,"ALTERATIONS, SERVICING AND REPAIRWORK TO EXISTING DOORS, FRAMES AND WINDOWS"]
[]
[null,null,"Notes:"]
[]
[null,null,"The removal and reinstatement of doors, frames, windows, etc for the purpose of altering, servicing and/or repairing are measured elsewhere"]
[]
[null,null,"Supplementary Preambles:"]
[]
[null,null,"Repairwork to timber to include for the following, unless otherwise described:"]
[]
[null,null,"1.\tTimber used in repairs is to match existing in type, moisture content, colour and grain as closely as possible"]
[]
[null,null,"2.\tApproved modern, high-strength waterproof glues which can accommodate any timber movement should be used together with sawdust filler of matching timber"]
[]
[null,null,"3.\tOnly non-corrosive fixings are to be used"]
[]
[null,null,"4.\tAll clamping and pinning as necessary"]
[]
[null,null,"EXISTING WINDOWS"]
[]
[null,null,"Servicing of existing windows including thoroughly cleaning down of all dirt, scale and general contamination from all surfaces, pulleys, handles, rods, fanlight openers, catches, etc. and servicing and lubricating all moving parts, carefully removing all paint from and polishing all brassware and replacing of damaged or missing screws, nuts, etc. (repairing or replacement of existing ironmongery, removal of glass, putty, etc. re-glazing and preparing for and redecorating of existing frames, sashes, etc. all elsewhere measured):"]
[]
[{"v":25,"d":"25 "},null,"Aluminium extrusions window, size 540mm wide x 900mm high overall with burglar bars and bullet-proof glass (WT-03)",null,"No",{"v":1,"d":"1 "},null,{"$f":"ROUND($F597*G597,2)","v":0}]
[]
[{"v":26,"d":"26 "},null,"Ditto, but size 860 x 1175mm high overall with burglar bars (WT-05)",null,"No",{"v":4,"d":"4 "},null,{"$f":"ROUND($F599*G599,2)","v":0}]
[]
[{"v":27,"d":"27 "},null,"Steel extrusions window, size 1100mm wide x 1570mm high overall with burglar bars (WT-06)",null,"No",{"v":1,"d":"1 "},null,{"$f":"ROUND($F601*G601,2)","v":0}]
[]
[{"v":28,"d":"28 "},null,"Aluminium extrusions window, size 1150mm wide x 1190mm high overall with burglar bars and bullet-proof glass (WT-08)",null,"No",{"v":1,"d":"1 "},null,{"$f":"ROUND($F603*G603,2)","v":0}]
[]
[{"v":29,"d":"29 "},null,"Ditto, but size 590 x 900mm high overall with burglar bars (WT-14)",null,"No",{"v":6,"d":"6 "},null,{"$f":"ROUND($F605*G605,2)","v":0}]
[]
[{"v":30,"d":"30 "},null,"Ditto, but size 900 x 1245mm high overall with burglar bars (WT-15)",null,"No",{"v":2,"d":"2 "},null,{"$f":"ROUND($F607*G607,2)","v":0}]
[]
[null,null,"BUDGETARY ALLOWANCE"]
[]
[{"v":31,"d":"31 "},null,"Provide a budgetary allowance of Fifty Thousand Rand for sundry alterations to be used as directed by the Principal Agent and to be deducted in whole or in part if not required.",null,"Item",{"v":1,"d":"1 "},null,{"$f":"ROUND($F611*G611,2)","v":0}]
[]
[null,null,"SECTION 2"]
[]
[null,null,"BILL NO. 2"]
[]
[null,null,"MASONRY"]
[]
[null,null,"WORK GROUP ALLOCATION"]
[]
[null,null,"Unless otherwise stated, all items in this Bill will be allocated to Work Group 116 - Brick and Blockwork"]
[]
[null,null,"PREAMBLES"]
[]
[null,null,"The General Preambles for Trades (2017 edition) as published by the Association of South African Quantity Surveyors shall be deemed to be incorporated in these bills of quantities and no claims arising from brevity of description of items fully described in the said General Preambles will be entertained"]
[]
[null,null,"The following \"Supplementary Preambles\" are incorporated in this bill to satisfy the requirements of the project and shall take precedence over the provisions of the said General Preambles"]
[]
[null,null,"SUPPLEMENTARY PREAMBLES"]
[]
[null,null,"BRICKWORK"]
[]
[null,null,"General:"]
[]
[null,null,"Non-load bearing brickwork is to be built to full height less  20mm gap next to the ceiling and is to be left for 14 days before grouting up in 1:3 cement mortar."]
[]
[null,null,"Sizes in descriptions:"]
[]
[null,null,"Where sizes in descriptions are given in brick units, \"one brick\" shall represent the length and \"half brick\" the width of a brick"]
[]
[null,null,"Hollow walls:"]
[]
[null,null,"Descriptions of hollow walls shall be deemed to include leaving every fifth perpend of the bottom course of the external skin open as a weep hole"]
[]
[null,null,"Bagged and sealed walls:"]
[]
[null,null,"Walls in two skins described as \"bagged and sealed\" shall be deemed to include having the outer face of the inner skin bagged with 1:6 cement and sand mixture and sealed with two coats bitumen emulsion waterproofing coating"]
[]
[null,null,"Face bricks :"]
[]
[null,null,"Bricks shall be ordered timeously to obtain uniformity in size and colour  All face brickwork shall be regularly cleaned down as the work proceeds and shall be protected as necessary by an approved method"]
[]
[null,null,"Pointing:"]
[]
[null,null,"Descriptions of recessed pointing to fair face brickwork and face brickwork shall be deemed to include smooth floated square recessed, hollow recessed, weathered pointing, etc"]
[]
[null,null,"BLOCKWORK"]
[]
[null,null,"Concrete masonry units:"]
[]
[null,null,"Blocks are to be either solid or hollow modular dense concrete masonry units having a compressive strength of 7MPa"]
[]
[null,null,"Wall ties for blockwork:"]
[]
[null,null,"Wall ties shall be polypropylene ties complying with BS 76377.  Ties for hollow walls shall be of sufficient length to allow not less than 75mm of each end to be built into the blockwork.  Ties are to be spaced at intervals of not more than 1m in the horizontal direction and not more than 400mm staggered in the vertical direction except at openings, vertical joints or ends of walls where they are to be placed vertically above each other"]
[]
[null,null,"Blockwork:"]
[]
[null,null,"Blockwork shall comply with SANS 10145 \"Concrete Masonry Construction\""]
[]
[null,null,"Surfaces to be plastered shall have joints raked out to a depth of at least 10mm to provide a key.  Cavities of hollow walls shall be kept free of mortar droppings or other undesirable matter. Every second perpend of the bottom course of the external skin of hollow walls shall be left open as a weep hole"]
[]
[null,null,"Standard complementary blocks:"]
[]
[null,null,"Descriptions of blockwork shall be deemed to include standard complementary blocks such as corner, three-quarter, half and quarter blocks required in the construction of corners, reveals, jambs, ends, etc to solid and hollow walls and for bonding as necessary"]
[]
[null,null,"DECORATIVE BLOCKS"]
[]
[null,null,"Blocks shall be of approved manufacture, sound, well burnt or cured and uniform and true in size, shape and colour"]
[]
[null,null,"SUPERSTRUCTURE"]
[]
[null,null,"Brickwork of NFP bricks in class II mortar"]
[]
[{"v":1,"d":"1 "},null,"Half brick walls",null,"m²",{"v":13,"d":"13 "},null,{"$f":"ROUND($F685*G685,2)","v":0}]
[]
[null,null,"Brickwork of NFX bricks (14 MPa nominal compressive strength) in class II mortar in loadbearing walls etc:"]
[]
[{"v":2,"d":"2 "},null,"One brick walls",null,"m²",{"v":15,"d":"15 "},null,{"$f":"ROUND($F689*G689,2)","v":0}]
[]
[{"v":3,"d":"3 "},null,"One brick walls in beamfilling",null,"m²",{"v":2,"d":"2 "},null,{"$f":"ROUND($F691*G691,2)","v":0}]
[]
[null,null,"BRICKWORK SUNDRIES"]
[]
[null,null,"Cutting toothings and bonding new brickwork to existing",null,"m2",{"v":0,"d":"0 "},null,"RATE ONLY"]
[]
[null,null,"Joint forming material in movement joints:"]
[]
[{"v":4,"d":"4 "},null,"12mm Fibre board built in vertically through brick walls",null,"m",{"v":13,"d":"13 "},null,{"$f":"ROUND($F699*G699,2)","v":0}]
[]
[null,null,"2,5mm Brickwork reinforcement:"]
[]
[{"v":5,"d":"5 "},null,"75mm Wide reinforcement built in horizontally",null,"m",{"v":4,"d":"4 "},null,{"$f":"ROUND($F703*G703,2)","v":0}]
[]
[{"v":6,"d":"6 "},null,"150mm Wide reinforcement built in horizontally",null,"m",{"v":5,"d":"5 "},null,{"$f":"ROUND($F705*G705,2)","v":0}]
[]
[null,null,"Prestressed fabricated concrete lintels, including necessary temporary supports:"]
[]
[{"v":7,"d":"7 "},null,"75 x 110mm Lintels in lengths not exceeding 3m long",null,"m",{"v":5,"d":"5 "},null,{"$f":"ROUND($F709*G709,2)","v":0}]
[]
[null,null,"Turning pieces to lintels, etc:"]
[]
[{"v":8,"d":"8 "},null,"220mm Wide turning pieces",null,"m",{"v":5,"d":"5 "},null,{"$f":"ROUND($F713*G713,2)","v":0}]
[]
[null,null,"Cavity closers, etc :"]
[]
[{"v":9,"d":"9 "},null,"1,6mm Galvanised flat section drip plate 220mm girth, three times bent along length to form drip and built horizontally into hollow wall",null,"m",{"v":5,"d":"5 "},null,{"$f":"ROUND($F717*G717,2)","v":0}]
[]
[null,null,"Galvanised hoop iron cramps, ties, etc:"]
[]
[{"v":10,"d":"10 "},null,"30 x 1,6mm Wall tie 500mm long with one end cast into concrete and other end built into brickwork",null,"No",{"v":20,"d":"20 "},null,{"$f":"ROUND($F721*G721,2)","v":0}]
[]
[null,null,"FACE BRICKWORK"]
[]
[null,null,"External/Internal face bricks (Allow a Prime Cost Amount of R8500/1000 bricks delivered to site) pointed with recessed horizontal and vertical joints:"]
[]
[{"v":11,"d":"11 "},null,"Extra over brickwork for face brickwork",null,"m²",{"v":15,"d":"15 "},null,{"$f":"ROUND($F727*G727,2)","v":0}]
[]
[null,null,"SECTION 2"]
[]
[null,null,"BILL NO. 3"]
[]
[null,null,"WATERPROOFING"]
[]
[null,null,"WORK GROUP ALLOCATION"]
[]
[null,null,"Unless otherwise stated, all items in this Bill will be allocated to Work Group 120 - Waterproofing"]
[]
[null,null,"PREAMBLES"]
[]
[null,null,"The General Preambles for Trades (2017 edition) as published by the Association of South African Quantity Surveyors shall be deemed to be incorporated in these bills of quantities and no claims arising from brevity of description of items fully described in the said General Preambles will be entertained"]
[]
[null,null,"The following \"Supplementary Preambles\" are incorporated in this bill to satisfy the requirements of the project and shall take precedence over the provisions of the said General Preambles"]
[]
[null,null,"SUPPLEMENTARY PREAMBLES"]
[]
[null,null,"Waterproofing:"]
[]
[null,null,"Waterproofing of roofs, basements, etc shall be laid under a ten year guarantee.  Waterproofing to roofs shall be laid to even falls to outlets, etc with necessary ridges, hips and valleys. Descriptions of sheet or membrane waterproofing shall be deemed to include additional labour to turn-ups and turn-downs"]
[]
[null,null,"DAMPPROOFING OF WALLS AND FLOORS"]
[]
[null,null,"One layer 375 micron embossed polyethylene dampproof course (SANS 952-1985 type B):"]
[]
[{"v":1,"d":"1 "},null,"In walls",null,"m²",{"v":12,"d":"12 "},null,{"$f":"ROUND($F755*G755,2)","v":0}]
[]
[null,null,"SECTION 2"]
[]
[null,null,"BILL NO. 4"]
[]
[null,null,"ROOF COVERINGS"]
[]
[null,null,"WORK GROUP ALLOCATION"]
[]
[null,null,"The items in this Bill will be allocated to Work Groups as indicated in brackets at the ends of headings or descriptions"]
[]
[null,null,"PREAMBLES"]
[]
[null,null,"The General Preambles for Trades (2017 edition) as published by the Association of South African Quantity Surveyors shall be deemed to be incorporated in these bills of quantities and no claims arising from brevity of description of items fully described in the said General Preambles will be entertained"]
[]
[null,null,"The following \"Supplementary Preambles\" are incorporated in this bill to satisfy the requirements of the project and shall take precedence over the provisions of the said General Preambles"]
[]
[null,null,"SUPPLEMENTARY PREAMBLES"]
[]
[null,null,"Profiled metal roof sheeting and accessories shall be supplied with a 10 year guarantee and be installed by an approved installer"]
[]
[null,null,"All fixing holes shall be drilled and not punched"]
[]
[null,null,"Roof covering accessories shall be manufactured from the same material as used for roof covering"]
[]
[null,null,"TILES"]
[]
[null,null,"User note:"]
[]
[null,null,"The fixing recommendations of the manufacturer of the tiles used for the specific region and/or situation are to be incorporated as supplementary preambles"]
[]
[null,null,"340  x 420mm \"Double Roman\" or similar approved concrete/terra cotta tiles nailed with non-corrosive tile nails to 38 x 38mm sawn softwood battens at 340mm centres"]
[]
[{"v":1,"d":"1 "},null,"Roof covering with pitch not exceeding 25 degrees",null,"m²",{"v":663,"d":"663 "},null,{"$f":"ROUND($F789*G789,2)","v":0}]
[]
[{"v":2,"d":"2 "},null,"Ridge tiles to match roofing tiles bedded and pointed in 1:3 cement mortar tinted to match tile colour",null,"m",{"v":63,"d":"63 "},null,{"$f":"ROUND($F791*G791,2)","v":0}]
[]
[{"v":3,"d":"3 "},null,"Hip tiles to match roofing tiles bedded and pointed in 1:3 cement mortar tinted to match tile colour",null,"m",{"v":49,"d":"49 "},null,{"$f":"ROUND($F793*G793,2)","v":0}]
[]
[{"v":4,"d":"4 "},null,"Verge capping tiles to match roofing tiles fixed with non-corrosive fixing accessories",null,"m",{"v":63,"d":"63 "},null,{"$f":"ROUND($F795*G795,2)","v":0}]
[]
[{"v":5,"d":"5 "},null,"Purpose made tile to end of ridge bedded and pointed in 1:3 cement mortar tinted to match tile colour",null,"No",{"v":20,"d":"20 "},null,{"$f":"ROUND($F797*G797,2)","v":0}]
[]
[null,null,"ROOF AND WALL INSULATION (WORK GROUP 122)"]
[]
[null,null,"Heavy industrial grade aluminium foil based insulation:"]
[]
[{"v":6,"d":"6 "},null,"Two sided bubble insulation membrane",null,"m²",{"v":663,"d":"663 "},null,{"$f":"ROUND($F803*G803,2)","v":0}]
[]
[null,null,"SECTION 2"]
[]
[null,null,"BILL NO. 5"]
[]
[null,null,"CARPENTRY AND JOINERY"]
[]
[null,null,"WORK GROUP ALLOCATION"]
[]
[null,null,"Unless otherwise stated, all items in this Bill will be allocated to Work Group 126 - Carpentry & Joinery"]
[]
[null,null,"PREAMBLES"]
[]
[null,null,"The General Preambles for Trades (2017 edition) as published by the Association of South African Quantity Surveyors shall be deemed to be incorporated in these bills of quantities and no claims arising from brevity of description of items fully described in the said General Preambles will be entertained"]
[]
[null,null,"The following \"Supplementary Preambles\" are incorporated in this bill to satisfy the requirements of the project and shall take precedence over the provisions of the said General Preambles"]
[]
[null,null,"SUPPLEMENTARY PREAMBLES"]
[]
[null,null,"Fixing:"]
[]
[null,null,"Items described as \"nailed\" shall be deemed to be fixed with hardened steel nails or pins, or to be shot-pinned, to brickwork or concrete"]
[]
[null,null,"Items described as \"plugged\" shall be deemed to include screwing to fibre, plastic or metal plugs at not exceeding 500mm centres, and where described as \"bolted\", the bolts have been given separately elsewhere"]
[]
[null,null,"Joinery:"]
[]
[null,null,"Descriptions of frames shall be deemed to include frames, transomes, rails, etc"]
[]
[null,null,"Descriptions of hardwood joinery shall be deemed to include sinking and pelleting heads and nuts of bolts"]
[]
[null,null,"Particle board"]
[]
[null,null,"All particle board shall comply with SANS 50312 having the required marking as per SANS 50312/EN 312"]
[]
[null,null,"Decorative thermosetting plastic laminate covering:"]
[]
[null,null,"Laminate covering shall be glued under pressure and edge strips of same shall be butt jointed at junctions with adjacent similar finish"]
[]
[null,null,"Sizes:"]
[]
[null,null,"Sizes are nominal and the Contractor shall make allowance in his prices for minor variances in stated finished sizes of timber doors, door members, door frames, architraves, etc"]
[]
[null,null,"Prices"]
[]
[null,null,"Prices for all joinery work are to include for general framing, housing and notching, arris rounded angles, glueing, blocking, planting on, screwing, adhesives, dowels, pellets, cross tongues, screws and nails and setting up complete and also for all square cutting and waste. Tops shall be secured with metal or hardwood buttons."]
[]
[null,null,"ROOFS, ETC"]
[]
[null,null,"EAVES, VERGES, ETC"]
[]
[null,null,"Medium density plain fibre-cement fascias and barge boards:"]
[]
[{"v":1,"d":"1 "},null,"19 x 235mm Fascias and barge boards, including aluminium H-profile jointing strips",null,"m",{"v":323,"d":"323 "},null,{"$f":"ROUND($F857*G857,2)","v":0}]
[]
[null,null,"FLOORS, ETC"]
[]
[null,null,"SKIRTINGS"]
[]
[null,null,"Wrought meranti:"]
[]
[{"v":2,"d":"2 "},null,"19 x 76mm Skirtings including 19mm quadrant bead, nailed",null,"m",{"v":181,"d":"181 "},null,{"$f":"ROUND($F865*G865,2)","v":0}]
[]
[null,null,"DOORS, ETC"]
[]
[null,null,"Solid hardwood with slated panels with sides and counselled edges to suit opening, hung to steel frames:"]
[]
[{"v":3,"d":"3 "},null,"44mm Door 900 x 2400mm high, including 390 x 300mm high framed openings (TP-02)",null,"No",{"v":1,"d":"1 "},null,{"$f":"ROUND($F871*G871,2)","v":0}]
[]
[{"v":4,"d":"4 "},null,"44mm Door 890 x 2125mm high (TP-03)",null,"No",{"v":2,"d":"2 "},null,{"$f":"ROUND($F873*G873,2)","v":0}]
[]
[{"v":5,"d":"5 "},null,"44mm Door 813 x 2125mm high (TP-04)",null,"No",{"v":1,"d":"1 "},null,{"$f":"ROUND($F875*G875,2)","v":0}]
[]
[{"v":6,"d":"6 "},null,"44mm Door 813 x 2125mm high (TP-06)",null,"No",{"v":1,"d":"1 "},null,{"$f":"ROUND($F877*G877,2)","v":0}]
[]
[null,null,"Semi-solid timber, hung to steel frames:"]
[]
[{"v":7,"d":"7 "},null,"44mm Door 820 x 2100mm high with concealed edges to suit opening (TP-08)",null,"No",{"v":5,"d":"5 "},null,{"$f":"ROUND($F881*G881,2)","v":0}]
[]
[null,null,"SUPPLEMENTARY PREAMBLES"]
[]
[null,null,"Fire doors:"]
[]
[null,null,"Fire doors are to be in accordance with SANS 1253"]
[]
[null,null,"BUDGETARY ALLOWANCE"]
[]
[{"v":8,"d":"8 "},null,"Provide a budgetary allowance of Twenty Five Thousand Rand for sundry carpentry and joinery to be used as directed by the Principal Agent and to be deducted in whole or in part if not required.",null,"Item",{"v":1,"d":"1 "},null,{"$f":"ROUND($F891*G891,2)","v":0}]
[]
[null,null,"SECTION 2"]
[]
[null,null,"BILL NO. 6"]
[]
[null,null,"CEILINGS, PARTITIONS AND ACCESS FLOORING"]
[]
[null,null,"WORK GROUP ALLOCATION"]
[]
[null,null,"Unless otherwise stated, all items in this Bill will be allocated to Work Group 129 - Ceilings"]
[]
[null,null,"PREAMBLES"]
[]
[null,null,"The General Preambles for Trades (2017 edition) as published by the Association of South African Quantity Surveyors shall be deemed to be incorporated in these bills of quantities and no claims arising from brevity of description of items fully described in the said General Preambles will be entertained"]
[]
[null,null,"The following \"Supplementary Preambles\" are incorporated in this bill to satisfy the requirements of the project and shall take precedence over the provisions of the said General Preambles"]
[]
[null,null,"SUPPLEMENTARY PREAMBLES"]
[]
[null,null,"Fixing:"]
[]
[null,null,"Items described as \"nailed\" shall be deemed to be fixed with hardened steel nails or pins, or to be shot-pinned, to brickwork or concrete"]
[]
[null,null,"Items described as \"plugged\" shall be deemed to include screwing to fibre, plastic or metal plugs at not exceeding 500mm centres, and where described as \"bolted\", the bolts have been given separately elsewhere"]
[]
[null,null,"Ceilings:"]
[]
[null,null,"Unless otherwise described, ceilings shall be deemed to be horizontal"]
[]
[null,null,"Bulkheads:"]
[]
[null,null,"Bulkheads are defined as those portions of ceilings which are stepped down from the general ceiling level in a particular room or area and which generally occur along the perimeter. Their purpose is either to conceal services or to create architectural features"]
[]
[null,null,"Bulkheads have only been described as such where they conform to the above definition and where the horizontal, vertical or sloping dimensions do not exceed 1200mm. Where these dimensions are more than 1200mm such portions of ceilings have been included in the appropriate general items of ceilings"]
[]
[null,null,"Unless otherwise described, bulkheads shall be deemed to be horizontal along the length"]
[]
[null,null,"Openings:"]
[]
[null,null,"Prices for openings for light fittings, ventilation grilles, air conditioning diffusers, etc. are to include for any necessary additional support, trimming around, etc."]
[]
[null,null,"Steel components:"]
[]
[null,null,"All steel components for ceilings, partitions, etc are to be galvanised in accordance with SANS 121"]
[]
[null,null,"INSULATION"]
[]
[null,null,"Non-combustible fibreglass insulation of a density of not less than 10kg/m3 bonded with an inert thermo-setting resin:"]
[]
[{"v":1,"d":"1 "},null,"120mm Insulation in blanket form, closely fitted and laid on top of brandering between roof timbers, etc.",null,"m²",{"v":154,"d":"154 "},null,{"$f":"ROUND($F941*G941,2)","v":0}]
[]
[null,null,"NAILED UP CEILINGS"]
[]
[null,null,"12mm Fibre-cement plain ceiling boards with H-profile galvanised steel jointing strips:"]
[]
[{"v":2,"d":"2 "},null,"Ceilings including 38 x 38mm sawn softwood brandering at 400mm centres and cross brandering at 400mm centres",null,"m²",{"v":183,"d":"183 "},null,{"$f":"ROUND($F947*G947,2)","v":0}]
[]
[{"v":3,"d":"3 "},null,"Extra over ceiling for 600 x 600mm trap door of 38 x 38mm wrought softwood rebated framing with one cross brander, covered with ceiling board and fitted flush in opening, including necessary trimmers around",null,"No",{"v":9,"d":"9 "},null,{"$f":"ROUND($F949*G949,2)","v":0}]
[]
[null,null,"Gypsum plasterboard cornices:"]
[]
[{"v":4,"d":"4 "},null,"75mm Coved cornices",null,"m",{"v":324,"d":"324 "},null,{"$f":"ROUND($F953*G953,2)","v":0}]
[]
[null,null,"SECTION 2"]
[]
[null,null,"BILL NO. 7"]
[]
[null,null,"FLOOR COVERINGS, WALL LININGS, ETC"]
[]
[null,null,"WORK GROUP ALLOCATION"]
[]
[null,null,"Unless otherwise stated, all items in this Bill will be allocated to Work Group 130 - Resilient floor and wall coverings"]
[]
[null,null,"PREAMBLES"]
[]
[null,null,"The General Preambles for Trades (2017 edition) as published by the Association of South African Quantity Surveyors shall be deemed to be incorporated in these bills of quantities and no claims arising from brevity of description of items fully described in the said General Preambles will be entertained"]
[]
[null,null,"The following \"Supplementary Preambles\" are incorporated in this bill to satisfy the requirements of the project and shall take precedence over the provisions of the said General Preambles"]
[]
[null,null,"SUPPLEMENTARY PREAMBLES"]
[]
[null,null,"Proprietary items:"]
[]
[null,null,"Where applicable, the manufacturers' names or product catalogue titles are given in sub-headings preceding the itemsNote that the manufacturers names specified in this trade are for the purposes of competitive pricing. Prices are to be based on the specific products/articles specified.On request, returnable samples are to be provided to the Project Manager for consideration"]
[]
[null,null,"Fixing:"]
[]
[null,null,"Floor coverings, wall linings, etc shall, where applicable, be fixed with adhesive as recommended by the manufacturers of the flooring, linings, etc"]
[]
[null,null,"Woodblock flooring:"]
[]
[null,null,"Woodblock flooring shall be fixed with bitumen or \"Wakol MS 230\" or similar approved adhesive"]
[]
[null,null,"Sanding:"]
[]
[null,null,"Sanding shall be done by using dustless sanders"]
[]
[null,null,"Where woodblock flooring is to be laid in areas which were previously covered by woodblocks, there may still be traces of existing bitumen and/or adhesive on the floor. The substrate must therefor be suitably prepared for the proper relaying of woodblock flooring and prices must include therefor, all to the approval of the Principal Agent"]
[]
[null,null,"FLOOR COVERINGS"]
[]
[null,null,"500 x 500 x 3,0mm \"Polyflor Noppe Stud\" or similar approved synthetic rubber floor tiles colour Anthracite (Colour code: 102), laid in an approved adhesive spread with a notched trowel on suitably prepared cement screed with a hygrometer reading showing a moisture content of less than 70% and rolled with 68kg articulated floor roller:"]
[]
[{"v":1,"d":"1 "},null,"On floors",null,"m²",{"v":11,"d":"11 "},null,{"$f":"ROUND($F995*G995,2)","v":0}]
[]
[null,null,"SECTION 2"]
[]
[null,null,"BILL NO. 8"]
[]
[null,null,"IRONMONGERY"]
[]
[null,null,"WORK GROUP ALLOCATION"]
[]
[null,null,"Unless otherwise stated, all items in this Bill will be allocated to Work Group 132 - Ironmongery"]
[]
[null,null,"PREAMBLES"]
[]
[null,null,"The General Preambles for Trades (2017 edition) as published by the Association of South African Quantity Surveyors shall be deemed to be incorporated in these bills of quantities and no claims arising from brevity of description of items fully described in the said General Preambles will be entertained"]
[]
[null,null,"The following \"Supplementary Preambles\" are incorporated in this bill to satisfy the requirements of the project and shall take precedence over the provisions of the said General Preambles"]
[]
[null,null,"SUPPLEMENTARY PREAMBLES"]
[]
[null,null,"Proprietary items:"]
[]
[null,null,"Where applicable, the manufacturers' names or product catalogue titles are given in sub-headings preceding the itemsNote that the manufacturers names specified in this trade are for the purposes of competitive pricing. Prices are to be based on the specific products/articles specified.On request, returnable samples are to be provided to the Project Manager for consideration"]
[]
[null,null,"Locks:"]
[]
[null,null,"Notwithstanding Clause 2, Item 3 of the \"Ironmongery\" trade of the \"Standard System of Measuring Building Work, Seventh Edition\", descriptions of locks shall be deemed to include two keys per lock"]
[]
[null,null,"Finishes to ironmongery:"]
[]
[null,null,"Where applicable, finishes to ironmongery are indicated by suffixes in accordance with the following list: BS\tSatin bronze lacqueredCH\tChromium plated SC\tSatin chromium plated SE\tSilver enamelled GE\tGrey enamelledAN\tAnodised natural AS\tAnodised silver AB\tAnodised bronze AG\tAnodised gold ABL\tAnodised black PB\tPolished brass PL\tPolished and lacquered PT\tEpoxy coated SD\tSandedBBS\tBrushed stainless steel"]
[]
[null,null,"HINGES, BOLTS, ETC"]
[]
[null,null," \"Union\" or similar approved:"]
[]
[{"v":1,"d":"1 "},null,"\"Ref. CZ80941SCR\" or similar approved sliding indicator bolt set",null,"No",{"v":4,"d":"4 "},null,{"$f":"ROUND($F1031*G1031,2)","v":0}]
[]
[null,null,"LOCKS"]
[]
[{"v":2,"d":"2 "},null,"Commercial cylinder sash lock",null,"No",{"v":2,"d":"2 "},null,{"$f":"ROUND($F1035*G1035,2)","v":0}]
[]
[{"v":3,"d":"3 "},null,"75mm Three lever upright mortice rebated lockset with satin chrome furniture (TP-01)",null,"No",{"v":4,"d":"4 "},null,{"$f":"ROUND($F1037*G1037,2)","v":0}]
[]
[null,null,"\"Calini\" or similar approved:"]
[]
[{"v":4,"d":"4 "},null,"\"Ref. IW2051\" or similar approved double cylinder suitable for master key",null,"No",{"v":1,"d":"1 "},null,{"$f":"ROUND($F1041*G1041,2)","v":0}]
[]
[null,null,"HANDLES"]
[]
[null,null,"\"Union Assa Abloy\" or similar approved:"]
[]
[{"v":5,"d":"5 "},null,"\"Ref.AL6D67-05A5\" or similar approved anodised aluminium pull handle with back plates",null,"No",{"v":8,"d":"8 "},null,{"$f":"ROUND($F1047*G1047,2)","v":0}]
[]
[{"v":6,"d":"6 "},null,"\"Ref.AL6D67-05A5\" or similar approved anodised aluminium pull handle",null,"No",{"v":1,"d":"1 "},null,{"$f":"ROUND($F1049*G1049,2)","v":0}]
[]
[{"v":7,"d":"7 "},null,"100mm Chromium plated bow handle bolted through door with the bolt ends hammered to prevent the nuts being removed",null,"No",{"v":8,"d":"8 "},null,{"$f":"ROUND($F1051*G1051,2)","v":0}]
[]
[null,null,"PUSH PLATES AND KICK PLATES"]
[]
[null,null,"1,2mm Thick satin finished stainless steel plates countersunk screwed along edges at not exceeding 200mm centres:"]
[]
[{"v":8,"d":"8 "},null," 300 x 150mm Kick plate",null,"No",{"v":1,"d":"1 "},null,{"$f":"ROUND($F1057*G1057,2)","v":0}]
[]
[null,null,"DOOR CLOSERS"]
[]
[null,null,"\"Union Assa Abloy\" or similar approved:"]
[]
[{"v":9,"d":"9 "},null,"\"Ref. 7770\" door closer",null,"No",{"v":8,"d":"8 "},null,{"$f":"ROUND($F1063*G1063,2)","v":0}]
[]
[null,null,"SUNDRIES"]
[]
[null,null,"\"Union Assa Abloy\"or similar approved:"]
[]
[{"v":10,"d":"10 "},null,"\"Ref. 99022SS\" door stop, plugged",null,"No",{"v":11,"d":"11 "},null,{"$f":"ROUND($F1069*G1069,2)","v":0}]
[]
[null,null,"BATHROOM FITTINGS"]
[]
[null,null,"\"Franke\" or similar approved:"]
[]
[{"v":11,"d":"11 "},null,"\"Ref. EXOS618X\" soap dispenser, plugged",null,"No",{"v":4,"d":"4 "},null,{"$f":"ROUND($F1075*G1075,2)","v":0}]
[]
[{"v":12,"d":"12 "},null,"\"Ref. BS646\" stainless steel soap dish, plugged",null,"No",{"v":4,"d":"4 "},null,{"$f":"ROUND($F1077*G1077,2)","v":0}]
[]
[{"v":13,"d":"13 "},null,"\"Ref. STRX672\" stainless steel lockable toilet roll holder, plugged",null,"No",{"v":4,"d":"4 "},null,{"$f":"ROUND($F1079*G1079,2)","v":0}]
[]
[{"v":14,"d":"14 "},null,"\"Ref. RODX602 \" paper towel dispenser and waste bin combination, plugged",null,"No",{"v":4,"d":"4 "},null,{"$f":"ROUND($F1081*G1081,2)","v":0}]
[]
[{"v":15,"d":"15 "},null,"\"Ref. BS611V\"  stainless steel sanitary towel disposal bin, plugged",null,"No",{"v":4,"d":"4 "},null,{"$f":"ROUND($F1083*G1083,2)","v":0}]
[]
[{"v":16,"d":"16 "},null,"32mm \"Ref. CNTX750\" stainless steel back grab rail 750mm long, plugged",null,"No",{"v":1,"d":"1 "},null,{"$f":"ROUND($F1085*G1085,2)","v":0}]
[]
[{"v":17,"d":"17 "},null,"32mm \"Ref. CNTX700A\" stainless steel side grab rail 874mm girth, plugged",null,"No",{"v":1,"d":"1 "},null,{"$f":"ROUND($F1087*G1087,2)","v":0}]
[]
[{"v":18,"d":"18 "},null,"\"Ref. CNTX400A\" fold down shower seat, plugged",null,"No",{"v":1,"d":"1 "},null,{"$f":"ROUND($F1089*G1089,2)","v":0}]
[]
[null,null,"BUDGETARY ALLOWANCE"]
[]
[{"v":19,"d":"19 "},null,"Provide a budgetary allowance of Twenty Five Thousand Rand for sundry ironmongery to be used as directed by the Principal Agent and to be deducted in whole or in part if not required.",null,"Item",{"v":1,"d":"1 "},null,{"$f":"ROUND($F1093*G1093,2)","v":0}]
[]
[null,null,"SECTION 2"]
[]
[null,null,"BILL NO. 9"]
[]
[null,null,"STRUCTURAL STEELWORK"]
[]
[null,null,"WORK GROUP ALLOCATION"]
[]
[null,null,"Unless otherwise stated, all items in this Bill will be allocated to Work Group 134 - Structural Steelwork in Buildings"]
[]
[null,null,"PREAMBLES"]
[]
[null,null,"The General Preambles for Trades (2017 edition) as published by the Association of South African Quantity Surveyors shall be deemed to be incorporated in these bills of quantities and no claims arising from brevity of description of items fully described in the said General Preambles will be entertained"]
[]
[null,null,"The following \"Supplementary Preambles\" are incorporated in this bill to satisfy the requirements of the project and shall take precedence over the provisions of the said General Preambles"]
[]
[null,null,"SUPPLEMENTARY PREAMBLES"]
[]
[null,null,"Specification:"]
[]
[null,null,"All structural steel must comply with SANS 1200H (Degree of Accuracy II)"]
[]
[null,null,"All hot rolled structural steel sections must comply with SANS 1431 grade 300W, unless otherwise specified on the drawings"]
[]
[null,null,"Unless otherwise designated, all bolts and nuts will be grade 4.6 to SANS 135 and BS 916. Descriptions of bolts shall be deemed to include nuts and washers. Descriptions of L-shaped and U-shaped anchor bolts shall be deemed to include bending, threading, nuts and washers and embedding in concrete. Descriptions of expansion anchors and bolts and chemical anchors and bolts shall be deemed to include nuts, washers and mortices in brickwork or concrete"]
[]
[null,null,"All connections must be welded all round with a 6mm fillet weld, unless otherwise specified on the drawings"]
[]
[null,null,"Drawings and shop details:"]
[]
[null,null,"The Contractor shall be responsible for preparing shop drawings and details which must be submitted to the Principal Agent for approval prior to commencement of fabrication.  Before commencing any fabrication, the steel fabricator must check the accessibility of the site and design the sizes of individual parts accordingly"]
[]
[null,null,"Hot-dipped galvanizing:"]
[]
[null,null,"After fabrication and prior to delivery to site, all steelwork described as hot-dipped galvanized, is to be descaled and thoroughly cleaned by pickling, after which it is to be hot dip galvanized in accordance with the requirements of SANS 121/1501461"]
[]
[null,null,"Descriptions:"]
[]
[null,null,"Descriptions of bolts shall be deemed to include nuts and washers"]
[]
[null,null,"Descriptions of L-shaped and U-shaped anchor bolts shall be deemed to include bending, threading, nuts and washers and embedding in concrete"]
[]
[null,null,"Descriptions of expansion anchors and bolts and chemical anchors and bolts shall be deemed to include nuts, washers and mortices in brickwork or concrete"]
[]
[null,null,"BUDGETARY ALLOWANCE"]
[]
[{"v":1,"d":"1 "},null,"Provide a budgetary allowance of One Hundred and Fifty Thousand Rand for sundry alterations to structural steelworks be used as directed by the Principal Agent and to be deducted in whole or in part if not required.",null,"Item",{"v":1,"d":"1 "},null,{"$f":"ROUND($F1141*G1141,2)","v":0}]
[]
[null,null,"Paint testing:"]
[]
[{"v":2,"d":"2 "},null,"Subcontract amount of Twenty Five Thousand Rand for quality control inspection by an authorised independent authority",null,"SUM",{"v":1,"d":"1 "},null,{"$f":"ROUND($F1145*G1145,2)","v":0}]
[]
[{"v":3,"d":"3 "},null,"Profit",null,"%",{"v":0,"d":"0%"},null,{"$f":"ROUND($F1147*G1147,2)","v":0}]
[]
[{"v":4,"d":"4 "},null,"Attendance",null,"%",{"v":0,"d":"0%"},null,{"$f":"ROUND($F1149*G1149,2)","v":0}]
[]
[null,null,"SECTION 2"]
[]
[null,null,"BILL NO. 10"]
[]
[null,null,"METALWORK"]
[]
[null,null,"WORK GROUP ALLOCATION"]
[]
[null,null,"Unless otherwise stated, all items in this Bill will be allocated to Work Group 136 - Metalwork"]
[]
[null,null,"PREAMBLES"]
[]
[null,null,"The General Preambles for Trades (2017 edition) as published by the Association of South African Quantity Surveyors shall be deemed to be incorporated in these bills of quantities and no claims arising from brevity of description of items fully described in the said General Preambles will be entertained"]
[]
[null,null,"The following \"Supplementary Preambles\" are incorporated in this bill to satisfy the requirements of the project and shall take precedence over the provisions of the said General Preambles"]
[]
[null,null,"SUPPLEMENTARY PREAMBLES"]
[]
[null,null,"Descriptions of bolts, anchors, etc:"]
[]
[null,null,"Descriptions of bolts shall be deemed to include nuts and washers"]
[]
[null,null,"Descriptions of expansion anchors and bolts and chemical anchors and bolts shall be deemed to include nuts, washers and mortices in brickwork or concrete"]
[]
[null,null,"Items described as \"holed for bolt(s)\" shall be deemed to exclude the bolts, unless otherwise described"]
[]
[null,null,"Items described as \"plugged\" shall be deemed to include screwing to fibre, plastic or metal plugs at not exceeding 600mm centres"]
[]
[null,null,"Fixing:"]
[]
[null,null,"Unless otherwise described, descriptions of items shall be deemed to include for fixing to brickwork or concrete  Where items are described as \"bolted\", the bolts are measured elsewhere as stated in clause N.7 of the Model Preambles"]
[]
[null,null,"STEEL GATES, SCREENS, ETC"]
[]
[null,null,"Epoxy coated welded screens and gates, to brickwork:"]
[]
[{"v":1,"d":"1 "},null,"Steel security gate approximately 1500mm wide x 2100mm high overall (TP-03)",null,"No",{"v":1,"d":"1 "},null,{"$f":"ROUND($F1187*G1187,2)","v":0}]
[]
[null,null,"PRESSED STEEL DOOR FRAMES"]
[]
[null,null,"1,6mm Rebated frames suitable for half brick walls:"]
[]
[{"v":2,"d":"2 "},null,"Frame for door 820 x 2100mm high (TP-08)",null,"No",{"v":6,"d":"6 "},null,{"$f":"ROUND($F1193*G1193,2)","v":0}]
[]
[null,null,"1,6mm Rebated frames suitable for one brick walls:"]
[]
[{"v":3,"d":"3 "},null,"Frame for door 820 x 2400mm high with three hinges per leaf (TP-02)",null,"No",{"v":1,"d":"1 "},null,{"$f":"ROUND($F1197*G1197,2)","v":0}]
[]
[{"v":4,"d":"4 "},null,"Frame for door 810 x 2125mm high with three hinges per leaf (TP-03)",null,"No",{"v":1,"d":"1 "},null,{"$f":"ROUND($F1199*G1199,2)","v":0}]
[]
[{"v":5,"d":"5 "},null,"Frame for door 813 x 2125mm high with three hinges per leaf (TP-04)",null,"No",{"v":1,"d":"1 "},null,{"$f":"ROUND($F1201*G1201,2)","v":0}]
[]
[{"v":6,"d":"6 "},null,"Frame for door 813 x 2125mm high with three hinges per leaf (TP-06)",null,"No",{"v":1,"d":"1 "},null,{"$f":"ROUND($F1203*G1203,2)","v":0}]
[]
[null,null,"PRESSED STEEL COMBINATION DOORS AND FRAMES"]
[]
[null,null,"Flush both sides doors:"]
[]
[{"v":7,"d":"7 "},null," 835 x 2070mm High anti-corrosive galvanised and epoxy coated mild steel door with concealed sides and edges (TP-01)",null,"No",{"v":4,"d":"4 "},null,{"$f":"ROUND($F1209*G1209,2)","v":0}]
[]
[null,null,"ALUMINIUM WINDOWS, DOORS, ETC"]
[]
[null,null,"Aluminium windows, doors, etc:"]
[]
[null,null,"The successful tenderer shall be responsible for the complete design work including determining required section sizes and fixing details, all subject to the Principal Agent's approval"]
[]
[null,null,"Doors, windows, etc shall be designed and constructed to withstand wind pressures of 1,1kn/m2 (unfactored) and 1,5kn/m2 (factored)"]
[]
[null,null,"All calculations shall be submitted to the Principal Agent's for approval"]
[]
[null,null,"Doors and windows shall comply with AAAMSA design criteria"]
[]
[null,null,"Glazing shall comply with SAGGA regulations.  Glass thicknesses shall comply with SAGGA regulations irrespective of thicknesses shown on the schedules/drawings"]
[]
[null,null,"Doors and windows shall be supplied with protective tape and plastic which shall be removed only once surrounding trades have been completed"]
[]
[null,null,"The following certificates shall be provided prior to commencement of site work:  1\tA copy of the relevant AAAMSA Performance Test Certificate from the manufacturer/contractor supplying the architectural aluminium product"]
[]
[null,null,"2\tA Certificate of Conformance confirming that anodising or powder coating has been processed in accordance with SANS 999 and SANS 1796 respectively"]
[]
[null,null,"3\tA copy of the relevant Performance Compliance Report from the system suppliers"]
[]
[null,null,"4\tA copy of the relevant Safiera Energy Rating Certification"]
[]
[null,null,"5\tA powder guarantee of not less than 15 years issued by the powder manufacturer. The specific conditions contained in this guarantee shall form part of the powder coating process"]
[]
[null,null,"6\tA Certificate of Conformance confirming that glazing has been installed in accordance with SANS 10400-N, ensuring that safety glazing materials have been installed in the mandatory areas and that each individual pane of safety glazing materials has been permanently marked"]
[]
[null,null,"7\tA warranty from the manufacturer of the laminated safety glass and/or hermetically sealed glazing units guaranteeing the products against delamination and colour degradation for a period of not less than five years"]
[]
[null,null,"All windows and door joints must be sealed to the inside with \"Dow Corning\" or similar approved silicone during manufacturing"]
[]
[null,null,"All dimensions shall be verified on site before commencing the work and a full set of shop drawings showing all relevant details shall be submitted to the Architect for his approval, prior to the manufacture of the units"]
[]
[null,null,"Sizes"]
[]
[null,null,"Where sizes are given these are nominal sizes"]
[]
[null,null,"Ironmongery"]
[]
[null,null,"The tenderer must allow in his pricing for supply and fixing of ALL ironmongery  Heavy duty high quality fittings must be allowed for and samples will be required for approval by the Project Manager"]
[]
[null,null,"ALUMINIUM CASEMENT WINDOWS"]
[]
[null,null,"Powder coated aluminium windows with and including 12 x 12mm solid square aluminium burglar bars fixed to window over opening sashes, 6,38mm clear float safety glass, glazing beads, ironmongery, woolpile weather seals, packing pieces, friction stays, coverstrips and sealing all round on both sides with polysulphide or similar approved sealant:"]
[]
[{"v":8,"d":"8 "},null,"Standard window size 900 x 1200mm high (TP-10)",null,"No",{"v":1,"d":"1 "},null,{"$f":"ROUND($F1257*G1257,2)","v":0}]
[]
[{"v":9,"d":"9 "},null,"Standard window size 2300 x 1200mm high (TP-12)",null,"No",{"v":2,"d":"2 "},null,{"$f":"ROUND($F1259*G1259,2)","v":0}]
[]
[null,null,"STEEL ROLLER SHUTTERS, ETC"]
[]
[null,null,"Natural anodised zincalume roller shutters:"]
[]
[{"v":10,"d":"10 "},null,"Steel security gate approximately 1190mm wide x 2100mm high overall (TP-01)",null,"No",{"v":1,"d":"1 "},null,{"$f":"ROUND($F1265*G1265,2)","v":0}]
[]
[{"v":11,"d":"11 "},null,"Steel security gate approximately 1610mm wide x 2100mm high overall (TP-02)",null,"No",{"v":2,"d":"2 "},null,{"$f":"ROUND($F1267*G1267,2)","v":0}]
[]
[{"v":12,"d":"12 "},null,"Steel security gate approximately 1500mm wide x 2100mm high overall (TP-03)",null,"No",{"v":1,"d":"1 "},null,{"$f":"ROUND($F1269*G1269,2)","v":0}]
[]
[null,null,"BUDGETARY ALLOWANCE"]
[]
[{"v":13,"d":"13 "},null,"Provide a budgetary allowance of Twenty Five Thousand Rand for sundry metalwork to be used as directed by the Principal Agent and to be deducted in whole or in part if not required.",null,"Item",{"v":1,"d":"1 "},null,{"$f":"ROUND($F1273*G1273,2)","v":0}]
[]
[null,null,"SECTION 2"]
[]
[null,null,"BILL NO. 11"]
[]
[null,null,"PLASTERING"]
[]
[null,null,"WORK GROUP ALLOCATION"]
[]
[null,null,"Unless otherwise stated, all items in this Bill will be allocated to Work Group 142 - In situ finishes"]
[]
[null,null,"PREAMBLES"]
[]
[null,null,"The General Preambles for Trades (2017 edition) as published by the Association of South African Quantity Surveyors shall be deemed to be incorporated in these bills of quantities and no claims arising from brevity of description of items fully described in the said General Preambles will be entertained"]
[]
[null,null,"The following \"Supplementary Preambles\" are incorporated in this bill to satisfy the requirements of the project and shall take precedence over the provisions of the said General Preambles"]
[]
[null,null,"SUPPLEMENTARY PREAMBLES"]
[]
[null,null,"Moisture tests:"]
[]
[null,null,"Before any finishes, coverings, etc are applied to screeds, plastering, etc or any other in-situ finish, moisture tests are to be carried out to the  complete satisfaction of the Project Manager to ensure that these surfaces have the correct moisture content for the finish to be applied"]
[]
[null,null,"Labours, etc"]
[]
[null,null,"Labours such as fair, rounded and chamfered edges, trowel cuts, throats, V-joints, angles, etc shall be deemed to be included in the descriptions"]
[]
[null,null,"Sample Panels"]
[]
[null,null,"A sample panel size 1m x1m, of each of the various plaster type wall and floor finishes in this contract, shall be prepared for the approval of the Project Manager and the cost of the sample panel(s) shall be deemed to be included in the overall costs of the relevant wall and floor finishes"]
[]
[null,null,"GRANOLITHIC"]
[]
[null,null,"Method:"]
[]
[null,null,"The method to be used shall be either the monolithic method or the bonded method"]
[]
[null,null,"Preparation:"]
[]
[null,null,"For granolithic applied monolithically, the concrete floor shall be swept clean after bleeding of the concrete has ceased and the slab has begun to stiffen; any remaining bleed water shall be removed and the granolithic applied immediately thereafter. For granolithic to be bonded to the floor slab after it has hardened, the slab surface shall be hacked (preferably by mechanical means) until all laitance, dirt, oil, etc is dislodged and swept clean of all loose matter. The slab shall then be wetted and kept damp for at least six hours before applying the granolithic"]
[]
[null,null,"Mix:"]
[]
[null,null,"Unless otherwise described, granolithic shall attain a compressive strength of at least 41MPa. The coarse aggregate shall comply with SANS 1083 and shall generally be capable of passing a 10mm mesh sieve. Where the thickness of the granolithic exceeds 25mm, the size of the coarse aggregate shall be increased to the maximum size compatible with the thickness of the granolithic"]
[]
[null,null,"Panels:"]
[]
[null,null,"Granolithic shall be laid in panels not exceeding 14m\"² for monolithic finishes, not exceeding 9,5m\"² for bonded finishes and not exceeding 6m\"² for all external granolithic. Wherever possible, panels shall be square but at no time should the length of the panel exceed 1,5 times its width"]
[]
[null,null,"Where possible joints between panels shall be positioned over joints in the floor slab and shall be at least 3mm wide through the full thickness of the finish, separated by strips of wood or fibreboard and finished with V-joints"]
[]
[null,null,"Laying:"]
[]
[null,null,"Monolithic granolithic shall be applied to the partially set slab and thoroughly compacted and lightly wood floated to the required levels"]
[]
[null,null,"Bonded granolithic shall be applied to the slab after applying a 1:1 sand-and-cement slurry brushed over the surface and allowed to partially set before applying the granolithic. The granolithic shall be throughly compacted and lightly wood floated to the required levels"]
[]
[null,null,"After wood floating, the monolithic and bonded granolithic shall remain undisturbed until bleeding has ceased and the surface has stiffened. Any remaining bleed water and laitance shall then be removed and the surface steel trowelled or power floated"]
[]
[null,null,"Curing, seasoning and protection:"]
[]
[null,null,"Granolithic shall be covered with clean hessian with waterproof building foil over and kept wet for at least seven days after laying"]
[]
[null,null,"Colour:"]
[]
[null,null,"Coloured granolithic shall be tinted with an approved colouring pigment mixed into a true and even colour"]
[]
[null,null,"TINTED WHITE CEMENT SCREEDS"]
[]
[null,null,"Tinted screed shall be composed of one bag White Portland Cement or similar approved and two wheelbarrows \"Malmesbury\" or similar approved sand. Surfaces shall be finished with a steel trowel to leave a smooth finish and coated with two coats \"Earthcote S.I. Floorcote\" or similar approved two-pack polyurethane floor sealer applied as per the manufacturer's recommendations"]
[]
[null,null,"NOTE: Tinted screeds are to be strengthened with \"Primal Eccos\" acrylic polymer (15% of the water volume is to be substituted with the acrylic polymer during the mixing process)  Coarse sand is to be used for these screeds  All tinting, finishing, strengthening, etc are to be mixed, applied, etc strictly in accoprdance with the manufacturer's instructions"]
[]
[null,null,"CEMENT PLASTER"]
[]
[null,null,"Unless otherwise described, cement plaster shall be taken to mean Class 1 cement plaster i.e. 1:4 cement:sand plaster (common cement)"]
[]
[null,null,"INTERNAL PLASTER"]
[]
[null,null,"Cement plaster wood floated for tiles, on brickwork:"]
[]
[{"v":1,"d":"1 "},null,"On walls",null,"m²",{"v":24,"d":"24 "},null,{"$f":"ROUND($F1355*G1355,2)","v":0}]
[]
[{"v":2,"d":"2 "},null,"On narrow widths",null,"m²",{"v":3,"d":"3 "},null,{"$f":"ROUND($F1357*G1357,2)","v":0}]
[]
[null,null,"EXTERNAL PLASTER"]
[]
[null,null,"Cement plaster wood floated on brickwork:"]
[]
[{"v":3,"d":"3 "},null,"On walls",null,"m²",{"v":15,"d":"15 "},null,{"$f":"ROUND($F1363*G1363,2)","v":0}]
[]
[{"v":4,"d":"4 "},null,"On narrow widths",null,"m²",{"v":5,"d":"5 "},null,{"$f":"ROUND($F1365*G1365,2)","v":0}]
[]
[null,null,"SECTION 2"]
[]
[null,null,"BILL NO. 12"]
[]
[null,null,"TILING"]
[]
[null,null,"WORK GROUP ALLOCATION"]
[]
[null,null,"Unless otherwise stated, all items in this Bill will be allocated to Work Group 144 - Tiling"]
[]
[null,null,"PREAMBLES"]
[]
[null,null,"The General Preambles for Trades (2017 edition) as published by the Association of South African Quantity Surveyors shall be deemed to be incorporated in these bills of quantities and no claims arising from brevity of description of items fully described in the said General Preambles will be entertained"]
[]
[null,null,"The following \"Supplementary Preambles\" are incorporated in this bill to satisfy the requirements of the project and shall take precedence over the provisions of the said General Preambles"]
[]
[null,null,"SUPPLEMENTARY PREAMBLES"]
[]
[null,null,"Fixing:"]
[]
[null,null,"Unless described as \"fixed with adhesive to plaster (plaster elsewhere)\", descriptions of tiling on brick or concrete walls, columns, etc shall be deemed to include 1:4 cement plaster backing and descriptions of tiling on concrete floors, etc shall be deemed to include 1:3 cement plaster bedding"]
[]
[null,null,"Tiling described as \"fixed with adhesive on power floated concrete\" shall be deemed to include for approved tiling key-coat"]
[]
[null,null,"Ceramic, porcelain, marble and granite tiles are to be fixed and grouted with suitable adhesives and grouts from the \"Tal Goldstar\" or similar approved range of products as recommended by the manufacturer of the tiles"]
[]
[null,null,"Preparatory work to existing painted plastered surfaces:"]
[]
[null,null,"Preparation of all existing painted plastered surfaces is to include for removing all loose and flaking material by wire brushing, thoroughly washing down and allowing to dry completely and applying one coat masonry bonding agent"]
[]
[null,null,"WALL TILING"]
[]
[null,null,"350 x 350mm Ceramic tiles (Allow a Prime Cost Amount of R 250/m2 delivered to site) fixed with adhesive to plaster (plaster elsewhere) and flush pointing with and including waterproof grout:"]
[]
[{"v":1,"d":"1 "},null,"On walls",null,"m²",{"v":408,"d":"408 "},null,{"$f":"ROUND($F1401*G1401,2)","v":0}]
[]
[{"v":2,"d":"2 "},null,"On narrow widths",null,"m²",{"v":19,"d":"19 "},null,{"$f":"ROUND($F1403*G1403,2)","v":0}]
[]
[{"v":3,"d":"3 "},null,"On walls in isolated panels, splashbacks, etc.",null,"m²",{"v":3,"d":"3 "},null,{"$f":"ROUND($F1405*G1405,2)","v":0}]
[]
[null,null,"FLOOR TILING"]
[]
[null,null,"600 x 600mm Porcelain floor tiles (Allow a Prime Cost Amount of R 350/m2 delivered to site) fixed with adhesive to screed (screed elsewhere) and flush pointing with and including waterproof grout:"]
[]
[{"v":4,"d":"4 "},null,"On floors",null,"m²",{"v":191,"d":"191 "},null,{"$f":"ROUND($F1411*G1411,2)","v":0}]
[]
[{"v":5,"d":"5 "},null,"Skirting 100mm high (of fair cut tiles)",null,"m",{"v":128,"d":"128 "},null,{"$f":"ROUND($F1413*G1413,2)","v":0}]
[]
[null,null,"SUNDRIES"]
[]
[null,null,"Stainless steel dividing strips:"]
[]
[{"v":6,"d":"6 "},null,"28 x 10 x 2,5mm L-section dividing strips between tiles",null,"m",{"v":128,"d":"128 "},null,{"$f":"ROUND($F1419*G1419,2)","v":0}]
[]
[null,null,"SECTION 2"]
[]
[null,null,"BILL NO. 13"]
[]
[null,null,"PLUMBING AND DRAINAGE (PROVISIONAL)"]
[]
[null,null,"WORK GROUP ALLOCATION"]
[]
[null,null,"The items in this Bill will be allocated to Work Groups as indicated in brackets at the end of headings or descriptions"]
[]
[null,null,"PREAMBLES"]
[]
[null,null,"The General Preambles for Trades (2017 edition) as published by the Association of South African Quantity Surveyors shall be deemed to be incorporated in these bills of quantities and no claims arising from brevity of description of items fully described in the said General Preambles will be entertained"]
[]
[null,null,"The following \"Supplementary Preambles\" are incorporated in this bill to satisfy the requirements of the project and shall take precedence over the provisions of the said General Preambles"]
[]
[null,null,"SUPPLEMENTARY PREAMBLES"]
[]
[null,null,"Wire gratings:"]
[]
[null,null,"Descriptions of gutter outlets, etc shall be deemed to include wire balloon gratings"]
[]
[null,null,"Stormwater channels:"]
[]
[null,null,"Descriptions of channels shall be deemed to include necessary excavation, surface preparation, compaction, etc and disposal of surplus material on site"]
[]
[null,null,"French drains:"]
[]
[null,null,"Descriptions of french drains shall be deemed to include excavation, stone filling graded from 300mm diameter at bottom to 75mm diameter at top, approved geofabric filter blanket over stone, 300mm earthfilling over and disposal of surplus material on site"]
[]
[null,null,"Septic tanks:"]
[]
[null,null,"Descriptions of proprietary type septic tanks shall be deemed to include excavation, bedding and jointing, concrete base slabs, jointing to drains and backfilling, compaction, etc all in accordance with the manufacturer's instructions and disposal of surplus material on site"]
[]
[null,null,"Stainless steel basins, sinks, wash troughs, urinals, etc:"]
[]
[null,null,"Stainless steel for economy basins, domestic sinks and worktops shall be Type 430 (17/0)  Stainless steel for urinals, basins, quality sinks, wash troughs, institutional equipment, etc shall be Type 304 (18/8)  Stainless steel for laboratory sinks, photographic equipment, etc shall be Type 316 (18/8)  Units shall have standard aprons on all exposed edges and tiling keys against walls where applicable"]
[]
[null,null,"Sealing of edges:"]
[]
[null,null,"Outer edges of sinks, basins, baths, urinals, etc are to be sealed against adjacent surfaces with approved mildew resistant silicone sealant and prices must include therefor"]
[]
[null,null,"uPVC pipes and fittings:"]
[]
[null,null,"Sewer and drainage pipes and fittings shall be jointed and sealed with butyl rubber rings  Soil, waste and vent pipes and fittings shall be solvent weld jointed or sealed with butyl rubber rings"]
[]
[null,null,"uPVC pressure pipes and fittings:"]
[]
[null,null,"Pipes of 50mm diameter and smaller shall be plain ended with solvent welded uPVC loose sockets and fittings  Pipes of 63mm diameter and greater shall have sockets and spigots with push-in type integral rubber ring joints.  Bends shall be uPVC and all other fittings shall be cast iron, all with similar push-in type joints"]
[]
[null,null,"High density polyethylene (HDPe) pipes and fittings:"]
[]
[null,null,"Pipes shall be type IV and of the class specified with \"Plasson\" or \"Alprene\" ot similar approved compression fittings"]
[]
[null,null,"Polycop polypropylene pipes:"]
[]
[null,null,"Polypropylene pipes 54mm diameter and smaller shall be seamless copper coloured Class 16 pipes jointed with \"Fast-fuse\" heat welded thermoplastic or where so described \"Polylock\" or similar approved compression fittings  Pipes shall be firmly fixed to walls, etc with coloured nylon snap-in pipe clips with provision for accommodating thermal movement and jointed and fixed strictly in accordance with the manufacturer's instructions"]
[]
[null,null,"Copper pipes:"]
[]
[null,null,"Pipes shall be hard drawn and half-hard \"Maksal\" or similar approved pipes of the class described.  Class 0 (thin walled hard drawn) pipes shall not be bent.  Class 1 (thin walled half-hard), Class 2 (half-hard) and Class 3 (heavy walled half-hard) pipes shall only be bent with benders with inner and outer formers.  Fittings to copper waste, vent and anti-syphon pipes, capillary solder fittings and compression fittings shall be \"Cobra Watertech\" or similar approved type.  Capillary solder fittings shall comply with ISO 2016. Only compression fittings shall be used in walls or in ground"]
[]
[null,null,"Copper pipes are to be installed in accordance with the latest revision of the Code of Practice for Copper Plumbing soldering techniques.  Flux, solder, etc to be strictly in accordance with the manufacturer's requirements with special attention to copper flux composition"]
[]
[null,null,"Reducing fittings:"]
[]
[null,null,"Where fittings have reducing ends or branches they are described as \"reducing\". In the case of pipes with diameters not exceeding 60mm, only the largest end or branch size is given. Should the Contractor wish to use other fittings and bushes or reducers he may do so on the understanding that no claim in this regard will be entertained. In the case of pipes with diameters exceeding 60mm, all sizes are given and no claims for extra bushes, reducers, etc will be entertained"]
[]
[null,null,"Fixing of pipes:"]
[]
[null,null,"Unless specifically otherwise stated, descriptions of pipes shall be deemed to include fixing to walls, etc casting in, building in or suspending not exceeding 1m below suspension level"]
[]
[null,null,"Paper wrapping to pipes:"]
[]
[null,null,"Pipes chased into brickwork must be wrapped with two layers of stout brown paper tied with wire.  Rates are to include for wrapping around joints and fittings"]
[]
[null,null,"Disinfection of water pipework:"]
[]
[null,null,"Water pipework is to be disinfected at completion in accordance with SANS 1200L (provision for disinfection elsewhere)"]
[]
[null,null,"\"Densyl\" or similar approved petrolatum anti-corrosion tape"]
[]
[null,null,"Pipes to be taped shall be coated with the appropriate primer and the tape shall be applied in the appropriate widths and with suitable overlaps  Couplings and fittings to pipes shall be taped in strict accordance with the manufacturer's instructions including mastic, tape, \"Layflat\" or similar approved sheeting, securing of same, etc"]
[]
[null,null,"Prices for wrapping of pipes shall include for all work as described to couplings in the length"]
[]
[null,null,"Laying, backfilling, bedding, etc of pipes:"]
[]
[null,null,"Pipes shall be laid and bedded in accordance with manufacturers' instructions and trenches shall be carefully backfilled"]
[]
[null,null,"Where no manufacturers' instructions exist, pipes shall be laid in accordance with Clauses 5.1 and 5.2 of each of the following: SANS 1200L\t: Medium-pressure pipelines SANS 1200LD\t: Sewers SANS 1200LE\t: Stormwater drainage Pipe trenches, etc shall be backfilled in accordance with Clauses 3, 5.5, 5.6, 5.7 and 7 of SANS 1200DB : Earthworks (Pipe trenches)Pipes shall be bedded in accordance with Clauses 3.1 to 3.4.1, 5.1 to 5.3 and 7 of SANS 1200LB : Bedding (Pipes)Unless otherwise described, bedding of rigid pipes shall be Class B bedding"]
[]
[null,null,"General:"]
[]
[null,null,"Descriptions of cast iron roof outlets shall be deemed to include joints to pipes and casting into concrete (adaptors for joints to PVC pipes, etc are given separately)  Descriptions of overflow pipes where measured in number, shall be deemed to include joints to cisterns and splay cut ends"]
[]
[null,null,"Descriptions of pipes laid in and including trenches and of inspection chambers, catchpits, etc shall be deemed to include excavation, bedding, backfilling, compaction to a minimum of 98% Mod AASHTO density and disposal of surplus material on site"]
[]
[null,null,"Descriptions of service pipes and flexible connecting pipes shall be deemed to include connections to taps, cisterns, etc and to steel pipes (adaptors for connections to copper pipes, etc are given separately)"]
[]
[null,null,"Descriptions of WC pans, slop hoppers, etc shall be deemed to include for joints to soil pipes (pan connectors are separately measured) and shall have straight or side outlets and \"P\" or \"S\" traps as necessary"]
[]
[null,null,"Description of waste unions shall be deemed to include rubber or vulcanite plugs and chains fixed to fittings."]
[]
[null,null,"As-built drawings:"]
[]
[null,null,"Where required, the Contractor shall prepare an updated set of as-built drawings.  At completion of the contract the Contractor shall hand these drawings to the Project Manager for reproducing onto the originals for handing over to the Employer (provision for allowance of as-built drawings elsewhere)"]
[]
[null,null,"Proprietary items:"]
[]
[null,null,"Where applicable, the manufacturers' names or product catalogue titles are given in sub-headings preceding the itemsNote that the manufacturers names specified in this trade are for the purposes of competitive pricing. Prices are to be based on the specific products/articles specified.On request, returnable samples are to be provided to the Project Manager for consideration"]
[]
[null,null,"- - - - - - - - - - - - - - - - - - - - - - - - -"]
[]
[null,null,"SANITARY FITTINGS (WORK GROUP 148)"]
[]
[null,null,"\"Franke\" or similar approved stainless steel:"]
[]
[{"v":1,"d":"1 "},null,"1050 x 535mm \"Trendline 711 Code: 1030006\" sink with 350 x 460mm end bowl, on cupboard (cupboard elsewhere)",null,"No",{"v":1,"d":"1 "},null,{"$f":"ROUND($F1539*G1539,2)","v":0}]
[]
[null,null,"\"Vaal\" or similar approved:"]
[]
[{"v":2,"d":"2 "},null,"455 x 290mm \"Hibiscus\" 7050 wash hand basin bolted to wall",null,"No",{"v":4,"d":"4 "},null,{"$f":"ROUND($F1543*G1543,2)","v":0}]
[]
[{"v":3,"d":"3 "},null,"\"Hibiscus\" 772402 close-coupled WC suite comprising pan with double flap heavy duty thermoset seat (Code: 8531Z0) and matching 9 litre cistern",null,"No",{"v":4,"d":"4 "},null,{"$f":"ROUND($F1545*G1545,2)","v":0}]
[]
[null,null,"WASTE UNIONS, ETC"]
[]
[null,null,"\"Cobra Watertech\" or similar approved:"]
[]
[{"v":4,"d":"4 "},null,"40mm Code 317 CP basin waste union and code 309CP anti-theft plug",null,"No",{"v":4,"d":"4 "},null,{"$f":"ROUND($F1551*G1551,2)","v":0}]
[]
[null,null,"TRAPS, ETC"]
[]
[null,null,"uPVC:"]
[]
[{"v":5,"d":"5 "},null,"40mm \"P\" or \"S\" trap",null,"No",{"v":4,"d":"4 "},null,{"$f":"ROUND($F1557*G1557,2)","v":0}]
[]
[null,null,"TAPS, VALVES, ETC"]
[]
[null,null,"\"Cobra Watertech\" or similar approved:"]
[]
[{"v":6,"d":"6 "},null,"15mm Code1065-15CP fullway isolating ball valve",null,"No",{"v":4,"d":"4 "},null,{"$f":"ROUND($F1563*G1563,2)","v":0}]
[]
[{"v":7,"d":"7 "},null,"15mm Code 902CP \"Focus\" basin mixer with waste union, etc and angle flow regulating valves",null,"No",{"v":4,"d":"4 "},null,{"$f":"ROUND($F1565*G1565,2)","v":0}]
[]
[null,null,"AS-BUILT DRAWINGS"]
[]
[{"v":8,"d":"8 "},null,"Provision of as-built drawings",null,"Item",{"v":1,"d":"1 "},null,{"$f":"ROUND($F1569*G1569,2)","v":0}]
[]
[null,null,"BUDGETARY ALLOWANCE"]
[]
[{"v":9,"d":"9 "},null,"Provide a budgetary allowance of Fifty Thousand Rand for sundry plumbing works to be used as directed by the Principal Agent and to be deducted in whole or in part if not required.",null,"Item",{"v":1,"d":"1 "},null,{"$f":"ROUND($F1573*G1573,2)","v":0}]
[]
[null,null,"SECTION 2"]
[]
[null,null,"BILL NO. 14"]
[]
[null,null,"GLAZING"]
[]
[null,null,"WORK GROUP ALLOCATION"]
[]
[null,null,"Unless otherwise stated, all items in this Bill will be allocated to Work Group 150 - Glazing"]
[]
[null,null,"PREAMBLES"]
[]
[null,null,"The General Preambles for Trades (2017 edition) as published by the Association of South African Quantity Surveyors shall be deemed to be incorporated in these bills of quantities and no claims arising from brevity of description of items fully described in the said General Preambles will be entertained"]
[]
[null,null,"The following \"Supplementary Preambles\" are incorporated in this bill to satisfy the requirements of the project and shall take precedence over the provisions of the said General Preambles"]
[]
[null,null,"SUPPLEMENTARY PREAMBLES"]
[]
[null,null,"Float glass:"]
[]
[null,null,"The term \"float glass\" is used for monolithic annealed glass"]
[]
[null,null,"Laminated glass:"]
[]
[null,null,"Laminated glass to have polyvinyl butyral (PVB) interlayer(s)"]
[]
[null,null,"GLAZING TO STEEL WITH PUTTY"]
[]
[null,null,"6,38mm Normal strength (NS) clear laminated safety glass:"]
[]
[{"v":1,"d":"1 "},null,"Panes exceeding 0,5m2 and not exceeding 2,0m2",null,"m²",{"v":4,"d":"4 "},null,{"$f":"ROUND($F1605*G1605,2)","v":0}]
[]
[null,null,"33mm Bulletproof glass (SANS 10400):"]
[]
[{"v":2,"d":"2 "},null,"Panes exceeding 0,1m2 and not exceeding 0,5m2",null,"m²",{"v":1,"d":"1 "},null,{"$f":"ROUND($F1609*G1609,2)","v":0}]
[]
[null,null,"TOPS, SHELVES, DOORS, MIRRORS, ETC"]
[]
[null,null,"4mm Silvered float glass copper backed mirrors with 10mm bevelled and polished edges fixed with double sided adhesive tape:"]
[]
[{"v":3,"d":"3 "},null,"Mirror 600 x 1200mm high",null,"No",{"v":12,"d":"12 "},null,{"$f":"ROUND($F1615*G1615,2)","v":0}]
[]
[null,null,"SECTION 2"]
[]
[null,null,"BILL NO. 15"]
[]
[null,null,"PAINTWORK"]
[]
[null,null,"WORK GROUP ALLOCATION"]
[]
[null,null,"Unless otherwise stated, all items in this Bill will be allocated to Work Group 152 - Painting"]
[]
[null,null,"PREAMBLES"]
[]
[null,null,"The General Preambles for Trades (2017 edition) as published by the Association of South African Quantity Surveyors shall be deemed to be incorporated in these bills of quantities and no claims arising from brevity of description of items fully described in the said General Preambles will be entertained"]
[]
[null,null,"The following \"Supplementary Preambles\" are incorporated in this bill to satisfy the requirements of the project and shall take precedence over the provisions of the said General Preambles"]
[]
[null,null,"SUPPLEMENTARY PREAMBLES"]
[]
[null,null,"PREPARATORY WORK TO EXISTING WORK"]
[]
[null,null,"Previously painted plastered surfaces:"]
[]
[null,null,"Surfaces shall be thoroughly washed down and allowed to dry completely before any paint is applied. Blistered or peeling paint shall be completely removed and minor cracks shall be opened, filled with a suitable filler and finished smooth"]
[]
[null,null,"Previously painted metal surfaces:"]
[]
[null,null,"Surfaces shall be thoroughly rubbed and cleaned down.  Blistered or peeling paint shall be completely removed down to bare metal"]
[]
[null,null,"Previously painted wood surfaces:"]
[]
[null,null,"Surfaces shall be thoroughly cleaned down.  Blistered or peeling paint shall be completely removed and cracks and crevices shall be primed, filled with suitable filler and finished smooth"]
[]
[null,null,"PAINT SPECIFICATIONS"]
[]
[null,null,"All painting shall be done in accordance with \"Plascon\" or similar approved, etc specifications, unless otherwise described"]
[]
[null,null,"COLOURS"]
[]
[null,null,"When staining timber, the resultant colour or shade must be to the complete satisfaction of the Project Manager before any overcoating or preservative is applied  Paintwork is classified in the following different colour groups: \"White\", \"Pastel\", \"Deep\" and \"Transparent\" in accordance with the \"Natural Colour System\" (NCS) adopted by the SA National Standards Unless otherwise described, all paintwork shall be deemed to be classified in the \"White\" colour group"]
[]
[null,null,"PAINTWORK, ETC TO PREVIOUSLY PAINTED WORK"]
[]
[null,null,"ON EXTERNAL FLOATED PLASTER SURFACES"]
[]
[null,null,"One coat alkali resistant plaster primer and two coats PVA acrylic emulsion paint on"]
[]
[{"v":1,"d":"1 "},null,"Walls",null,"m²",{"v":478,"d":"478 "},null,{"$f":"ROUND($F1663*G1663,2)","v":0}]
[]
[null,null,"ON INTERNAL FLOATED PLASTER SURFACES"]
[]
[null,null,"One coat superior quality acrylic emulsion paint for interior and exterior use, on work in sound condition:"]
[]
[{"v":2,"d":"2 "},null,"Walls",null,"m²",{"v":705,"d":"705 "},null,{"$f":"ROUND($F1669*G1669,2)","v":0}]
[]
[null,null,"ON FIBRE-CEMENT BOARD SURFACES"]
[]
[null,null,"One coat alkali resistant primer and two coats superior quality acrylic emulsion paint for interior and exterior use, on:"]
[]
[{"v":3,"d":"3 "},null,"Ceilings and cornices, including priming metal cover strips and nailheads",null,"m²",{"v":195,"d":"195 "},null,{"$f":"ROUND($F1675*G1675,2)","v":0}]
[]
[null,null,"METAL SURFACES WITH"]
[]
[null,null,"One coat alkyd based zinc phosphate primer and two coats premium quality polyurethane enamel paint, on steel:"]
[]
[{"v":4,"d":"4 "},null,"Doors",null,"m²",{"v":5,"d":"5 "},null,{"$f":"ROUND($F1681*G1681,2)","v":0}]
[]
[{"v":5,"d":"5 "},null,"Windows with burglar bars",null,"m²",{"v":31,"d":"31 "},null,{"$f":"ROUND($F1683*G1683,2)","v":0}]
[]
[null,null,"ON WOOD SURFACES"]
[]
[null,null,"One coat primer, one coat alkyd based universal undercoat and two coats superior quality universal enamel paint, on:"]
[]
[{"v":6,"d":"6 "},null,"Doors",null,"m²",{"v":37,"d":"37 "},null,{"$f":"ROUND($F1689*G1689,2)","v":0}]
[]
[{"v":7,"d":"7 "},null,"Skirtings, rails, etc. not exceeding 300mm girth",null,"m",{"v":181,"d":"181 "},null,{"$f":"ROUND($F1691*G1691,2)","v":0}]
[]
[{"v":1,"d":"1 "},null,"Alterations",{"$nulls":4},{"$f":"SUM(H461:H612)","v":0}]
[]
[{"v":2,"d":"2 "},null,"Masonry",{"$nulls":4},{"$f":"SUM(H625:H728)","v":0}]
[]
[{"v":3,"d":"3 "},null,"Waterproofing",{"$nulls":4},{"$f":"SUM(H742:H756)","v":0}]
[]
[{"v":4,"d":"4 "},null,"Roof Coverings",{"$nulls":4},{"$f":"SUM(H765:H803)","v":0}]
[]
[{"v":5,"d":"5 "},null,"Carpentry and Joinery",{"$nulls":4},{"$f":"SUM(H806:H891)","v":0}]
[]
[{"v":6,"d":"6 "},null,"Ceilings, Partitions and Access Flooring",{"$nulls":4},{"$f":"SUM(H897:H954)","v":0}]
[]
[{"v":7,"d":"7 "},null,"Floor Coverings",{"$nulls":4},{"$f":"SUM(H977:H996)","v":0}]
[]
[{"v":8,"d":"8 "},null,"Ironmongery",{"$nulls":4},{"$f":"SUM(H1004:H1094)","v":0}]
[]
[{"v":9,"d":"9 "},null,"Structural Steelwork",{"$nulls":4},{"$f":"SUM(H1097:H1149)","v":0}]
[]
[{"v":10,"d":"10 "},null,"Metalwork",{"$nulls":4},{"$f":"SUM(H1159:H1274)","v":0}]
[]
[{"v":11,"d":"11 "},null,"Plastering",{"$nulls":4},{"$f":"SUM(H1283:H1366)","v":0}]
[]
[{"v":12,"d":"12 "},null,"Tiling",{"$nulls":4},{"$f":"SUM(H1395:H1420)","v":0}]
[]
[{"v":13,"d":"13 "},null,"Plumbing and Drainage",{"$nulls":4},{"$f":"SUM(H1519:H1574)","v":0}]
[]
[{"v":14,"d":"14 "},null,"Glazing",{"$nulls":4},{"$f":"SUM(H1585:H1616)","v":0}]
[]
[{"v":15,"d":"15 "},null,"Paintwork",{"$nulls":4},{"$f":"SUM(H1659:H1692)","v":0}]
[]
[null,null,"SECTION 3"]
[]
[null,null,"BILL NO. 1"]
[]
[null,null,"EXTERNAL WORK (PROVISIONAL)"]
[]
[null,null,"(ALL TRADES)"]
[]
[null,null,"WORK GROUP ALLOCATION"]
[]
[null,null,"The items in this Bill will be allocated to Work Groups as indicated in brackets at the end of headings or descriptions"]
[]
[null,null,"PREAMBLES"]
[]
[null,null,"The Model Preambles for Trades (2008 edition) as published by the Association of South African Quantity Surveyors shall be deemed to be incorporated in these bills of quantities and no claims arising from brevity of description of items fully described in the said General Preambles will be entertained"]
[]
[null,null,"The following \"Supplementary Preambles\" are incorporated in this bill to satisfy the requirements of the project and shall take precedence over the provisions of the said General Preambles"]
[]
[null,null,"SUPPLEMENTARY PREAMBLES"]
[]
[null,null,"Nature of ground:"]
[]
[null,null,"The nature of the ground is assumed to be loose sandy material, therefore \"earth\", but possibly interspersed with \"soft rock\" or \"hard rock\""]
[]
[null,null,"The nature of the ground is assumed to be gravel, therefore \"earth\", but possibly interspersed with \"soft rock\" or \"hard rock\""]
[]
[null,null,"The nature of the ground is assumed to be silty clay with loose river boulders varying in size up to approximately 450mm diameter, all of which will be deemed as \"earth\", but possibly interspersed with \"hard rock\""]
[]
[null,null,"Trial holes indicate that the nature of the ground is silty clay to a depth of approximately 500mm with fine to medium loose sandy material below, therefore \"earth\""]
[]
[null,null,"A soils investigation has been carried out on the site by the Engineer and the report is annexed to these bills of quantities.  The soils report indicates that the ground varies between transported soils at surface comprising gravel layers of varying  thickness and interspersed with clay, and weathered shales varying from very soft rock to medium hard rock consistency, all of which will be deemed as \"earth\". All very hard unweathered shale, ironstone, etc the removal of which necessitates the use of explosives or heavy duty hydraulic percussion hammers (peckers), will be classified as \"hard rock\""]
[]
[null,null,"Should the Contractor encounter any \"soft\" or \"hard\" rock in the excavations, he shall immediately notify the Engineer who shall be the sole arbiter as to what constitutes \"soft\" or \"hard\" rock for final account purposes"]
[]
[null,null,"Subterranean water:"]
[]
[null,null,"No subterranean water is expected"]
[]
[null,null,"Excavation for working space in rock:"]
[]
[null,null,"Notwithstanding clause 11 of the Standard System of Measuring Building Work, excavation for working space in rock will be measured in cubic metres to the extent executed and given as \"extra over\" bulk excavation or trench and hole excavation as the case may be"]
[]
[null,null,"Carting away of excavated material:"]
[]
[null,null,"Descriptions of carting away of excavated material shall be deemed to include loading excavated material onto trucks directly from the excavations or, alternatively, from stock piles situated on the building site"]
[]
[null,null,"Filling:"]
[]
[null,null,"Notwithstanding the reference to prescribed multiple handling in Clause 1 of the Standard System of Measuring Building Work, prices for filling and backfilling shall include for all selection and any necessary multiple handling of material"]
[]
[null,null,"Testing:"]
[]
[null,null,"Prices for backfilling to trenches and holes only are to include for all necessary density tests in accordance with SANS 1200D"]
[]
[null,null,"Maintenance period:"]
[]
[null,null,"The maintenance period to civil works such as roads, parking and related earthworks shall be twelve calender months"]
[]
[null,null,"DEMOLITIONS, ETC (WORK GROUP 104)"]
[]
[null,null,"Breaking up and removing:"]
[]
[{"v":1,"d":"1 "},null,"Existing tar surfaces and replace with 30mm tar (Tar measured elsewhere)",null,"m²",{"v":160,"d":"160 "},null,{"$f":"ROUND($F1785*G1785,2)","v":0}]
[]
[null,null,"Taking down and removing:"]
[]
[{"v":2,"d":"2 "},null,"2100mm High precast concrete panel fence",null,"m",{"v":50,"d":"50 "},null,{"$f":"ROUND($F1789*G1789,2)","v":0}]
[]
[null,null,"SITE CLEARANCE, ETC (WORK GROUP 104)"]
[]
[null,null,"Site clearance:"]
[]
[{"v":3,"d":"3 "},null,"Stripping average 150mm thick layer of top soil and depositing material in prescribed stock piles on site",null,"m²",{"v":160,"d":"160 "},null,{"$f":"ROUND($F1795*G1795,2)","v":0}]
[]
[null,null,"ROADS, PAVINGS, ETC."]
[]
[null,null,"ROADWORK"]
[]
[null,null,"Site clearance"]
[]
[{"v":4,"d":"4 "},null,"Digging up and removing rubbish, debris, vegetation, hedges, shrubs and trees not exceeding 200mm girth, bush, etc.",null,"m²",{"v":160,"d":"160 "},null,{"$f":"ROUND($F1803*G1803,2)","v":0}]
[]
[null,null,"Excavation not exceeding 2m deep"]
[]
[{"v":5,"d":"5 "},null,"Over site between buildings, retaining walls, etc. to reduce levels and depositing excavated material in prescribed stock piles on site",null,"m³",{"v":53,"d":"53 "},null,{"$f":"ROUND($F1807*G1807,2)","v":0}]
[]
[null,null,"Extra over bulk excavation in earth for excavation in"]
[]
[{"v":6,"d":"6 "},null,"Soft rock",null,"m³",{"v":5,"d":"5 "},null,{"$f":"ROUND($F1811*G1811,2)","v":0}]
[]
[{"v":7,"d":"7 "},null,"Hard rock",null,"m³",{"v":3,"d":"3 "},null,{"$f":"ROUND($F1813*G1813,2)","v":0}]
[]
[null,null,"Extra over bulk excavation in earth for breaking up and removing"]
[]
[{"v":8,"d":"8 "},null,"30mm Asphalt",null,"m³",{"v":5,"d":"5 "},null,{"$f":"ROUND($F1817*G1817,2)","v":0}]
[]
[null,null,"Extra over all excavations for carting away"]
[]
[{"v":9,"d":"9 "},null,"Surplus material from stock piles on site to a dumping site to be located by the contractor",null,"m³",{"v":53,"d":"53 "},null,{"$f":"ROUND($F1821*G1821,2)","v":0}]
[]
[null,null,"Keeping excavations free of water"]
[]
[{"v":10,"d":"10 "},null,"Keeping excavations free of all water other than subterranean water",null,"Item",{"v":1,"d":"1 "},null,{"$f":"ROUND($F1825*G1825,2)","v":0}]
[]
[null,null,"Earth filling supplied by the contractor under pavings etc"]
[]
[{"v":11,"d":"11 "},null,"Over site of G7 material in accordance with SABS 1200 DM compacted to 93% Mod AASHTO density",null,"m³",{"v":24,"d":"24 "},null,{"$f":"ROUND($F1829*G1829,2)","v":0}]
[]
[{"v":12,"d":"12 "},null,"Over site of G5 material in accordance with SABS 1200 DM compacted to 95% Mod AASHTO density",null,"m³",{"v":24,"d":"24 "},null,{"$f":"ROUND($F1831*G1831,2)","v":0}]
[]
[null,null,"Compaction of surfaces"]
[]
[{"v":13,"d":"13 "},null,"Compaction of ground surface under roads, pavings, etc. including scarifying for a depth of ?mm, breaking down oversize material, adding suitable material where necessary and compacting to 95% Mod AASHTO density",null,"m²",{"v":160,"d":"160 "},null,{"$f":"ROUND($F1835*G1835,2)","v":0}]
[]
[null,null,"Prescribed density tests on filling"]
[]
[{"v":14,"d":"14 "},null,"In-situ dry density (sand replacement) test in accordance with method A10 (a) of TMH 1",null,"No",{"v":8,"d":"8 "},null,{"$f":"ROUND($F1839*G1839,2)","v":0}]
[]
[{"v":15,"d":"15 "},null,"Maximum dry density and optimum moisture content test in accordance with method A7 of TMH 1",null,"No",{"v":8,"d":"8 "},null,{"$f":"ROUND($F1841*G1841,2)","v":0}]
[]
[null,null,"Bituminous premix road surfacing:"]
[]
[{"v":16,"d":"16 "},null,"35mm Thick paving to parking areas, roadways, etc. including bitumen spray to base course",null,"m²",{"v":160,"d":"160 "},null,{"$f":"ROUND($F1845*G1845,2)","v":0}]
[]
[null,null,"Bituminous surface treatment with aggregate and slurry seal 13.2mm  aggregate"]
[]
[{"v":17,"d":"17 "},null,"Bitumen rubber binder in the tack coat and 60%net bitumen emulsion in the penetration spray",null,"m²",{"v":160,"d":"160 "},null,{"$f":"ROUND($F1849*G1849,2)","v":0}]
[]
[null,null,"Variations in quantities of prime and bituminous binders"]
[]
[{"v":18,"d":"18 "},null,"RTH 3/12P or RTL 3/12P tar prime",null,"LITRE",{"v":147,"d":"147 "},null,{"$f":"ROUND($F1853*G1853,2)","v":0}]
[]
[null,null,"Paintwork:"]
[]
[null,null,"Prepare and apply one coat white reflective road marking paint on bituminous road surfacing, precast concrete paving blocks, etc:"]
[]
[{"v":19,"d":"19 "},null,"100mm Wide line",null,"m",{"v":527,"d":"527 "},null,{"$f":"ROUND($F1859*G1859,2)","v":0}]
[]
[null,null,"FENCING  (WORK GROUP 136)"]
[]
[null,null,"Precast concrete fencing"]
[]
[{"v":20,"d":"20 "},null,"Precast concrete palisade fencing 2.40m high",null,"m",{"v":50,"d":"50 "},null,{"$f":"ROUND($F1865*G1865,2)","v":0}]
[]
[null,null,"New gates:"]
[]
[{"v":21,"d":"21 "},null,"Double leaf Sliding Gate 6.2 x 1.8m to suit palisade fence",null,"No",{"v":1,"d":"1 "},null,{"$f":"ROUND($F1869*G1869,2)","v":0}]
[]
[null,null,"BUDGETARY ALLOWANCE"]
[]
[{"v":22,"d":"22 "},null,"Provide a budgetary allowance of Twenty Five Thousand Rand for sundry external works to be used as directed by the Principal Agent and to be deducted in whole or in part if not required.",null,"Item",{"v":1,"d":"1 "},null,{"$f":"ROUND($F1873*G1873,2)","v":0}]
[]
[null,null,"SECTION 3"]
[]
[null,null,"BILL NO. 2"]
[]
[null,null,"SITE SERVICES (PROVISIONAL)"]
[]
[null,null,"WORK GROUP ALLOCATION"]
[]
[null,null,"The items in this Bill will be allocated to Work Groups as indicated in brackets at the end of headings or descriptions"]
[]
[null,null,"PREAMBLES"]
[]
[null,null,"The Model Preambles for Trades (2008 edition) as published by the Association of South African Quantity Surveyors shall be deemed to be incorporated in these bills of quantities and no claims arising from brevity of description of items fully described in the said General Preambles will be entertained"]
[]
[null,null,"The following \"Supplementary Preambles\" are incorporated in this bill to satisfy the requirements of the project and shall take precedence over the provisions of the said General Preambles"]
[]
[null,null,"SUPPLEMENTARY PREAMBLES"]
[]
[null,null,"Stormwater channels:"]
[]
[null,null,"Descriptions of channels shall be deemed to include necessary excavation, surface preparation, compaction, etc and disposal of surplus material on site"]
[]
[null,null,"French drains:"]
[]
[null,null,"Descriptions of french drains shall be deemed to include excavation, stone filling graded from 300mm diameter at bottom to 75mm diameter at top, approved geofabric filter blanket over stone, 300mm earthfilling over and disposal of surplus material on site"]
[]
[null,null,"Septic tanks:"]
[]
[null,null,"Descriptions of proprietary type septic tanks shall be deemed to include excavation, bedding and jointing, concrete base slabs, jointing to drains and backfilling, compaction, etc all in accordance with the manufacturer's instructions and disposal of surplus material on site"]
[]
[null,null,"uPVC pipes and fittings:"]
[]
[null,null,"Sewer and drainage pipes and fittings shall be jointed and sealed with butyl rubber rings  Soil, waste and vent pipes and fittings shall be solvent weld jointed or sealed with butyl rubber rings"]
[]
[null,null,"uPVC pressure pipes and fittings:"]
[]
[null,null,"Pipes of 50mm diameter and smaller shall be plain ended with solvent welded uPVC loose sockets and fittings  Pipes of 63mm diameter and greater shall have sockets and spigots with push-in type integral rubber ring joints.  Bends shall be uPVC and all other fittings shall be cast iron, all with similar push-in type joints"]
[]
[null,null,"High density polyethylene (HDPe) pipes and fittings:"]
[]
[null,null,"Pipes shall be type IV and of the class specified with \"Plasson\" or \"Alprene\" or similar approved compression fittings"]
[]
[null,null,"Polycop polypropylene pipes:"]
[]
[null,null,"Polypropylene pipes 54mm diameter and smaller shall be seamless copper coloured Class 16 pipes jointed with \"Fast-fuse\" heat welded thermoplastic or where so described \"Polylock\" or similar approved compression fittings  Pipes shall be firmly fixed to walls, etc with coloured nylon snap-in pipe clips with provision for accommodating thermal movement and jointed and fixed strictly in accordance with the manufacturer's instructions"]
[]
[null,null,"Copper pipes:"]
[]
[null,null,"Pipes shall be hard drawn and half-hard \"Maksal\" or similar approved pipes of the class described.  Class 0 (thin walled hard drawn) pipes shall not be bent.  Class 1 (thin walled half-hard), Class 2 (half-hard) and Class 3 (heavy walled half-hard) pipes shall only be bent with benders with inner and outer formers.  Fittings to copper waste, vent and anti-syphon pipes, capillary solder fittings and compression fittings shall be \"Cobra Watertech\" or similar approved type.  Capillary solder fittings shall comply with ISO 2016"]
[]
[null,null,"Copper pipes are to be installed in accordance with the latest revision of the Code of Practice for Copper Plumbing soldering techniques.  Flux, solder, etc to be strictly in accordance with the manufacturer's requirements with special attention to copper flux composition"]
[]
[null,null,"Reducing fittings:"]
[]
[null,null,"Where fittings have reducing ends or branches they are described as \"reducing\". In the case of pipes with diameters not exceeding 60mm, only the largest end or branch size is given. Should the Contractor wish to use other fittings and bushes or reducers he may do so on the understanding that no claim in this regard will be entertained. In the case of pipes with diameters exceeding 60mm, all sizes are given and no claim for extra bushes, reducers, etc will be entertained"]
[]
[null,null,"Disinfection of water pipework:"]
[]
[null,null,"Water pipework is to be disinfected at completion in accordance with SABS 1200L (provision for disinfection elsewhere)"]
[]
[null,null,"\"Densyl\" or similar approved petrolatum anti-corrosion tape"]
[]
[null,null,"Pipes to be taped shall be coated with the appropriate primer and the tape shall be applied in the appropriate widths and with suitable overlaps  Couplings and fittings to pipes shall be taped in strict accordance with the manufacturer's instructions including mastic, tape, \"Layflat\" or similar approved sheeting, securing of same, etc"]
[]
[null,null,"Prices for wrapping of pipes shall include for all work as described to couplings in the length"]
[]
[null,null,"Laying, backfilling, bedding, etc of pipes:"]
[]
[null,null,"Pipes shall be laid and bedded in accordance with manufacturers' instructions and trenches shall be carefully backfilled"]
[]
[null,null,"Where no manufacturers' instructions exist, pipes shall be laid in accordance with Clauses 5.1 and 5.2 of each of the following: SABS 1200L\t: Medium-pressure pipelines SABS 1200LD\t: Sewers SABS 1200LE\t: Stormwater drainage Pipe trenches, etc shall be backfilled in accordance with Clauses 3, 5.5, 5.6, 5.7 and 7 of SABS 1200DB : Earthworks (Pipe trenches)Pipes shall be bedded in accordance with Clauses 3.1 to 3.4.1, 5.1 to 5.3 and 7 of SABS 1200LB : Bedding (Pipes)Unless otherwise described, bedding of rigid pipes shall be Class B bedding"]
[]
[null,null,"General:"]
[]
[null,null,"Descriptions of pipes laid in and including trenches and of inspection chambers, catchpits, etc shall be deemed to include excavation, bedding, backfilling, compaction to a minimum of 98% Mod AASHTO density and disposal of surplus material on site"]
[]
[null,null,"Descriptions of service pipes and flexible connecting pipes shall be deemed to include connections to taps, cisterns, etc and to steel pipes (adaptors for connections to copper pipes, etc are given separately)"]
[]
[null,null,"As-built drawings:"]
[]
[null,null,"Where required, the Contractor shall prepare an updated set of as-built drawings.  At completion of the contract the Contractor shall hand these drawings to the Project Manager for reproducing onto the originals for handing over to the Employer (provision for allowance of as-built drawings elsewhere)"]
[]
[null,null," - - - - - - - - - - - - - - - - - - - - - - - - -"]
[]
[null,null,"SOIL DRAINAGE (WORK GROUP 146)"]
[]
[{"v":1,"d":"1 "},null,"Excavation in earth not exceeding 1m deep for pipe trenches",null,"m³",{"v":30,"d":"30 "},null,{"$f":"ROUND($F1961*G1961,2)","v":0}]
[]
[{"v":2,"d":"2 "},null,"Excavation in earth exceeding 1m and not exceeding 2m deep for pipe trenches",null,"m³",{"v":61,"d":"61 "},null,{"$f":"ROUND($F1963*G1963,2)","v":0}]
[]
[{"v":3,"d":"3 "},null,"Excavation in earth exceeding 2m and not exceeding 3m deep for pipe trenches",null,"m³",{"v":76,"d":"76 "},null,{"$f":"ROUND($F1965*G1965,2)","v":0}]
[]
[{"v":4,"d":"4 "},null,"Backfilling to pipe trenches",null,"m³",{"v":1,"d":"1 "},null,{"$f":"ROUND($F1967*G1967,2)","v":0}]
[]
[{"v":5,"d":"5 "},null,"Selected granular filling in bedding under and filling around pipes",null,"m³",{"v":47,"d":"47 "},null,{"$f":"ROUND($F1969*G1969,2)","v":0}]
[]
[null,null,"Heavy duty (Class 34) uPVC sewer and drain pipes:"]
[]
[{"v":6,"d":"6 "},null,"110mm Pipes laid in trenches (trenches elsewhere)",null,"m",{"v":120,"d":"120 "},null,{"$f":"ROUND($F1973*G1973,2)","v":0}]
[]
[{"v":7,"d":"7 "},null,"160mm Pipes laid in trenches (trenches elsewhere)",null,"m",{"v":10,"d":"10 "},null,{"$f":"ROUND($F1975*G1975,2)","v":0}]
[]
[null,null,"Extra over heavy duty (Class 34) uPVC sewer and drain pipes for fittings:"]
[]
[{"v":8,"d":"8 "},null,"110mm Bend",null,"No",{"v":12,"d":"12 "},null,{"$f":"ROUND($F1979*G1979,2)","v":0}]
[]
[{"v":9,"d":"9 "},null,"110mm Junction",null,"No",{"v":5,"d":"5 "},null,{"$f":"ROUND($F1981*G1981,2)","v":0}]
[]
[{"v":10,"d":"10 "},null,"110mm Rodding eye",null,"No",{"v":3,"d":"3 "},null,{"$f":"ROUND($F1983*G1983,2)","v":0}]
[]
[{"v":11,"d":"11 "},null,"110mm Reducing junction",null,"No",{"v":3,"d":"3 "},null,{"$f":"ROUND($F1985*G1985,2)","v":0}]
[]
[{"v":12,"d":"12 "},null,"160mm Overflow gulley head",null,"No",{"v":2,"d":"2 "},null,{"$f":"ROUND($F1987*G1987,2)","v":0}]
[]
[{"v":13,"d":"13 "},null,"160mm Access reducing junction",null,"No",{"v":2,"d":"2 "},null,{"$f":"ROUND($F1989*G1989,2)","v":0}]
[]
[{"v":14,"d":"14 "},null,"160mm Access junction",null,"No",{"v":12,"d":"12 "},null,{"$f":"ROUND($F1991*G1991,2)","v":0}]
[]
[null,null,"Cast iron covers, etc:"]
[]
[{"v":15,"d":"15 "},null,"1000mm Diameter manhole cover and frame",null,"No",{"v":12,"d":"12 "},null,{"$f":"ROUND($F1995*G1995,2)","v":0}]
[]
[{"v":16,"d":"16 "},null,"Lifting-key for manhole cover (handed to Employer)",null,"No",{"v":12,"d":"12 "},null,{"$f":"ROUND($F1997*G1997,2)","v":0}]
[]
[null,null,"Precast Concrete Manhole"]
[]
[null,null,"Manhole formed of precast concrete manhole rings, components all bedded and jointed with approved water tight jointing, 260mm thick 20MPa/19mm mass concrete base projecting 75mm beyond external face of chamber ring and sealed to ring with 75mm wide x 125mm high 20MPa/19mm mass concrete triangular fillet, complete with precast concrete medium duty cover and frame, with and including neccessary step iron, 20MPa/19mm mass concrete benching in bottom with top surfaces to falls and including 160mm vitrified clay channels, channel bends, channel junctions, etc., additional excavation and backfilling compacted to 93% modified AASHTO density"]
[]
[{"v":17,"d":"17 "},null,"1000mm Diameter manhole not exceeding 1m deep",null,"No",{"v":4,"d":"4 "},null,{"$f":"ROUND($F2003*G2003,2)","v":0}]
[]
[{"v":18,"d":"18 "},null,"1000mm Diameter manhole exceeding 1m but not exceeding 2m deep",null,"No",{"v":4,"d":"4 "},null,{"$f":"ROUND($F2005*G2005,2)","v":0}]
[]
[{"v":19,"d":"19 "},null,"1000mm Diameter manhole exceeding 2m but not exceeding 3m deep",null,"No",{"v":4,"d":"4 "},null,{"$f":"ROUND($F2007*G2007,2)","v":0}]
[]
[{"v":20,"d":"20 "},null,"Cutting into existing 160mm drain pipe for and forming junction with 110mm pipe",null,"No",{"v":1,"d":"1 "},null,{"$f":"ROUND($F2009*G2009,2)","v":0}]
[]
[null,null,"Alterations:"]
[]
[{"v":21,"d":"21 "},null,"Excavate for and locate existing 160mm diameter uPVC soil drain pipe approximately 2000mm deep and connect to 160mm diameter uPVC pipe including all necessary fittings, backfilling, etc",null,"No",{"v":3,"d":"3 "},null,{"$f":"ROUND($F2013*G2013,2)","v":0}]
[]
[null,null,"Testing:"]
[]
[{"v":22,"d":"22 "},null,"Testing soil drainage system",null,"Item",{"v":1,"d":"1 "},null,{"$f":"ROUND($F2017*G2017,2)","v":0}]
[]
[null,null,"AS-BUILT DRAWINGS"]
[]
[{"v":23,"d":"23 "},null,"Provision of as-built drawings",null,"Item",{"v":1,"d":"1 "},null,{"$f":"ROUND($F2021*G2021,2)","v":0}]
[]
[null,null,"BUDGETARY ALLOWANCE"]
[]
[{"v":24,"d":"24 "},null,"Provide a budgetary allowance of One Hundred and Fifty Thousand Rand for the decommissioning of an old and construction of a new septic tank to be used as directed by the Principal Agent and to be deducted in whole or in part if not required.",null,"Item",{"v":1,"d":"1 "},null,{"$f":"ROUND($F2025*G2025,2)","v":0}]
[]
[{"v":1,"d":"1 "},null,"External Works (Provisional)",{"$nulls":4},{"$f":"SUM(H1763:H1874)","v":0}]
[]
[{"v":2,"d":"2 "},null,"Site Services (Provisional)",{"$nulls":4},{"$f":"SUM(H1949:H2025)","v":0}]
[]
[null,null,"SECTION NO. 4"]
[]
[null,null,"BILL NO. 1"]
[]
[null,null,"ELECTRICAL INSTALLATION"]
[]
[null,null,"LOW VOLTAGE"]
[]
[null,null,"DISCONNECTION/ REMOVAL OF REDUNDANT ELECTRICAL EQUIPMENT"]
[]
[null,null,"The following equipment shall be isolated, disconnected, removed and handed over to the Employer's"]
[]
[{"v":1,"d":"1 "},null,"Decommissioning and stripping of existing electrical installations including cables, conductors, luminiares, control devices, DB's, etc in the existing building.",null,"SUM",{"v":1,"d":"1 "},null,{"$f":"ROUND($F2043*G2043,2)","v":0}]
[]
[null,null,"LV SWITCHGEAR DBs and LV Switchgear"]
[]
[null,null,"Manufacture, deliver to site, install, commission, test kiosks, distribution boards as per specification and single line diagram, to be housed in electrical. All electrical panels shall be stainless steel material, rates to include powder coated, busbars and drilling, busbar connections internal wiring etc. Refer to single line diagram for electrical panel colour"]
[]
[{"v":2,"d":"2 "},null,"Distribution board - Ticket Office",null,"No",{"v":1,"d":"1 "},null,{"$f":"ROUND($F2049*G2049,2)","v":0}]
[]
[{"v":3,"d":"3 "},null,"Kiosk",null,"No",{"v":1,"d":"1 "},null,{"$f":"ROUND($F2051*G2051,2)","v":0}]
[]
[{"v":4,"d":"4 "},null,"UTA4 IP65 Box surface mounted with 32A 1-pole isolator, 3x circuit breakers with complete busbar.",null,"No",{"v":4,"d":"4 "},null,{"$f":"ROUND($F2053*G2053,2)","v":0}]
[]
[null,null,"CABLES AND CONDUCTORS"]
[]
[null,null,"Supply, deliver to site cables and conductors as specified. Install, rack, strap and testing of cables as per specification including clamps, ties and cable numbering system"]
[]
[{"v":5,"d":"5 "},null,"2,5mm conductors (mixed colours - live, neutral and earth)",null,"m",{"v":2000,"d":"2,000 "},null,{"$f":"ROUND($F2059*G2059,2)","v":0}]
[]
[{"v":6,"d":"6 "},null,"4,0mm conductors (mixed colours - live, neutral and earth)",null,"m",{"v":250,"d":"250 "},null,{"$f":"ROUND($F2061*G2061,2)","v":0}]
[]
[{"v":7,"d":"7 "},null,"2.5 mm\"² 4c 600/1000V PVC/SWA/PVC ECC Cu Cable",null,"m",{"v":300,"d":"300 "},null,{"$f":"ROUND($F2063*G2063,2)","v":0}]
[]
[{"v":8,"d":"8 "},null,"4,0 mm\"² 4c 600/1000V PVC/SWA/PVC ECC Cu Cable",null,"m",{"v":150,"d":"150 "},null,{"$f":"ROUND($F2065*G2065,2)","v":0}]
[]
[{"v":9,"d":"9 "},null,"10 mm\"² 4c 600/1000V PVC/SWA/PVC ECC Cu Cable",null,"m",{"v":100,"d":"100 "},null,{"$f":"ROUND($F2067*G2067,2)","v":0}]
[]
[{"v":10,"d":"10 "},null,"25mm\"² 4c 600/1000V PVC/SWA/PVC ECC Cu Cable",null,"m",{"v":100,"d":"100 "},null,{"$f":"ROUND($F2069*G2069,2)","v":0}]
[]
[null,null,"CABLES TERMINATIONS"]
[]
[null,null,"Termination of cables shall include supply installation and testing of the glands with corrossion  guard , making-off the cable, lugs, and fitting the gland to the board gland plate, switchgear or equipment and final connection of cable tails into board or terminals.  Include for Reducing Glands and shrouds where applicable. NB:  IP65 Glands are to be used where applicable."]
[]
[{"v":11,"d":"11 "},null,"2.5 mm\"² 2c 600/1000V PVC/SWA/PVC ECC Cu Cable",null,"No",{"v":6,"d":"6 "},null,{"$f":"ROUND($F2075*G2075,2)","v":0}]
[]
[{"v":12,"d":"12 "},null,"10 mm\"² 4c 600/1000V PVC/SWA/PVC ECC Cu Cable",null,"No",{"v":8,"d":"8 "},null,{"$f":"ROUND($F2077*G2077,2)","v":0}]
[]
[{"v":13,"d":"13 "},null,"20mm PVC Conduit including all necessary accessories. Rate to include chasing wall for conduit in the wall, close wall and make good.",null,"m",{"v":400,"d":"400 "},null,{"$f":"ROUND($F2079*G2079,2)","v":0}]
[]
[{"v":14,"d":"14 "},null,"1.5mm\"² draw wire (not insulated)",null,"m",{"v":100,"d":"100 "},null,{"$f":"ROUND($F2081*G2081,2)","v":0}]
[]
[{"v":15,"d":"15 "},null,"25mm\"² 4c 600/1000V PVC/SWA/PVC ECC Cu Cable",null,"No",{"v":2,"d":"2 "},null,{"$f":"ROUND($F2083*G2083,2)","v":0}]
[]
[null,null,"LUMINARIES AND CONTROL DEVICES"]
[]
[null,null,"Supply, deliver, accept and store the following luminaries, complete with lamps and control gear as per specification. See and refer to the specification document for details of each luminiare."]
[]
[{"v":16,"d":"16 "},null,"Type A5 - IP65 Rated, 30W / 4440 lm LED - 4000k vapour-proof Surface-mounted weather-proof luminaire, GRP body and acrylic diffuser, with 50000 hours lifespan.",null,"No",{"v":20,"d":"20 "},null,{"$f":"ROUND($F2089*G2089,2)","v":0}]
[]
[{"v":17,"d":"17 "},null,"Type A13 - IP65 Rated, 30W / 4440 lm LED - 4000k Rough-guard Surface-mounted weather-proof luminaire, GRP body and acrylic diffuser, with 50000 hours lifespan.",null,"No",{"v":18,"d":"18 "},null,{"$f":"ROUND($F2091*G2091,2)","v":0}]
[]
[{"v":18,"d":"18 "},null,"Type B1 - IP65 Rated high-pressure die cast aluminium base and trim ring 20W/  2600lm LED - 4000k bulkhead luminaire with an opal high-impact acrylic diffuser, with 50000 hours lifespan.",null,"No",{"v":30,"d":"30 "},null,{"$f":"ROUND($F2093*G2093,2)","v":0}]
[]
[{"v":19,"d":"19 "},null,"Type FL1  - 180W / 27000lm LED (4000k) Streetlight rated IP66 with powder coating as per specification",null,"No",{"v":20,"d":"20 "},null,{"$f":"ROUND($F2095*G2095,2)","v":0}]
[]
[{"v":20,"d":"20 "},null,"Photo electric cell as per specification",null,"No",{"v":8,"d":"8 "},null,{"$f":"ROUND($F2097*G2097,2)","v":0}]
[]
[{"v":21,"d":"21 "},null,"Replace existing steel cage for lighting. Cage shall be hot dip galvanised",null,"No",{"v":5,"d":"5 "},null,{"$f":"ROUND($F2099*G2099,2)","v":0}]
[]
[{"v":22,"d":"22 "},null,"New steel cage for lighting. Cage shall be hot dip galvanised",null,"No",{"v":12,"d":"12 "},null,{"$f":"ROUND($F2101*G2101,2)","v":0}]
[]
[null,null,"EXCAVATIONS"]
[]
[null,null,"For all low voltage cables from existing Municipality Substation to meter room and buildings through manholes as per drawings.  Trenching shall be calculated using the formula below: (700mm deep * 0.4m wide *  length)"]
[]
[{"v":23,"d":"23 "},null,"Excavate in concrete/tar and hard soil, backfilling and compaction to 93% MOD AASHTO",null,"m³",{"v":16,"d":"16 "},null,{"$f":"ROUND($F2107*G2107,2)","v":0}]
[]
[{"v":24,"d":"24 "},null,"Re-instate tar for above item",null,"m³",{"v":16,"d":"16 "},null,{"$f":"ROUND($F2109*G2109,2)","v":0}]
[]
[null,null,"SUNDRIES"]
[]
[{"v":25,"d":"25 "},null,"LV reticulation - Preparation of 'As-Built' drawings and manuals as per this specification.",null,"No",{"v":1,"d":"1 "},null,{"$f":"ROUND($F2113*G2113,2)","v":0}]
[]
[{"v":26,"d":"26 "},null,"Supply of hard bound spiral folders containing commissioning/COC certificates, test results & operating & maintenance manuals for the LV equipment, cabling, light fittings, etc.",null,"No",{"v":3,"d":"3 "},null,{"$f":"ROUND($F2115*G2115,2)","v":0}]
[]
[null,null,"LIGHT SWITCHES, SOCKET OUTLET, WELDING ISOLATORS AND ACCESSORIES"]
[]
[null,null,"Supply, deliver and installation of the following  control devices and accessories as per specification. Rate must allow for the termination and connecting of the PVC conductor to the accessory, fixing to the conduit box and the fitting of the cover plate. (PVC coverer)"]
[]
[{"v":27,"d":"27 "},null,"Supply and installation of 20Amp, 1-Pole surface mounted isolator, complete with all necessary accessories",null,"No",{"v":6,"d":"6 "},null,{"$f":"ROUND($F2121*G2121,2)","v":0}]
[]
[{"v":28,"d":"28 "},null,"Supply and installation of 20Amp IP66, 1-Pole isolator mounted on the security steel cage, complete with all necessary accessories",null,"No",{"v":1,"d":"1 "},null,{"$f":"ROUND($F2123*G2123,2)","v":0}]
[]
[null,null,"GENERATOR SET"]
[]
[null,null,"Manufacture, deliver to site, install, test and commission of a generator set 400 volts at 50Hz as per specification and single line diagram. The generator shall be enclosed or containerised on a stainless steel Grl316.  Rates to include for steelwork and powder coated, busbars and drilling, busbar connections internal wiring, earthing for the generator set, etc. Refer to attached single line diagram."]
[]
[{"v":29,"d":"29 "},null,"60kVA, 400V, 3phase silent Diesel Engine Alternator Set including automatic change-over panel and weatherproof 3CR12-steel canopy.",null,"SUM",{"v":1,"d":"1 "},null,{"$f":"ROUND($F2129*G2129,2)","v":0}]
[]
[{"v":30,"d":"30 "},null,"Stainless steel Metal cladded thermal insulation of exhaust pipe and silencer within the enclosure.",null,"SUM",{"v":1,"d":"1 "},null,{"$f":"ROUND($F2131*G2131,2)","v":0}]
[]
[{"v":31,"d":"31 "},null,"Water Trap/Fuel Filter cartridge",null,"SUM",{"v":1,"d":"1 "},null,{"$f":"ROUND($F2133*G2133,2)","v":0}]
[]
[null,null,"Electrical reticulation"]
[]
[{"v":32,"d":"32 "},null,"Interconnecting control & power cabling between genset and alternator and AMF panel",null,"SUM",{"v":1,"d":"1 "},null,{"$f":"ROUND($F2137*G2137,2)","v":0}]
[]
[{"v":33,"d":"33 "},null,"Support & protection of exposed cabling between genset & AMF panel",null,"SUM",{"v":1,"d":"1 "},null,{"$f":"ROUND($F2139*G2139,2)","v":0}]
[]
[{"v":34,"d":"34 "},null,"Electronic hooter & red flashing general alarm light mounted on the AMF panel.",null,"SUM",{"v":1,"d":"1 "},null,{"$f":"ROUND($F2141*G2141,2)","v":0}]
[]
[{"v":35,"d":"35 "},null,"Remote alarm indicator panel complete the red indicator lamp and label - GENERATOR FAULT",null,"SUM",{"v":1,"d":"1 "},null,{"$f":"ROUND($F2143*G2143,2)","v":0}]
[]
[{"v":36,"d":"36 "},null,"External emergency stop push button and cabling",null,"SUM",{"v":1,"d":"1 "},null,{"$f":"ROUND($F2145*G2145,2)","v":0}]
[]
[{"v":37,"d":"37 "},null,"Earthing of the generator set",null,"SUM",{"v":1,"d":"1 "},null,{"$f":"ROUND($F2147*G2147,2)","v":0}]
[]
[null,null,"Commissioning"]
[]
[{"v":38,"d":"38 "},null,"Test & commission on site with load",null,"SUM",{"v":1,"d":"1 "},null,{"$f":"ROUND($F2151*G2151,2)","v":0}]
[]
[{"v":39,"d":"39 "},null,"Resistance testing of earth system",null,"SUM",{"v":1,"d":"1 "},null,{"$f":"ROUND($F2153*G2153,2)","v":0}]
[]
[{"v":40,"d":"40 "},null,"Balancing of the essential loads",null,"SUM",{"v":1,"d":"1 "},null,{"$f":"ROUND($F2155*G2155,2)","v":0}]
[]
[{"v":41,"d":"41 "},null,"Electrical Certification of Compliance",null,"SUM",{"v":1,"d":"1 "},null,{"$f":"ROUND($F2157*G2157,2)","v":0}]
[]
[null,null,"Signage"]
[]
[{"v":42,"d":"42 "},null,"As per OHS Act - fire & resussitation etc.",null,"SUM",{"v":1,"d":"1 "},null,{"$f":"ROUND($F2161*G2161,2)","v":0}]
[]
[{"v":43,"d":"43 "},null,"Generator \"Manual Start/Test Procedure\"",null,"SUM",{"v":1,"d":"1 "},null,{"$f":"ROUND($F2163*G2163,2)","v":0}]
[]
[{"v":44,"d":"44 "},null,"Electricity logo on door to AMF panel",null,"SUM",{"v":1,"d":"1 "},null,{"$f":"ROUND($F2165*G2165,2)","v":0}]
[]
[{"v":45,"d":"45 "},null,"Contractors & PRASA's details - laminated plastic",null,"SUM",{"v":1,"d":"1 "},null,{"$f":"ROUND($F2167*G2167,2)","v":0}]
[]
[null,null,"General"]
[]
[{"v":46,"d":"46 "},null,"Diesel fuel for full tank",null,"SUM",{"v":1,"d":"1 "},null,{"$f":"ROUND($F2171*G2171,2)","v":0}]
[]
[{"v":47,"d":"47 "},null,"Laminated plastic framed schematic wiring diagram fixed to the inside of the enclosure adjacent the AMF panel",null,"No",{"v":1,"d":"1 "},null,{"$f":"ROUND($F2173*G2173,2)","v":0}]
[]
[{"v":48,"d":"48 "},null,"A4 size log book on chain in metal envelope in door",null,"No",{"v":1,"d":"1 "},null,{"$f":"ROUND($F2175*G2175,2)","v":0}]
[]
[{"v":49,"d":"49 "},null,"Operational training of Employer's staff",null,"SUM",{"v":1,"d":"1 "},null,{"$f":"ROUND($F2177*G2177,2)","v":0}]
[]
[{"v":50,"d":"50 "},null,"Manuals - 3 sets",null,"SUM",{"v":1,"d":"1 "},null,{"$f":"ROUND($F2179*G2179,2)","v":0}]
[]
[{"v":51,"d":"51 "},null,"Drawings",null,"SUM",{"v":1,"d":"1 "},null,{"$f":"ROUND($F2181*G2181,2)","v":0}]
[]
[null,null,"Service"]
[]
[{"v":52,"d":"52 "},null,"Monthly Inspection every quarter  new fuel filters for 1st year",null,"No",{"v":4,"d":"4 "},null,{"$f":"ROUND($F2185*G2185,2)","v":0}]
[]
[{"v":53,"d":"53 "},null,"Full annual service  new battery for 1st year",null,"No",{"v":1,"d":"1 "},null,{"$f":"ROUND($F2187*G2187,2)","v":0}]
[]
[{"v":54,"d":"54 "},null,"Removal of existing generator set off site to Durban depot",null,"SUM",{"v":1,"d":"1 "},null,{"$f":"ROUND($F2189*G2189,2)","v":0}]
[]
[null,null,"TEST AND COMMISSIONING"]
[]
[null,null,"Test and commission  the complete electrical installation including completion of quality check sheets, Compliance Certificates & test results and submitting them to the Employer's Representative."]
[]
[{"v":55,"d":"55 "},null,"Test and commission  the complete electrical installation including Certificates of Compliance and test results to the Engineer.",null,"SUM",{"v":1,"d":"1 "},null,{"$f":"ROUND($F2195*G2195,2)","v":0}]
[]
[null,null,"EARTHING & BONDING & LIGHTNING PROTECTION"]
[]
[null,null,"Soil Resistivity Test Allow for the execution of a soil resistivity survey. (This installation must be undertaken by a specialist Sub-contractor).  A 10 Ohm Final Earth Resisitance is required."]
[]
[null,null,"Electrical Earthing Conductors Supply, deliver to site 1000/600 volt PVC insulated (green/yellow) cables with stranded copper conductors. Install, rack, strap and testing of cables as per specification including clamps, ties and cable numbering system as specified. Note: Cable supports measured elsewhere)"]
[]
[null,null,"Supply, install, test and commissioning of the Lightning protection of the buildings on all corners of the buildings, complete with all necessary required material, accessories for a complete installation. Contractor to use copper earth spike, aluminium or copper conductors as per specification, and have testing points for the building.  Rates to include all necessary required accessories for a complete installation. The installation must comply with SANS 10313."]
[]
[{"v":56,"d":"56 "},null,"Platform Ablution & Shelter",null,"SUM",{"v":1,"d":"1 "},null,{"$f":"ROUND($F2205*G2205,2)","v":0}]
[]
[{"v":57,"d":"57 "},null,"Waiting Area (external)",null,"SUM",{"v":1,"d":"1 "},null,{"$f":"ROUND($F2207*G2207,2)","v":0}]
[]
[{"v":58,"d":"58 "},null,"Waiting Area (internal)",null,"SUM",{"v":1,"d":"1 "},null,{"$f":"ROUND($F2209*G2209,2)","v":0}]
[]
[{"v":59,"d":"59 "},null,"Shelter",null,"SUM",{"v":1,"d":"1 "},null,{"$f":"ROUND($F2211*G2211,2)","v":0}]
[]
[{"v":60,"d":"60 "},null,"Test and commission the complete electrical earthing and lightning protection installation including Certificates & test results to the Engineer for all buildings indicated above.",null,"SUM",{"v":1,"d":"1 "},null,{"$f":"ROUND($F2213*G2213,2)","v":0}]
[]
[null,null,"SECTION 5"]
[]
[null,null,"BILL NO. 1"]
[]
[null,null,"HVAC INSTALLATIONS"]
[]
[null,null,"Design, manufacture, works testing, supply and deliver to site, moving into position, Installion, connecting up, site testing, witness testing, providing to insurance inspectors, demonstrating to the Employer, commissioning and maintenance of the complete mechanical systems and equipment as shown on the drawings."]
[]
[null,null,"Supply, deliver and install the following HVAC units as per specification:"]
[]
[{"v":1,"d":"1 "},null,"2.5 kW cooling midwall split indoor unit",null,"No",{"v":2,"d":"2 "},null,{"$f":"ROUND($F2225*G2225,2)","v":0}]
[]
[{"v":2,"d":"2 "},null,"2.5 kW inverter type outdoor condensing unit",null,"No",{"v":2,"d":"2 "},null,{"$f":"ROUND($F2227*G2227,2)","v":0}]
[]
[{"v":3,"d":"3 "},null,"3.5 kW cooling midwall split indoor unit",null,"No",{"v":3,"d":"3 "},null,{"$f":"ROUND($F2229*G2229,2)","v":0}]
[]
[{"v":4,"d":"4 "},null,"3.5 kW inverter type outdoor condensing unit",null,"No",{"v":3,"d":"3 "},null,{"$f":"ROUND($F2231*G2231,2)","v":0}]
[]
[{"v":5,"d":"5 "},null,"Refrigeration copper piping with thermal insulation and all associated fittings",null,"m",{"v":20,"d":"20 "},null,{"$f":"ROUND($F2233*G2233,2)","v":0}]
[]
[{"v":6,"d":"6 "},null,"PVC condensate drain piping with insulation",null,"m",{"v":25,"d":"25 "},null,{"$f":"ROUND($F2235*G2235,2)","v":0}]
[]
[{"v":7,"d":"7 "},null,"Wired controller",null,"No",{"v":5,"d":"5 "},null,{"$f":"ROUND($F2237*G2237,2)","v":0}]
[]
[{"v":8,"d":"8 "},null,"Fabricate, supply, and install lockable security cages around each outdoor condensing unit",null,"No",{"v":5,"d":"5 "},null,{"$f":"ROUND($F2239*G2239,2)","v":0}]
[]
[{"v":9,"d":"9 "},null,"Application of approved coastal treatment for the outdoor condensing units",null,"No",{"v":5,"d":"5 "},null,{"$f":"ROUND($F2241*G2241,2)","v":0}]
[]
[null,null,"SECTION 5"]
[]
[null,null,"BILL NO. 2"]
[]
[null,null,"WET SERVICES"]
[]
[null,null,"COLD WATER INSTALLATION"]
[]
[null,null,"Supply, install, and commission the water reticulation systems per specification"]
[]
[null,null,"Class 12 HDPE piping laid and buried trenches not exceeding 800mm deep"]
[]
[{"v":1,"d":"1 "},null,"25mm diameter HDPE CI 12 underground water pipe",null,"m",{"v":65,"d":"65 "},null,{"$f":"ROUND($F2255*G2255,2)","v":0}]
[]
[{"v":2,"d":"2 "},null,"32mm diameter HDPE CI 12 underground water pipe",null,"m",{"v":70,"d":"70 "},null,{"$f":"ROUND($F2257*G2257,2)","v":0}]
[]
[null,null,"Fittings for HDPE class 12 piping"]
[]
[{"v":3,"d":"3 "},null,"25mm diameter Adaptor to pex piping",null,"m",{"v":4,"d":"4 "},null,{"$f":"ROUND($F2261*G2261,2)","v":0}]
[]
[{"v":4,"d":"4 "},null,"32mm diameter Equal tee",null,"m",{"v":3,"d":"3 "},null,{"$f":"ROUND($F2263*G2263,2)","v":0}]
[]
[{"v":5,"d":"5 "},null,"32mm diameter - 25mm diameter Reducer",null,"m",{"v":4,"d":"4 "},null,{"$f":"ROUND($F2265*G2265,2)","v":0}]
[]
[null,null,"PEX piping"]
[]
[{"v":6,"d":"6 "},null,"15mm diameter pipe",null,"m",{"v":70,"d":"70 "},null,{"$f":"ROUND($F2269*G2269,2)","v":0}]
[]
[{"v":7,"d":"7 "},null,"22mm diameter pipe",null,"m",{"v":40,"d":"40 "},null,{"$f":"ROUND($F2271*G2271,2)","v":0}]
[]
[null,null,"PEX piping fittings"]
[]
[{"v":8,"d":"8 "},null,"15mm diameter Elbow",null,"No",{"v":25,"d":"25 "},null,{"$f":"ROUND($F2275*G2275,2)","v":0}]
[]
[{"v":9,"d":"9 "},null,"22mm diameter Elbow",null,"No",{"v":4,"d":"4 "},null,{"$f":"ROUND($F2277*G2277,2)","v":0}]
[]
[{"v":10,"d":"10 "},null,"22mm diameter Equal tee",null,"No",{"v":14,"d":"14 "},null,{"$f":"ROUND($F2279*G2279,2)","v":0}]
[]
[{"v":11,"d":"11 "},null,"22-15mm diameter Reducer",null,"No",{"v":15,"d":"15 "},null,{"$f":"ROUND($F2281*G2281,2)","v":0}]
[]
[null,null,"Plastic pipe compression fittings and valves"]
[]
[{"v":12,"d":"12 "},null,"15mm Female elbow",null,"No",{"v":20,"d":"20 "},null,{"$f":"ROUND($F2285*G2285,2)","v":0}]
[]
[{"v":13,"d":"13 "},null,"15mm diameter - 15mm diameter Female tee",null,"No",{"v":16,"d":"16 "},null,{"$f":"ROUND($F2287*G2287,2)","v":0}]
[]
[{"v":14,"d":"14 "},null,"22mm diameter Isolation valve",null,"No",{"v":4,"d":"4 "},null,{"$f":"ROUND($F2289*G2289,2)","v":0}]
[]
[{"v":15,"d":"15 "},null,"22mm diameter strainer valve",null,"No",{"v":4,"d":"4 "},null,{"$f":"ROUND($F2291*G2291,2)","v":0}]
[]
[null,null,"Pipe hangers - anchor, treaded rod & hilti hanger"]
[]
[{"v":16,"d":"16 "},null,"15mm diameter",null,"No",{"v":10,"d":"10 "},null,{"$f":"ROUND($F2295*G2295,2)","v":0}]
[]
[{"v":17,"d":"17 "},null,"22mm diameter",null,"No",{"v":20,"d":"20 "},null,{"$f":"ROUND($F2297*G2297,2)","v":0}]
[]
[null,null,"Heavy brown paper loosely wrapped around pipe as shealth for expansion"]
[]
[{"v":18,"d":"18 "},null,"15-22mm diameter",null,"m",{"v":50,"d":"50 "},null,{"$f":"ROUND($F2301*G2301,2)","v":0}]
[]
[null,null,"Potable water system"]
[]
[{"v":19,"d":"19 "},null,"10 000 I PVC Potable water tank with all associated isolation valves and strainers",null,"No",{"v":1,"d":"1 "},null,{"$f":"ROUND($F2305*G2305,2)","v":0}]
[]
[{"v":20,"d":"20 "},null,"Variable speed potable water booster pump capable of delivering 2.3 I/s at 45m of H2O with all associated valves, fitting, PVC pipework, and auto start/stop control circuit.",null,"No",{"v":2,"d":"2 "},null,{"$f":"ROUND($F2307*G2307,2)","v":0}]
[]
[{"v":21,"d":"21 "},null,"Fabricate, supply, and install lockable security cages around the duty/standby potable water pumps",null,"No",{"v":1,"d":"1 "},null,{"$f":"ROUND($F2309*G2309,2)","v":0}]
[]
[null,null,"DRAINAGE, ETC"]
[]
[null,null,"Sewer and drainage pipes and fittings shall be through solid wall Class 34 uPVC socketed soil piping in according to SABS 791, jointed and sealed with butyl rubber rings soil, waste and vent pipes and fittings shall be according to SABS 967 and solvent jointed cold water supply pressure pipes fittings shall be according SABS 966 and jointed by means of the \"Lyng\" type jointing system. Pipes shall be fixed and jointed according to SABS 0112"]
[]
[null,null,"Class 34 uPVC pipe"]
[]
[{"v":22,"d":"22 "},null,"50mm diameter pipe",null,"m",{"v":30,"d":"30 "},null,{"$f":"ROUND($F2317*G2317,2)","v":0}]
[]
[{"v":23,"d":"23 "},null,"110mm diameter pipe",null,"m",{"v":40,"d":"40 "},null,{"$f":"ROUND($F2319*G2319,2)","v":0}]
[]
[null,null,"Class 34 uPVC fittings"]
[]
[{"v":24,"d":"24 "},null,"50mm diameter 90 Deg bend",null,"No",{"v":9,"d":"9 "},null,{"$f":"ROUND($F2323*G2323,2)","v":0}]
[]
[{"v":25,"d":"25 "},null,"110mm diameter 90 Deg bend",null,"No",{"v":4,"d":"4 "},null,{"$f":"ROUND($F2325*G2325,2)","v":0}]
[]
[{"v":26,"d":"26 "},null,"110mm diameter 90 Deg access bend",null,"No",{"v":9,"d":"9 "},null,{"$f":"ROUND($F2327*G2327,2)","v":0}]
[]
[{"v":27,"d":"27 "},null,"50mm diameter 45 Deg bend",null,"No",{"v":12,"d":"12 "},null,{"$f":"ROUND($F2329*G2329,2)","v":0}]
[]
[{"v":28,"d":"28 "},null,"110mm diameter 45 Deg bend",null,"No",{"v":9,"d":"9 "},null,{"$f":"ROUND($F2331*G2331,2)","v":0}]
[]
[{"v":29,"d":"29 "},null,"110mm  diameter Pan connector",null,"No",{"v":9,"d":"9 "},null,{"$f":"ROUND($F2333*G2333,2)","v":0}]
[]
[{"v":30,"d":"30 "},null,"50mm diameter Equal access junction",null,"No",{"v":4,"d":"4 "},null,{"$f":"ROUND($F2335*G2335,2)","v":0}]
[]
[{"v":31,"d":"31 "},null,"110mm diameter - 50mm diameter junction",null,"No",{"v":7,"d":"7 "},null,{"$f":"ROUND($F2337*G2337,2)","v":0}]
[]
[{"v":32,"d":"32 "},null,"110mm diameter Equal access junction",null,"No",{"v":9,"d":"9 "},null,{"$f":"ROUND($F2339*G2339,2)","v":0}]
[]
[{"v":1,"d":"1 "},null,"HVAC Installations",{"$nulls":4},{"$f":"SUM(H2218:H2242)","v":0}]
[]
[{"v":2,"d":"2 "},null,"Wet Services",{"$nulls":4},{"$f":"SUM(H2250:H2339)","v":0}]
[]
[null,null,"SECTION 6"]
[]
[null,null,"BILL NO. 1"]
[]
[null,null,"PROVISIONAL AMOUNTS"]
[]
[null,null,"PREAMBLES"]
[]
[null,null,"The Model Preambles for Trades (2008 edition) as published by the Association of South African Quantity Surveyors shall be deemed to be incorporated in these bills of quantities and no claims arising from brevity of description of items fully described in the said Model Preambles will be entertained"]
[]
[null,null,"The following \"Supplementary Preambles\" are incorporated in this bill to satisfy the requirements of the project and shall take precedence over the provisions of the said Model Preambles"]
[]
[null,null,"SUPPLEMENTARY PREAMBLES"]
[]
[null,null,"General:"]
[]
[null,null,"Subcontract amounts are net.  Subcontract amounts are for material and equipment supplied and installed complete by firms of specialists"]
[]
[null,null,"Each subcontract amount may comprise more than one element of work.  Therefore, each subcontract amount may include for work to be carried out by more than one subcontractor"]
[]
[null,null,"Profit:"]
[]
[null,null,"Where stated, the contractor may allow for profit if required"]
[]
[null,null,"General attendance on nominated/selected subcontractors:"]
[]
[null,null,"The item \"General Attendance\" which follows each subcontract amount for nominated/selected subcontractors' work, shall be deemed to cover all the contractor's costs incurred in providing free of charge to the nominated/selected subcontractors, the following:"]
[]
[null,null,"1.  Access to the site and places where the subcontract work is to be carried out, including the reasonable use of any temporary personnel hoists erected by the contractor"]
[]
[null,null,"2.  The provision of water and lighting and of single phase electric power to a position within 50 metres of the place where the subcontract work is to be carried out but excluding water, fuel and power for commissioning of any installation"]
[]
[null,null,"3.  The provision of an area for the subcontractor to establish temporary office accommodation and workshops and for the storage of plant and materials"]
[]
[null,null,"4.  The use of erected scaffolding belonging to the contractor, in common with others having the like right, while it remains erected on the site"]
[]
[null,null,"5.  The use, at reasonable times by arrangement of the contractor's erected hoisting equipment"]
[]
[null,null,"6.  Making good in all trades and cleaning down and removal of rubbish on completion"]
[]
[null,null,"Special attendance on nominated/selected subcontractors:"]
[]
[null,null,"Where stated, special attendance as set out in clause 8.1 of section B of the Preliminaries will be described in detail in this bill"]
[]
[null,null,"Builder's work:"]
[]
[null,null,"Builder's work in connection with specialist services is given elsewhere in these bills of quantities"]
[]
[null,null,"PROTECTION SERVICES"]
[]
[{"v":1,"d":"1 "},null,"Sub-contract amount of Four Hundred Thousand Rand for the provision of protection services  to be spent as the Principal Agent may direct and to be deducted in whole or in part if not required",null,"Item",{"v":1,"d":"1 "},null,{"$f":"ROUND($F2395*G2395,2)","v":0}]
[]
[{"v":2,"d":"2 "},null,"Profit",null,"%",{"v":0,"d":"0%"},null,{"$f":"ROUND($F2397*G2397,2)","v":0}]
[]
[{"v":3,"d":"3 "},null,"General attendance",null,"%",{"v":0,"d":"0%"},null,{"$f":"ROUND($F2399*G2399,2)","v":0}]
[]
[null,null,"STATION FIXED FURNITURE"]
[]
[{"v":4,"d":"4 "},null,"Subcontract amount of One Hundred and Seventy Five Thousand Rand for the provision and installation of fixed station furniture  to be spent as the Principal Agent may direct and to be deducted in whole or in part if not required",null,"Item",{"v":1,"d":"1 "},null,{"$f":"ROUND($F2403*G2403,2)","v":0}]
[]
[{"v":5,"d":"5 "},null,"Profit",null,"%",{"v":0,"d":"0%"},null,{"$f":"ROUND($F2405*G2405,2)","v":0}]
[]
[{"v":6,"d":"6 "},null,"General Attendance",null,"%",{"v":0,"d":"0%"},null,{"$f":"ROUND($F2407*G2407,2)","v":0}]
[]
[null,null,"STATION SIGNAGE"]
[]
[{"v":7,"d":"7 "},null,"Subcontract amount of Two Hundred and Fifty Thousand Rand for the provision and installation of station signage  to be spent as the Principal Agent may direct and to be deducted in whole or in part if not required",null,"Item",{"v":1,"d":"1 "},null,{"$f":"ROUND($F2411*G2411,2)","v":0}]
[]
[{"v":8,"d":"8 "},null,"Profit",null,"%",{"v":0,"d":"0%"},null,{"$f":"ROUND($F2413*G2413,2)","v":0}]
[]
[{"v":9,"d":"9 "},null,"General attendance",null,"%",{"v":0,"d":"0%"},null,{"$f":"ROUND($F2415*G2415,2)","v":0}]
[]
[null,null,"BUILT-IN CUPBOARDS"]
[]
[{"v":10,"d":"10 "},null,"Subcontract amount of Twenty Five Thousand Rand for the provision and installation of Built-In Cupboards  to be spent as the Principal Agent may direct and to be deducted in whole or in part if not required",null,"Item",{"v":1,"d":"1 "},null,{"$f":"ROUND($F2419*G2419,2)","v":0}]
[]
[{"v":11,"d":"11 "},null,"Profit",null,"%",{"v":0,"d":"0%"},null,{"$f":"ROUND($F2421*G2421,2)","v":0}]
[]
[{"v":12,"d":"12 "},null,"General attendance",null,"%",{"v":0,"d":"0%"},null,{"$f":"ROUND($F2423*G2423,2)","v":0}]
[]
[null,null,"COMMUNITY LIAISON OFFICER"]
[]
[{"v":13,"d":"13 "},null,"Subcontract amount of one Ninety Thousand Rand for Community Liaison Officer for a period of six (6) months",null,"Item",{"v":1,"d":"1 "},null,{"$f":"ROUND($F2427*G2427,2)","v":0}]
[]
[{"v":14,"d":"14 "},null,"Profit",null,"%",{"v":0,"d":"0%"},null,{"$f":"ROUND($F2429*G2429,2)","v":0}]
[]
[{"v":15,"d":"15 "},null,"General attendance",null,"%",{"v":0,"d":"0%"},null,{"$f":"ROUND($F2431*G2431,2)","v":0}]
[]
[null,null,"SUMMARY"]
[]
[{"v":1,"d":"1 "},null,"Preliminaries and General",{"$nulls":4},{"$f":"SUM(H4:H413)","v":0}]
[]
[{"v":2,"d":"2 "},null,"Building Works",{"$nulls":4},{"$f":"SUM(H1693:H1722)","v":0}]
[]
[{"v":3,"d":"3 "},null,"External Works",{"$nulls":4},{"$f":"SUM(H2027:H2030)","v":0}]
[]
[{"v":4,"d":"4 "},null,"Electrical Installations",{"$nulls":4},{"$f":"SUM(H2033:H2213)","v":0}]
[]
[{"v":5,"d":"5 "},null,"Mechanical Installations",{"$nulls":4},{"$f":"SUM(H2340:H2343)","v":0}]
[]
[{"v":6,"d":"6 "},null,"Provisional Sums",{"$nulls":4},{"$f":"SUM(H2376:H2434)","v":0}]
[]
[null,null,"SUB TOTAL (EXCLUDING CONTINGENCIES)",{"$nulls":4},{"$f":"SUM(H2435:H2446)","v":0}]
[]
[null,null,"CONTRACT CONTINGENCIES"]
[]
[null,null,"Allow the sum of 10% for Contingencies to be spent as the Principal Agent may direct and to be deducted in whole or in part if not required",{"$nulls":4},{"$f":"H2447*0.1","v":0}]
[]
[null,null,"TOTAL (INCLUDING CONTINGENCIES)",{"$nulls":4},{"$f":"SUM(H2447:H2451)","v":0}]
[]
[null,null,"VALUE ADDED TAX"]
[]
[null,null,"Value Added Tax ",{"$nulls":4},{"$f":"H2453*0.15","v":0}]
[]
[null,null,"Carried to Form of Tender",{"$nulls":4},{"$f":"SUM(H2453:H2458)","v":0}]